Workbook

Sheet Start
G2: Risk Dashboard Interactive Tool
G3: =+'Reference Dates'!$C$4 -> Q42023 Data
E4: Please enable macros to ensure the correct functioning of the tool
O5: List showing in Dropdown menu | P5: RI number | Q5: RI Code | R5: Name for tables - change if needs to be different from dropdown names | T5: Tables name for dropdown
O6: Tier 1 capital ratio | P6: 1 | Q6: SVC_1 | R6: Tier 1 capital ratio | T6: Assets
B7: Choose a Risk Indicator: | E7: RI Number (*) | G7: RI Code | O7: Total capital ratio | P7: 2 | Q7: SVC_2 | R7: Total capital ratio | T7: Loans Composition
B8: Tier 1 capital ratio | E8: =IFERROR(VLOOKUP(B8,$O$6:$Q$27,2,0),"") -> 1 | G8: =IFERROR(VLOOKUP(B8,$O$6:$Q$27,3,0),"") -> SVC_1 | O8: CET1 ratio | P8: 3 | Q8: SVC_3 | R8: CET1 ratio | T8: Loans NPL and coverage ratio
O9: CET1 ratio (fully loaded) | P9: 4 | Q9: SVC_29 | R9: CET1 ratio (fully loaded) | T9: NACE composition
B10: Choose a set of Tables from the statistical Annex: | O10: Leverage ratio | P10: 5 | Q10: SVC_13 | R10: Leverage ratio (transitional definition of Tier 1) | T10: NPL ratio by NACE
B11: Assets | I11: =IFERROR((LEFT($B$11,FIND(" ",$B$11)-1)),$B$11) -> Assets | O11: Leverage ratio (fully phased-in definition of Tier 1) | P11: 6 | Q11: SVC_12 | R11: Leverage ratio (fully phased-in definition of Tier 1) | T11: RE and Construction Exposures
O12: Ratio of non-performing loans and advances (NPL ratio) | P12: 7 | Q12: AQT_3.2 | R12: Ratio of non-performing loans and advances (NPL ratio) | T12: IFRS9
O13: Coverage ratio of non-performing loans and advances | P13: 8 | Q13: AQT_41.2 | R13: Coverage ratio of non-performing loans and advances | T13: Sovereigns
O14: Forbearance ratio for loans and advances | P14: 9 | Q14: AQT_42.2 | R14: Forbearance ratio for loans and advances | T14: Liabilities
B15: (*) In order of appearance in the Risk Dashboard | O15: Ratio of non-performing exposures (NPE ratio) | P15: 10 | Q15: AQT_3.1 | R15: Ratio of non-performing exposures (NPE ratio) | T15: Liquidity
O16: Return on equity | P16: 11 | Q16: PFT_21 | R16: Return on equity | T16: Own funds and RWA
O17: Return on assets | P17: 12 | Q17: PFT_24 | R17: Return on assets | T17: Profitability
O18: Cost to income ratio | P18: 13 | Q18: PFT_23 | R18: Cost to income ratio
O19: Net interest income to total net operating income | P19: 14 | Q19: PFT_25 | R19: Net interest income to total net operating income
O20: Net fee and commission income to total net operating income | P20: 15 | Q20: PFT_26 | R20: Net fee and commission income to total net operating income
O21: Net trading income to total net operating income | P21: 16 | Q21: PFT_29 | R21: Net trading income to total net operating income
O22: Net interest margin | P22: 17 | Q22: PFT_41 | R22: Net interest margin
O23: Cost of Risk | P23: 18 | Q23: PFT_43 | R23: Cost of Risk
O24: Loan-to-deposit ratio for households and non-financial corporations | P24: 19 | Q24: FND_32 | R24: Loan-to-deposit ratio for households and non-financial corporations
O25: Asset encumbrance ratio | P25: 20 | Q25: FND_33 | R25: Asset encumbrance ratio
O26: Liquidity coverage ratio (%) | P26: 21 | Q26: LIQ_17 | R26: Liquidity coverage ratio (%)
O27: Net Stable Funding Ratio | P27: 22 | Q27: LIQ_20 | R27: Net Stable Funding Ratio

Sheet Charts
B2: =$AR$21 -> Solvency
B3: =AM21&" - "&$AO$20 -> 1 - Tier 1 capital ratio
B4: Due to the automation of this file, charts axis are not scaled as in the booklet version. User may need to manually adjust it.
B5: Dispersion | J5: Numerator and denominator: trends
B7: 5th and 95th pct, interquartile range and median. | J7: =IF(AK21="PFT_43","Total numerator and denominator. 2018Q1=100.","Total numerator and denominator. "& IF(NOT(ISNA($AS$25)), YEAR($AM$25), IF(NOT(ISNA($AS$26)), YEAR($AM$26), IF(NOT(ISNA($AS$27)), YEAR($AM$27), IF(NOT(ISNA($AS$29)), YEAR($AM$29), IF(NOT(ISNA(#REF!)), YEAR($AM$30),IF(NOT(ISNA($AS$31)), YEAR($AM$31),IF(NOT(ISNA($AS$32)), YEAR($AM$32),IF(NOT(ISNA($AS$33)), YEAR($AM$33),IF(NOT(ISNA($AS$34)), YEAR($AM$34),IF(NOT(ISNA($AS$35)), YEAR($AM$35),IF(NOT(ISNA($AS$36)), YEAR($AM$36),YEAR($AM$37)))))))))))) &"Q"& IF(NOT(ISNA($AS$25)),ROUNDUP(MONTH($AM$25)/3,0), IF(NOT(ISNA($AS$26)),ROUNDUP(MONTH($AM$26)/3,0), IF(NOT(ISNA($AS$27)), ROUNDUP(MONTH($AM$27)/3,0), IF(NOT(ISNA($AS$29)), ROUNDUP(MONTH($AM$29)/3,0),NOT(ISNA($AS$30)))))) &" = 100.") -> Total numerator and denominator. 2021Q1 = 100.
B9: ="Country dispersion (as of "& YEAR(MAX(AM25:AM46))&" Q"&(ROUNDUP((MONTH(MAX(AM25:AM46))/3),0))&")" -> Country dispersion (as of 2023 Q4) | J9: KRI by size class
B11: ( * ) Not reported. Weighted Averages by country. | J11: ="Weighted average. Banks are classified in the size class according to the their average total assets between 2014Q4 and "&YEAR(MAX(AM25:AM46))&"Q"&(ROUNDUP(MONTH(MAX(AM25:AM46))/3,0))&IF(AN49="Y",". Non-FINREP banks are assigned to the bucket of small banks.",". ") -> Weighted average. Banks are classified in the size class according to the their average total assets between 2014Q4 and 2023Q4.
B14: Period | E14: Weighted average | H14: 25th percentile | K14: 50th percentile | N14: 75th percentile
C16: =AM25 -> 2021-03-01 | F16: =IF(AND(YEAR(C16)<2018,$AK$21="PFT_43"),"",IFERROR(VLOOKUP($C16,$AM$25:$BB$43,8,FALSE), "")) -> 0.1705187526 | I16: =IF(AND(YEAR(C16)<2018,$AK$21="PFT_43"),"",IFERROR(VLOOKUP($C16,$AM$25:$BB$43,5,FALSE), "")) -> 0.1574664782 | L16: =IF(AND(YEAR(C16)<2018,$AK$21="PFT_43"),"",IFERROR(VLOOKUP($C16,$AM$25:$BB$43,6,FALSE), "")) -> 0.1807668325 | O16: =IF(AND(YEAR(C16)<2018,$AK$21="PFT_43"),"",IFERROR(VLOOKUP($C16,$AM$25:$BB$43,9,FALSE), "")) -> 0.2109595522
C17: =AM26 -> 2021-06-01 | F17: 0.1708323298 | I17: 0.1558141617 | L17: 0.1760963965 | O17: 0.2128377614
C18: =AM27 -> 2021-09-01 | F18: 0.1700361375 | I18: 0.1550779003 | L18: 0.1756088708 | O18: 0.2130196735
C19: =AM29 -> 2021-12-01 | F19: 0.1712262205 | I19: 0.1574803933 | L19: 0.1797415584 | O19: 0.2134675146
C20: 2022-03-01 | F20: 0.1642283602 | I20: 0.1529304941 | L20: 0.1694540415 | O20: 0.2011821022 | AN20: dashboard name | AO20: =VLOOKUP($AM$21*1,List!$A$3:$M$24,8,FALSE) -> Tier 1 capital ratio
C21: 2022-06-01 | F21: 0.1645899643 | I21: 0.1500821115 | L21: 0.1709111197 | O21: 0.20361911 | AK21: =VLOOKUP($AM$21*1,List!$A$3:$F$24,6,0) -> SVC_1 | AM21: =Start!E8 -> 1 | AN21: =VLOOKUP($AM$21*1,List!$A$3:$F$24,4,0) -> 1 | AO21: =VLOOKUP($AM$21*1,List!$A$3:$E$24,5,0) -> Tier 1 capital ratio | AP21: =VLOOKUP($AM$21*1,List!$A$3:$K$24,11,FALSE) -> 0 | AR21: =VLOOKUP($AM$21*1,List!$A$3:$M$24,13,FALSE) -> Solvency
C22: 2022-09-01 | F22: 0.1628438372 | I22: 0.1496346017 | L22: 0.167633465 | O22: 0.2033308191 | AT22: WA
C23: 2022-12-01 | F23: 0.1693978362 | I23: 0.1579057241 | L23: 0.181192031 | O23: 0.2064656841 | AP23: 5 | AQ23: 6 | AR23: 7 | AS23: 8 | AT23: 9 | AU23: 10 | AV23: 11 | AW23: 14 | AX23: 15 | AY23: Dispersion chart | BD23: 12 | BE23: 13 | BJ23: 16
C24: 2023-03-01 | F24: 0.171844605 | I24: 0.1554563893 | L24: 0.1806671523 | O24: 0.207391871 | AL24: =+'Reference Dates'!$C$6 -> 2023-12-31 | AP24: 5^ pct | AQ24: First quartile | AR24: Median | AS24: Average | AT24: All banks | AU24: Third quartile | AV24: 95^ pct | AW24: Small | AX24: Medium | AY24: Q1 | AZ24: Q1 Neg | BA24: Q2 | BB24: Q3 | BC24: 5pct | BD24: 95 pct | BE24: Numeratir | BF24: Denominator | BG24: =VLOOKUP($AN$21,List!$D:$L,6,0) -> Tier 1 capital | BH24: =VLOOKUP($AN$21,List!$D:$L,7,0) -> Total risk exposure amount | BI24: Quarter | BJ24: Large
C25: 2023-06-01 | F25: 0.1736399531 | I25: 0.1585712454 | L25: 0.1852432073 | O25: 0.2101469055 | AK25: 1 | AL25: =(+AN25)*1 -> 202103 | AM25: =+'Reference Dates'!$C$7 -> 2021-03-01 | AN25: =+IF(MONTH(AM25)=12,YEAR(AM25)&MONTH(AM25),YEAR(AM25)&0&MONTH(AM25)) -> 202103 | AO25: =CONCATENATE($AO$21,AN25) -> Tier 1 capital ratio202103 | AP25: =VLOOKUP($AO25,Data!$A$1:$P$800,Charts!AP$23,FALSE) -> 0.1374039246 | AQ25: =VLOOKUP($AO25,Data!$A$1:$P$800,Charts!AQ$23,FALSE) -> 0.1574664782 | AR25: =VLOOKUP($AO25,Data!$A$1:$P$800,Charts!AR$23,FALSE) -> 0.1807668325 | AS25: =VLOOKUP($AO25,Data!$A$1:$P$800,Charts!AS$23,FALSE) -> 0.2305258056 | AT25: =VLOOKUP($AO25,Data!$A$1:$P$800,Charts!AT$23,FALSE) -> 0.1705187526 | AU25: =VLOOKUP($AO25,Data!$A$1:$P$800,Charts!AU$23,FALSE) -> 0.2109595522 | AV25: =VLOOKUP($AO25,Data!$A$1:$P$800,Charts!AV$23,FALSE) -> 0.3839784168 | AW25: =VLOOKUP($AO25,Data!$A$1:$P$800,Charts!AW$23,FALSE) -> 0.2138545277 | AX25: =VLOOKUP($AO25,Data!$A$1:$P$800,Charts!AX$23,FALSE) -> 0.1808088709 | AY25: =IF(AQ25<0,0,AQ25) -> 0.1574664782 | AZ25: =IF(AQ25<0,AQ25,0) -> 0 | BA25: =AR25-AY25 -> 0.02330035423 | BB25: =AU25-AR25 -> 0.0301927197 | BC25: =AQ25-AP25 -> 0.02006255361 | BD25: =AV25-AU25 -> 0.1730188647 | BE25: =VLOOKUP($AO25,Data!$A$1:$P$800,BD$23,FALSE) -> 1.405759681e+12 | BF25: =VLOOKUP($AO25,Data!$A$1:$P$800,BE$23,FALSE) -> 8.389173068e+12 | BG25: =IFERROR(IF($AP$21=0,BE25/BE$25*100,(100*(BE25*12/$BI25)/BE$25)),IFERROR(IF($AP$21=0, BE25/BE$26*100, 100*(BE25*12/$BI25)/BE$26), IFERROR(IF($AP$21=0, BE25/BE$27*100, 100*(BE25*12/$BI25)/BE$27),IFERROR(IF($AP$21=0, BE25/BE$29*100, 100*(BE25*12/$BI25)/BE$29), IFERROR(IF($AP$21=0, BE25/BE$30*100, 100*(BE25*12/$BI25)/BE$30),IFERROR(IF($AP$21=0, BE25/BE$31*100, 100*(BE25*12/$BI25)/#REF!),IFERROR(IF($AP$21=0, BE25/BE$32*100, 100*(BE25*12/$BI25)/BE$32),IFERROR(IF($AP$21=0, BE25/BE$32*100, 100*(BE25*12/$BI25)/BE$32),IFERROR(IF($AP$21=0, BE25/BE$33*100, 100*(BE25*12/$BI25)/BE$33),IFERROR(IF($AP$21=0, BE25/BE$34*100, 100*(BE25*12/$BI25)/BE$34),IF($AP$21=0, BE25/BE$35*100, 100*(BE25*12/$BI25)/BE$35))))))))))) -> 100 | BH25: =IFERROR(IF($AP$21=0,BF25/BF$25*100,(100*(BF25*12/$BI25)/BF$25)),IFERROR(IF($AP$21=0, BF25/BF$26*100, 100*(BF25*12/$BI25)/BF$26), IFERROR(IF($AP$21=0, BF25/BF$27*100, 100*(BF25*12/$BI25)/BF$27),IFERROR(IF($AP$21=0, BF25/BF$29*100, 100*(BF25*12/$BI25)/BF$29), IFERROR(IF($AP$21=0, BF25/BF$30*100, 100*(BF25*12/$BI25)/BF$30),IFERROR(IF($AP$21=0, BF25/BF$31*100, 100*(BF25*12/$BI25)/#REF!),IFERROR(IF($AP$21=0, BF25/BF$32*100, 100*(BF25*12/$BI25)/BF$32),IFERROR(IF($AP$21=0, BF25/BF$32*100, 100*(BF25*12/$BI25)/BF$32),IFERROR(IF($AP$21=0, BF25/BF$33*100, 100*(BF25*12/$BI25)/BF$33),IFERROR(IF($AP$21=0, BF25/BF$34*100, 100*(BF25*12/$BI25)/BF$34),IF($AP$21=0, BF25/BF$35*100, 100*(BF25*12/$BI25)/BF$35))))))))))) -> 100 | BI25: =MONTH(AM25) -> 3 | BJ25: =VLOOKUP($AO25,Data!$A$1:$P$688,Charts!BJ$23,FALSE) -> 0.1664892727
C26: =AM36 -> 2023-09-01 | F26: 0.1728591151 | I26: 0.1599500196 | L26: 0.1821765836 | O26: 0.2122688718 | AL26: 202106 | AM26: =IF(AM25<$AL$24,+DATE(YEAR(AM25),MONTH(AM25)+3,DAY(AM25)),"") -> 2021-06-01 | AN26: =+IF(MONTH(AM26)=12,YEAR(AM26)&MONTH(AM26),YEAR(AM26)&0&MONTH(AM26)) -> 202106 | AO26: =CONCATENATE($AO$21,AN26) -> Tier 1 capital ratio202106 | AP26: =VLOOKUP($AO26,Data!$A$1:$P$800,Charts!AP$23,FALSE) -> 0.1321016093 | AQ26: =VLOOKUP($AO26,Data!$A$1:$P$800,Charts!AQ$23,FALSE) -> 0.1558141617 | AR26: =VLOOKUP($AO26,Data!$A$1:$P$800,Charts!AR$23,FALSE) -> 0.1760963965 | AS26: =VLOOKUP($AO26,Data!$A$1:$P$800,Charts!AS$23,FALSE) -> 0.2272967183 | AT26: =VLOOKUP($AO26,Data!$A$1:$P$800,Charts!AT$23,FALSE) -> 0.1708323298 | AU26: =VLOOKUP($AO26,Data!$A$1:$P$800,Charts!AU$23,FALSE) -> 0.2128377614 | AV26: =VLOOKUP($AO26,Data!$A$1:$P$800,Charts!AV$23,FALSE) -> 0.3374986853 | AW26: =VLOOKUP($AO26,Data!$A$1:$P$800,Charts!AW$23,FALSE) -> 0.2185825414 | AX26: =VLOOKUP($AO26,Data!$A$1:$P$800,Charts!AX$23,FALSE) -> 0.180913455 | AY26: =IF(AQ26<0,0,AQ26) -> 0.1558141617 | AZ26: =IF(AQ26<0,AQ26,0) -> 0 | BA26: =AR26-AY26 -> 0.02028223483 | BB26: =AU26-AR26 -> 0.03674136486 | BC26: =AQ26-AP26 -> 0.02371255244 | BD26: =AV26-AU26 -> 0.1246609238 | BE26: =VLOOKUP($AO26,Data!$A$1:$P$800,BD$23,FALSE) -> 1.419381654e+12 | BF26: =VLOOKUP($AO26,Data!$A$1:$P$800,BE$23,FALSE) -> 8.425873408e+12 | BG26: =IFERROR(IF($AP$21=0,BE26/BE$25*100,(100*(BE26*12/$BI26)/BE$25)),IFERROR(IF($AP$21=0, BE26/BE$26*100, 100*(BE26*12/$BI26)/BE$26), IFERROR(IF($AP$21=0, BE26/BE$27*100, 100*(BE26*12/$BI26)/BE$27),IFERROR(IF($AP$21=0, BE26/BE$29*100, 100*(BE26*12/$BI26)/BE$29), IFERROR(IF($AP$21=0, BE26/BE$30*100, 100*(BE26*12/$BI26)/BE$30),IFERROR(IF($AP$21=0, BE26/BE$31*100, 100*(BE26*12/$BI26)/#REF!),IFERROR(IF($AP$21=0, BE26/BE$32*100, 100*(BE26*12/$BI26)/BE$32),IFERROR(IF($AP$21=0, BE26/BE$32*100, 100*(BE26*12/$BI26)/BE$32),IFERROR(IF($AP$21=0, BE26/BE$33*100, 100*(BE26*12/$BI26)/BE$33),IFERROR(IF($AP$21=0, BE26/BE$34*100, 100*(BE26*12/$BI26)/BE$34),IF($AP$21=0, BE26/BE$35*100, 100*(BE26*12/$BI26)/BE$35))))))))))) -> 100.9690115 | BH26: =IFERROR(IF($AP$21=0,BF26/BF$25*100,(100*(BF26*12/$BI26)/BF$25)),IFERROR(IF($AP$21=0, BF26/BF$26*100, 100*(BF26*12/$BI26)/BF$26), IFERROR(IF($AP$21=0, BF26/BF$27*100, 100*(BF26*12/$BI26)/BF$27),IFERROR(IF($AP$21=0, BF26/BF$29*100, 100*(BF26*12/$BI26)/BF$29), IFERROR(IF($AP$21=0, BF26/BF$30*100, 100*(BF26*12/$BI26)/BF$30),IFERROR(IF($AP$21=0, BF26/BF$31*100, 100*(BF26*12/$BI26)/#REF!),IFERROR(IF($AP$21=0, BF26/BF$32*100, 100*(BF26*12/$BI26)/BF$32),IFERROR(IF($AP$21=0, BF26/BF$32*100, 100*(BF26*12/$BI26)/BF$32),IFERROR(IF($AP$21=0, BF26/BF$33*100, 100*(BF26*12/$BI26)/BF$33),IFERROR(IF($AP$21=0, BF26/BF$34*100, 100*(BF26*12/$BI26)/BF$34),IF($AP$21=0, BF26/BF$35*100, 100*(BF26*12/$BI26)/BF$35))))))))))) -> 100.4374727 | BI26: 6 | BJ26: =VLOOKUP($AO26,Data!$A$1:$P$688,Charts!BJ$23,FALSE) -> 0.166679309
C27: =AM37 -> 2023-12-01 | F27: 0.1733796266 | I27: 0.1620141637 | L27: 0.1831723584 | O27: 0.2123482308 | AL27: 202109 | AM27: =IF(AM26<$AL$24,+DATE(YEAR(AM26),MONTH(AM26)+3,DAY(AM26)),"") -> 2021-09-01 | AN27: 202109 | AO27: Tier 1 capital ratio202109 | AP27: =VLOOKUP($AO27,Data!$A$1:$P$800,Charts!AP$23,FALSE) -> 0.1313591355 | AQ27: =VLOOKUP($AO27,Data!$A$1:$P$800,Charts!AQ$23,FALSE) -> 0.1550779003 | AR27: =VLOOKUP($AO27,Data!$A$1:$P$800,Charts!AR$23,FALSE) -> 0.1756088708 | AS27: =VLOOKUP($AO27,Data!$A$1:$P$800,Charts!AS$23,FALSE) -> 0.2247139164 | AT27: =VLOOKUP($AO27,Data!$A$1:$P$800,Charts!AT$23,FALSE) -> 0.1700361375 | AU27: =VLOOKUP($AO27,Data!$A$1:$P$800,Charts!AU$23,FALSE) -> 0.2130196735 | AV27: =VLOOKUP($AO27,Data!$A$1:$P$800,Charts!AV$23,FALSE) -> 0.3315302694 | AW27: =VLOOKUP($AO27,Data!$A$1:$P$800,Charts!AW$23,FALSE) -> 0.2146196673 | AX27: =VLOOKUP($AO27,Data!$A$1:$P$800,Charts!AX$23,FALSE) -> 0.1783110667 | AY27: 0.1550779003 | AZ27: 0 | BA27: 0.02053097047 | BB27: 0.03741080273 | BC27: 0.0237187648 | BD27: 0.1185105959 | BE27: =VLOOKUP($AO27,Data!$A$1:$P$800,BD$23,FALSE) -> 1.416944769e+12 | BF27: =VLOOKUP($AO27,Data!$A$1:$P$800,BE$23,FALSE) -> 8.448814552e+12 | BG27: =IFERROR(IF($AP$21=0,BE27/BE$25*100,(100*(BE27*12/$BI27)/BE$25)),IFERROR(IF($AP$21=0, BE27/BE$26*100, 100*(BE27*12/$BI27)/BE$26), IFERROR(IF($AP$21=0, BE27/BE$27*100, 100*(BE27*12/$BI27)/BE$27),IFERROR(IF($AP$21=0, BE27/BE$29*100, 100*(BE27*12/$BI27)/BE$29), IFERROR(IF($AP$21=0, BE27/BE$30*100, 100*(BE27*12/$BI27)/BE$30),IFERROR(IF($AP$21=0, BE27/BE$31*100, 100*(BE27*12/$BI27)/#REF!),IFERROR(IF($AP$21=0, BE27/BE$32*100, 100*(BE27*12/$BI27)/BE$32),IFERROR(IF($AP$21=0, BE27/BE$32*100, 100*(BE27*12/$BI27)/BE$32),IFERROR(IF($AP$21=0, BE27/BE$33*100, 100*(BE27*12/$BI27)/BE$33),IFERROR(IF($AP$21=0, BE27/BE$34*100, 100*(BE27*12/$BI27)/BE$34),IF($AP$21=0, BE27/BE$35*100, 100*(BE27*12/$BI27)/BE$35))))))))))) -> 100.7956615 | BH27: =IFERROR(IF($AP$21=0,BF27/BF$25*100,(100*(BF27*12/$BI27)/BF$25)),IFERROR(IF($AP$21=0, BF27/BF$26*100, 100*(BF27*12/$BI27)/BF$26), IFERROR(IF($AP$21=0, BF27/BF$27*100, 100*(BF27*12/$BI27)/BF$27),IFERROR(IF($AP$21=0, BF27/BF$29*100, 100*(BF27*12/$BI27)/BF$29), IFERROR(IF($AP$21=0, BF27/BF$30*100, 100*(BF27*12/$BI27)/BF$30),IFERROR(IF($AP$21=0, BF27/BF$31*100, 100*(BF27*12/$BI27)/#REF!),IFERROR(IF($AP$21=0, BF27/BF$32*100, 100*(BF27*12/$BI27)/BF$32),IFERROR(IF($AP$21=0, BF27/BF$32*100, 100*(BF27*12/$BI27)/BF$32),IFERROR(IF($AP$21=0, BF27/BF$33*100, 100*(BF27*12/$BI27)/BF$33),IFERROR(IF($AP$21=0, BF27/BF$34*100, 100*(BF27*12/$BI27)/BF$34),IF($AP$21=0, BF27/BF$35*100, 100*(BF27*12/$BI27)/BF$35))))))))))) -> 100.710934 | BI27: 9 | BJ27: =VLOOKUP($AO27,Data!$A$1:$P$688,Charts!BJ$23,FALSE) -> 0.1663561325
B29: From Q1 2020 onwards, EU aggregates no longer include figures for UK banks and they include data for subsidiaries of UK banks in EU countries. The EBA Risk Dashboard does not include data from Norwegian nor Liechtensteiner banks from June 2021 to March 2022 due to the implementation of the reporting framework based on CRR2/CRD5 taking place only in Q2 2022. | AL29: 202112 | AM29: =IF(AM27<$AL$24,+DATE(YEAR(AM27),MONTH(AM27)+3,DAY(AM27)),"") -> 2021-12-01 | AN29: 202112 | AO29: Tier 1 capital ratio202112 | AP29: =VLOOKUP($AO29,Data!$A$1:$P$800,Charts!AP$23,FALSE) -> 0.1317458173 | AQ29: =VLOOKUP($AO29,Data!$A$1:$P$800,Charts!AQ$23,FALSE) -> 0.1574803933 | AR29: =VLOOKUP($AO29,Data!$A$1:$P$800,Charts!AR$23,FALSE) -> 0.1797415584 | AS29: =VLOOKUP($AO29,Data!$A$1:$P$800,Charts!AS$23,FALSE) -> 0.2331526018 | AT29: =VLOOKUP($AO29,Data!$A$1:$P$800,Charts!AT$23,FALSE) -> 0.1712262205 | AU29: =VLOOKUP($AO29,Data!$A$1:$P$800,Charts!AU$23,FALSE) -> 0.2134675146 | AV29: =VLOOKUP($AO29,Data!$A$1:$P$800,Charts!AV$23,FALSE) -> 0.3393697998 | AW29: =VLOOKUP($AO29,Data!$A$1:$P$800,Charts!AW$23,FALSE) -> 0.202481838 | AX29: =VLOOKUP($AO29,Data!$A$1:$P$800,Charts!AX$23,FALSE) -> 0.1823897124 | AY29: 0.1574803933 | AZ29: 0 | BA29: 0.0222611651 | BB29: 0.03372595621 | BC29: 0.02573457597 | BD29: 0.1259022852 | BE29: =VLOOKUP($AO29,Data!$A$1:$P$800,BD$23,FALSE) -> 1.434741545e+12 | BF29: =VLOOKUP($AO29,Data!$A$1:$P$800,BE$23,FALSE) -> 8.474827995e+12 | BG29: =IFERROR(IF($AP$21=0,BE29/BE$25*100,(100*(BE29*12/$BI29)/BE$25)),IFERROR(IF($AP$21=0, BE29/BE$26*100, 100*(BE29*12/$BI29)/BE$26), IFERROR(IF($AP$21=0, BE29/BE$27*100, 100*(BE29*12/$BI29)/BE$27),IFERROR(IF($AP$21=0, BE29/BE$29*100, 100*(BE29*12/$BI29)/BE$29), IFERROR(IF($AP$21=0, BE29/BE$30*100, 100*(BE29*12/$BI29)/BE$30),IFERROR(IF($AP$21=0, BE29/BE$31*100, 100*(BE29*12/$BI29)/#REF!),IFERROR(IF($AP$21=0, BE29/BE$32*100, 100*(BE29*12/$BI29)/BE$32),IFERROR(IF($AP$21=0, BE29/BE$32*100, 100*(BE29*12/$BI29)/BE$32),IFERROR(IF($AP$21=0, BE29/BE$33*100, 100*(BE29*12/$BI29)/BE$33),IFERROR(IF($AP$21=0, BE29/BE$34*100, 100*(BE29*12/$BI29)/BE$34),IF($AP$21=0, BE29/BE$35*100, 100*(BE29*12/$BI29)/BE$35))))))))))) -> 102.0616514 | BH29: =IFERROR(IF($AP$21=0,BF29/BF$25*100,(100*(BF29*12/$BI29)/BF$25)),IFERROR(IF($AP$21=0, BF29/BF$26*100, 100*(BF29*12/$BI29)/BF$26), IFERROR(IF($AP$21=0, BF29/BF$27*100, 100*(BF29*12/$BI29)/BF$27),IFERROR(IF($AP$21=0, BF29/BF$29*100, 100*(BF29*12/$BI29)/BF$29), IFERROR(IF($AP$21=0, BF29/BF$30*100, 100*(BF29*12/$BI29)/BF$30),IFERROR(IF($AP$21=0, BF29/BF$31*100, 100*(BF29*12/$BI29)/#REF!),IFERROR(IF($AP$21=0, BF29/BF$32*100, 100*(BF29*12/$BI29)/BF$32),IFERROR(IF($AP$21=0, BF29/BF$32*100, 100*(BF29*12/$BI29)/BF$32),IFERROR(IF($AP$21=0, BF29/BF$33*100, 100*(BF29*12/$BI29)/BF$33),IFERROR(IF($AP$21=0, BF29/BF$34*100, 100*(BF29*12/$BI29)/BF$34),IF($AP$21=0, BF29/BF$35*100, 100*(BF29*12/$BI29)/BF$35))))))))))) -> 101.0210175 | BI29: 12 | BJ29: =VLOOKUP($AO29,Data!$A$1:$P$688,Charts!BJ$23,FALSE) -> 0.1674107181
AL30: 202203 | AM30: 2022-03-01 | AN30: 202203 | AO30: Tier 1 capital ratio202203 | AP30: =VLOOKUP($AO30,Data!$A$1:$P$800,Charts!AP$23,FALSE) -> 0.1308507733 | AQ30: =VLOOKUP($AO30,Data!$A$1:$P$800,Charts!AQ$23,FALSE) -> 0.1529304941 | AR30: =VLOOKUP($AO30,Data!$A$1:$P$800,Charts!AR$23,FALSE) -> 0.1694540415 | AS30: =VLOOKUP($AO30,Data!$A$1:$P$800,Charts!AS$23,FALSE) -> 0.2201181963 | AT30: =VLOOKUP($AO30,Data!$A$1:$P$800,Charts!AT$23,FALSE) -> 0.1642283602 | AU30: =VLOOKUP($AO30,Data!$A$1:$P$800,Charts!AU$23,FALSE) -> 0.2011821022 | AV30: =VLOOKUP($AO30,Data!$A$1:$P$800,Charts!AV$23,FALSE) -> 0.357436876 | AW30: =VLOOKUP($AO30,Data!$A$1:$P$800,Charts!AW$23,FALSE) -> 0.2062182858 | AX30: =VLOOKUP($AO30,Data!$A$1:$P$800,Charts!AX$23,FALSE) -> 0.1765259527 | AY30: =IF(AQ30<0,0,AQ30) -> 0.1529304941 | AZ30: =IF(AQ30<0,AQ30,0) -> 0 | BA30: =AR30-AY30 -> 0.01652354741 | BB30: =AU30-AR30 -> 0.03172806073 | BC30: =AQ30-AP30 -> 0.02207972072 | BD30: =AV30-AU30 -> 0.1562547738 | BE30: =VLOOKUP($AO30,Data!$A$1:$P$800,BD$23,FALSE) -> 1.408472985e+12 | BF30: =VLOOKUP($AO30,Data!$A$1:$P$800,BE$23,FALSE) -> 8.705898733e+12 | BG30: =IFERROR(IF($AP$21=0,BE30/BE$25*100,(100*(BE30*12/$BI30)/BE$25)),IFERROR(IF($AP$21=0, BE30/BE$26*100, 100*(BE30*12/$BI30)/BE$26), IFERROR(IF($AP$21=0, BE30/BE$27*100, 100*(BE30*12/$BI30)/BE$27),IFERROR(IF($AP$21=0, BE30/BE$29*100, 100*(BE30*12/$BI30)/BE$29), IFERROR(IF($AP$21=0, BE30/BE$30*100, 100*(BE30*12/$BI30)/BE$30),IFERROR(IF($AP$21=0, BE30/BE$31*100, 100*(BE30*12/$BI30)/#REF!),IFERROR(IF($AP$21=0, BE30/BE$32*100, 100*(BE30*12/$BI30)/BE$32),IFERROR(IF($AP$21=0, BE30/BE$32*100, 100*(BE30*12/$BI30)/BE$32),IFERROR(IF($AP$21=0, BE30/BE$33*100, 100*(BE30*12/$BI30)/BE$33),IFERROR(IF($AP$21=0, BE30/BE$34*100, 100*(BE30*12/$BI30)/BE$34),IF($AP$21=0, BE30/BE$35*100, 100*(BE30*12/$BI30)/BE$35))))))))))) -> 100.1930134 | BH30: =IFERROR(IF($AP$21=0,BF30/BF$25*100,(100*(BF30*12/$BI30)/BF$25)),IFERROR(IF($AP$21=0, BF30/BF$26*100, 100*(BF30*12/$BI30)/BF$26), IFERROR(IF($AP$21=0, BF30/BF$27*100, 100*(BF30*12/$BI30)/BF$27),IFERROR(IF($AP$21=0, BF30/BF$29*100, 100*(BF30*12/$BI30)/BF$29), IFERROR(IF($AP$21=0, BF30/BF$30*100, 100*(BF30*12/$BI30)/BF$30),IFERROR(IF($AP$21=0, BF30/BF$31*100, 100*(BF30*12/$BI30)/#REF!),IFERROR(IF($AP$21=0, BF30/BF$32*100, 100*(BF30*12/$BI30)/BF$32),IFERROR(IF($AP$21=0, BF30/BF$32*100, 100*(BF30*12/$BI30)/BF$32),IFERROR(IF($AP$21=0, BF30/BF$33*100, 100*(BF30*12/$BI30)/BF$33),IFERROR(IF($AP$21=0, BF30/BF$34*100, 100*(BF30*12/$BI30)/BF$34),IF($AP$21=0, BF30/BF$35*100, 100*(BF30*12/$BI30)/BF$35))))))))))) -> 103.7754098 | BI30: 3 | BJ30: =VLOOKUP($AO30,Data!$A$1:$P$688,Charts!BJ$23,FALSE) -> 0.1594123121
AL31: 202206 | AM31: 2022-06-01 | AN31: 202206 | AO31: Tier 1 capital ratio202206 | AP31: =VLOOKUP($AO31,Data!$A$1:$P$800,Charts!AP$23,FALSE) -> 0.131848128 | AQ31: =VLOOKUP($AO31,Data!$A$1:$P$800,Charts!AQ$23,FALSE) -> 0.1500821115 | AR31: =VLOOKUP($AO31,Data!$A$1:$P$800,Charts!AR$23,FALSE) -> 0.1709111197 | AS31: =VLOOKUP($AO31,Data!$A$1:$P$800,Charts!AS$23,FALSE) -> 0.2153264756 | AT31: =VLOOKUP($AO31,Data!$A$1:$P$800,Charts!AT$23,FALSE) -> 0.1645899643 | AU31: =VLOOKUP($AO31,Data!$A$1:$P$800,Charts!AU$23,FALSE) -> 0.20361911 | AV31: =VLOOKUP($AO31,Data!$A$1:$P$800,Charts!AV$23,FALSE) -> 0.3786532947 | AW31: =VLOOKUP($AO31,Data!$A$1:$P$800,Charts!AW$23,FALSE) -> 0.202783871 | AX31: =VLOOKUP($AO31,Data!$A$1:$P$800,Charts!AX$23,FALSE) -> 0.1769949719 | AY31: 0.1500821115 | AZ31: 0 | BA31: 0.02082900823 | BB31: 0.03270799023 | BC31: 0.01823398354 | BD31: 0.1750341847 | BE31: =VLOOKUP($AO31,Data!$A$1:$P$800,BD$23,FALSE) -> 1.414791086e+12 | BF31: =VLOOKUP($AO31,Data!$A$1:$P$800,BE$23,FALSE) -> 8.753432719e+12 | BG31: =IFERROR(IF($AP$21=0,BE31/BE$25*100,(100*(BE31*12/$BI31)/BE$25)),IFERROR(IF($AP$21=0, BE31/BE$26*100, 100*(BE31*12/$BI31)/BE$26), IFERROR(IF($AP$21=0, BE31/BE$27*100, 100*(BE31*12/$BI31)/BE$27),IFERROR(IF($AP$21=0, BE31/BE$29*100, 100*(BE31*12/$BI31)/BE$29), IFERROR(IF($AP$21=0, BE31/BE$30*100, 100*(BE31*12/$BI31)/BE$30),IFERROR(IF($AP$21=0, BE31/BE$31*100, 100*(BE31*12/$BI31)/#REF!),IFERROR(IF($AP$21=0, BE31/BE$32*100, 100*(BE31*12/$BI31)/BE$32),IFERROR(IF($AP$21=0, BE31/BE$32*100, 100*(BE31*12/$BI31)/BE$32),IFERROR(IF($AP$21=0, BE31/BE$33*100, 100*(BE31*12/$BI31)/BE$33),IFERROR(IF($AP$21=0, BE31/BE$34*100, 100*(BE31*12/$BI31)/BE$34),IF($AP$21=0, BE31/BE$35*100, 100*(BE31*12/$BI31)/BE$35))))))))))) -> 100.6424572 | BH31: =IFERROR(IF($AP$21=0,BF31/BF$25*100,(100*(BF31*12/$BI31)/BF$25)),IFERROR(IF($AP$21=0, BF31/BF$26*100, 100*(BF31*12/$BI31)/BF$26), IFERROR(IF($AP$21=0, BF31/BF$27*100, 100*(BF31*12/$BI31)/BF$27),IFERROR(IF($AP$21=0, BF31/BF$29*100, 100*(BF31*12/$BI31)/BF$29), IFERROR(IF($AP$21=0, BF31/BF$30*100, 100*(BF31*12/$BI31)/BF$30),IFERROR(IF($AP$21=0, BF31/BF$31*100, 100*(BF31*12/$BI31)/#REF!),IFERROR(IF($AP$21=0, BF31/BF$32*100, 100*(BF31*12/$BI31)/BF$32),IFERROR(IF($AP$21=0, BF31/BF$32*100, 100*(BF31*12/$BI31)/BF$32),IFERROR(IF($AP$21=0, BF31/BF$33*100, 100*(BF31*12/$BI31)/BF$33),IFERROR(IF($AP$21=0, BF31/BF$34*100, 100*(BF31*12/$BI31)/BF$34),IF($AP$21=0, BF31/BF$35*100, 100*(BF31*12/$BI31)/BF$35))))))))))) -> 104.3420209 | BI31: 6 | BJ31: =VLOOKUP($AO31,Data!$A$1:$P$688,Charts!BJ$23,FALSE) -> 0.1597764049
AL32: 202209 | AM32: 2022-09-01 | AN32: 202209 | AO32: =CONCATENATE($AO$21,AN32) -> Tier 1 capital ratio202209 | AP32: =VLOOKUP($AO32,Data!$A$1:$P$800,Charts!AP$23,FALSE) -> 0.1323149625 | AQ32: =VLOOKUP($AO32,Data!$A$1:$P$800,Charts!AQ$23,FALSE) -> 0.1496346017 | AR32: =VLOOKUP($AO32,Data!$A$1:$P$800,Charts!AR$23,FALSE) -> 0.167633465 | AS32: =VLOOKUP($AO32,Data!$A$1:$P$800,Charts!AS$23,FALSE) -> 0.2303001568 | AT32: =VLOOKUP($AO32,Data!$A$1:$P$800,Charts!AT$23,FALSE) -> 0.1628438372 | AU32: =VLOOKUP($AO32,Data!$A$1:$P$800,Charts!AU$23,FALSE) -> 0.2033308191 | AV32: =VLOOKUP($AO32,Data!$A$1:$P$800,Charts!AV$23,FALSE) -> 0.3734115055 | AW32: =VLOOKUP($AO32,Data!$A$1:$P$800,Charts!AW$23,FALSE) -> 0.1949511336 | AX32: =VLOOKUP($AO32,Data!$A$1:$P$800,Charts!AX$23,FALSE) -> 0.174767644 | AY32: =IF(AQ32<0,0,AQ32) -> 0.1496346017 | AZ32: =IF(AQ32<0,AQ32,0) -> 0 | BA32: =AR32-AY32 -> 0.01799886336 | BB32: =AU32-AR32 -> 0.03569735407 | BC32: =AQ32-AP32 -> 0.01731963917 | BD32: =AV32-AU32 -> 0.1700806864 | BE32: =VLOOKUP($AO32,Data!$A$1:$P$800,BD$23,FALSE) -> 1.411242145e+12 | BF32: =VLOOKUP($AO32,Data!$A$1:$P$800,BE$23,FALSE) -> 8.802472368e+12 | BG32: =IFERROR(IF($AP$21=0,BE32/BE$25*100,(100*(BE32*12/$BI32)/BE$25)),IFERROR(IF($AP$21=0, BE32/BE$26*100, 100*(BE32*12/$BI32)/BE$26), IFERROR(IF($AP$21=0, BE32/BE$27*100, 100*(BE32*12/$BI32)/BE$27),IFERROR(IF($AP$21=0, BE32/BE$29*100, 100*(BE32*12/$BI32)/BE$29), IFERROR(IF($AP$21=0, BE32/BE$30*100, 100*(BE32*12/$BI32)/BE$30),IFERROR(IF($AP$21=0, BE32/BE$31*100, 100*(BE32*12/$BI32)/#REF!),IFERROR(IF($AP$21=0, BE32/BE$32*100, 100*(BE32*12/$BI32)/BE$32),IFERROR(IF($AP$21=0, BE32/BE$32*100, 100*(BE32*12/$BI32)/BE$32),IFERROR(IF($AP$21=0, BE32/BE$33*100, 100*(BE32*12/$BI32)/BE$33),IFERROR(IF($AP$21=0, BE32/BE$34*100, 100*(BE32*12/$BI32)/BE$34),IF($AP$21=0, BE32/BE$35*100, 100*(BE32*12/$BI32)/BE$35))))))))))) -> 100.3900001 | BH32: =IFERROR(IF($AP$21=0,BF32/BF$25*100,(100*(BF32*12/$BI32)/BF$25)),IFERROR(IF($AP$21=0, BF32/BF$26*100, 100*(BF32*12/$BI32)/BF$26), IFERROR(IF($AP$21=0, BF32/BF$27*100, 100*(BF32*12/$BI32)/BF$27),IFERROR(IF($AP$21=0, BF32/BF$29*100, 100*(BF32*12/$BI32)/BF$29), IFERROR(IF($AP$21=0, BF32/BF$30*100, 100*(BF32*12/$BI32)/BF$30),IFERROR(IF($AP$21=0, BF32/BF$31*100, 100*(BF32*12/$BI32)/#REF!),IFERROR(IF($AP$21=0, BF32/BF$32*100, 100*(BF32*12/$BI32)/BF$32),IFERROR(IF($AP$21=0, BF32/BF$32*100, 100*(BF32*12/$BI32)/BF$32),IFERROR(IF($AP$21=0, BF32/BF$33*100, 100*(BF32*12/$BI32)/BF$33),IFERROR(IF($AP$21=0, BF32/BF$34*100, 100*(BF32*12/$BI32)/BF$34),IF($AP$21=0, BF32/BF$35*100, 100*(BF32*12/$BI32)/BF$35))))))))))) -> 104.9265797 | BI32: =MONTH(AM32) -> 9 | BJ32: =VLOOKUP($AO32,Data!$A$1:$P$688,Charts!BJ$23,FALSE) -> 0.1584557826
AL33: 202212 | AM33: =IF(AM32<$AL$24,+DATE(YEAR(AM32),MONTH(AM32)+3,DAY(AM32)),"") -> 2022-12-01 | AN33: 202212 | AO33: Tier 1 capital ratio202212 | AP33: =VLOOKUP($AO33,Data!$A$1:$P$800,Charts!AP$23,FALSE) -> 0.1377822869 | AQ33: =VLOOKUP($AO33,Data!$A$1:$P$800,Charts!AQ$23,FALSE) -> 0.1579057241 | AR33: =VLOOKUP($AO33,Data!$A$1:$P$800,Charts!AR$23,FALSE) -> 0.181192031 | AS33: =VLOOKUP($AO33,Data!$A$1:$P$800,Charts!AS$23,FALSE) -> 0.236737499 | AT33: =VLOOKUP($AO33,Data!$A$1:$P$800,Charts!AT$23,FALSE) -> 0.1693978362 | AU33: =VLOOKUP($AO33,Data!$A$1:$P$800,Charts!AU$23,FALSE) -> 0.2064656841 | AV33: =VLOOKUP($AO33,Data!$A$1:$P$800,Charts!AV$23,FALSE) -> 0.4029680135 | AW33: =VLOOKUP($AO33,Data!$A$1:$P$800,Charts!AW$23,FALSE) -> 0.2189062732 | AX33: =VLOOKUP($AO33,Data!$A$1:$P$800,Charts!AX$23,FALSE) -> 0.1815110006 | AY33: 0.1579057241 | AZ33: 0 | BA33: 0.02328630687 | BB33: 0.02527365315 | BC33: 0.02012343719 | BD33: 0.1965023293 | BE33: =VLOOKUP($AO33,Data!$A$1:$P$800,BD$23,FALSE) -> 1.434982453e+12 | BF33: =VLOOKUP($AO33,Data!$A$1:$P$800,BE$23,FALSE) -> 8.656592337e+12 | BG33: =IFERROR(IF($AP$21=0,BE33/BE$25*100,(100*(BE33*12/$BI33)/BE$25)),IFERROR(IF($AP$21=0, BE33/BE$26*100, 100*(BE33*12/$BI33)/BE$26), IFERROR(IF($AP$21=0, BE33/BE$27*100, 100*(BE33*12/$BI33)/BE$27),IFERROR(IF($AP$21=0, BE33/BE$29*100, 100*(BE33*12/$BI33)/BE$29), IFERROR(IF($AP$21=0, BE33/BE$30*100, 100*(BE33*12/$BI33)/BE$30),IFERROR(IF($AP$21=0, BE33/BE$31*100, 100*(BE33*12/$BI33)/#REF!),IFERROR(IF($AP$21=0, BE33/BE$32*100, 100*(BE33*12/$BI33)/BE$32),IFERROR(IF($AP$21=0, BE33/BE$32*100, 100*(BE33*12/$BI33)/BE$32),IFERROR(IF($AP$21=0, BE33/BE$33*100, 100*(BE33*12/$BI33)/BE$33),IFERROR(IF($AP$21=0, BE33/BE$34*100, 100*(BE33*12/$BI33)/BE$34),IF($AP$21=0, BE33/BE$35*100, 100*(BE33*12/$BI33)/BE$35))))))))))) -> 102.0787886 | BH33: =IFERROR(IF($AP$21=0,BF33/BF$25*100,(100*(BF33*12/$BI33)/BF$25)),IFERROR(IF($AP$21=0, BF33/BF$26*100, 100*(BF33*12/$BI33)/BF$26), IFERROR(IF($AP$21=0, BF33/BF$27*100, 100*(BF33*12/$BI33)/BF$27),IFERROR(IF($AP$21=0, BF33/BF$29*100, 100*(BF33*12/$BI33)/BF$29), IFERROR(IF($AP$21=0, BF33/BF$30*100, 100*(BF33*12/$BI33)/BF$30),IFERROR(IF($AP$21=0, BF33/BF$31*100, 100*(BF33*12/$BI33)/#REF!),IFERROR(IF($AP$21=0, BF33/BF$32*100, 100*(BF33*12/$BI33)/BF$32),IFERROR(IF($AP$21=0, BF33/BF$32*100, 100*(BF33*12/$BI33)/BF$32),IFERROR(IF($AP$21=0, BF33/BF$33*100, 100*(BF33*12/$BI33)/BF$33),IFERROR(IF($AP$21=0, BF33/BF$34*100, 100*(BF33*12/$BI33)/BF$34),IF($AP$21=0, BF33/BF$35*100, 100*(BF33*12/$BI33)/BF$35))))))))))) -> 103.1876714 | BI33: 12 | BJ33: =VLOOKUP($AO33,Data!$A$1:$P$688,Charts!BJ$23,FALSE) -> 0.1641974515
AL34: 202303 | AM34: =IF(AM33<$AL$24,+DATE(YEAR(AM33),MONTH(AM33)+3,DAY(AM33)),"") -> 2023-03-01 | AN34: 202303 | AO34: Tier 1 capital ratio202303 | AP34: =VLOOKUP($AO34,Data!$A$1:$P$800,Charts!AP$23,FALSE) -> 0.1396303806 | AQ34: =VLOOKUP($AO34,Data!$A$1:$P$800,Charts!AQ$23,FALSE) -> 0.1554563893 | AR34: =VLOOKUP($AO34,Data!$A$1:$P$800,Charts!AR$23,FALSE) -> 0.1806671523 | AS34: =VLOOKUP($AO34,Data!$A$1:$P$800,Charts!AS$23,FALSE) -> 0.240695178 | AT34: =VLOOKUP($AO34,Data!$A$1:$P$800,Charts!AT$23,FALSE) -> 0.171844605 | AU34: =VLOOKUP($AO34,Data!$A$1:$P$800,Charts!AU$23,FALSE) -> 0.207391871 | AV34: =VLOOKUP($AO34,Data!$A$1:$P$800,Charts!AV$23,FALSE) -> 0.4046096566 | AW34: =VLOOKUP($AO34,Data!$A$1:$P$800,Charts!AW$23,FALSE) -> 0.2187036946 | AX34: =VLOOKUP($AO34,Data!$A$1:$P$800,Charts!AX$23,FALSE) -> 0.1826316276 | AY34: 0.1554563893 | AZ34: 0 | BA34: 0.02521076299 | BB34: 0.02672471871 | BC34: 0.0158260087 | BD34: 0.1972177856 | BE34: =VLOOKUP($AO34,Data!$A$1:$P$800,BD$23,FALSE) -> 1.450194733e+12 | BF34: =VLOOKUP($AO34,Data!$A$1:$P$800,BE$23,FALSE) -> 8.650615756e+12 | BG34: =IFERROR(IF($AP$21=0,BE34/BE$25*100,(100*(BE34*12/$BI34)/BE$25)),IFERROR(IF($AP$21=0, BE34/BE$26*100, 100*(BE34*12/$BI34)/BE$26), IFERROR(IF($AP$21=0, BE34/BE$27*100, 100*(BE34*12/$BI34)/BE$27),IFERROR(IF($AP$21=0, BE34/BE$29*100, 100*(BE34*12/$BI34)/BE$29), IFERROR(IF($AP$21=0, BE34/BE$30*100, 100*(BE34*12/$BI34)/BE$30),IFERROR(IF($AP$21=0, BE34/BE$31*100, 100*(BE34*12/$BI34)/#REF!),IFERROR(IF($AP$21=0, BE34/BE$32*100, 100*(BE34*12/$BI34)/BE$32),IFERROR(IF($AP$21=0, BE34/BE$32*100, 100*(BE34*12/$BI34)/BE$32),IFERROR(IF($AP$21=0, BE34/BE$33*100, 100*(BE34*12/$BI34)/BE$33),IFERROR(IF($AP$21=0, BE34/BE$34*100, 100*(BE34*12/$BI34)/BE$34),IF($AP$21=0, BE34/BE$35*100, 100*(BE34*12/$BI34)/BE$35))))))))))) -> 103.1609281 | BH34: =IFERROR(IF($AP$21=0,BF34/BF$25*100,(100*(BF34*12/$BI34)/BF$25)),IFERROR(IF($AP$21=0, BF34/BF$26*100, 100*(BF34*12/$BI34)/BF$26), IFERROR(IF($AP$21=0, BF34/BF$27*100, 100*(BF34*12/$BI34)/BF$27),IFERROR(IF($AP$21=0, BF34/BF$29*100, 100*(BF34*12/$BI34)/BF$29), IFERROR(IF($AP$21=0, BF34/BF$30*100, 100*(BF34*12/$BI34)/BF$30),IFERROR(IF($AP$21=0, BF34/BF$31*100, 100*(BF34*12/$BI34)/#REF!),IFERROR(IF($AP$21=0, BF34/BF$32*100, 100*(BF34*12/$BI34)/BF$32),IFERROR(IF($AP$21=0, BF34/BF$32*100, 100*(BF34*12/$BI34)/BF$32),IFERROR(IF($AP$21=0, BF34/BF$33*100, 100*(BF34*12/$BI34)/BF$33),IFERROR(IF($AP$21=0, BF34/BF$34*100, 100*(BF34*12/$BI34)/BF$34),IF($AP$21=0, BF34/BF$35*100, 100*(BF34*12/$BI34)/BF$35))))))))))) -> 103.1164298 | BI34: 3 | BJ34: =VLOOKUP($AO34,Data!$A$1:$P$688,Charts!BJ$23,FALSE) -> 0.1665884253
AL35: 202306 | AM35: 2023-06-01 | AN35: 202306 | AO35: Tier 1 capital ratio202306 | AP35: =VLOOKUP($AO35,Data!$A$1:$P$800,Charts!AP$23,FALSE) -> 0.1430532133 | AQ35: =VLOOKUP($AO35,Data!$A$1:$P$800,Charts!AQ$23,FALSE) -> 0.1585712454 | AR35: =VLOOKUP($AO35,Data!$A$1:$P$800,Charts!AR$23,FALSE) -> 0.1852432073 | AS35: =VLOOKUP($AO35,Data!$A$1:$P$800,Charts!AS$23,FALSE) -> 0.2481455065 | AT35: =VLOOKUP($AO35,Data!$A$1:$P$800,Charts!AT$23,FALSE) -> 0.1736399531 | AU35: =VLOOKUP($AO35,Data!$A$1:$P$800,Charts!AU$23,FALSE) -> 0.2101469055 | AV35: =VLOOKUP($AO35,Data!$A$1:$P$800,Charts!AV$23,FALSE) -> 0.4090853698 | AW35: =VLOOKUP($AO35,Data!$A$1:$P$800,Charts!AW$23,FALSE) -> 0.2175694254 | AX35: =VLOOKUP($AO35,Data!$A$1:$P$800,Charts!AX$23,FALSE) -> 0.1874038988 | AY35: 0.1585712454 | AZ35: 0 | BA35: 0.02667196189 | BB35: 0.02490369824 | BC35: 0.01551803212 | BD35: 0.1989384643 | BE35: =VLOOKUP($AO35,Data!$A$1:$P$800,BD$23,FALSE) -> 1.477729741e+12 | BF35: =VLOOKUP($AO35,Data!$A$1:$P$800,BE$23,FALSE) -> 8.721165181e+12 | BG35: =IFERROR(IF($AP$21=0,BE35/BE$25*100,(100*(BE35*12/$BI35)/BE$25)),IFERROR(IF($AP$21=0, BE35/BE$26*100, 100*(BE35*12/$BI35)/BE$26), IFERROR(IF($AP$21=0, BE35/BE$27*100, 100*(BE35*12/$BI35)/BE$27),IFERROR(IF($AP$21=0, BE35/BE$29*100, 100*(BE35*12/$BI35)/BE$29), IFERROR(IF($AP$21=0, BE35/BE$30*100, 100*(BE35*12/$BI35)/BE$30),IFERROR(IF($AP$21=0, BE35/BE$31*100, 100*(BE35*12/$BI35)/#REF!),IFERROR(IF($AP$21=0, BE35/BE$32*100, 100*(BE35*12/$BI35)/BE$32),IFERROR(IF($AP$21=0, BE35/BE$32*100, 100*(BE35*12/$BI35)/BE$32),IFERROR(IF($AP$21=0, BE35/BE$33*100, 100*(BE35*12/$BI35)/BE$33),IFERROR(IF($AP$21=0, BE35/BE$34*100, 100*(BE35*12/$BI35)/BE$34),IF($AP$21=0, BE35/BE$35*100, 100*(BE35*12/$BI35)/BE$35))))))))))) -> 105.1196561 | BH35: =IFERROR(IF($AP$21=0,BF35/BF$25*100,(100*(BF35*12/$BI35)/BF$25)),IFERROR(IF($AP$21=0, BF35/BF$26*100, 100*(BF35*12/$BI35)/BF$26), IFERROR(IF($AP$21=0, BF35/BF$27*100, 100*(BF35*12/$BI35)/BF$27),IFERROR(IF($AP$21=0, BF35/BF$29*100, 100*(BF35*12/$BI35)/BF$29), IFERROR(IF($AP$21=0, BF35/BF$30*100, 100*(BF35*12/$BI35)/BF$30),IFERROR(IF($AP$21=0, BF35/BF$31*100, 100*(BF35*12/$BI35)/#REF!),IFERROR(IF($AP$21=0, BF35/BF$32*100, 100*(BF35*12/$BI35)/BF$32),IFERROR(IF($AP$21=0, BF35/BF$32*100, 100*(BF35*12/$BI35)/BF$32),IFERROR(IF($AP$21=0, BF35/BF$33*100, 100*(BF35*12/$BI35)/BF$33),IFERROR(IF($AP$21=0, BF35/BF$34*100, 100*(BF35*12/$BI35)/BF$34),IF($AP$21=0, BF35/BF$35*100, 100*(BF35*12/$BI35)/BF$35))))))))))) -> 103.9573878 | BI35: 6 | BJ35: =VLOOKUP($AO35,Data!$A$1:$P$688,Charts!BJ$23,FALSE) -> 0.1679707932
AL36: 202309 | AM36: 2023-09-01 | AN36: 202309 | AO36: Tier 1 capital ratio202309 | AP36: =VLOOKUP($AO36,Data!$A$1:$P$800,Charts!AP$23,FALSE) -> 0.1443292491 | AQ36: =VLOOKUP($AO36,Data!$A$1:$P$800,Charts!AQ$23,FALSE) -> 0.1599500196 | AR36: =VLOOKUP($AO36,Data!$A$1:$P$800,Charts!AR$23,FALSE) -> 0.1821765836 | AS36: =VLOOKUP($AO36,Data!$A$1:$P$800,Charts!AS$23,FALSE) -> 0.2469815206 | AT36: =VLOOKUP($AO36,Data!$A$1:$P$800,Charts!AT$23,FALSE) -> 0.1728591151 | AU36: =VLOOKUP($AO36,Data!$A$1:$P$800,Charts!AU$23,FALSE) -> 0.2122688718 | AV36: =VLOOKUP($AO36,Data!$A$1:$P$800,Charts!AV$23,FALSE) -> 0.4194069266 | AW36: =VLOOKUP($AO36,Data!$A$1:$P$800,Charts!AW$23,FALSE) -> 0.2154410537 | AX36: =VLOOKUP($AO36,Data!$A$1:$P$800,Charts!AX$23,FALSE) -> 0.1865378093 | AY36: 0.1599500196 | AZ36: 0 | BA36: 0.022226564 | BB36: 0.03009228817 | BC36: 0.01562077049 | BD36: 0.2071380548 | BE36: =VLOOKUP($AO36,Data!$A$1:$P$800,BD$23,FALSE) -> 1.479307667e+12 | BF36: =VLOOKUP($AO36,Data!$A$1:$P$800,BE$23,FALSE) -> 8.763650454e+12 | BG36: =IFERROR(IF($AP$21=0,BE36/BE$25*100,(100*(BE36*12/$BI36)/BE$25)),IFERROR(IF($AP$21=0, BE36/BE$26*100, 100*(BE36*12/$BI36)/BE$26), IFERROR(IF($AP$21=0, BE36/BE$27*100, 100*(BE36*12/$BI36)/BE$27),IFERROR(IF($AP$21=0, BE36/BE$29*100, 100*(BE36*12/$BI36)/BE$29), IFERROR(IF($AP$21=0, BE36/BE$30*100, 100*(BE36*12/$BI36)/BE$30),IFERROR(IF($AP$21=0, BE36/BE$31*100, 100*(BE36*12/$BI36)/#REF!),IFERROR(IF($AP$21=0, BE36/BE$32*100, 100*(BE36*12/$BI36)/BE$32),IFERROR(IF($AP$21=0, BE36/BE$32*100, 100*(BE36*12/$BI36)/BE$32),IFERROR(IF($AP$21=0, BE36/BE$33*100, 100*(BE36*12/$BI36)/BE$33),IFERROR(IF($AP$21=0, BE36/BE$34*100, 100*(BE36*12/$BI36)/BE$34),IF($AP$21=0, BE36/BE$35*100, 100*(BE36*12/$BI36)/BE$35))))))))))) -> 105.2319032 | BH36: =IFERROR(IF($AP$21=0,BF36/BF$25*100,(100*(BF36*12/$BI36)/BF$25)),IFERROR(IF($AP$21=0, BF36/BF$26*100, 100*(BF36*12/$BI36)/BF$26), IFERROR(IF($AP$21=0, BF36/BF$27*100, 100*(BF36*12/$BI36)/BF$27),IFERROR(IF($AP$21=0, BF36/BF$29*100, 100*(BF36*12/$BI36)/BF$29), IFERROR(IF($AP$21=0, BF36/BF$30*100, 100*(BF36*12/$BI36)/BF$30),IFERROR(IF($AP$21=0, BF36/BF$31*100, 100*(BF36*12/$BI36)/#REF!),IFERROR(IF($AP$21=0, BF36/BF$32*100, 100*(BF36*12/$BI36)/BF$32),IFERROR(IF($AP$21=0, BF36/BF$32*100, 100*(BF36*12/$BI36)/BF$32),IFERROR(IF($AP$21=0, BF36/BF$33*100, 100*(BF36*12/$BI36)/BF$33),IFERROR(IF($AP$21=0, BF36/BF$34*100, 100*(BF36*12/$BI36)/BF$34),IF($AP$21=0, BF36/BF$35*100, 100*(BF36*12/$BI36)/BF$35))))))))))) -> 104.4638176 | BI36: 9 | BJ36: =VLOOKUP($AO36,Data!$A$1:$P$688,Charts!BJ$23,FALSE) -> 0.1673301858
AL37: 202312 | AM37: =IF(AM36<$AL$24,+DATE(YEAR(AM36),MONTH(AM36)+3,DAY(AM36)),"") -> 2023-12-01 | AN37: =+IF(MONTH(AM37)=12,YEAR(AM37)&MONTH(AM37),YEAR(AM37)&0&MONTH(AM37)) -> 202312 | AO37: Tier 1 capital ratio202312 | AP37: =VLOOKUP($AO37,Data!$A$1:$P$800,Charts!AP$23,FALSE) -> 0.143591555 | AQ37: =VLOOKUP($AO37,Data!$A$1:$P$800,Charts!AQ$23,FALSE) -> 0.1620141637 | AR37: =VLOOKUP($AO37,Data!$A$1:$P$800,Charts!AR$23,FALSE) -> 0.1831723584 | AS37: =VLOOKUP($AO37,Data!$A$1:$P$800,Charts!AS$23,FALSE) -> 0.2357241682 | AT37: =VLOOKUP($AO37,Data!$A$1:$P$800,Charts!AT$23,FALSE) -> 0.1733796266 | AU37: =VLOOKUP($AO37,Data!$A$1:$P$800,Charts!AU$23,FALSE) -> 0.2123482308 | AV37: =VLOOKUP($AO37,Data!$A$1:$P$800,Charts!AV$23,FALSE) -> 0.3916435924 | AW37: =VLOOKUP($AO37,Data!$A$1:$P$800,Charts!AW$23,FALSE) -> 0.2118807007 | AX37: =VLOOKUP($AO37,Data!$A$1:$P$800,Charts!AX$23,FALSE) -> 0.1887989617 | AY37: 0.1620141637 | AZ37: 0 | BA37: 0.02115819472 | BB37: 0.02917587234 | BC37: 0.01842260869 | BD37: 0.1792953617 | BE37: =VLOOKUP($AO37,Data!$A$1:$P$800,BD$23,FALSE) -> 1.490197068e+12 | BF37: =VLOOKUP($AO37,Data!$A$1:$P$800,BE$23,FALSE) -> 8.796239418e+12 | BG37: =IFERROR(IF($AP$21=0,BE37/BE$25*100,(100*(BE37*12/$BI37)/BE$25)),IFERROR(IF($AP$21=0, BE37/BE$26*100, 100*(BE37*12/$BI37)/BE$26), IFERROR(IF($AP$21=0, BE37/BE$27*100, 100*(BE37*12/$BI37)/BE$27),IFERROR(IF($AP$21=0, BE37/BE$29*100, 100*(BE37*12/$BI37)/BE$29), IFERROR(IF($AP$21=0, BE37/BE$30*100, 100*(BE37*12/$BI37)/BE$30),IFERROR(IF($AP$21=0, BE37/BE$31*100, 100*(BE37*12/$BI37)/#REF!),IFERROR(IF($AP$21=0, BE37/BE$32*100, 100*(BE37*12/$BI37)/BE$32),IFERROR(IF($AP$21=0, BE37/BE$32*100, 100*(BE37*12/$BI37)/BE$32),IFERROR(IF($AP$21=0, BE37/BE$33*100, 100*(BE37*12/$BI37)/BE$33),IFERROR(IF($AP$21=0, BE37/BE$34*100, 100*(BE37*12/$BI37)/BE$34),IF($AP$21=0, BE37/BE$35*100, 100*(BE37*12/$BI37)/BE$35))))))))))) -> 106.0065307 | BH37: =IFERROR(IF($AP$21=0,BF37/BF$25*100,(100*(BF37*12/$BI37)/BF$25)),IFERROR(IF($AP$21=0, BF37/BF$26*100, 100*(BF37*12/$BI37)/BF$26), IFERROR(IF($AP$21=0, BF37/BF$27*100, 100*(BF37*12/$BI37)/BF$27),IFERROR(IF($AP$21=0, BF37/BF$29*100, 100*(BF37*12/$BI37)/BF$29), IFERROR(IF($AP$21=0, BF37/BF$30*100, 100*(BF37*12/$BI37)/BF$30),IFERROR(IF($AP$21=0, BF37/BF$31*100, 100*(BF37*12/$BI37)/#REF!),IFERROR(IF($AP$21=0, BF37/BF$32*100, 100*(BF37*12/$BI37)/BF$32),IFERROR(IF($AP$21=0, BF37/BF$32*100, 100*(BF37*12/$BI37)/BF$32),IFERROR(IF($AP$21=0, BF37/BF$33*100, 100*(BF37*12/$BI37)/BF$33),IFERROR(IF($AP$21=0, BF37/BF$34*100, 100*(BF37*12/$BI37)/BF$34),IF($AP$21=0, BF37/BF$35*100, 100*(BF37*12/$BI37)/BF$35))))))))))) -> 104.8522822 | BI37: 12 | BJ37: =VLOOKUP($AO37,Data!$A$1:$P$688,Charts!BJ$23,FALSE) -> 0.1676228387
AN49: =VLOOKUP(AM21*1,List!$A$1:$I$100,9,FALSE) -> 9 | AO49: Indicator | AP49: Country | AQ49: Country name | AR49: Value | AS49: EU value
AO50: 2 | AQ50: 5 | AR50: 8
AN51: =MAX($AL$25:$AL$46) -> 202312 | AO51: =CONCATENATE(VLOOKUP($AN$21*1,Data!$W$1:$AB$688,AO$50,FALSE),AP51) -> Tier 1 Capital Ratio1 | AP51: 1 | AQ51: =VLOOKUP($AO51,Data!$U$1:$AC$714,AQ$50,FALSE)&IF(AR51="","*","") -> EE | AR51: =IF(ISBLANK(VLOOKUP($AO51,Data!$U$1:$AC$714,AR$50,FALSE)),"",VLOOKUP($AO51,Data!$U$1:$AC$714,AR$50,FALSE)) -> 0.2232895063 | AS51: =VLOOKUP($AO$81,Data!$U$1:$AC$714,$AR$50,FALSE) -> 0.1733796266
AN52: =MAX($AL$25:$AL$46) -> 202312 | AO52: =CONCATENATE(VLOOKUP($AN$21*1,Data!$W$1:$AB$688,AO$50,FALSE),AP52) -> Tier 1 Capital Ratio2 | AP52: 2 | AQ52: =VLOOKUP($AO52,Data!$U$1:$AC$714,AQ$50,FALSE)&IF(AR52="","*","") -> HR | AR52: =IF(ISBLANK(VLOOKUP($AO52,Data!$U$1:$AC$714,AR$50,FALSE)),"",VLOOKUP($AO52,Data!$U$1:$AC$714,AR$50,FALSE)) -> 0.2223936223 | AS52: =VLOOKUP($AO$81,Data!$U$1:$AC$714,$AR$50,FALSE) -> 0.1733796266
AN53: 202312 | AO53: =CONCATENATE(VLOOKUP($AN$21*1,Data!$W$1:$AB$688,AO$50,FALSE),AP53) -> Tier 1 Capital Ratio3 | AP53: 3 | AQ53: =VLOOKUP($AO53,Data!$U$1:$AC$714,AQ$50,FALSE)&IF(AR53="","*","") -> LU | AR53: =IF(ISBLANK(VLOOKUP($AO53,Data!$U$1:$AC$714,AR$50,FALSE)),"",VLOOKUP($AO53,Data!$U$1:$AC$714,AR$50,FALSE)) -> 0.2206612891 | AS53: =VLOOKUP($AO$81,Data!$U$1:$AC$714,$AR$50,FALSE) -> 0.1733796266
AN54: 202312 | AO54: =CONCATENATE(VLOOKUP($AN$21*1,Data!$W$1:$AB$688,AO$50,FALSE),AP54) -> Tier 1 Capital Ratio4 | AP54: 4 | AQ54: =VLOOKUP($AO54,Data!$U$1:$AC$714,AQ$50,FALSE)&IF(AR54="","*","") -> IS | AR54: =IF(ISBLANK(VLOOKUP($AO54,Data!$U$1:$AC$714,AR$50,FALSE)),"",VLOOKUP($AO54,Data!$U$1:$AC$714,AR$50,FALSE)) -> 0.2191601566 | AS54: =VLOOKUP($AO$81,Data!$U$1:$AC$714,$AR$50,FALSE) -> 0.1733796266
AN55: 202312 | AO55: =CONCATENATE(VLOOKUP($AN$21*1,Data!$W$1:$AB$688,AO$50,FALSE),AP55) -> Tier 1 Capital Ratio5 | AP55: 5 | AQ55: =VLOOKUP($AO55,Data!$U$1:$AC$714,AQ$50,FALSE)&IF(AR55="","*","") -> CY | AR55: =IF(ISBLANK(VLOOKUP($AO55,Data!$U$1:$AC$714,AR$50,FALSE)),"",VLOOKUP($AO55,Data!$U$1:$AC$714,AR$50,FALSE)) -> 0.2160209452 | AS55: =VLOOKUP($AO$81,Data!$U$1:$AC$714,$AR$50,FALSE) -> 0.1733796266
AN56: 202312 | AO56: =CONCATENATE(VLOOKUP($AN$21*1,Data!$W$1:$AB$688,AO$50,FALSE),AP56) -> Tier 1 Capital Ratio6 | AP56: 6 | AQ56: =VLOOKUP($AO56,Data!$U$1:$AC$714,AQ$50,FALSE)&IF(AR56="","*","") -> MT | AR56: =IF(ISBLANK(VLOOKUP($AO56,Data!$U$1:$AC$714,AR$50,FALSE)),"",VLOOKUP($AO56,Data!$U$1:$AC$714,AR$50,FALSE)) -> 0.2120661243 | AS56: =VLOOKUP($AO$81,Data!$U$1:$AC$714,$AR$50,FALSE) -> 0.1733796266
AN57: 202312 | AO57: =CONCATENATE(VLOOKUP($AN$21*1,Data!$W$1:$AB$688,AO$50,FALSE),AP57) -> Tier 1 Capital Ratio7 | AP57: 7 | AQ57: =VLOOKUP($AO57,Data!$U$1:$AC$714,AQ$50,FALSE)&IF(AR57="","*","") -> BG | AR57: =IF(ISBLANK(VLOOKUP($AO57,Data!$U$1:$AC$714,AR$50,FALSE)),"",VLOOKUP($AO57,Data!$U$1:$AC$714,AR$50,FALSE)) -> 0.2070570488 | AS57: =VLOOKUP($AO$81,Data!$U$1:$AC$714,$AR$50,FALSE) -> 0.1733796266
AN58: 202312 | AO58: =CONCATENATE(VLOOKUP($AN$21*1,Data!$W$1:$AB$688,AO$50,FALSE),AP58) -> Tier 1 Capital Ratio8 | AP58: 8 | AQ58: =VLOOKUP($AO58,Data!$U$1:$AC$714,AQ$50,FALSE)&IF(AR58="","*","") -> SE | AR58: =IF(ISBLANK(VLOOKUP($AO58,Data!$U$1:$AC$714,AR$50,FALSE)),"",VLOOKUP($AO58,Data!$U$1:$AC$714,AR$50,FALSE)) -> 0.2057545332 | AS58: =VLOOKUP($AO$81,Data!$U$1:$AC$714,$AR$50,FALSE) -> 0.1733796266
AN59: 202312 | AO59: =CONCATENATE(VLOOKUP($AN$21*1,Data!$W$1:$AB$688,AO$50,FALSE),AP59) -> Tier 1 Capital Ratio9 | AP59: 9 | AQ59: =VLOOKUP($AO59,Data!$U$1:$AC$714,AQ$50,FALSE)&IF(AR59="","*","") -> DK | AR59: =IF(ISBLANK(VLOOKUP($AO59,Data!$U$1:$AC$714,AR$50,FALSE)),"",VLOOKUP($AO59,Data!$U$1:$AC$714,AR$50,FALSE)) -> 0.2042716684 | AS59: =VLOOKUP($AO$81,Data!$U$1:$AC$714,$AR$50,FALSE) -> 0.1733796266
AN60: 202312 | AO60: =CONCATENATE(VLOOKUP($AN$21*1,Data!$W$1:$AB$688,AO$50,FALSE),AP60) -> Tier 1 Capital Ratio10 | AP60: 10 | AQ60: =VLOOKUP($AO60,Data!$U$1:$AC$714,AQ$50,FALSE)&IF(AR60="","*","") -> LV | AR60: =IF(ISBLANK(VLOOKUP($AO60,Data!$U$1:$AC$714,AR$50,FALSE)),"",VLOOKUP($AO60,Data!$U$1:$AC$714,AR$50,FALSE)) -> 0.2037011006 | AS60: =VLOOKUP($AO$81,Data!$U$1:$AC$714,$AR$50,FALSE) -> 0.1733796266
AN61: 202312 | AO61: =CONCATENATE(VLOOKUP($AN$21*1,Data!$W$1:$AB$688,AO$50,FALSE),AP61) -> Tier 1 Capital Ratio11 | AP61: 11 | AQ61: =VLOOKUP($AO61,Data!$U$1:$AC$714,AQ$50,FALSE)&IF(AR61="","*","") -> LI | AR61: =IF(ISBLANK(VLOOKUP($AO61,Data!$U$1:$AC$714,AR$50,FALSE)),"",VLOOKUP($AO61,Data!$U$1:$AC$714,AR$50,FALSE)) -> 0.2020711812 | AS61: =VLOOKUP($AO$81,Data!$U$1:$AC$714,$AR$50,FALSE) -> 0.1733796266
AN62: 202312 | AO62: =CONCATENATE(VLOOKUP($AN$21*1,Data!$W$1:$AB$688,AO$50,FALSE),AP62) -> Tier 1 Capital Ratio12 | AP62: 12 | AQ62: =VLOOKUP($AO62,Data!$U$1:$AC$714,AQ$50,FALSE)&IF(AR62="","*","") -> NO | AR62: =IF(ISBLANK(VLOOKUP($AO62,Data!$U$1:$AC$714,AR$50,FALSE)),"",VLOOKUP($AO62,Data!$U$1:$AC$714,AR$50,FALSE)) -> 0.2005112334 | AS62: =VLOOKUP($AO$81,Data!$U$1:$AC$714,$AR$50,FALSE) -> 0.1733796266
AN63: 202312 | AO63: =CONCATENATE(VLOOKUP($AN$21*1,Data!$W$1:$AB$688,AO$50,FALSE),AP63) -> Tier 1 Capital Ratio13 | AP63: 13 | AQ63: =VLOOKUP($AO63,Data!$U$1:$AC$714,AQ$50,FALSE)&IF(AR63="","*","") -> FI | AR63: =IF(ISBLANK(VLOOKUP($AO63,Data!$U$1:$AC$714,AR$50,FALSE)),"",VLOOKUP($AO63,Data!$U$1:$AC$714,AR$50,FALSE)) -> 0.1988775016 | AS63: =VLOOKUP($AO$81,Data!$U$1:$AC$714,$AR$50,FALSE) -> 0.1733796266
AN64: 202312 | AO64: =CONCATENATE(VLOOKUP($AN$21*1,Data!$W$1:$AB$688,AO$50,FALSE),AP64) -> Tier 1 Capital Ratio14 | AP64: 14 | AQ64: =VLOOKUP($AO64,Data!$U$1:$AC$714,AQ$50,FALSE)&IF(AR64="","*","") -> IE | AR64: =IF(ISBLANK(VLOOKUP($AO64,Data!$U$1:$AC$714,AR$50,FALSE)),"",VLOOKUP($AO64,Data!$U$1:$AC$714,AR$50,FALSE)) -> 0.1978147944 | AS64: =VLOOKUP($AO$81,Data!$U$1:$AC$714,$AR$50,FALSE) -> 0.1733796266
AN65: 202312 | AO65: =CONCATENATE(VLOOKUP($AN$21*1,Data!$W$1:$AB$688,AO$50,FALSE),AP65) -> Tier 1 Capital Ratio15 | AP65: 15 | AQ65: =VLOOKUP($AO65,Data!$U$1:$AC$714,AQ$50,FALSE)&IF(AR65="","*","") -> BE | AR65: =IF(ISBLANK(VLOOKUP($AO65,Data!$U$1:$AC$714,AR$50,FALSE)),"",VLOOKUP($AO65,Data!$U$1:$AC$714,AR$50,FALSE)) -> 0.1871204125 | AS65: =VLOOKUP($AO$81,Data!$U$1:$AC$714,$AR$50,FALSE) -> 0.1733796266
AN66: 202312 | AO66: =CONCATENATE(VLOOKUP($AN$21*1,Data!$W$1:$AB$688,AO$50,FALSE),AP66) -> Tier 1 Capital Ratio16 | AP66: 16 | AQ66: =VLOOKUP($AO66,Data!$U$1:$AC$714,AQ$50,FALSE)&IF(AR66="","*","") -> CZ | AR66: =IF(ISBLANK(VLOOKUP($AO66,Data!$U$1:$AC$714,AR$50,FALSE)),"",VLOOKUP($AO66,Data!$U$1:$AC$714,AR$50,FALSE)) -> 0.1845583113 | AS66: =VLOOKUP($AO$81,Data!$U$1:$AC$714,$AR$50,FALSE) -> 0.1733796266
AN67: 202312 | AO67: =CONCATENATE(VLOOKUP($AN$21*1,Data!$W$1:$AB$688,AO$50,FALSE),AP67) -> Tier 1 Capital Ratio17 | AP67: 17 | AQ67: =VLOOKUP($AO67,Data!$U$1:$AC$714,AQ$50,FALSE)&IF(AR67="","*","") -> LT | AR67: =IF(ISBLANK(VLOOKUP($AO67,Data!$U$1:$AC$714,AR$50,FALSE)),"",VLOOKUP($AO67,Data!$U$1:$AC$714,AR$50,FALSE)) -> 0.1814750066 | AS67: =VLOOKUP($AO$81,Data!$U$1:$AC$714,$AR$50,FALSE) -> 0.1733796266
AN68: 202312 | AO68: =CONCATENATE(VLOOKUP($AN$21*1,Data!$W$1:$AB$688,AO$50,FALSE),AP68) -> Tier 1 Capital Ratio18 | AP68: 18 | AQ68: =VLOOKUP($AO68,Data!$U$1:$AC$714,AQ$50,FALSE)&IF(AR68="","*","") -> SK | AR68: =IF(ISBLANK(VLOOKUP($AO68,Data!$U$1:$AC$714,AR$50,FALSE)),"",VLOOKUP($AO68,Data!$U$1:$AC$714,AR$50,FALSE)) -> 0.1808570008 | AS68: =VLOOKUP($AO$81,Data!$U$1:$AC$714,$AR$50,FALSE) -> 0.1733796266
AN69: 202312 | AO69: =CONCATENATE(VLOOKUP($AN$21*1,Data!$W$1:$AB$688,AO$50,FALSE),AP69) -> Tier 1 Capital Ratio19 | AP69: 19 | AQ69: =VLOOKUP($AO69,Data!$U$1:$AC$714,AQ$50,FALSE)&IF(AR69="","*","") -> NL | AR69: =IF(ISBLANK(VLOOKUP($AO69,Data!$U$1:$AC$714,AR$50,FALSE)),"",VLOOKUP($AO69,Data!$U$1:$AC$714,AR$50,FALSE)) -> 0.1795810055 | AS69: =VLOOKUP($AO$81,Data!$U$1:$AC$714,$AR$50,FALSE) -> 0.1733796266
AN70: 202312 | AO70: =CONCATENATE(VLOOKUP($AN$21*1,Data!$W$1:$AB$688,AO$50,FALSE),AP70) -> Tier 1 Capital Ratio20 | AP70: 20 | AQ70: =VLOOKUP($AO70,Data!$U$1:$AC$714,AQ$50,FALSE)&IF(AR70="","*","") -> DE | AR70: =IF(ISBLANK(VLOOKUP($AO70,Data!$U$1:$AC$714,AR$50,FALSE)),"",VLOOKUP($AO70,Data!$U$1:$AC$714,AR$50,FALSE)) -> 0.1795546183 | AS70: =VLOOKUP($AO$81,Data!$U$1:$AC$714,$AR$50,FALSE) -> 0.1733796266
AN71: 202312 | AO71: =CONCATENATE(VLOOKUP($AN$21*1,Data!$W$1:$AB$688,AO$50,FALSE),AP71) -> Tier 1 Capital Ratio21 | AP71: 21 | AQ71: =VLOOKUP($AO71,Data!$U$1:$AC$714,AQ$50,FALSE)&IF(AR71="","*","") -> AT | AR71: =IF(ISBLANK(VLOOKUP($AO71,Data!$U$1:$AC$714,AR$50,FALSE)),"",VLOOKUP($AO71,Data!$U$1:$AC$714,AR$50,FALSE)) -> 0.1784643732 | AS71: =VLOOKUP($AO$81,Data!$U$1:$AC$714,$AR$50,FALSE) -> 0.1733796266
AN72: 202312 | AO72: =CONCATENATE(VLOOKUP($AN$21*1,Data!$W$1:$AB$688,AO$50,FALSE),AP72) -> Tier 1 Capital Ratio22 | AP72: 22 | AQ72: =VLOOKUP($AO72,Data!$U$1:$AC$714,AQ$50,FALSE)&IF(AR72="","*","") -> PT | AR72: =IF(ISBLANK(VLOOKUP($AO72,Data!$U$1:$AC$714,AR$50,FALSE)),"",VLOOKUP($AO72,Data!$U$1:$AC$714,AR$50,FALSE)) -> 0.1778598643 | AS72: =VLOOKUP($AO$81,Data!$U$1:$AC$714,$AR$50,FALSE) -> 0.1733796266
AN73: 202312 | AO73: =CONCATENATE(VLOOKUP($AN$21*1,Data!$W$1:$AB$688,AO$50,FALSE),AP73) -> Tier 1 Capital Ratio23 | AP73: 23 | AQ73: =VLOOKUP($AO73,Data!$U$1:$AC$714,AQ$50,FALSE)&IF(AR73="","*","") -> RO | AR73: =IF(ISBLANK(VLOOKUP($AO73,Data!$U$1:$AC$714,AR$50,FALSE)),"",VLOOKUP($AO73,Data!$U$1:$AC$714,AR$50,FALSE)) -> 0.1768791204 | AS73: =VLOOKUP($AO$81,Data!$U$1:$AC$714,$AR$50,FALSE) -> 0.1733796266
AN74: 202312 | AO74: =CONCATENATE(VLOOKUP($AN$21*1,Data!$W$1:$AB$688,AO$50,FALSE),AP74) -> Tier 1 Capital Ratio24 | AP74: 24 | AQ74: =VLOOKUP($AO74,Data!$U$1:$AC$714,AQ$50,FALSE)&IF(AR74="","*","") -> IT | AR74: =IF(ISBLANK(VLOOKUP($AO74,Data!$U$1:$AC$714,AR$50,FALSE)),"",VLOOKUP($AO74,Data!$U$1:$AC$714,AR$50,FALSE)) -> 0.1742901078 | AS74: =VLOOKUP($AO$81,Data!$U$1:$AC$714,$AR$50,FALSE) -> 0.1733796266
AN75: 202312 | AO75: =CONCATENATE(VLOOKUP($AN$21*1,Data!$W$1:$AB$688,AO$50,FALSE),AP75) -> Tier 1 Capital Ratio25 | AP75: 25 | AQ75: =VLOOKUP($AO75,Data!$U$1:$AC$714,AQ$50,FALSE)&IF(AR75="","*","") -> SI | AR75: =IF(ISBLANK(VLOOKUP($AO75,Data!$U$1:$AC$714,AR$50,FALSE)),"",VLOOKUP($AO75,Data!$U$1:$AC$714,AR$50,FALSE)) -> 0.1720810007 | AS75: =VLOOKUP($AO$81,Data!$U$1:$AC$714,$AR$50,FALSE) -> 0.1733796266
AN76: 202312 | AO76: =CONCATENATE(VLOOKUP($AN$21*1,Data!$W$1:$AB$688,AO$50,FALSE),AP76) -> Tier 1 Capital Ratio26 | AP76: 26 | AQ76: =VLOOKUP($AO76,Data!$U$1:$AC$714,AQ$50,FALSE)&IF(AR76="","*","") -> FR | AR76: =IF(ISBLANK(VLOOKUP($AO76,Data!$U$1:$AC$714,AR$50,FALSE)),"",VLOOKUP($AO76,Data!$U$1:$AC$714,AR$50,FALSE)) -> 0.1710421333 | AS76: =VLOOKUP($AO$81,Data!$U$1:$AC$714,$AR$50,FALSE) -> 0.1733796266
AN77: 202312 | AO77: =CONCATENATE(VLOOKUP($AN$21*1,Data!$W$1:$AB$688,AO$50,FALSE),AP77) -> Tier 1 Capital Ratio27 | AP77: 27 | AQ77: =VLOOKUP($AO77,Data!$U$1:$AC$714,AQ$50,FALSE)&IF(AR77="","*","") -> PL | AR77: =IF(ISBLANK(VLOOKUP($AO77,Data!$U$1:$AC$714,AR$50,FALSE)),"",VLOOKUP($AO77,Data!$U$1:$AC$714,AR$50,FALSE)) -> 0.1689779085 | AS77: =VLOOKUP($AO$81,Data!$U$1:$AC$714,$AR$50,FALSE) -> 0.1733796266
AN78: 202312 | AO78: =CONCATENATE(VLOOKUP($AN$21*1,Data!$W$1:$AB$688,AO$50,FALSE),AP78) -> Tier 1 Capital Ratio28 | AP78: 28 | AQ78: =VLOOKUP($AO78,Data!$U$1:$AC$714,AQ$50,FALSE)&IF(AR78="","*","") -> HU | AR78: =IF(ISBLANK(VLOOKUP($AO78,Data!$U$1:$AC$714,AR$50,FALSE)),"",VLOOKUP($AO78,Data!$U$1:$AC$714,AR$50,FALSE)) -> 0.1642581359 | AS78: =VLOOKUP($AO$81,Data!$U$1:$AC$714,$AR$50,FALSE) -> 0.1733796266
AN79: 202312 | AO79: =CONCATENATE(VLOOKUP($AN$21*1,Data!$W$1:$AB$688,AO$50,FALSE),AP79) -> Tier 1 Capital Ratio29 | AP79: 29 | AQ79: =VLOOKUP($AO79,Data!$U$1:$AC$714,AQ$50,FALSE)&IF(AR79="","*","") -> GR | AR79: =IF(ISBLANK(VLOOKUP($AO79,Data!$U$1:$AC$714,AR$50,FALSE)),"",VLOOKUP($AO79,Data!$U$1:$AC$714,AR$50,FALSE)) -> 0.1619280989 | AS79: =VLOOKUP($AO$81,Data!$U$1:$AC$714,$AR$50,FALSE) -> 0.1733796266
AN80: 202312 | AO80: =CONCATENATE(VLOOKUP($AN$21*1,Data!$W$1:$AB$688,AO$50,FALSE),AP80) -> Tier 1 Capital Ratio30 | AP80: 30 | AQ80: =VLOOKUP($AO80,Data!$U$1:$AC$714,AQ$50,FALSE)&IF(AR80="","*","") -> ES | AR80: =IF(ISBLANK(VLOOKUP($AO80,Data!$U$1:$AC$714,AR$50,FALSE)),"",VLOOKUP($AO80,Data!$U$1:$AC$714,AR$50,FALSE)) -> 0.1425850733 | AS80: =VLOOKUP($AO$81,Data!$U$1:$AC$714,$AR$50,FALSE) -> 0.1733796266
AN81: =MAX($AL$25:$AL$46) -> 202312 | AO81: =CONCATENATE(VLOOKUP($AN$21*1,Data!$W$1:$AB$688,AO$50,FALSE),AP81) -> Tier 1 Capital Ratio99 | AP81: 99 | AQ81: =VLOOKUP($AO81,Data!$U$1:$AC$714,AQ$50,FALSE)&IF(AR81="","*","") -> EU | AR81: =IF(ISBLANK(VLOOKUP($AO81,Data!$U$1:$AC$714,AR$50,FALSE)),"",VLOOKUP($AO81,Data!$U$1:$AC$714,AR$50,FALSE)) -> 0.1733796266 | AS81: =VLOOKUP($AO$81,Data!$U$1:$AC$714,$AR$50,FALSE) -> 0.1733796266

Sheet Assets
D1: =("'"&MID(CELL("filename",$A$1),FIND("]",CELL("filename",$A$1))+1,32)&"'") -> 'Assets' | E1: T01_1 | F1: T01_1 | G1: T01_1 | H1: T01_2 | I1: T01_2 | J1: T01_2 | K1: T01_3 | L1: T01_3 | M1: T01_3 | N1: T01_4 | O1: T01_4 | P1: T01_4 | Q1: T01_5 | R1: T01_5 | S1: T01_5 | T1: T01_6 | U1: T01_6 | V1: T01_6
A2: ='Reference Dates'!$C$8 -> 202312 | E2: =TEXT(E12,"YYYYMM")+0 -> 202212 | F2: 202309 | G2: 202312 | H2: 202212 | I2: 202309 | J2: 202312 | K2: 202212 | L2: 202309 | M2: 202312 | N2: 202212 | O2: 202309 | P2: 202312 | Q2: 202212 | R2: 202309 | S2: 202312 | T2: 202212 | U2: 202309 | V2: 202312
A3: =DATE(LEFT(A2,4),RIGHT(A2,2),1) -> 2023-12-01
D4: Statistical Annex
D5: Asset composition and volumes
B8: CH_1 | D8: Asset composition
D10: % of total assets
E11: Cash balances | H11: Equity instruments | K11: Debt securities | N11: Loans and advances | Q11: Derivatives | T11: Other Assets
E12: =EOMONTH($A$3,-12) -> 2022-12-31 | F12: =EOMONTH($A$3,-3) -> 2023-09-30 | G12: =$A$3 -> 2023-12-01 | H12: =EOMONTH($A$3,-12) -> 2022-12-31 | I12: =EOMONTH($A$3,-3) -> 2023-09-30 | J12: =$A$3 -> 2023-12-01 | K12: =EOMONTH($A$3,-12) -> 2022-12-31 | L12: =EOMONTH($A$3,-3) -> 2023-09-30 | M12: =$A$3 -> 2023-12-01 | N12: =EOMONTH($A$3,-12) -> 2022-12-31 | O12: =EOMONTH($A$3,-3) -> 2023-09-30 | P12: =$A$3 -> 2023-12-01 | Q12: =EOMONTH($A$3,-12) -> 2022-12-31 | R12: =EOMONTH($A$3,-3) -> 2023-09-30 | S12: =$A$3 -> 2023-12-01 | T12: =EOMONTH($A$3,-12) -> 2022-12-31 | U12: =EOMONTH($A$3,-3) -> 2023-09-30 | V12: =$A$3 -> 2023-12-01
B13: AT | D13: =IF(OR(E13="n.a.",F13="n.a.",G13="n.a.",H13="n.a.",I13="n.a.",J13="n.a.",K13="n.a.",L13="n.a.",M13="n.a.",N13="n.a.",O13="n.a.",P13="n.a.",Q13="n.a.",R13="n.a.",S13="n.a.",T13="n.a.",U13="n.a.",V13="n.a."),$B13&"*",$B13) -> AT | E13: =IFERROR(INDEX('Data Annex'!$K$1:$BS$4779,MATCH(Assets!E$1&"|"&Assets!$B13,'Data Annex'!$K$1:$K$4779,0),MATCH(Assets!E$2,'Data Annex'!$K$1:$BS$1,0)),"") -> 0.1679533662 | F13: =IFERROR(INDEX('Data Annex'!$K$1:$BS$4779,MATCH(Assets!F$1&"|"&Assets!$B13,'Data Annex'!$K$1:$K$4779,0),MATCH(Assets!F$2,'Data Annex'!$K$1:$BS$1,0)),"") -> 0.1541611522 | G13: =IFERROR(INDEX('Data Annex'!$K$1:$BS$4779,MATCH(Assets!G$1&"|"&Assets!$B13,'Data Annex'!$K$1:$K$4779,0),MATCH(Assets!G$2,'Data Annex'!$K$1:$BS$1,0)),"") -> 0.1474275095 | H13: =IFERROR(INDEX('Data Annex'!$K$1:$BS$4779,MATCH(Assets!H$1&"|"&Assets!$B13,'Data Annex'!$K$1:$K$4779,0),MATCH(Assets!H$2,'Data Annex'!$K$1:$BS$1,0)),"") -> 0.005791228952 | I13: =IFERROR(INDEX('Data Annex'!$K$1:$BS$4779,MATCH(Assets!I$1&"|"&Assets!$B13,'Data Annex'!$K$1:$K$4779,0),MATCH(Assets!I$2,'Data Annex'!$K$1:$BS$1,0)),"") -> 0.006093879656 | J13: =IFERROR(INDEX('Data Annex'!$K$1:$BS$4779,MATCH(Assets!J$1&"|"&Assets!$B13,'Data Annex'!$K$1:$K$4779,0),MATCH(Assets!J$2,'Data Annex'!$K$1:$BS$1,0)),"") -> 0.006429719905 | K13: =IFERROR(INDEX('Data Annex'!$K$1:$BS$4779,MATCH(Assets!K$1&"|"&Assets!$B13,'Data Annex'!$K$1:$K$4779,0),MATCH(Assets!K$2,'Data Annex'!$K$1:$BS$1,0)),"") -> 0.1384603172 | L13: =IFERROR(INDEX('Data Annex'!$K$1:$BS$4779,MATCH(Assets!L$1&"|"&Assets!$B13,'Data Annex'!$K$1:$K$4779,0),MATCH(Assets!L$2,'Data Annex'!$K$1:$BS$1,0)),"") -> 0.1532930044 | M13: =IFERROR(INDEX('Data Annex'!$K$1:$BS$4779,MATCH(Assets!M$1&"|"&Assets!$B13,'Data Annex'!$K$1:$K$4779,0),MATCH(Assets!M$2,'Data Annex'!$K$1:$BS$1,0)),"") -> 0.1587878714 | N13: =IFERROR(INDEX('Data Annex'!$K$1:$BS$4779,MATCH(Assets!N$1&"|"&Assets!$B13,'Data Annex'!$K$1:$K$4779,0),MATCH(Assets!N$2,'Data Annex'!$K$1:$BS$1,0)),"") -> 0.6412786342 | O13: =IFERROR(INDEX('Data Annex'!$K$1:$BS$4779,MATCH(Assets!O$1&"|"&Assets!$B13,'Data Annex'!$K$1:$K$4779,0),MATCH(Assets!O$2,'Data Annex'!$K$1:$BS$1,0)),"") -> 0.6426276902 | P13: =IFERROR(INDEX('Data Annex'!$K$1:$BS$4779,MATCH(Assets!P$1&"|"&Assets!$B13,'Data Annex'!$K$1:$K$4779,0),MATCH(Assets!P$2,'Data Annex'!$K$1:$BS$1,0)),"") -> 0.6427766155 | Q13: =IFERROR(INDEX('Data Annex'!$K$1:$BS$4779,MATCH(Assets!Q$1&"|"&Assets!$B13,'Data Annex'!$K$1:$K$4779,0),MATCH(Assets!Q$2,'Data Annex'!$K$1:$BS$1,0)),"") -> 0.02262903079 | R13: =IFERROR(INDEX('Data Annex'!$K$1:$BS$4779,MATCH(Assets!R$1&"|"&Assets!$B13,'Data Annex'!$K$1:$K$4779,0),MATCH(Assets!R$2,'Data Annex'!$K$1:$BS$1,0)),"") -> 0.0201362796 | S13: =IFERROR(INDEX('Data Annex'!$K$1:$BS$4779,MATCH(Assets!S$1&"|"&Assets!$B13,'Data Annex'!$K$1:$K$4779,0),MATCH(Assets!S$2,'Data Annex'!$K$1:$BS$1,0)),"") -> 0.01656131066 | T13: =IFERROR(INDEX('Data Annex'!$K$1:$BS$4779,MATCH(Assets!T$1&"|"&Assets!$B13,'Data Annex'!$K$1:$K$4779,0),MATCH(Assets!T$2,'Data Annex'!$K$1:$BS$1,0)),"") -> 0.02388742268 | U13: =IFERROR(INDEX('Data Annex'!$K$1:$BS$4779,MATCH(Assets!U$1&"|"&Assets!$B13,'Data Annex'!$K$1:$K$4779,0),MATCH(Assets!U$2,'Data Annex'!$K$1:$BS$1,0)),"") -> 0.02368799395 | V13: =IFERROR(INDEX('Data Annex'!$K$1:$BS$4779,MATCH(Assets!V$1&"|"&Assets!$B13,'Data Annex'!$K$1:$K$4779,0),MATCH(Assets!V$2,'Data Annex'!$K$1:$BS$1,0)),"") -> 0.02801697311 | W13: =IFERROR(INDEX('Data Annex'!$K$1:$AH$4779,MATCH(Assets!AC$1&"|"&Assets!$B13,'Data Annex'!$K$1:$K$4779,0),MATCH(Assets!AC$2,'Data Annex'!$K$1:$AH$1,0)),"") -> 
B14: BE | D14: =IF(OR(E14="n.a.",F14="n.a.",G14="n.a.",H14="n.a.",I14="n.a.",J14="n.a.",K14="n.a.",L14="n.a.",M14="n.a.",N14="n.a.",O14="n.a.",P14="n.a.",Q14="n.a.",R14="n.a.",S14="n.a.",T14="n.a.",U14="n.a.",V14="n.a."),$B14&"*",$B14) -> BE | E14: =IFERROR(INDEX('Data Annex'!$K$1:$BS$4779,MATCH(Assets!E$1&"|"&Assets!$B14,'Data Annex'!$K$1:$K$4779,0),MATCH(Assets!E$2,'Data Annex'!$K$1:$BS$1,0)),"") -> 0.153132807 | F14: =IFERROR(INDEX('Data Annex'!$K$1:$BS$4779,MATCH(Assets!F$1&"|"&Assets!$B14,'Data Annex'!$K$1:$K$4779,0),MATCH(Assets!F$2,'Data Annex'!$K$1:$BS$1,0)),"") -> 0.1460977701 | G14: =IFERROR(INDEX('Data Annex'!$K$1:$BS$4779,MATCH(Assets!G$1&"|"&Assets!$B14,'Data Annex'!$K$1:$K$4779,0),MATCH(Assets!G$2,'Data Annex'!$K$1:$BS$1,0)),"") -> 0.1296572471 | H14: =IFERROR(INDEX('Data Annex'!$K$1:$BS$4779,MATCH(Assets!H$1&"|"&Assets!$B14,'Data Annex'!$K$1:$K$4779,0),MATCH(Assets!H$2,'Data Annex'!$K$1:$BS$1,0)),"") -> 0.002048152629 | I14: =IFERROR(INDEX('Data Annex'!$K$1:$BS$4779,MATCH(Assets!I$1&"|"&Assets!$B14,'Data Annex'!$K$1:$K$4779,0),MATCH(Assets!I$2,'Data Annex'!$K$1:$BS$1,0)),"") -> 0.002515399143 | J14: =IFERROR(INDEX('Data Annex'!$K$1:$BS$4779,MATCH(Assets!J$1&"|"&Assets!$B14,'Data Annex'!$K$1:$K$4779,0),MATCH(Assets!J$2,'Data Annex'!$K$1:$BS$1,0)),"") -> 0.002601622061 | K14: =IFERROR(INDEX('Data Annex'!$K$1:$BS$4779,MATCH(Assets!K$1&"|"&Assets!$B14,'Data Annex'!$K$1:$K$4779,0),MATCH(Assets!K$2,'Data Annex'!$K$1:$BS$1,0)),"") -> 0.1220844459 | L14: =IFERROR(INDEX('Data Annex'!$K$1:$BS$4779,MATCH(Assets!L$1&"|"&Assets!$B14,'Data Annex'!$K$1:$K$4779,0),MATCH(Assets!L$2,'Data Annex'!$K$1:$BS$1,0)),"") -> 0.1324604457 | M14: =IFERROR(INDEX('Data Annex'!$K$1:$BS$4779,MATCH(Assets!M$1&"|"&Assets!$B14,'Data Annex'!$K$1:$K$4779,0),MATCH(Assets!M$2,'Data Annex'!$K$1:$BS$1,0)),"") -> 0.1375453148 | N14: =IFERROR(INDEX('Data Annex'!$K$1:$BS$4779,MATCH(Assets!N$1&"|"&Assets!$B14,'Data Annex'!$K$1:$K$4779,0),MATCH(Assets!N$2,'Data Annex'!$K$1:$BS$1,0)),"") -> 0.6491329077 | O14: =IFERROR(INDEX('Data Annex'!$K$1:$BS$4779,MATCH(Assets!O$1&"|"&Assets!$B14,'Data Annex'!$K$1:$K$4779,0),MATCH(Assets!O$2,'Data Annex'!$K$1:$BS$1,0)),"") -> 0.6633881324 | P14: =IFERROR(INDEX('Data Annex'!$K$1:$BS$4779,MATCH(Assets!P$1&"|"&Assets!$B14,'Data Annex'!$K$1:$K$4779,0),MATCH(Assets!P$2,'Data Annex'!$K$1:$BS$1,0)),"") -> 0.6675754344 | Q14: =IFERROR(INDEX('Data Annex'!$K$1:$BS$4779,MATCH(Assets!Q$1&"|"&Assets!$B14,'Data Annex'!$K$1:$K$4779,0),MATCH(Assets!Q$2,'Data Annex'!$K$1:$BS$1,0)),"") -> 0.04463457578 | R14: =IFERROR(INDEX('Data Annex'!$K$1:$BS$4779,MATCH(Assets!R$1&"|"&Assets!$B14,'Data Annex'!$K$1:$K$4779,0),MATCH(Assets!R$2,'Data Annex'!$K$1:$BS$1,0)),"") -> 0.03209404467 | S14: =IFERROR(INDEX('Data Annex'!$K$1:$BS$4779,MATCH(Assets!S$1&"|"&Assets!$B14,'Data Annex'!$K$1:$K$4779,0),MATCH(Assets!S$2,'Data Annex'!$K$1:$BS$1,0)),"") -> 0.02637181298 | T14: =IFERROR(INDEX('Data Annex'!$K$1:$BS$4779,MATCH(Assets!T$1&"|"&Assets!$B14,'Data Annex'!$K$1:$K$4779,0),MATCH(Assets!T$2,'Data Annex'!$K$1:$BS$1,0)),"") -> 0.02896711091 | U14: =IFERROR(INDEX('Data Annex'!$K$1:$BS$4779,MATCH(Assets!U$1&"|"&Assets!$B14,'Data Annex'!$K$1:$K$4779,0),MATCH(Assets!U$2,'Data Annex'!$K$1:$BS$1,0)),"") -> 0.02344420793 | V14: =IFERROR(INDEX('Data Annex'!$K$1:$BS$4779,MATCH(Assets!V$1&"|"&Assets!$B14,'Data Annex'!$K$1:$K$4779,0),MATCH(Assets!V$2,'Data Annex'!$K$1:$BS$1,0)),"") -> 0.03624856868 | W14: =IFERROR(INDEX('Data Annex'!$K$1:$AH$4779,MATCH(Assets!AC$1&"|"&Assets!$B14,'Data Annex'!$K$1:$K$4779,0),MATCH(Assets!AC$2,'Data Annex'!$K$1:$AH$1,0)),"") -> 
B15: BG | D15: BG | E15: =IFERROR(INDEX('Data Annex'!$K$1:$BS$4779,MATCH(Assets!E$1&"|"&Assets!$B15,'Data Annex'!$K$1:$K$4779,0),MATCH(Assets!E$2,'Data Annex'!$K$1:$BS$1,0)),"") -> 0.2020866242 | F15: =IFERROR(INDEX('Data Annex'!$K$1:$BS$4779,MATCH(Assets!F$1&"|"&Assets!$B15,'Data Annex'!$K$1:$K$4779,0),MATCH(Assets!F$2,'Data Annex'!$K$1:$BS$1,0)),"") -> 0.1604509063 | G15: =IFERROR(INDEX('Data Annex'!$K$1:$BS$4779,MATCH(Assets!G$1&"|"&Assets!$B15,'Data Annex'!$K$1:$K$4779,0),MATCH(Assets!G$2,'Data Annex'!$K$1:$BS$1,0)),"") -> 0.208848199 | H15: =IFERROR(INDEX('Data Annex'!$K$1:$BS$4779,MATCH(Assets!H$1&"|"&Assets!$B15,'Data Annex'!$K$1:$K$4779,0),MATCH(Assets!H$2,'Data Annex'!$K$1:$BS$1,0)),"") -> 0.0009451662262 | I15: =IFERROR(INDEX('Data Annex'!$K$1:$BS$4779,MATCH(Assets!I$1&"|"&Assets!$B15,'Data Annex'!$K$1:$K$4779,0),MATCH(Assets!I$2,'Data Annex'!$K$1:$BS$1,0)),"") -> 0.0008859946749 | J15: =IFERROR(INDEX('Data Annex'!$K$1:$BS$4779,MATCH(Assets!J$1&"|"&Assets!$B15,'Data Annex'!$K$1:$K$4779,0),MATCH(Assets!J$2,'Data Annex'!$K$1:$BS$1,0)),"") -> 0.0008737836918 | K15: =IFERROR(INDEX('Data Annex'!$K$1:$BS$4779,MATCH(Assets!K$1&"|"&Assets!$B15,'Data Annex'!$K$1:$K$4779,0),MATCH(Assets!K$2,'Data Annex'!$K$1:$BS$1,0)),"") -> 0.1496037321 | L15: =IFERROR(INDEX('Data Annex'!$K$1:$BS$4779,MATCH(Assets!L$1&"|"&Assets!$B15,'Data Annex'!$K$1:$K$4779,0),MATCH(Assets!L$2,'Data Annex'!$K$1:$BS$1,0)),"") -> 0.1340583635 | M15: =IFERROR(INDEX('Data Annex'!$K$1:$BS$4779,MATCH(Assets!M$1&"|"&Assets!$B15,'Data Annex'!$K$1:$K$4779,0),MATCH(Assets!M$2,'Data Annex'!$K$1:$BS$1,0)),"") -> 0.1451385016 | N15: =IFERROR(INDEX('Data Annex'!$K$1:$BS$4779,MATCH(Assets!N$1&"|"&Assets!$B15,'Data Annex'!$K$1:$K$4779,0),MATCH(Assets!N$2,'Data Annex'!$K$1:$BS$1,0)),"") -> 0.6199739743 | O15: =IFERROR(INDEX('Data Annex'!$K$1:$BS$4779,MATCH(Assets!O$1&"|"&Assets!$B15,'Data Annex'!$K$1:$K$4779,0),MATCH(Assets!O$2,'Data Annex'!$K$1:$BS$1,0)),"") -> 0.6826018942 | P15: =IFERROR(INDEX('Data Annex'!$K$1:$BS$4779,MATCH(Assets!P$1&"|"&Assets!$B15,'Data Annex'!$K$1:$K$4779,0),MATCH(Assets!P$2,'Data Annex'!$K$1:$BS$1,0)),"") -> 0.6253108754 | Q15: =IFERROR(INDEX('Data Annex'!$K$1:$BS$4779,MATCH(Assets!Q$1&"|"&Assets!$B15,'Data Annex'!$K$1:$K$4779,0),MATCH(Assets!Q$2,'Data Annex'!$K$1:$BS$1,0)),"") -> 0.004866394786 | R15: =IFERROR(INDEX('Data Annex'!$K$1:$BS$4779,MATCH(Assets!R$1&"|"&Assets!$B15,'Data Annex'!$K$1:$K$4779,0),MATCH(Assets!R$2,'Data Annex'!$K$1:$BS$1,0)),"") -> 0.00418403625 | S15: =IFERROR(INDEX('Data Annex'!$K$1:$BS$4779,MATCH(Assets!S$1&"|"&Assets!$B15,'Data Annex'!$K$1:$K$4779,0),MATCH(Assets!S$2,'Data Annex'!$K$1:$BS$1,0)),"") -> 0.002534185574 | T15: =IFERROR(INDEX('Data Annex'!$K$1:$BS$4779,MATCH(Assets!T$1&"|"&Assets!$B15,'Data Annex'!$K$1:$K$4779,0),MATCH(Assets!T$2,'Data Annex'!$K$1:$BS$1,0)),"") -> 0.02252410847 | U15: =IFERROR(INDEX('Data Annex'!$K$1:$BS$4779,MATCH(Assets!U$1&"|"&Assets!$B15,'Data Annex'!$K$1:$K$4779,0),MATCH(Assets!U$2,'Data Annex'!$K$1:$BS$1,0)),"") -> 0.01781880517 | V15: =IFERROR(INDEX('Data Annex'!$K$1:$BS$4779,MATCH(Assets!V$1&"|"&Assets!$B15,'Data Annex'!$K$1:$K$4779,0),MATCH(Assets!V$2,'Data Annex'!$K$1:$BS$1,0)),"") -> 0.01729445474 | W15: =IFERROR(INDEX('Data Annex'!$K$1:$AH$4779,MATCH(Assets!AC$1&"|"&Assets!$B15,'Data Annex'!$K$1:$K$4779,0),MATCH(Assets!AC$2,'Data Annex'!$K$1:$AH$1,0)),"") -> 
B16: CY | D16: CY | E16: =IFERROR(INDEX('Data Annex'!$K$1:$BS$4779,MATCH(Assets!E$1&"|"&Assets!$B16,'Data Annex'!$K$1:$K$4779,0),MATCH(Assets!E$2,'Data Annex'!$K$1:$BS$1,0)),"") -> 0.4095779879 | F16: =IFERROR(INDEX('Data Annex'!$K$1:$BS$4779,MATCH(Assets!F$1&"|"&Assets!$B16,'Data Annex'!$K$1:$K$4779,0),MATCH(Assets!F$2,'Data Annex'!$K$1:$BS$1,0)),"") -> 0.3992701487 | G16: =IFERROR(INDEX('Data Annex'!$K$1:$BS$4779,MATCH(Assets!G$1&"|"&Assets!$B16,'Data Annex'!$K$1:$K$4779,0),MATCH(Assets!G$2,'Data Annex'!$K$1:$BS$1,0)),"") -> 0.4008676137 | H16: =IFERROR(INDEX('Data Annex'!$K$1:$BS$4779,MATCH(Assets!H$1&"|"&Assets!$B16,'Data Annex'!$K$1:$K$4779,0),MATCH(Assets!H$2,'Data Annex'!$K$1:$BS$1,0)),"") -> 0.001209735077 | I16: =IFERROR(INDEX('Data Annex'!$K$1:$BS$4779,MATCH(Assets!I$1&"|"&Assets!$B16,'Data Annex'!$K$1:$K$4779,0),MATCH(Assets!I$2,'Data Annex'!$K$1:$BS$1,0)),"") -> 0.001072089182 | J16: =IFERROR(INDEX('Data Annex'!$K$1:$BS$4779,MATCH(Assets!J$1&"|"&Assets!$B16,'Data Annex'!$K$1:$K$4779,0),MATCH(Assets!J$2,'Data Annex'!$K$1:$BS$1,0)),"") -> 0.001146431509 | K16: =IFERROR(INDEX('Data Annex'!$K$1:$BS$4779,MATCH(Assets!K$1&"|"&Assets!$B16,'Data Annex'!$K$1:$K$4779,0),MATCH(Assets!K$2,'Data Annex'!$K$1:$BS$1,0)),"") -> 0.1561084301 | L16: =IFERROR(INDEX('Data Annex'!$K$1:$BS$4779,MATCH(Assets!L$1&"|"&Assets!$B16,'Data Annex'!$K$1:$K$4779,0),MATCH(Assets!L$2,'Data Annex'!$K$1:$BS$1,0)),"") -> 0.1854822181 | M16: =IFERROR(INDEX('Data Annex'!$K$1:$BS$4779,MATCH(Assets!M$1&"|"&Assets!$B16,'Data Annex'!$K$1:$K$4779,0),MATCH(Assets!M$2,'Data Annex'!$K$1:$BS$1,0)),"") -> 0.1853130695 | N16: =IFERROR(INDEX('Data Annex'!$K$1:$BS$4779,MATCH(Assets!N$1&"|"&Assets!$B16,'Data Annex'!$K$1:$K$4779,0),MATCH(Assets!N$2,'Data Annex'!$K$1:$BS$1,0)),"") -> 0.3682615975 | O16: =IFERROR(INDEX('Data Annex'!$K$1:$BS$4779,MATCH(Assets!O$1&"|"&Assets!$B16,'Data Annex'!$K$1:$K$4779,0),MATCH(Assets!O$2,'Data Annex'!$K$1:$BS$1,0)),"") -> 0.3583205916 | P16: =IFERROR(INDEX('Data Annex'!$K$1:$BS$4779,MATCH(Assets!P$1&"|"&Assets!$B16,'Data Annex'!$K$1:$K$4779,0),MATCH(Assets!P$2,'Data Annex'!$K$1:$BS$1,0)),"") -> 0.3605981773 | Q16: =IFERROR(INDEX('Data Annex'!$K$1:$BS$4779,MATCH(Assets!Q$1&"|"&Assets!$B16,'Data Annex'!$K$1:$K$4779,0),MATCH(Assets!Q$2,'Data Annex'!$K$1:$BS$1,0)),"") -> 0.00107646136 | R16: =IFERROR(INDEX('Data Annex'!$K$1:$BS$4779,MATCH(Assets!R$1&"|"&Assets!$B16,'Data Annex'!$K$1:$K$4779,0),MATCH(Assets!R$2,'Data Annex'!$K$1:$BS$1,0)),"") -> 0.001252937455 | S16: =IFERROR(INDEX('Data Annex'!$K$1:$BS$4779,MATCH(Assets!S$1&"|"&Assets!$B16,'Data Annex'!$K$1:$K$4779,0),MATCH(Assets!S$2,'Data Annex'!$K$1:$BS$1,0)),"") -> 0.001103815044 | T16: =IFERROR(INDEX('Data Annex'!$K$1:$BS$4779,MATCH(Assets!T$1&"|"&Assets!$B16,'Data Annex'!$K$1:$K$4779,0),MATCH(Assets!T$2,'Data Annex'!$K$1:$BS$1,0)),"") -> 0.06376578802 | U16: =IFERROR(INDEX('Data Annex'!$K$1:$BS$4779,MATCH(Assets!U$1&"|"&Assets!$B16,'Data Annex'!$K$1:$K$4779,0),MATCH(Assets!U$2,'Data Annex'!$K$1:$BS$1,0)),"") -> 0.05460201497 | V16: =IFERROR(INDEX('Data Annex'!$K$1:$BS$4779,MATCH(Assets!V$1&"|"&Assets!$B16,'Data Annex'!$K$1:$K$4779,0),MATCH(Assets!V$2,'Data Annex'!$K$1:$BS$1,0)),"") -> 0.050970893 | W16: =IFERROR(INDEX('Data Annex'!$K$1:$AH$4779,MATCH(Assets!AC$1&"|"&Assets!$B16,'Data Annex'!$K$1:$K$4779,0),MATCH(Assets!AC$2,'Data Annex'!$K$1:$AH$1,0)),"") -> 
B17: CZ | D17: CZ | E17: =IFERROR(INDEX('Data Annex'!$K$1:$BS$4779,MATCH(Assets!E$1&"|"&Assets!$B17,'Data Annex'!$K$1:$K$4779,0),MATCH(Assets!E$2,'Data Annex'!$K$1:$BS$1,0)),"") -> 0.02090904062 | F17: =IFERROR(INDEX('Data Annex'!$K$1:$BS$4779,MATCH(Assets!F$1&"|"&Assets!$B17,'Data Annex'!$K$1:$K$4779,0),MATCH(Assets!F$2,'Data Annex'!$K$1:$BS$1,0)),"") -> 0.02106634124 | G17: =IFERROR(INDEX('Data Annex'!$K$1:$BS$4779,MATCH(Assets!G$1&"|"&Assets!$B17,'Data Annex'!$K$1:$K$4779,0),MATCH(Assets!G$2,'Data Annex'!$K$1:$BS$1,0)),"") -> 0.01274869021 | H17: =IFERROR(INDEX('Data Annex'!$K$1:$BS$4779,MATCH(Assets!H$1&"|"&Assets!$B17,'Data Annex'!$K$1:$K$4779,0),MATCH(Assets!H$2,'Data Annex'!$K$1:$BS$1,0)),"") -> 0.000386962364 | I17: =IFERROR(INDEX('Data Annex'!$K$1:$BS$4779,MATCH(Assets!I$1&"|"&Assets!$B17,'Data Annex'!$K$1:$K$4779,0),MATCH(Assets!I$2,'Data Annex'!$K$1:$BS$1,0)),"") -> 0.0003132745989 | J17: =IFERROR(INDEX('Data Annex'!$K$1:$BS$4779,MATCH(Assets!J$1&"|"&Assets!$B17,'Data Annex'!$K$1:$K$4779,0),MATCH(Assets!J$2,'Data Annex'!$K$1:$BS$1,0)),"") -> 0.000333645124 | K17: =IFERROR(INDEX('Data Annex'!$K$1:$BS$4779,MATCH(Assets!K$1&"|"&Assets!$B17,'Data Annex'!$K$1:$K$4779,0),MATCH(Assets!K$2,'Data Annex'!$K$1:$BS$1,0)),"") -> 0.1778883378 | L17: =IFERROR(INDEX('Data Annex'!$K$1:$BS$4779,MATCH(Assets!L$1&"|"&Assets!$B17,'Data Annex'!$K$1:$K$4779,0),MATCH(Assets!L$2,'Data Annex'!$K$1:$BS$1,0)),"") -> 0.1666080798 | M17: =IFERROR(INDEX('Data Annex'!$K$1:$BS$4779,MATCH(Assets!M$1&"|"&Assets!$B17,'Data Annex'!$K$1:$K$4779,0),MATCH(Assets!M$2,'Data Annex'!$K$1:$BS$1,0)),"") -> 0.1756040654 | N17: =IFERROR(INDEX('Data Annex'!$K$1:$BS$4779,MATCH(Assets!N$1&"|"&Assets!$B17,'Data Annex'!$K$1:$K$4779,0),MATCH(Assets!N$2,'Data Annex'!$K$1:$BS$1,0)),"") -> 0.7421238091 | O17: =IFERROR(INDEX('Data Annex'!$K$1:$BS$4779,MATCH(Assets!O$1&"|"&Assets!$B17,'Data Annex'!$K$1:$K$4779,0),MATCH(Assets!O$2,'Data Annex'!$K$1:$BS$1,0)),"") -> 0.769793097 | P17: =IFERROR(INDEX('Data Annex'!$K$1:$BS$4779,MATCH(Assets!P$1&"|"&Assets!$B17,'Data Annex'!$K$1:$K$4779,0),MATCH(Assets!P$2,'Data Annex'!$K$1:$BS$1,0)),"") -> 0.77232731 | Q17: =IFERROR(INDEX('Data Annex'!$K$1:$BS$4779,MATCH(Assets!Q$1&"|"&Assets!$B17,'Data Annex'!$K$1:$K$4779,0),MATCH(Assets!Q$2,'Data Annex'!$K$1:$BS$1,0)),"") -> 0.04620410993 | R17: =IFERROR(INDEX('Data Annex'!$K$1:$BS$4779,MATCH(Assets!R$1&"|"&Assets!$B17,'Data Annex'!$K$1:$K$4779,0),MATCH(Assets!R$2,'Data Annex'!$K$1:$BS$1,0)),"") -> 0.02964271332 | S17: =IFERROR(INDEX('Data Annex'!$K$1:$BS$4779,MATCH(Assets!S$1&"|"&Assets!$B17,'Data Annex'!$K$1:$K$4779,0),MATCH(Assets!S$2,'Data Annex'!$K$1:$BS$1,0)),"") -> 0.0242042725 | T17: =IFERROR(INDEX('Data Annex'!$K$1:$BS$4779,MATCH(Assets!T$1&"|"&Assets!$B17,'Data Annex'!$K$1:$K$4779,0),MATCH(Assets!T$2,'Data Annex'!$K$1:$BS$1,0)),"") -> 0.01248774018 | U17: =IFERROR(INDEX('Data Annex'!$K$1:$BS$4779,MATCH(Assets!U$1&"|"&Assets!$B17,'Data Annex'!$K$1:$K$4779,0),MATCH(Assets!U$2,'Data Annex'!$K$1:$BS$1,0)),"") -> 0.01257649403 | V17: =IFERROR(INDEX('Data Annex'!$K$1:$BS$4779,MATCH(Assets!V$1&"|"&Assets!$B17,'Data Annex'!$K$1:$K$4779,0),MATCH(Assets!V$2,'Data Annex'!$K$1:$BS$1,0)),"") -> 0.01478201674 | W17: =IFERROR(INDEX('Data Annex'!$K$1:$AH$4779,MATCH(Assets!AC$1&"|"&Assets!$B17,'Data Annex'!$K$1:$K$4779,0),MATCH(Assets!AC$2,'Data Annex'!$K$1:$AH$1,0)),"") -> 
B18: DE | D18: DE | E18: =IFERROR(INDEX('Data Annex'!$K$1:$BS$4779,MATCH(Assets!E$1&"|"&Assets!$B18,'Data Annex'!$K$1:$K$4779,0),MATCH(Assets!E$2,'Data Annex'!$K$1:$BS$1,0)),"") -> 0.1596438741 | F18: =IFERROR(INDEX('Data Annex'!$K$1:$BS$4779,MATCH(Assets!F$1&"|"&Assets!$B18,'Data Annex'!$K$1:$K$4779,0),MATCH(Assets!F$2,'Data Annex'!$K$1:$BS$1,0)),"") -> 0.1655344841 | G18: =IFERROR(INDEX('Data Annex'!$K$1:$BS$4779,MATCH(Assets!G$1&"|"&Assets!$B18,'Data Annex'!$K$1:$K$4779,0),MATCH(Assets!G$2,'Data Annex'!$K$1:$BS$1,0)),"") -> 0.155866481 | H18: =IFERROR(INDEX('Data Annex'!$K$1:$BS$4779,MATCH(Assets!H$1&"|"&Assets!$B18,'Data Annex'!$K$1:$K$4779,0),MATCH(Assets!H$2,'Data Annex'!$K$1:$BS$1,0)),"") -> 0.004697076634 | I18: =IFERROR(INDEX('Data Annex'!$K$1:$BS$4779,MATCH(Assets!I$1&"|"&Assets!$B18,'Data Annex'!$K$1:$K$4779,0),MATCH(Assets!I$2,'Data Annex'!$K$1:$BS$1,0)),"") -> 0.004847948314 | J18: =IFERROR(INDEX('Data Annex'!$K$1:$BS$4779,MATCH(Assets!J$1&"|"&Assets!$B18,'Data Annex'!$K$1:$K$4779,0),MATCH(Assets!J$2,'Data Annex'!$K$1:$BS$1,0)),"") -> 0.005004614883 | K18: =IFERROR(INDEX('Data Annex'!$K$1:$BS$4779,MATCH(Assets!K$1&"|"&Assets!$B18,'Data Annex'!$K$1:$K$4779,0),MATCH(Assets!K$2,'Data Annex'!$K$1:$BS$1,0)),"") -> 0.1141589937 | L18: =IFERROR(INDEX('Data Annex'!$K$1:$BS$4779,MATCH(Assets!L$1&"|"&Assets!$B18,'Data Annex'!$K$1:$K$4779,0),MATCH(Assets!L$2,'Data Annex'!$K$1:$BS$1,0)),"") -> 0.1162559217 | M18: =IFERROR(INDEX('Data Annex'!$K$1:$BS$4779,MATCH(Assets!M$1&"|"&Assets!$B18,'Data Annex'!$K$1:$K$4779,0),MATCH(Assets!M$2,'Data Annex'!$K$1:$BS$1,0)),"") -> 0.1264244989 | N18: =IFERROR(INDEX('Data Annex'!$K$1:$BS$4779,MATCH(Assets!N$1&"|"&Assets!$B18,'Data Annex'!$K$1:$K$4779,0),MATCH(Assets!N$2,'Data Annex'!$K$1:$BS$1,0)),"") -> 0.578663357 | O18: =IFERROR(INDEX('Data Annex'!$K$1:$BS$4779,MATCH(Assets!O$1&"|"&Assets!$B18,'Data Annex'!$K$1:$K$4779,0),MATCH(Assets!O$2,'Data Annex'!$K$1:$BS$1,0)),"") -> 0.5726410441 | P18: =IFERROR(INDEX('Data Annex'!$K$1:$BS$4779,MATCH(Assets!P$1&"|"&Assets!$B18,'Data Annex'!$K$1:$K$4779,0),MATCH(Assets!P$2,'Data Annex'!$K$1:$BS$1,0)),"") -> 0.5871786806 | Q18: =IFERROR(INDEX('Data Annex'!$K$1:$BS$4779,MATCH(Assets!Q$1&"|"&Assets!$B18,'Data Annex'!$K$1:$K$4779,0),MATCH(Assets!Q$2,'Data Annex'!$K$1:$BS$1,0)),"") -> 0.1225443087 | R18: =IFERROR(INDEX('Data Annex'!$K$1:$BS$4779,MATCH(Assets!R$1&"|"&Assets!$B18,'Data Annex'!$K$1:$K$4779,0),MATCH(Assets!R$2,'Data Annex'!$K$1:$BS$1,0)),"") -> 0.1199353936 | S18: =IFERROR(INDEX('Data Annex'!$K$1:$BS$4779,MATCH(Assets!S$1&"|"&Assets!$B18,'Data Annex'!$K$1:$K$4779,0),MATCH(Assets!S$2,'Data Annex'!$K$1:$BS$1,0)),"") -> 0.1008662111 | T18: =IFERROR(INDEX('Data Annex'!$K$1:$BS$4779,MATCH(Assets!T$1&"|"&Assets!$B18,'Data Annex'!$K$1:$K$4779,0),MATCH(Assets!T$2,'Data Annex'!$K$1:$BS$1,0)),"") -> 0.02029239012 | U18: =IFERROR(INDEX('Data Annex'!$K$1:$BS$4779,MATCH(Assets!U$1&"|"&Assets!$B18,'Data Annex'!$K$1:$K$4779,0),MATCH(Assets!U$2,'Data Annex'!$K$1:$BS$1,0)),"") -> 0.02078520824 | V18: =IFERROR(INDEX('Data Annex'!$K$1:$BS$4779,MATCH(Assets!V$1&"|"&Assets!$B18,'Data Annex'!$K$1:$K$4779,0),MATCH(Assets!V$2,'Data Annex'!$K$1:$BS$1,0)),"") -> 0.02465951347 | W18: =IFERROR(INDEX('Data Annex'!$K$1:$AH$4779,MATCH(Assets!AC$1&"|"&Assets!$B18,'Data Annex'!$K$1:$K$4779,0),MATCH(Assets!AC$2,'Data Annex'!$K$1:$AH$1,0)),"") -> 
B19: DK | D19: DK | E19: =IFERROR(INDEX('Data Annex'!$K$1:$BS$4779,MATCH(Assets!E$1&"|"&Assets!$B19,'Data Annex'!$K$1:$K$4779,0),MATCH(Assets!E$2,'Data Annex'!$K$1:$BS$1,0)),"") -> 0.05272256244 | F19: =IFERROR(INDEX('Data Annex'!$K$1:$BS$4779,MATCH(Assets!F$1&"|"&Assets!$B19,'Data Annex'!$K$1:$K$4779,0),MATCH(Assets!F$2,'Data Annex'!$K$1:$BS$1,0)),"") -> 0.07154408275 | G19: =IFERROR(INDEX('Data Annex'!$K$1:$BS$4779,MATCH(Assets!G$1&"|"&Assets!$B19,'Data Annex'!$K$1:$K$4779,0),MATCH(Assets!G$2,'Data Annex'!$K$1:$BS$1,0)),"") -> 0.07062617783 | H19: =IFERROR(INDEX('Data Annex'!$K$1:$BS$4779,MATCH(Assets!H$1&"|"&Assets!$B19,'Data Annex'!$K$1:$K$4779,0),MATCH(Assets!H$2,'Data Annex'!$K$1:$BS$1,0)),"") -> 0.003496231456 | I19: =IFERROR(INDEX('Data Annex'!$K$1:$BS$4779,MATCH(Assets!I$1&"|"&Assets!$B19,'Data Annex'!$K$1:$K$4779,0),MATCH(Assets!I$2,'Data Annex'!$K$1:$BS$1,0)),"") -> 0.004239229567 | J19: =IFERROR(INDEX('Data Annex'!$K$1:$BS$4779,MATCH(Assets!J$1&"|"&Assets!$B19,'Data Annex'!$K$1:$K$4779,0),MATCH(Assets!J$2,'Data Annex'!$K$1:$BS$1,0)),"") -> 0.005783488236 | K19: =IFERROR(INDEX('Data Annex'!$K$1:$BS$4779,MATCH(Assets!K$1&"|"&Assets!$B19,'Data Annex'!$K$1:$K$4779,0),MATCH(Assets!K$2,'Data Annex'!$K$1:$BS$1,0)),"") -> 0.1194982936 | L19: =IFERROR(INDEX('Data Annex'!$K$1:$BS$4779,MATCH(Assets!L$1&"|"&Assets!$B19,'Data Annex'!$K$1:$K$4779,0),MATCH(Assets!L$2,'Data Annex'!$K$1:$BS$1,0)),"") -> 0.1126549886 | M19: =IFERROR(INDEX('Data Annex'!$K$1:$BS$4779,MATCH(Assets!M$1&"|"&Assets!$B19,'Data Annex'!$K$1:$K$4779,0),MATCH(Assets!M$2,'Data Annex'!$K$1:$BS$1,0)),"") -> 0.115037361 | N19: =IFERROR(INDEX('Data Annex'!$K$1:$BS$4779,MATCH(Assets!N$1&"|"&Assets!$B19,'Data Annex'!$K$1:$K$4779,0),MATCH(Assets!N$2,'Data Annex'!$K$1:$BS$1,0)),"") -> 0.7162264039 | O19: =IFERROR(INDEX('Data Annex'!$K$1:$BS$4779,MATCH(Assets!O$1&"|"&Assets!$B19,'Data Annex'!$K$1:$K$4779,0),MATCH(Assets!O$2,'Data Annex'!$K$1:$BS$1,0)),"") -> 0.6878812366 | P19: =IFERROR(INDEX('Data Annex'!$K$1:$BS$4779,MATCH(Assets!P$1&"|"&Assets!$B19,'Data Annex'!$K$1:$K$4779,0),MATCH(Assets!P$2,'Data Annex'!$K$1:$BS$1,0)),"") -> 0.6979294972 | Q19: =IFERROR(INDEX('Data Annex'!$K$1:$BS$4779,MATCH(Assets!Q$1&"|"&Assets!$B19,'Data Annex'!$K$1:$K$4779,0),MATCH(Assets!Q$2,'Data Annex'!$K$1:$BS$1,0)),"") -> 0.08409246049 | R19: =IFERROR(INDEX('Data Annex'!$K$1:$BS$4779,MATCH(Assets!R$1&"|"&Assets!$B19,'Data Annex'!$K$1:$K$4779,0),MATCH(Assets!R$2,'Data Annex'!$K$1:$BS$1,0)),"") -> 0.08009182014 | S19: =IFERROR(INDEX('Data Annex'!$K$1:$BS$4779,MATCH(Assets!S$1&"|"&Assets!$B19,'Data Annex'!$K$1:$K$4779,0),MATCH(Assets!S$2,'Data Annex'!$K$1:$BS$1,0)),"") -> 0.06752119957 | T19: =IFERROR(INDEX('Data Annex'!$K$1:$BS$4779,MATCH(Assets!T$1&"|"&Assets!$B19,'Data Annex'!$K$1:$K$4779,0),MATCH(Assets!T$2,'Data Annex'!$K$1:$BS$1,0)),"") -> 0.02396404808 | U19: =IFERROR(INDEX('Data Annex'!$K$1:$BS$4779,MATCH(Assets!U$1&"|"&Assets!$B19,'Data Annex'!$K$1:$K$4779,0),MATCH(Assets!U$2,'Data Annex'!$K$1:$BS$1,0)),"") -> 0.04358864232 | V19: =IFERROR(INDEX('Data Annex'!$K$1:$BS$4779,MATCH(Assets!V$1&"|"&Assets!$B19,'Data Annex'!$K$1:$K$4779,0),MATCH(Assets!V$2,'Data Annex'!$K$1:$BS$1,0)),"") -> 0.04310227624 | W19: =IFERROR(INDEX('Data Annex'!$K$1:$AH$4779,MATCH(Assets!AC$1&"|"&Assets!$B19,'Data Annex'!$K$1:$K$4779,0),MATCH(Assets!AC$2,'Data Annex'!$K$1:$AH$1,0)),"") -> 
B20: EE | D20: EE | E20: =IFERROR(INDEX('Data Annex'!$K$1:$BS$4779,MATCH(Assets!E$1&"|"&Assets!$B20,'Data Annex'!$K$1:$K$4779,0),MATCH(Assets!E$2,'Data Annex'!$K$1:$BS$1,0)),"") -> 0.207958195 | F20: =IFERROR(INDEX('Data Annex'!$K$1:$BS$4779,MATCH(Assets!F$1&"|"&Assets!$B20,'Data Annex'!$K$1:$K$4779,0),MATCH(Assets!F$2,'Data Annex'!$K$1:$BS$1,0)),"") -> 0.2203368409 | G20: =IFERROR(INDEX('Data Annex'!$K$1:$BS$4779,MATCH(Assets!G$1&"|"&Assets!$B20,'Data Annex'!$K$1:$K$4779,0),MATCH(Assets!G$2,'Data Annex'!$K$1:$BS$1,0)),"") -> 0.2407183729 | H20: =IFERROR(INDEX('Data Annex'!$K$1:$BS$4779,MATCH(Assets!H$1&"|"&Assets!$B20,'Data Annex'!$K$1:$K$4779,0),MATCH(Assets!H$2,'Data Annex'!$K$1:$BS$1,0)),"") -> 0.0003044403553 | I20: =IFERROR(INDEX('Data Annex'!$K$1:$BS$4779,MATCH(Assets!I$1&"|"&Assets!$B20,'Data Annex'!$K$1:$K$4779,0),MATCH(Assets!I$2,'Data Annex'!$K$1:$BS$1,0)),"") -> 0.0002943908042 | J20: =IFERROR(INDEX('Data Annex'!$K$1:$BS$4779,MATCH(Assets!J$1&"|"&Assets!$B20,'Data Annex'!$K$1:$K$4779,0),MATCH(Assets!J$2,'Data Annex'!$K$1:$BS$1,0)),"") -> 0.0002503348529 | K20: =IFERROR(INDEX('Data Annex'!$K$1:$BS$4779,MATCH(Assets!K$1&"|"&Assets!$B20,'Data Annex'!$K$1:$K$4779,0),MATCH(Assets!K$2,'Data Annex'!$K$1:$BS$1,0)),"") -> 0.04842473103 | L20: =IFERROR(INDEX('Data Annex'!$K$1:$BS$4779,MATCH(Assets!L$1&"|"&Assets!$B20,'Data Annex'!$K$1:$K$4779,0),MATCH(Assets!L$2,'Data Annex'!$K$1:$BS$1,0)),"") -> 0.04520517032 | M20: =IFERROR(INDEX('Data Annex'!$K$1:$BS$4779,MATCH(Assets!M$1&"|"&Assets!$B20,'Data Annex'!$K$1:$K$4779,0),MATCH(Assets!M$2,'Data Annex'!$K$1:$BS$1,0)),"") -> 0.04591211309 | N20: =IFERROR(INDEX('Data Annex'!$K$1:$BS$4779,MATCH(Assets!N$1&"|"&Assets!$B20,'Data Annex'!$K$1:$K$4779,0),MATCH(Assets!N$2,'Data Annex'!$K$1:$BS$1,0)),"") -> 0.7279792295 | O20: =IFERROR(INDEX('Data Annex'!$K$1:$BS$4779,MATCH(Assets!O$1&"|"&Assets!$B20,'Data Annex'!$K$1:$K$4779,0),MATCH(Assets!O$2,'Data Annex'!$K$1:$BS$1,0)),"") -> 0.7198288179 | P20: =IFERROR(INDEX('Data Annex'!$K$1:$BS$4779,MATCH(Assets!P$1&"|"&Assets!$B20,'Data Annex'!$K$1:$K$4779,0),MATCH(Assets!P$2,'Data Annex'!$K$1:$BS$1,0)),"") -> 0.6987189656 | Q20: =IFERROR(INDEX('Data Annex'!$K$1:$BS$4779,MATCH(Assets!Q$1&"|"&Assets!$B20,'Data Annex'!$K$1:$K$4779,0),MATCH(Assets!Q$2,'Data Annex'!$K$1:$BS$1,0)),"") -> 0.004631304302 | R20: =IFERROR(INDEX('Data Annex'!$K$1:$BS$4779,MATCH(Assets!R$1&"|"&Assets!$B20,'Data Annex'!$K$1:$K$4779,0),MATCH(Assets!R$2,'Data Annex'!$K$1:$BS$1,0)),"") -> 0.003400331097 | S20: =IFERROR(INDEX('Data Annex'!$K$1:$BS$4779,MATCH(Assets!S$1&"|"&Assets!$B20,'Data Annex'!$K$1:$K$4779,0),MATCH(Assets!S$2,'Data Annex'!$K$1:$BS$1,0)),"") -> 0.003120258124 | T20: =IFERROR(INDEX('Data Annex'!$K$1:$BS$4779,MATCH(Assets!T$1&"|"&Assets!$B20,'Data Annex'!$K$1:$K$4779,0),MATCH(Assets!T$2,'Data Annex'!$K$1:$BS$1,0)),"") -> 0.01070209978 | U20: =IFERROR(INDEX('Data Annex'!$K$1:$BS$4779,MATCH(Assets!U$1&"|"&Assets!$B20,'Data Annex'!$K$1:$K$4779,0),MATCH(Assets!U$2,'Data Annex'!$K$1:$BS$1,0)),"") -> 0.0109344489 | V20: =IFERROR(INDEX('Data Annex'!$K$1:$BS$4779,MATCH(Assets!V$1&"|"&Assets!$B20,'Data Annex'!$K$1:$K$4779,0),MATCH(Assets!V$2,'Data Annex'!$K$1:$BS$1,0)),"") -> 0.01127995543 | W20: =IFERROR(INDEX('Data Annex'!$K$1:$AH$4779,MATCH(Assets!AC$1&"|"&Assets!$B20,'Data Annex'!$K$1:$K$4779,0),MATCH(Assets!AC$2,'Data Annex'!$K$1:$AH$1,0)),"") -> 
B21: ES | D21: ES | E21: =IFERROR(INDEX('Data Annex'!$K$1:$BS$4779,MATCH(Assets!E$1&"|"&Assets!$B21,'Data Annex'!$K$1:$K$4779,0),MATCH(Assets!E$2,'Data Annex'!$K$1:$BS$1,0)),"") -> 0.1102749807 | F21: =IFERROR(INDEX('Data Annex'!$K$1:$BS$4779,MATCH(Assets!F$1&"|"&Assets!$B21,'Data Annex'!$K$1:$K$4779,0),MATCH(Assets!F$2,'Data Annex'!$K$1:$BS$1,0)),"") -> 0.1055846815 | G21: =IFERROR(INDEX('Data Annex'!$K$1:$BS$4779,MATCH(Assets!G$1&"|"&Assets!$B21,'Data Annex'!$K$1:$K$4779,0),MATCH(Assets!G$2,'Data Annex'!$K$1:$BS$1,0)),"") -> 0.1074736707 | H21: =IFERROR(INDEX('Data Annex'!$K$1:$BS$4779,MATCH(Assets!H$1&"|"&Assets!$B21,'Data Annex'!$K$1:$K$4779,0),MATCH(Assets!H$2,'Data Annex'!$K$1:$BS$1,0)),"") -> 0.00685005157 | I21: =IFERROR(INDEX('Data Annex'!$K$1:$BS$4779,MATCH(Assets!I$1&"|"&Assets!$B21,'Data Annex'!$K$1:$K$4779,0),MATCH(Assets!I$2,'Data Annex'!$K$1:$BS$1,0)),"") -> 0.007135173923 | J21: =IFERROR(INDEX('Data Annex'!$K$1:$BS$4779,MATCH(Assets!J$1&"|"&Assets!$B21,'Data Annex'!$K$1:$K$4779,0),MATCH(Assets!J$2,'Data Annex'!$K$1:$BS$1,0)),"") -> 0.00811355857 | K21: =IFERROR(INDEX('Data Annex'!$K$1:$BS$4779,MATCH(Assets!K$1&"|"&Assets!$B21,'Data Annex'!$K$1:$K$4779,0),MATCH(Assets!K$2,'Data Annex'!$K$1:$BS$1,0)),"") -> 0.1331565864 | L21: =IFERROR(INDEX('Data Annex'!$K$1:$BS$4779,MATCH(Assets!L$1&"|"&Assets!$B21,'Data Annex'!$K$1:$K$4779,0),MATCH(Assets!L$2,'Data Annex'!$K$1:$BS$1,0)),"") -> 0.1426640295 | M21: =IFERROR(INDEX('Data Annex'!$K$1:$BS$4779,MATCH(Assets!M$1&"|"&Assets!$B21,'Data Annex'!$K$1:$K$4779,0),MATCH(Assets!M$2,'Data Annex'!$K$1:$BS$1,0)),"") -> 0.1432876864 | N21: =IFERROR(INDEX('Data Annex'!$K$1:$BS$4779,MATCH(Assets!N$1&"|"&Assets!$B21,'Data Annex'!$K$1:$K$4779,0),MATCH(Assets!N$2,'Data Annex'!$K$1:$BS$1,0)),"") -> 0.6503665832 | O21: =IFERROR(INDEX('Data Annex'!$K$1:$BS$4779,MATCH(Assets!O$1&"|"&Assets!$B21,'Data Annex'!$K$1:$K$4779,0),MATCH(Assets!O$2,'Data Annex'!$K$1:$BS$1,0)),"") -> 0.6479448251 | P21: =IFERROR(INDEX('Data Annex'!$K$1:$BS$4779,MATCH(Assets!P$1&"|"&Assets!$B21,'Data Annex'!$K$1:$K$4779,0),MATCH(Assets!P$2,'Data Annex'!$K$1:$BS$1,0)),"") -> 0.6502367953 | Q21: =IFERROR(INDEX('Data Annex'!$K$1:$BS$4779,MATCH(Assets!Q$1&"|"&Assets!$B21,'Data Annex'!$K$1:$K$4779,0),MATCH(Assets!Q$2,'Data Annex'!$K$1:$BS$1,0)),"") -> 0.04072296179 | R21: =IFERROR(INDEX('Data Annex'!$K$1:$BS$4779,MATCH(Assets!R$1&"|"&Assets!$B21,'Data Annex'!$K$1:$K$4779,0),MATCH(Assets!R$2,'Data Annex'!$K$1:$BS$1,0)),"") -> 0.04010575519 | S21: =IFERROR(INDEX('Data Annex'!$K$1:$BS$4779,MATCH(Assets!S$1&"|"&Assets!$B21,'Data Annex'!$K$1:$K$4779,0),MATCH(Assets!S$2,'Data Annex'!$K$1:$BS$1,0)),"") -> 0.03333613111 | T21: =IFERROR(INDEX('Data Annex'!$K$1:$BS$4779,MATCH(Assets!T$1&"|"&Assets!$B21,'Data Annex'!$K$1:$K$4779,0),MATCH(Assets!T$2,'Data Annex'!$K$1:$BS$1,0)),"") -> 0.05862883631 | U21: =IFERROR(INDEX('Data Annex'!$K$1:$BS$4779,MATCH(Assets!U$1&"|"&Assets!$B21,'Data Annex'!$K$1:$K$4779,0),MATCH(Assets!U$2,'Data Annex'!$K$1:$BS$1,0)),"") -> 0.05656553462 | V21: =IFERROR(INDEX('Data Annex'!$K$1:$BS$4779,MATCH(Assets!V$1&"|"&Assets!$B21,'Data Annex'!$K$1:$K$4779,0),MATCH(Assets!V$2,'Data Annex'!$K$1:$BS$1,0)),"") -> 0.05755215785 | W21: =IFERROR(INDEX('Data Annex'!$K$1:$AH$4779,MATCH(Assets!AC$1&"|"&Assets!$B21,'Data Annex'!$K$1:$K$4779,0),MATCH(Assets!AC$2,'Data Annex'!$K$1:$AH$1,0)),"") -> 
B22: FI | D22: FI | E22: =IFERROR(INDEX('Data Annex'!$K$1:$BS$4779,MATCH(Assets!E$1&"|"&Assets!$B22,'Data Annex'!$K$1:$K$4779,0),MATCH(Assets!E$2,'Data Annex'!$K$1:$BS$1,0)),"") -> 0.1451929718 | F22: =IFERROR(INDEX('Data Annex'!$K$1:$BS$4779,MATCH(Assets!F$1&"|"&Assets!$B22,'Data Annex'!$K$1:$K$4779,0),MATCH(Assets!F$2,'Data Annex'!$K$1:$BS$1,0)),"") -> 0.115250193 | G22: =IFERROR(INDEX('Data Annex'!$K$1:$BS$4779,MATCH(Assets!G$1&"|"&Assets!$B22,'Data Annex'!$K$1:$K$4779,0),MATCH(Assets!G$2,'Data Annex'!$K$1:$BS$1,0)),"") -> 0.112966259 | H22: =IFERROR(INDEX('Data Annex'!$K$1:$BS$4779,MATCH(Assets!H$1&"|"&Assets!$B22,'Data Annex'!$K$1:$K$4779,0),MATCH(Assets!H$2,'Data Annex'!$K$1:$BS$1,0)),"") -> 0.009406423533 | I22: =IFERROR(INDEX('Data Annex'!$K$1:$BS$4779,MATCH(Assets!I$1&"|"&Assets!$B22,'Data Annex'!$K$1:$K$4779,0),MATCH(Assets!I$2,'Data Annex'!$K$1:$BS$1,0)),"") -> 0.02176955422 | J22: =IFERROR(INDEX('Data Annex'!$K$1:$BS$4779,MATCH(Assets!J$1&"|"&Assets!$B22,'Data Annex'!$K$1:$K$4779,0),MATCH(Assets!J$2,'Data Annex'!$K$1:$BS$1,0)),"") -> 0.01369294538 | K22: =IFERROR(INDEX('Data Annex'!$K$1:$BS$4779,MATCH(Assets!K$1&"|"&Assets!$B22,'Data Annex'!$K$1:$K$4779,0),MATCH(Assets!K$2,'Data Annex'!$K$1:$BS$1,0)),"") -> 0.1009124548 | L22: =IFERROR(INDEX('Data Annex'!$K$1:$BS$4779,MATCH(Assets!L$1&"|"&Assets!$B22,'Data Annex'!$K$1:$K$4779,0),MATCH(Assets!L$2,'Data Annex'!$K$1:$BS$1,0)),"") -> 0.1073817095 | M22: =IFERROR(INDEX('Data Annex'!$K$1:$BS$4779,MATCH(Assets!M$1&"|"&Assets!$B22,'Data Annex'!$K$1:$K$4779,0),MATCH(Assets!M$2,'Data Annex'!$K$1:$BS$1,0)),"") -> 0.1096979804 | N22: =IFERROR(INDEX('Data Annex'!$K$1:$BS$4779,MATCH(Assets!N$1&"|"&Assets!$B22,'Data Annex'!$K$1:$K$4779,0),MATCH(Assets!N$2,'Data Annex'!$K$1:$BS$1,0)),"") -> 0.6690742928 | O22: =IFERROR(INDEX('Data Annex'!$K$1:$BS$4779,MATCH(Assets!O$1&"|"&Assets!$B22,'Data Annex'!$K$1:$K$4779,0),MATCH(Assets!O$2,'Data Annex'!$K$1:$BS$1,0)),"") -> 0.684341815 | P22: =IFERROR(INDEX('Data Annex'!$K$1:$BS$4779,MATCH(Assets!P$1&"|"&Assets!$B22,'Data Annex'!$K$1:$K$4779,0),MATCH(Assets!P$2,'Data Annex'!$K$1:$BS$1,0)),"") -> 0.7017908172 | Q22: =IFERROR(INDEX('Data Annex'!$K$1:$BS$4779,MATCH(Assets!Q$1&"|"&Assets!$B22,'Data Annex'!$K$1:$K$4779,0),MATCH(Assets!Q$2,'Data Annex'!$K$1:$BS$1,0)),"") -> 0.05920252817 | R22: =IFERROR(INDEX('Data Annex'!$K$1:$BS$4779,MATCH(Assets!R$1&"|"&Assets!$B22,'Data Annex'!$K$1:$K$4779,0),MATCH(Assets!R$2,'Data Annex'!$K$1:$BS$1,0)),"") -> 0.05575239367 | S22: =IFERROR(INDEX('Data Annex'!$K$1:$BS$4779,MATCH(Assets!S$1&"|"&Assets!$B22,'Data Annex'!$K$1:$K$4779,0),MATCH(Assets!S$2,'Data Annex'!$K$1:$BS$1,0)),"") -> 0.04555905199 | T22: =IFERROR(INDEX('Data Annex'!$K$1:$BS$4779,MATCH(Assets!T$1&"|"&Assets!$B22,'Data Annex'!$K$1:$K$4779,0),MATCH(Assets!T$2,'Data Annex'!$K$1:$BS$1,0)),"") -> 0.01621132894 | U22: =IFERROR(INDEX('Data Annex'!$K$1:$BS$4779,MATCH(Assets!U$1&"|"&Assets!$B22,'Data Annex'!$K$1:$K$4779,0),MATCH(Assets!U$2,'Data Annex'!$K$1:$BS$1,0)),"") -> 0.01550433461 | V22: =IFERROR(INDEX('Data Annex'!$K$1:$BS$4779,MATCH(Assets!V$1&"|"&Assets!$B22,'Data Annex'!$K$1:$K$4779,0),MATCH(Assets!V$2,'Data Annex'!$K$1:$BS$1,0)),"") -> 0.01629294606 | W22: =IFERROR(INDEX('Data Annex'!$K$1:$AH$4779,MATCH(Assets!AC$1&"|"&Assets!$B22,'Data Annex'!$K$1:$K$4779,0),MATCH(Assets!AC$2,'Data Annex'!$K$1:$AH$1,0)),"") -> 
B23: FR | D23: FR | E23: =IFERROR(INDEX('Data Annex'!$K$1:$BS$4779,MATCH(Assets!E$1&"|"&Assets!$B23,'Data Annex'!$K$1:$K$4779,0),MATCH(Assets!E$2,'Data Annex'!$K$1:$BS$1,0)),"") -> 0.1395959262 | F23: =IFERROR(INDEX('Data Annex'!$K$1:$BS$4779,MATCH(Assets!F$1&"|"&Assets!$B23,'Data Annex'!$K$1:$K$4779,0),MATCH(Assets!F$2,'Data Annex'!$K$1:$BS$1,0)),"") -> 0.1255175532 | G23: =IFERROR(INDEX('Data Annex'!$K$1:$BS$4779,MATCH(Assets!G$1&"|"&Assets!$B23,'Data Annex'!$K$1:$K$4779,0),MATCH(Assets!G$2,'Data Annex'!$K$1:$BS$1,0)),"") -> 0.1272178211 | H23: =IFERROR(INDEX('Data Annex'!$K$1:$BS$4779,MATCH(Assets!H$1&"|"&Assets!$B23,'Data Annex'!$K$1:$K$4779,0),MATCH(Assets!H$2,'Data Annex'!$K$1:$BS$1,0)),"") -> 0.02587030269 | I23: =IFERROR(INDEX('Data Annex'!$K$1:$BS$4779,MATCH(Assets!I$1&"|"&Assets!$B23,'Data Annex'!$K$1:$K$4779,0),MATCH(Assets!I$2,'Data Annex'!$K$1:$BS$1,0)),"") -> 0.02869696941 | J23: =IFERROR(INDEX('Data Annex'!$K$1:$BS$4779,MATCH(Assets!J$1&"|"&Assets!$B23,'Data Annex'!$K$1:$K$4779,0),MATCH(Assets!J$2,'Data Annex'!$K$1:$BS$1,0)),"") -> 0.0294148191 | K23: =IFERROR(INDEX('Data Annex'!$K$1:$BS$4779,MATCH(Assets!K$1&"|"&Assets!$B23,'Data Annex'!$K$1:$K$4779,0),MATCH(Assets!K$2,'Data Annex'!$K$1:$BS$1,0)),"") -> 0.08281614633 | L23: =IFERROR(INDEX('Data Annex'!$K$1:$BS$4779,MATCH(Assets!L$1&"|"&Assets!$B23,'Data Annex'!$K$1:$K$4779,0),MATCH(Assets!L$2,'Data Annex'!$K$1:$BS$1,0)),"") -> 0.09476534138 | M23: =IFERROR(INDEX('Data Annex'!$K$1:$BS$4779,MATCH(Assets!M$1&"|"&Assets!$B23,'Data Annex'!$K$1:$K$4779,0),MATCH(Assets!M$2,'Data Annex'!$K$1:$BS$1,0)),"") -> 0.09385763697 | N23: =IFERROR(INDEX('Data Annex'!$K$1:$BS$4779,MATCH(Assets!N$1&"|"&Assets!$B23,'Data Annex'!$K$1:$K$4779,0),MATCH(Assets!N$2,'Data Annex'!$K$1:$BS$1,0)),"") -> 0.5909829105 | O23: =IFERROR(INDEX('Data Annex'!$K$1:$BS$4779,MATCH(Assets!O$1&"|"&Assets!$B23,'Data Annex'!$K$1:$K$4779,0),MATCH(Assets!O$2,'Data Annex'!$K$1:$BS$1,0)),"") -> 0.6065878499 | P23: =IFERROR(INDEX('Data Annex'!$K$1:$BS$4779,MATCH(Assets!P$1&"|"&Assets!$B23,'Data Annex'!$K$1:$K$4779,0),MATCH(Assets!P$2,'Data Annex'!$K$1:$BS$1,0)),"") -> 0.6105225508 | Q23: =IFERROR(INDEX('Data Annex'!$K$1:$BS$4779,MATCH(Assets!Q$1&"|"&Assets!$B23,'Data Annex'!$K$1:$K$4779,0),MATCH(Assets!Q$2,'Data Annex'!$K$1:$BS$1,0)),"") -> 0.08691998463 | R23: =IFERROR(INDEX('Data Annex'!$K$1:$BS$4779,MATCH(Assets!R$1&"|"&Assets!$B23,'Data Annex'!$K$1:$K$4779,0),MATCH(Assets!R$2,'Data Annex'!$K$1:$BS$1,0)),"") -> 0.08396823282 | S23: =IFERROR(INDEX('Data Annex'!$K$1:$BS$4779,MATCH(Assets!S$1&"|"&Assets!$B23,'Data Annex'!$K$1:$K$4779,0),MATCH(Assets!S$2,'Data Annex'!$K$1:$BS$1,0)),"") -> 0.07340580194 | T23: =IFERROR(INDEX('Data Annex'!$K$1:$BS$4779,MATCH(Assets!T$1&"|"&Assets!$B23,'Data Annex'!$K$1:$K$4779,0),MATCH(Assets!T$2,'Data Annex'!$K$1:$BS$1,0)),"") -> 0.07381472953 | U23: =IFERROR(INDEX('Data Annex'!$K$1:$BS$4779,MATCH(Assets!U$1&"|"&Assets!$B23,'Data Annex'!$K$1:$K$4779,0),MATCH(Assets!U$2,'Data Annex'!$K$1:$BS$1,0)),"") -> 0.0604640533 | V23: =IFERROR(INDEX('Data Annex'!$K$1:$BS$4779,MATCH(Assets!V$1&"|"&Assets!$B23,'Data Annex'!$K$1:$K$4779,0),MATCH(Assets!V$2,'Data Annex'!$K$1:$BS$1,0)),"") -> 0.06558136989 | W23: =IFERROR(INDEX('Data Annex'!$K$1:$AH$4779,MATCH(Assets!AC$1&"|"&Assets!$B23,'Data Annex'!$K$1:$K$4779,0),MATCH(Assets!AC$2,'Data Annex'!$K$1:$AH$1,0)),"") -> 
B24: GR | D24: GR | E24: =IFERROR(INDEX('Data Annex'!$K$1:$BS$4779,MATCH(Assets!E$1&"|"&Assets!$B24,'Data Annex'!$K$1:$K$4779,0),MATCH(Assets!E$2,'Data Annex'!$K$1:$BS$1,0)),"") -> 0.1718779448 | F24: =IFERROR(INDEX('Data Annex'!$K$1:$BS$4779,MATCH(Assets!F$1&"|"&Assets!$B24,'Data Annex'!$K$1:$K$4779,0),MATCH(Assets!F$2,'Data Annex'!$K$1:$BS$1,0)),"") -> 0.1351301865 | G24: =IFERROR(INDEX('Data Annex'!$K$1:$BS$4779,MATCH(Assets!G$1&"|"&Assets!$B24,'Data Annex'!$K$1:$K$4779,0),MATCH(Assets!G$2,'Data Annex'!$K$1:$BS$1,0)),"") -> 0.1220625498 | H24: =IFERROR(INDEX('Data Annex'!$K$1:$BS$4779,MATCH(Assets!H$1&"|"&Assets!$B24,'Data Annex'!$K$1:$K$4779,0),MATCH(Assets!H$2,'Data Annex'!$K$1:$BS$1,0)),"") -> 0.003308701003 | I24: =IFERROR(INDEX('Data Annex'!$K$1:$BS$4779,MATCH(Assets!I$1&"|"&Assets!$B24,'Data Annex'!$K$1:$K$4779,0),MATCH(Assets!I$2,'Data Annex'!$K$1:$BS$1,0)),"") -> 0.00386454957 | J24: =IFERROR(INDEX('Data Annex'!$K$1:$BS$4779,MATCH(Assets!J$1&"|"&Assets!$B24,'Data Annex'!$K$1:$K$4779,0),MATCH(Assets!J$2,'Data Annex'!$K$1:$BS$1,0)),"") -> 0.004212072513 | K24: =IFERROR(INDEX('Data Annex'!$K$1:$BS$4779,MATCH(Assets!K$1&"|"&Assets!$B24,'Data Annex'!$K$1:$K$4779,0),MATCH(Assets!K$2,'Data Annex'!$K$1:$BS$1,0)),"") -> 0.1635988092 | L24: =IFERROR(INDEX('Data Annex'!$K$1:$BS$4779,MATCH(Assets!L$1&"|"&Assets!$B24,'Data Annex'!$K$1:$K$4779,0),MATCH(Assets!L$2,'Data Annex'!$K$1:$BS$1,0)),"") -> 0.1864523532 | M24: =IFERROR(INDEX('Data Annex'!$K$1:$BS$4779,MATCH(Assets!M$1&"|"&Assets!$B24,'Data Annex'!$K$1:$K$4779,0),MATCH(Assets!M$2,'Data Annex'!$K$1:$BS$1,0)),"") -> 0.2006341213 | N24: =IFERROR(INDEX('Data Annex'!$K$1:$BS$4779,MATCH(Assets!N$1&"|"&Assets!$B24,'Data Annex'!$K$1:$K$4779,0),MATCH(Assets!N$2,'Data Annex'!$K$1:$BS$1,0)),"") -> 0.5054110136 | O24: =IFERROR(INDEX('Data Annex'!$K$1:$BS$4779,MATCH(Assets!O$1&"|"&Assets!$B24,'Data Annex'!$K$1:$K$4779,0),MATCH(Assets!O$2,'Data Annex'!$K$1:$BS$1,0)),"") -> 0.5063162577 | P24: =IFERROR(INDEX('Data Annex'!$K$1:$BS$4779,MATCH(Assets!P$1&"|"&Assets!$B24,'Data Annex'!$K$1:$K$4779,0),MATCH(Assets!P$2,'Data Annex'!$K$1:$BS$1,0)),"") -> 0.5110136666 | Q24: =IFERROR(INDEX('Data Annex'!$K$1:$BS$4779,MATCH(Assets!Q$1&"|"&Assets!$B24,'Data Annex'!$K$1:$K$4779,0),MATCH(Assets!Q$2,'Data Annex'!$K$1:$BS$1,0)),"") -> 0.0227802154 | R24: =IFERROR(INDEX('Data Annex'!$K$1:$BS$4779,MATCH(Assets!R$1&"|"&Assets!$B24,'Data Annex'!$K$1:$K$4779,0),MATCH(Assets!R$2,'Data Annex'!$K$1:$BS$1,0)),"") -> 0.02536293414 | S24: =IFERROR(INDEX('Data Annex'!$K$1:$BS$4779,MATCH(Assets!S$1&"|"&Assets!$B24,'Data Annex'!$K$1:$K$4779,0),MATCH(Assets!S$2,'Data Annex'!$K$1:$BS$1,0)),"") -> 0.01636193841 | T24: =IFERROR(INDEX('Data Annex'!$K$1:$BS$4779,MATCH(Assets!T$1&"|"&Assets!$B24,'Data Annex'!$K$1:$K$4779,0),MATCH(Assets!T$2,'Data Annex'!$K$1:$BS$1,0)),"") -> 0.133023316 | U24: =IFERROR(INDEX('Data Annex'!$K$1:$BS$4779,MATCH(Assets!U$1&"|"&Assets!$B24,'Data Annex'!$K$1:$K$4779,0),MATCH(Assets!U$2,'Data Annex'!$K$1:$BS$1,0)),"") -> 0.1428737188 | V24: =IFERROR(INDEX('Data Annex'!$K$1:$BS$4779,MATCH(Assets!V$1&"|"&Assets!$B24,'Data Annex'!$K$1:$K$4779,0),MATCH(Assets!V$2,'Data Annex'!$K$1:$BS$1,0)),"") -> 0.1457156514 | W24: =IFERROR(INDEX('Data Annex'!$K$1:$AH$4779,MATCH(Assets!AC$1&"|"&Assets!$B24,'Data Annex'!$K$1:$K$4779,0),MATCH(Assets!AC$2,'Data Annex'!$K$1:$AH$1,0)),"") -> 
B25: HR | D25: HR | E25: =IFERROR(INDEX('Data Annex'!$K$1:$BS$4779,MATCH(Assets!E$1&"|"&Assets!$B25,'Data Annex'!$K$1:$K$4779,0),MATCH(Assets!E$2,'Data Annex'!$K$1:$BS$1,0)),"") -> 0.2757800127 | F25: =IFERROR(INDEX('Data Annex'!$K$1:$BS$4779,MATCH(Assets!F$1&"|"&Assets!$B25,'Data Annex'!$K$1:$K$4779,0),MATCH(Assets!F$2,'Data Annex'!$K$1:$BS$1,0)),"") -> 0.2203778895 | G25: =IFERROR(INDEX('Data Annex'!$K$1:$BS$4779,MATCH(Assets!G$1&"|"&Assets!$B25,'Data Annex'!$K$1:$K$4779,0),MATCH(Assets!G$2,'Data Annex'!$K$1:$BS$1,0)),"") -> 0.2346056143 | H25: =IFERROR(INDEX('Data Annex'!$K$1:$BS$4779,MATCH(Assets!H$1&"|"&Assets!$B25,'Data Annex'!$K$1:$K$4779,0),MATCH(Assets!H$2,'Data Annex'!$K$1:$BS$1,0)),"") -> 0.0006669274786 | I25: =IFERROR(INDEX('Data Annex'!$K$1:$BS$4779,MATCH(Assets!I$1&"|"&Assets!$B25,'Data Annex'!$K$1:$K$4779,0),MATCH(Assets!I$2,'Data Annex'!$K$1:$BS$1,0)),"") -> 0.0005000755692 | J25: =IFERROR(INDEX('Data Annex'!$K$1:$BS$4779,MATCH(Assets!J$1&"|"&Assets!$B25,'Data Annex'!$K$1:$K$4779,0),MATCH(Assets!J$2,'Data Annex'!$K$1:$BS$1,0)),"") -> 0.0005128685301 | K25: =IFERROR(INDEX('Data Annex'!$K$1:$BS$4779,MATCH(Assets!K$1&"|"&Assets!$B25,'Data Annex'!$K$1:$K$4779,0),MATCH(Assets!K$2,'Data Annex'!$K$1:$BS$1,0)),"") -> 0.1080974164 | L25: =IFERROR(INDEX('Data Annex'!$K$1:$BS$4779,MATCH(Assets!L$1&"|"&Assets!$B25,'Data Annex'!$K$1:$K$4779,0),MATCH(Assets!L$2,'Data Annex'!$K$1:$BS$1,0)),"") -> 0.1207513485 | M25: =IFERROR(INDEX('Data Annex'!$K$1:$BS$4779,MATCH(Assets!M$1&"|"&Assets!$B25,'Data Annex'!$K$1:$K$4779,0),MATCH(Assets!M$2,'Data Annex'!$K$1:$BS$1,0)),"") -> 0.1230080416 | N25: =IFERROR(INDEX('Data Annex'!$K$1:$BS$4779,MATCH(Assets!N$1&"|"&Assets!$B25,'Data Annex'!$K$1:$K$4779,0),MATCH(Assets!N$2,'Data Annex'!$K$1:$BS$1,0)),"") -> 0.5896183406 | O25: =IFERROR(INDEX('Data Annex'!$K$1:$BS$4779,MATCH(Assets!O$1&"|"&Assets!$B25,'Data Annex'!$K$1:$K$4779,0),MATCH(Assets!O$2,'Data Annex'!$K$1:$BS$1,0)),"") -> 0.6339786394 | P25: =IFERROR(INDEX('Data Annex'!$K$1:$BS$4779,MATCH(Assets!P$1&"|"&Assets!$B25,'Data Annex'!$K$1:$K$4779,0),MATCH(Assets!P$2,'Data Annex'!$K$1:$BS$1,0)),"") -> 0.6168256994 | Q25: =IFERROR(INDEX('Data Annex'!$K$1:$BS$4779,MATCH(Assets!Q$1&"|"&Assets!$B25,'Data Annex'!$K$1:$K$4779,0),MATCH(Assets!Q$2,'Data Annex'!$K$1:$BS$1,0)),"") -> 0.006317582242 | R25: =IFERROR(INDEX('Data Annex'!$K$1:$BS$4779,MATCH(Assets!R$1&"|"&Assets!$B25,'Data Annex'!$K$1:$K$4779,0),MATCH(Assets!R$2,'Data Annex'!$K$1:$BS$1,0)),"") -> 0.005716085165 | S25: =IFERROR(INDEX('Data Annex'!$K$1:$BS$4779,MATCH(Assets!S$1&"|"&Assets!$B25,'Data Annex'!$K$1:$K$4779,0),MATCH(Assets!S$2,'Data Annex'!$K$1:$BS$1,0)),"") -> 0.004736441197 | T25: =IFERROR(INDEX('Data Annex'!$K$1:$BS$4779,MATCH(Assets!T$1&"|"&Assets!$B25,'Data Annex'!$K$1:$K$4779,0),MATCH(Assets!T$2,'Data Annex'!$K$1:$BS$1,0)),"") -> 0.01951972065 | U25: =IFERROR(INDEX('Data Annex'!$K$1:$BS$4779,MATCH(Assets!U$1&"|"&Assets!$B25,'Data Annex'!$K$1:$K$4779,0),MATCH(Assets!U$2,'Data Annex'!$K$1:$BS$1,0)),"") -> 0.01867596187 | V25: =IFERROR(INDEX('Data Annex'!$K$1:$BS$4779,MATCH(Assets!V$1&"|"&Assets!$B25,'Data Annex'!$K$1:$K$4779,0),MATCH(Assets!V$2,'Data Annex'!$K$1:$BS$1,0)),"") -> 0.02031133504 | W25: =IFERROR(INDEX('Data Annex'!$K$1:$AH$4779,MATCH(Assets!AC$1&"|"&Assets!$B25,'Data Annex'!$K$1:$K$4779,0),MATCH(Assets!AC$2,'Data Annex'!$K$1:$AH$1,0)),"") -> 
B26: HU | D26: HU | E26: =IFERROR(INDEX('Data Annex'!$K$1:$BS$4779,MATCH(Assets!E$1&"|"&Assets!$B26,'Data Annex'!$K$1:$K$4779,0),MATCH(Assets!E$2,'Data Annex'!$K$1:$BS$1,0)),"") -> 0.1347272468 | F26: =IFERROR(INDEX('Data Annex'!$K$1:$BS$4779,MATCH(Assets!F$1&"|"&Assets!$B26,'Data Annex'!$K$1:$K$4779,0),MATCH(Assets!F$2,'Data Annex'!$K$1:$BS$1,0)),"") -> 0.1586179443 | G26: =IFERROR(INDEX('Data Annex'!$K$1:$BS$4779,MATCH(Assets!G$1&"|"&Assets!$B26,'Data Annex'!$K$1:$K$4779,0),MATCH(Assets!G$2,'Data Annex'!$K$1:$BS$1,0)),"") -> 0.1743143659 | H26: =IFERROR(INDEX('Data Annex'!$K$1:$BS$4779,MATCH(Assets!H$1&"|"&Assets!$B26,'Data Annex'!$K$1:$K$4779,0),MATCH(Assets!H$2,'Data Annex'!$K$1:$BS$1,0)),"") -> 0.002364372932 | I26: =IFERROR(INDEX('Data Annex'!$K$1:$BS$4779,MATCH(Assets!I$1&"|"&Assets!$B26,'Data Annex'!$K$1:$K$4779,0),MATCH(Assets!I$2,'Data Annex'!$K$1:$BS$1,0)),"") -> 0.002978713329 | J26: =IFERROR(INDEX('Data Annex'!$K$1:$BS$4779,MATCH(Assets!J$1&"|"&Assets!$B26,'Data Annex'!$K$1:$K$4779,0),MATCH(Assets!J$2,'Data Annex'!$K$1:$BS$1,0)),"") -> 0.003334661256 | K26: =IFERROR(INDEX('Data Annex'!$K$1:$BS$4779,MATCH(Assets!K$1&"|"&Assets!$B26,'Data Annex'!$K$1:$K$4779,0),MATCH(Assets!K$2,'Data Annex'!$K$1:$BS$1,0)),"") -> 0.2228175864 | L26: =IFERROR(INDEX('Data Annex'!$K$1:$BS$4779,MATCH(Assets!L$1&"|"&Assets!$B26,'Data Annex'!$K$1:$K$4779,0),MATCH(Assets!L$2,'Data Annex'!$K$1:$BS$1,0)),"") -> 0.2238189236 | M26: =IFERROR(INDEX('Data Annex'!$K$1:$BS$4779,MATCH(Assets!M$1&"|"&Assets!$B26,'Data Annex'!$K$1:$K$4779,0),MATCH(Assets!M$2,'Data Annex'!$K$1:$BS$1,0)),"") -> 0.2158954111 | N26: =IFERROR(INDEX('Data Annex'!$K$1:$BS$4779,MATCH(Assets!N$1&"|"&Assets!$B26,'Data Annex'!$K$1:$K$4779,0),MATCH(Assets!N$2,'Data Annex'!$K$1:$BS$1,0)),"") -> 0.5816524785 | O26: =IFERROR(INDEX('Data Annex'!$K$1:$BS$4779,MATCH(Assets!O$1&"|"&Assets!$B26,'Data Annex'!$K$1:$K$4779,0),MATCH(Assets!O$2,'Data Annex'!$K$1:$BS$1,0)),"") -> 0.5682308576 | P26: =IFERROR(INDEX('Data Annex'!$K$1:$BS$4779,MATCH(Assets!P$1&"|"&Assets!$B26,'Data Annex'!$K$1:$K$4779,0),MATCH(Assets!P$2,'Data Annex'!$K$1:$BS$1,0)),"") -> 0.5625087938 | Q26: =IFERROR(INDEX('Data Annex'!$K$1:$BS$4779,MATCH(Assets!Q$1&"|"&Assets!$B26,'Data Annex'!$K$1:$K$4779,0),MATCH(Assets!Q$2,'Data Annex'!$K$1:$BS$1,0)),"") -> 0.03119798651 | R26: =IFERROR(INDEX('Data Annex'!$K$1:$BS$4779,MATCH(Assets!R$1&"|"&Assets!$B26,'Data Annex'!$K$1:$K$4779,0),MATCH(Assets!R$2,'Data Annex'!$K$1:$BS$1,0)),"") -> 0.01567323586 | S26: =IFERROR(INDEX('Data Annex'!$K$1:$BS$4779,MATCH(Assets!S$1&"|"&Assets!$B26,'Data Annex'!$K$1:$K$4779,0),MATCH(Assets!S$2,'Data Annex'!$K$1:$BS$1,0)),"") -> 0.01182419637 | T26: =IFERROR(INDEX('Data Annex'!$K$1:$BS$4779,MATCH(Assets!T$1&"|"&Assets!$B26,'Data Annex'!$K$1:$K$4779,0),MATCH(Assets!T$2,'Data Annex'!$K$1:$BS$1,0)),"") -> 0.02724032877 | U26: =IFERROR(INDEX('Data Annex'!$K$1:$BS$4779,MATCH(Assets!U$1&"|"&Assets!$B26,'Data Annex'!$K$1:$K$4779,0),MATCH(Assets!U$2,'Data Annex'!$K$1:$BS$1,0)),"") -> 0.03068032533 | V26: =IFERROR(INDEX('Data Annex'!$K$1:$BS$4779,MATCH(Assets!V$1&"|"&Assets!$B26,'Data Annex'!$K$1:$K$4779,0),MATCH(Assets!V$2,'Data Annex'!$K$1:$BS$1,0)),"") -> 0.03212257153 | W26: =IFERROR(INDEX('Data Annex'!$K$1:$AH$4779,MATCH(Assets!AC$1&"|"&Assets!$B26,'Data Annex'!$K$1:$K$4779,0),MATCH(Assets!AC$2,'Data Annex'!$K$1:$AH$1,0)),"") -> 
B27: IE | D27: IE | E27: =IFERROR(INDEX('Data Annex'!$K$1:$BS$4779,MATCH(Assets!E$1&"|"&Assets!$B27,'Data Annex'!$K$1:$K$4779,0),MATCH(Assets!E$2,'Data Annex'!$K$1:$BS$1,0)),"") -> 0.2785426421 | F27: =IFERROR(INDEX('Data Annex'!$K$1:$BS$4779,MATCH(Assets!F$1&"|"&Assets!$B27,'Data Annex'!$K$1:$K$4779,0),MATCH(Assets!F$2,'Data Annex'!$K$1:$BS$1,0)),"") -> 0.2565252355 | G27: =IFERROR(INDEX('Data Annex'!$K$1:$BS$4779,MATCH(Assets!G$1&"|"&Assets!$B27,'Data Annex'!$K$1:$K$4779,0),MATCH(Assets!G$2,'Data Annex'!$K$1:$BS$1,0)),"") -> 0.2726340975 | H27: =IFERROR(INDEX('Data Annex'!$K$1:$BS$4779,MATCH(Assets!H$1&"|"&Assets!$B27,'Data Annex'!$K$1:$K$4779,0),MATCH(Assets!H$2,'Data Annex'!$K$1:$BS$1,0)),"") -> 0.001523496449 | I27: =IFERROR(INDEX('Data Annex'!$K$1:$BS$4779,MATCH(Assets!I$1&"|"&Assets!$B27,'Data Annex'!$K$1:$K$4779,0),MATCH(Assets!I$2,'Data Annex'!$K$1:$BS$1,0)),"") -> 0.001607769743 | J27: =IFERROR(INDEX('Data Annex'!$K$1:$BS$4779,MATCH(Assets!J$1&"|"&Assets!$B27,'Data Annex'!$K$1:$K$4779,0),MATCH(Assets!J$2,'Data Annex'!$K$1:$BS$1,0)),"") -> 0.001648377831 | K27: =IFERROR(INDEX('Data Annex'!$K$1:$BS$4779,MATCH(Assets!K$1&"|"&Assets!$B27,'Data Annex'!$K$1:$K$4779,0),MATCH(Assets!K$2,'Data Annex'!$K$1:$BS$1,0)),"") -> 0.1083346872 | L27: =IFERROR(INDEX('Data Annex'!$K$1:$BS$4779,MATCH(Assets!L$1&"|"&Assets!$B27,'Data Annex'!$K$1:$K$4779,0),MATCH(Assets!L$2,'Data Annex'!$K$1:$BS$1,0)),"") -> 0.1111389097 | M27: =IFERROR(INDEX('Data Annex'!$K$1:$BS$4779,MATCH(Assets!M$1&"|"&Assets!$B27,'Data Annex'!$K$1:$K$4779,0),MATCH(Assets!M$2,'Data Annex'!$K$1:$BS$1,0)),"") -> 0.1204620641 | N27: =IFERROR(INDEX('Data Annex'!$K$1:$BS$4779,MATCH(Assets!N$1&"|"&Assets!$B27,'Data Annex'!$K$1:$K$4779,0),MATCH(Assets!N$2,'Data Annex'!$K$1:$BS$1,0)),"") -> 0.4849072805 | O27: =IFERROR(INDEX('Data Annex'!$K$1:$BS$4779,MATCH(Assets!O$1&"|"&Assets!$B27,'Data Annex'!$K$1:$K$4779,0),MATCH(Assets!O$2,'Data Annex'!$K$1:$BS$1,0)),"") -> 0.4777112187 | P27: =IFERROR(INDEX('Data Annex'!$K$1:$BS$4779,MATCH(Assets!P$1&"|"&Assets!$B27,'Data Annex'!$K$1:$K$4779,0),MATCH(Assets!P$2,'Data Annex'!$K$1:$BS$1,0)),"") -> 0.4762792785 | Q27: =IFERROR(INDEX('Data Annex'!$K$1:$BS$4779,MATCH(Assets!Q$1&"|"&Assets!$B27,'Data Annex'!$K$1:$K$4779,0),MATCH(Assets!Q$2,'Data Annex'!$K$1:$BS$1,0)),"") -> 0.07489959187 | R27: =IFERROR(INDEX('Data Annex'!$K$1:$BS$4779,MATCH(Assets!R$1&"|"&Assets!$B27,'Data Annex'!$K$1:$K$4779,0),MATCH(Assets!R$2,'Data Annex'!$K$1:$BS$1,0)),"") -> 0.08704549976 | S27: =IFERROR(INDEX('Data Annex'!$K$1:$BS$4779,MATCH(Assets!S$1&"|"&Assets!$B27,'Data Annex'!$K$1:$K$4779,0),MATCH(Assets!S$2,'Data Annex'!$K$1:$BS$1,0)),"") -> 0.08070263255 | T27: =IFERROR(INDEX('Data Annex'!$K$1:$BS$4779,MATCH(Assets!T$1&"|"&Assets!$B27,'Data Annex'!$K$1:$K$4779,0),MATCH(Assets!T$2,'Data Annex'!$K$1:$BS$1,0)),"") -> 0.05179230184 | U27: =IFERROR(INDEX('Data Annex'!$K$1:$BS$4779,MATCH(Assets!U$1&"|"&Assets!$B27,'Data Annex'!$K$1:$K$4779,0),MATCH(Assets!U$2,'Data Annex'!$K$1:$BS$1,0)),"") -> 0.06597136655 | V27: =IFERROR(INDEX('Data Annex'!$K$1:$BS$4779,MATCH(Assets!V$1&"|"&Assets!$B27,'Data Annex'!$K$1:$K$4779,0),MATCH(Assets!V$2,'Data Annex'!$K$1:$BS$1,0)),"") -> 0.0482735496 | W27: =IFERROR(INDEX('Data Annex'!$K$1:$AH$4779,MATCH(Assets!AC$1&"|"&Assets!$B27,'Data Annex'!$K$1:$K$4779,0),MATCH(Assets!AC$2,'Data Annex'!$K$1:$AH$1,0)),"") -> 
B28: IS | D28: IS | E28: =IFERROR(INDEX('Data Annex'!$K$1:$BS$4779,MATCH(Assets!E$1&"|"&Assets!$B28,'Data Annex'!$K$1:$K$4779,0),MATCH(Assets!E$2,'Data Annex'!$K$1:$BS$1,0)),"") -> 0.07804427047 | F28: =IFERROR(INDEX('Data Annex'!$K$1:$BS$4779,MATCH(Assets!F$1&"|"&Assets!$B28,'Data Annex'!$K$1:$K$4779,0),MATCH(Assets!F$2,'Data Annex'!$K$1:$BS$1,0)),"") -> 0.0865148538 | G28: =IFERROR(INDEX('Data Annex'!$K$1:$BS$4779,MATCH(Assets!G$1&"|"&Assets!$B28,'Data Annex'!$K$1:$K$4779,0),MATCH(Assets!G$2,'Data Annex'!$K$1:$BS$1,0)),"") -> 0.07209066522 | H28: =IFERROR(INDEX('Data Annex'!$K$1:$BS$4779,MATCH(Assets!H$1&"|"&Assets!$B28,'Data Annex'!$K$1:$K$4779,0),MATCH(Assets!H$2,'Data Annex'!$K$1:$BS$1,0)),"") -> 0.0159083668 | I28: =IFERROR(INDEX('Data Annex'!$K$1:$BS$4779,MATCH(Assets!I$1&"|"&Assets!$B28,'Data Annex'!$K$1:$K$4779,0),MATCH(Assets!I$2,'Data Annex'!$K$1:$BS$1,0)),"") -> 0.0117420763 | J28: =IFERROR(INDEX('Data Annex'!$K$1:$BS$4779,MATCH(Assets!J$1&"|"&Assets!$B28,'Data Annex'!$K$1:$K$4779,0),MATCH(Assets!J$2,'Data Annex'!$K$1:$BS$1,0)),"") -> 0.01419660732 | K28: =IFERROR(INDEX('Data Annex'!$K$1:$BS$4779,MATCH(Assets!K$1&"|"&Assets!$B28,'Data Annex'!$K$1:$K$4779,0),MATCH(Assets!K$2,'Data Annex'!$K$1:$BS$1,0)),"") -> 0.08255203616 | L28: =IFERROR(INDEX('Data Annex'!$K$1:$BS$4779,MATCH(Assets!L$1&"|"&Assets!$B28,'Data Annex'!$K$1:$K$4779,0),MATCH(Assets!L$2,'Data Annex'!$K$1:$BS$1,0)),"") -> 0.09487192648 | M28: =IFERROR(INDEX('Data Annex'!$K$1:$BS$4779,MATCH(Assets!M$1&"|"&Assets!$B28,'Data Annex'!$K$1:$K$4779,0),MATCH(Assets!M$2,'Data Annex'!$K$1:$BS$1,0)),"") -> 0.09250411273 | N28: =IFERROR(INDEX('Data Annex'!$K$1:$BS$4779,MATCH(Assets!N$1&"|"&Assets!$B28,'Data Annex'!$K$1:$K$4779,0),MATCH(Assets!N$2,'Data Annex'!$K$1:$BS$1,0)),"") -> 0.8033914678 | O28: =IFERROR(INDEX('Data Annex'!$K$1:$BS$4779,MATCH(Assets!O$1&"|"&Assets!$B28,'Data Annex'!$K$1:$K$4779,0),MATCH(Assets!O$2,'Data Annex'!$K$1:$BS$1,0)),"") -> 0.7816425094 | P28: =IFERROR(INDEX('Data Annex'!$K$1:$BS$4779,MATCH(Assets!P$1&"|"&Assets!$B28,'Data Annex'!$K$1:$K$4779,0),MATCH(Assets!P$2,'Data Annex'!$K$1:$BS$1,0)),"") -> 0.8015226187 | Q28: =IFERROR(INDEX('Data Annex'!$K$1:$BS$4779,MATCH(Assets!Q$1&"|"&Assets!$B28,'Data Annex'!$K$1:$K$4779,0),MATCH(Assets!Q$2,'Data Annex'!$K$1:$BS$1,0)),"") -> 0.004157442542 | R28: =IFERROR(INDEX('Data Annex'!$K$1:$BS$4779,MATCH(Assets!R$1&"|"&Assets!$B28,'Data Annex'!$K$1:$K$4779,0),MATCH(Assets!R$2,'Data Annex'!$K$1:$BS$1,0)),"") -> 0.003350763944 | S28: =IFERROR(INDEX('Data Annex'!$K$1:$BS$4779,MATCH(Assets!S$1&"|"&Assets!$B28,'Data Annex'!$K$1:$K$4779,0),MATCH(Assets!S$2,'Data Annex'!$K$1:$BS$1,0)),"") -> 0.003913422629 | T28: =IFERROR(INDEX('Data Annex'!$K$1:$BS$4779,MATCH(Assets!T$1&"|"&Assets!$B28,'Data Annex'!$K$1:$K$4779,0),MATCH(Assets!T$2,'Data Annex'!$K$1:$BS$1,0)),"") -> 0.01594641627 | U28: =IFERROR(INDEX('Data Annex'!$K$1:$BS$4779,MATCH(Assets!U$1&"|"&Assets!$B28,'Data Annex'!$K$1:$K$4779,0),MATCH(Assets!U$2,'Data Annex'!$K$1:$BS$1,0)),"") -> 0.02187787008 | V28: =IFERROR(INDEX('Data Annex'!$K$1:$BS$4779,MATCH(Assets!V$1&"|"&Assets!$B28,'Data Annex'!$K$1:$K$4779,0),MATCH(Assets!V$2,'Data Annex'!$K$1:$BS$1,0)),"") -> 0.01577257341 | W28: =IFERROR(INDEX('Data Annex'!$K$1:$AH$4779,MATCH(Assets!AC$1&"|"&Assets!$B28,'Data Annex'!$K$1:$K$4779,0),MATCH(Assets!AC$2,'Data Annex'!$K$1:$AH$1,0)),"") -> 
B29: IT | D29: IT | E29: =IFERROR(INDEX('Data Annex'!$K$1:$BS$4779,MATCH(Assets!E$1&"|"&Assets!$B29,'Data Annex'!$K$1:$K$4779,0),MATCH(Assets!E$2,'Data Annex'!$K$1:$BS$1,0)),"") -> 0.1200651956 | F29: =IFERROR(INDEX('Data Annex'!$K$1:$BS$4779,MATCH(Assets!F$1&"|"&Assets!$B29,'Data Annex'!$K$1:$K$4779,0),MATCH(Assets!F$2,'Data Annex'!$K$1:$BS$1,0)),"") -> 0.09726518268 | G29: =IFERROR(INDEX('Data Annex'!$K$1:$BS$4779,MATCH(Assets!G$1&"|"&Assets!$B29,'Data Annex'!$K$1:$K$4779,0),MATCH(Assets!G$2,'Data Annex'!$K$1:$BS$1,0)),"") -> 0.09232679037 | H29: =IFERROR(INDEX('Data Annex'!$K$1:$BS$4779,MATCH(Assets!H$1&"|"&Assets!$B29,'Data Annex'!$K$1:$K$4779,0),MATCH(Assets!H$2,'Data Annex'!$K$1:$BS$1,0)),"") -> 0.01011351247 | I29: =IFERROR(INDEX('Data Annex'!$K$1:$BS$4779,MATCH(Assets!I$1&"|"&Assets!$B29,'Data Annex'!$K$1:$K$4779,0),MATCH(Assets!I$2,'Data Annex'!$K$1:$BS$1,0)),"") -> 0.0108728289 | J29: =IFERROR(INDEX('Data Annex'!$K$1:$BS$4779,MATCH(Assets!J$1&"|"&Assets!$B29,'Data Annex'!$K$1:$K$4779,0),MATCH(Assets!J$2,'Data Annex'!$K$1:$BS$1,0)),"") -> 0.01267666479 | K29: =IFERROR(INDEX('Data Annex'!$K$1:$BS$4779,MATCH(Assets!K$1&"|"&Assets!$B29,'Data Annex'!$K$1:$K$4779,0),MATCH(Assets!K$2,'Data Annex'!$K$1:$BS$1,0)),"") -> 0.2011279188 | L29: =IFERROR(INDEX('Data Annex'!$K$1:$BS$4779,MATCH(Assets!L$1&"|"&Assets!$B29,'Data Annex'!$K$1:$K$4779,0),MATCH(Assets!L$2,'Data Annex'!$K$1:$BS$1,0)),"") -> 0.21408746 | M29: =IFERROR(INDEX('Data Annex'!$K$1:$BS$4779,MATCH(Assets!M$1&"|"&Assets!$B29,'Data Annex'!$K$1:$K$4779,0),MATCH(Assets!M$2,'Data Annex'!$K$1:$BS$1,0)),"") -> 0.2201590807 | N29: =IFERROR(INDEX('Data Annex'!$K$1:$BS$4779,MATCH(Assets!N$1&"|"&Assets!$B29,'Data Annex'!$K$1:$K$4779,0),MATCH(Assets!N$2,'Data Annex'!$K$1:$BS$1,0)),"") -> 0.5747993003 | O29: =IFERROR(INDEX('Data Annex'!$K$1:$BS$4779,MATCH(Assets!O$1&"|"&Assets!$B29,'Data Annex'!$K$1:$K$4779,0),MATCH(Assets!O$2,'Data Annex'!$K$1:$BS$1,0)),"") -> 0.5823848241 | P29: =IFERROR(INDEX('Data Annex'!$K$1:$BS$4779,MATCH(Assets!P$1&"|"&Assets!$B29,'Data Annex'!$K$1:$K$4779,0),MATCH(Assets!P$2,'Data Annex'!$K$1:$BS$1,0)),"") -> 0.5790212414 | Q29: =IFERROR(INDEX('Data Annex'!$K$1:$BS$4779,MATCH(Assets!Q$1&"|"&Assets!$B29,'Data Annex'!$K$1:$K$4779,0),MATCH(Assets!Q$2,'Data Annex'!$K$1:$BS$1,0)),"") -> 0.03874366753 | R29: =IFERROR(INDEX('Data Annex'!$K$1:$BS$4779,MATCH(Assets!R$1&"|"&Assets!$B29,'Data Annex'!$K$1:$K$4779,0),MATCH(Assets!R$2,'Data Annex'!$K$1:$BS$1,0)),"") -> 0.03589737906 | S29: =IFERROR(INDEX('Data Annex'!$K$1:$BS$4779,MATCH(Assets!S$1&"|"&Assets!$B29,'Data Annex'!$K$1:$K$4779,0),MATCH(Assets!S$2,'Data Annex'!$K$1:$BS$1,0)),"") -> 0.02990228423 | T29: =IFERROR(INDEX('Data Annex'!$K$1:$BS$4779,MATCH(Assets!T$1&"|"&Assets!$B29,'Data Annex'!$K$1:$K$4779,0),MATCH(Assets!T$2,'Data Annex'!$K$1:$BS$1,0)),"") -> 0.05515040536 | U29: =IFERROR(INDEX('Data Annex'!$K$1:$BS$4779,MATCH(Assets!U$1&"|"&Assets!$B29,'Data Annex'!$K$1:$K$4779,0),MATCH(Assets!U$2,'Data Annex'!$K$1:$BS$1,0)),"") -> 0.05949232524 | V29: =IFERROR(INDEX('Data Annex'!$K$1:$BS$4779,MATCH(Assets!V$1&"|"&Assets!$B29,'Data Annex'!$K$1:$K$4779,0),MATCH(Assets!V$2,'Data Annex'!$K$1:$BS$1,0)),"") -> 0.06591393844 | W29: =IFERROR(INDEX('Data Annex'!$K$1:$AH$4779,MATCH(Assets!AC$1&"|"&Assets!$B29,'Data Annex'!$K$1:$K$4779,0),MATCH(Assets!AC$2,'Data Annex'!$K$1:$AH$1,0)),"") -> 
B30: LI | D30: LI | E30: =IFERROR(INDEX('Data Annex'!$K$1:$BS$4779,MATCH(Assets!E$1&"|"&Assets!$B30,'Data Annex'!$K$1:$K$4779,0),MATCH(Assets!E$2,'Data Annex'!$K$1:$BS$1,0)),"") -> 0.1388412774 | F30: =IFERROR(INDEX('Data Annex'!$K$1:$BS$4779,MATCH(Assets!F$1&"|"&Assets!$B30,'Data Annex'!$K$1:$K$4779,0),MATCH(Assets!F$2,'Data Annex'!$K$1:$BS$1,0)),"") -> 0.1427037612 | G30: =IFERROR(INDEX('Data Annex'!$K$1:$BS$4779,MATCH(Assets!G$1&"|"&Assets!$B30,'Data Annex'!$K$1:$K$4779,0),MATCH(Assets!G$2,'Data Annex'!$K$1:$BS$1,0)),"") -> 0.1373206596 | H30: =IFERROR(INDEX('Data Annex'!$K$1:$BS$4779,MATCH(Assets!H$1&"|"&Assets!$B30,'Data Annex'!$K$1:$K$4779,0),MATCH(Assets!H$2,'Data Annex'!$K$1:$BS$1,0)),"") -> 0.05350351509 | I30: =IFERROR(INDEX('Data Annex'!$K$1:$BS$4779,MATCH(Assets!I$1&"|"&Assets!$B30,'Data Annex'!$K$1:$K$4779,0),MATCH(Assets!I$2,'Data Annex'!$K$1:$BS$1,0)),"") -> 0.05286888502 | J30: =IFERROR(INDEX('Data Annex'!$K$1:$BS$4779,MATCH(Assets!J$1&"|"&Assets!$B30,'Data Annex'!$K$1:$K$4779,0),MATCH(Assets!J$2,'Data Annex'!$K$1:$BS$1,0)),"") -> 0.05006335953 | K30: =IFERROR(INDEX('Data Annex'!$K$1:$BS$4779,MATCH(Assets!K$1&"|"&Assets!$B30,'Data Annex'!$K$1:$K$4779,0),MATCH(Assets!K$2,'Data Annex'!$K$1:$BS$1,0)),"") -> 0.1897706631 | L30: =IFERROR(INDEX('Data Annex'!$K$1:$BS$4779,MATCH(Assets!L$1&"|"&Assets!$B30,'Data Annex'!$K$1:$K$4779,0),MATCH(Assets!L$2,'Data Annex'!$K$1:$BS$1,0)),"") -> 0.1795262839 | M30: =IFERROR(INDEX('Data Annex'!$K$1:$BS$4779,MATCH(Assets!M$1&"|"&Assets!$B30,'Data Annex'!$K$1:$K$4779,0),MATCH(Assets!M$2,'Data Annex'!$K$1:$BS$1,0)),"") -> 0.1834334276 | N30: =IFERROR(INDEX('Data Annex'!$K$1:$BS$4779,MATCH(Assets!N$1&"|"&Assets!$B30,'Data Annex'!$K$1:$K$4779,0),MATCH(Assets!N$2,'Data Annex'!$K$1:$BS$1,0)),"") -> 0.5597892051 | O30: =IFERROR(INDEX('Data Annex'!$K$1:$BS$4779,MATCH(Assets!O$1&"|"&Assets!$B30,'Data Annex'!$K$1:$K$4779,0),MATCH(Assets!O$2,'Data Annex'!$K$1:$BS$1,0)),"") -> 0.5632640615 | P30: =IFERROR(INDEX('Data Annex'!$K$1:$BS$4779,MATCH(Assets!P$1&"|"&Assets!$B30,'Data Annex'!$K$1:$K$4779,0),MATCH(Assets!P$2,'Data Annex'!$K$1:$BS$1,0)),"") -> 0.5717161171 | Q30: =IFERROR(INDEX('Data Annex'!$K$1:$BS$4779,MATCH(Assets!Q$1&"|"&Assets!$B30,'Data Annex'!$K$1:$K$4779,0),MATCH(Assets!Q$2,'Data Annex'!$K$1:$BS$1,0)),"") -> 0.01963809187 | R30: =IFERROR(INDEX('Data Annex'!$K$1:$BS$4779,MATCH(Assets!R$1&"|"&Assets!$B30,'Data Annex'!$K$1:$K$4779,0),MATCH(Assets!R$2,'Data Annex'!$K$1:$BS$1,0)),"") -> 0.02225876237 | S30: =IFERROR(INDEX('Data Annex'!$K$1:$BS$4779,MATCH(Assets!S$1&"|"&Assets!$B30,'Data Annex'!$K$1:$K$4779,0),MATCH(Assets!S$2,'Data Annex'!$K$1:$BS$1,0)),"") -> 0.01694270381 | T30: =IFERROR(INDEX('Data Annex'!$K$1:$BS$4779,MATCH(Assets!T$1&"|"&Assets!$B30,'Data Annex'!$K$1:$K$4779,0),MATCH(Assets!T$2,'Data Annex'!$K$1:$BS$1,0)),"") -> 0.03845724673 | U30: =IFERROR(INDEX('Data Annex'!$K$1:$BS$4779,MATCH(Assets!U$1&"|"&Assets!$B30,'Data Annex'!$K$1:$K$4779,0),MATCH(Assets!U$2,'Data Annex'!$K$1:$BS$1,0)),"") -> 0.03937824605 | V30: =IFERROR(INDEX('Data Annex'!$K$1:$BS$4779,MATCH(Assets!V$1&"|"&Assets!$B30,'Data Annex'!$K$1:$K$4779,0),MATCH(Assets!V$2,'Data Annex'!$K$1:$BS$1,0)),"") -> 0.04052373236
B31: LT | D31: LT | E31: =IFERROR(INDEX('Data Annex'!$K$1:$BS$4779,MATCH(Assets!E$1&"|"&Assets!$B31,'Data Annex'!$K$1:$K$4779,0),MATCH(Assets!E$2,'Data Annex'!$K$1:$BS$1,0)),"") -> 0.5056065908 | F31: =IFERROR(INDEX('Data Annex'!$K$1:$BS$4779,MATCH(Assets!F$1&"|"&Assets!$B31,'Data Annex'!$K$1:$K$4779,0),MATCH(Assets!F$2,'Data Annex'!$K$1:$BS$1,0)),"") -> 0.3892497358 | G31: =IFERROR(INDEX('Data Annex'!$K$1:$BS$4779,MATCH(Assets!G$1&"|"&Assets!$B31,'Data Annex'!$K$1:$K$4779,0),MATCH(Assets!G$2,'Data Annex'!$K$1:$BS$1,0)),"") -> 0.3959526902 | H31: =IFERROR(INDEX('Data Annex'!$K$1:$BS$4779,MATCH(Assets!H$1&"|"&Assets!$B31,'Data Annex'!$K$1:$K$4779,0),MATCH(Assets!H$2,'Data Annex'!$K$1:$BS$1,0)),"") -> 0.0001766392483 | I31: =IFERROR(INDEX('Data Annex'!$K$1:$BS$4779,MATCH(Assets!I$1&"|"&Assets!$B31,'Data Annex'!$K$1:$K$4779,0),MATCH(Assets!I$2,'Data Annex'!$K$1:$BS$1,0)),"") -> 0.0001524075429 | J31: =IFERROR(INDEX('Data Annex'!$K$1:$BS$4779,MATCH(Assets!J$1&"|"&Assets!$B31,'Data Annex'!$K$1:$K$4779,0),MATCH(Assets!J$2,'Data Annex'!$K$1:$BS$1,0)),"") -> 9.451226761e-05 | K31: =IFERROR(INDEX('Data Annex'!$K$1:$BS$4779,MATCH(Assets!K$1&"|"&Assets!$B31,'Data Annex'!$K$1:$K$4779,0),MATCH(Assets!K$2,'Data Annex'!$K$1:$BS$1,0)),"") -> 0.1113266101 | L31: =IFERROR(INDEX('Data Annex'!$K$1:$BS$4779,MATCH(Assets!L$1&"|"&Assets!$B31,'Data Annex'!$K$1:$K$4779,0),MATCH(Assets!L$2,'Data Annex'!$K$1:$BS$1,0)),"") -> 0.1226122728 | M31: =IFERROR(INDEX('Data Annex'!$K$1:$BS$4779,MATCH(Assets!M$1&"|"&Assets!$B31,'Data Annex'!$K$1:$K$4779,0),MATCH(Assets!M$2,'Data Annex'!$K$1:$BS$1,0)),"") -> 0.1259156497 | N31: =IFERROR(INDEX('Data Annex'!$K$1:$BS$4779,MATCH(Assets!N$1&"|"&Assets!$B31,'Data Annex'!$K$1:$K$4779,0),MATCH(Assets!N$2,'Data Annex'!$K$1:$BS$1,0)),"") -> 0.3617863172 | O31: =IFERROR(INDEX('Data Annex'!$K$1:$BS$4779,MATCH(Assets!O$1&"|"&Assets!$B31,'Data Annex'!$K$1:$K$4779,0),MATCH(Assets!O$2,'Data Annex'!$K$1:$BS$1,0)),"") -> 0.462649059 | P31: =IFERROR(INDEX('Data Annex'!$K$1:$BS$4779,MATCH(Assets!P$1&"|"&Assets!$B31,'Data Annex'!$K$1:$K$4779,0),MATCH(Assets!P$2,'Data Annex'!$K$1:$BS$1,0)),"") -> 0.4544548191 | Q31: =IFERROR(INDEX('Data Annex'!$K$1:$BS$4779,MATCH(Assets!Q$1&"|"&Assets!$B31,'Data Annex'!$K$1:$K$4779,0),MATCH(Assets!Q$2,'Data Annex'!$K$1:$BS$1,0)),"") -> 0.0008472057509 | R31: =IFERROR(INDEX('Data Annex'!$K$1:$BS$4779,MATCH(Assets!R$1&"|"&Assets!$B31,'Data Annex'!$K$1:$K$4779,0),MATCH(Assets!R$2,'Data Annex'!$K$1:$BS$1,0)),"") -> 0.0008519948819 | S31: =IFERROR(INDEX('Data Annex'!$K$1:$BS$4779,MATCH(Assets!S$1&"|"&Assets!$B31,'Data Annex'!$K$1:$K$4779,0),MATCH(Assets!S$2,'Data Annex'!$K$1:$BS$1,0)),"") -> 0.0005895454508 | T31: =IFERROR(INDEX('Data Annex'!$K$1:$BS$4779,MATCH(Assets!T$1&"|"&Assets!$B31,'Data Annex'!$K$1:$K$4779,0),MATCH(Assets!T$2,'Data Annex'!$K$1:$BS$1,0)),"") -> 0.0202566044 | U31: =IFERROR(INDEX('Data Annex'!$K$1:$BS$4779,MATCH(Assets!U$1&"|"&Assets!$B31,'Data Annex'!$K$1:$K$4779,0),MATCH(Assets!U$2,'Data Annex'!$K$1:$BS$1,0)),"") -> 0.02448453003 | V31: =IFERROR(INDEX('Data Annex'!$K$1:$BS$4779,MATCH(Assets!V$1&"|"&Assets!$B31,'Data Annex'!$K$1:$K$4779,0),MATCH(Assets!V$2,'Data Annex'!$K$1:$BS$1,0)),"") -> 0.02299275493 | W31: =IFERROR(INDEX('Data Annex'!$K$1:$AH$4779,MATCH(Assets!AC$1&"|"&Assets!$B31,'Data Annex'!$K$1:$K$4779,0),MATCH(Assets!AC$2,'Data Annex'!$K$1:$AH$1,0)),"") -> 
B32: LU | D32: LU | E32: =IFERROR(INDEX('Data Annex'!$K$1:$BS$4779,MATCH(Assets!E$1&"|"&Assets!$B32,'Data Annex'!$K$1:$K$4779,0),MATCH(Assets!E$2,'Data Annex'!$K$1:$BS$1,0)),"") -> 0.288451859 | F32: =IFERROR(INDEX('Data Annex'!$K$1:$BS$4779,MATCH(Assets!F$1&"|"&Assets!$B32,'Data Annex'!$K$1:$K$4779,0),MATCH(Assets!F$2,'Data Annex'!$K$1:$BS$1,0)),"") -> 0.2610548754 | G32: =IFERROR(INDEX('Data Annex'!$K$1:$BS$4779,MATCH(Assets!G$1&"|"&Assets!$B32,'Data Annex'!$K$1:$K$4779,0),MATCH(Assets!G$2,'Data Annex'!$K$1:$BS$1,0)),"") -> 0.2658855459 | H32: =IFERROR(INDEX('Data Annex'!$K$1:$BS$4779,MATCH(Assets!H$1&"|"&Assets!$B32,'Data Annex'!$K$1:$K$4779,0),MATCH(Assets!H$2,'Data Annex'!$K$1:$BS$1,0)),"") -> 0.005477326691 | I32: =IFERROR(INDEX('Data Annex'!$K$1:$BS$4779,MATCH(Assets!I$1&"|"&Assets!$B32,'Data Annex'!$K$1:$K$4779,0),MATCH(Assets!I$2,'Data Annex'!$K$1:$BS$1,0)),"") -> 0.005861256948 | J32: =IFERROR(INDEX('Data Annex'!$K$1:$BS$4779,MATCH(Assets!J$1&"|"&Assets!$B32,'Data Annex'!$K$1:$K$4779,0),MATCH(Assets!J$2,'Data Annex'!$K$1:$BS$1,0)),"") -> 0.005609642563 | K32: =IFERROR(INDEX('Data Annex'!$K$1:$BS$4779,MATCH(Assets!K$1&"|"&Assets!$B32,'Data Annex'!$K$1:$K$4779,0),MATCH(Assets!K$2,'Data Annex'!$K$1:$BS$1,0)),"") -> 0.129960812 | L32: =IFERROR(INDEX('Data Annex'!$K$1:$BS$4779,MATCH(Assets!L$1&"|"&Assets!$B32,'Data Annex'!$K$1:$K$4779,0),MATCH(Assets!L$2,'Data Annex'!$K$1:$BS$1,0)),"") -> 0.1337217603 | M32: =IFERROR(INDEX('Data Annex'!$K$1:$BS$4779,MATCH(Assets!M$1&"|"&Assets!$B32,'Data Annex'!$K$1:$K$4779,0),MATCH(Assets!M$2,'Data Annex'!$K$1:$BS$1,0)),"") -> 0.1369333606 | N32: =IFERROR(INDEX('Data Annex'!$K$1:$BS$4779,MATCH(Assets!N$1&"|"&Assets!$B32,'Data Annex'!$K$1:$K$4779,0),MATCH(Assets!N$2,'Data Annex'!$K$1:$BS$1,0)),"") -> 0.5342753188 | O32: =IFERROR(INDEX('Data Annex'!$K$1:$BS$4779,MATCH(Assets!O$1&"|"&Assets!$B32,'Data Annex'!$K$1:$K$4779,0),MATCH(Assets!O$2,'Data Annex'!$K$1:$BS$1,0)),"") -> 0.5572459312 | P32: =IFERROR(INDEX('Data Annex'!$K$1:$BS$4779,MATCH(Assets!P$1&"|"&Assets!$B32,'Data Annex'!$K$1:$K$4779,0),MATCH(Assets!P$2,'Data Annex'!$K$1:$BS$1,0)),"") -> 0.5513683858 | Q32: =IFERROR(INDEX('Data Annex'!$K$1:$BS$4779,MATCH(Assets!Q$1&"|"&Assets!$B32,'Data Annex'!$K$1:$K$4779,0),MATCH(Assets!Q$2,'Data Annex'!$K$1:$BS$1,0)),"") -> 0.01783223412 | R32: =IFERROR(INDEX('Data Annex'!$K$1:$BS$4779,MATCH(Assets!R$1&"|"&Assets!$B32,'Data Annex'!$K$1:$K$4779,0),MATCH(Assets!R$2,'Data Annex'!$K$1:$BS$1,0)),"") -> 0.0158081186 | S32: =IFERROR(INDEX('Data Annex'!$K$1:$BS$4779,MATCH(Assets!S$1&"|"&Assets!$B32,'Data Annex'!$K$1:$K$4779,0),MATCH(Assets!S$2,'Data Annex'!$K$1:$BS$1,0)),"") -> 0.012524665 | T32: =IFERROR(INDEX('Data Annex'!$K$1:$BS$4779,MATCH(Assets!T$1&"|"&Assets!$B32,'Data Annex'!$K$1:$K$4779,0),MATCH(Assets!T$2,'Data Annex'!$K$1:$BS$1,0)),"") -> 0.02400244928 | U32: =IFERROR(INDEX('Data Annex'!$K$1:$BS$4779,MATCH(Assets!U$1&"|"&Assets!$B32,'Data Annex'!$K$1:$K$4779,0),MATCH(Assets!U$2,'Data Annex'!$K$1:$BS$1,0)),"") -> 0.02630805758 | V32: =IFERROR(INDEX('Data Annex'!$K$1:$BS$4779,MATCH(Assets!V$1&"|"&Assets!$B32,'Data Annex'!$K$1:$K$4779,0),MATCH(Assets!V$2,'Data Annex'!$K$1:$BS$1,0)),"") -> 0.02767840017 | W32: =IFERROR(INDEX('Data Annex'!$K$1:$AH$4779,MATCH(Assets!AC$1&"|"&Assets!$B32,'Data Annex'!$K$1:$K$4779,0),MATCH(Assets!AC$2,'Data Annex'!$K$1:$AH$1,0)),"") -> 
B33: LV | D33: LV | E33: =IFERROR(INDEX('Data Annex'!$K$1:$BS$4779,MATCH(Assets!E$1&"|"&Assets!$B33,'Data Annex'!$K$1:$K$4779,0),MATCH(Assets!E$2,'Data Annex'!$K$1:$BS$1,0)),"") -> 0.29704862 | F33: =IFERROR(INDEX('Data Annex'!$K$1:$BS$4779,MATCH(Assets!F$1&"|"&Assets!$B33,'Data Annex'!$K$1:$K$4779,0),MATCH(Assets!F$2,'Data Annex'!$K$1:$BS$1,0)),"") -> 0.2174022794 | G33: =IFERROR(INDEX('Data Annex'!$K$1:$BS$4779,MATCH(Assets!G$1&"|"&Assets!$B33,'Data Annex'!$K$1:$K$4779,0),MATCH(Assets!G$2,'Data Annex'!$K$1:$BS$1,0)),"") -> 0.2632093101 | H33: =IFERROR(INDEX('Data Annex'!$K$1:$BS$4779,MATCH(Assets!H$1&"|"&Assets!$B33,'Data Annex'!$K$1:$K$4779,0),MATCH(Assets!H$2,'Data Annex'!$K$1:$BS$1,0)),"") -> 9.071736242e-05 | I33: =IFERROR(INDEX('Data Annex'!$K$1:$BS$4779,MATCH(Assets!I$1&"|"&Assets!$B33,'Data Annex'!$K$1:$K$4779,0),MATCH(Assets!I$2,'Data Annex'!$K$1:$BS$1,0)),"") -> 0.00010258114 | J33: =IFERROR(INDEX('Data Annex'!$K$1:$BS$4779,MATCH(Assets!J$1&"|"&Assets!$B33,'Data Annex'!$K$1:$K$4779,0),MATCH(Assets!J$2,'Data Annex'!$K$1:$BS$1,0)),"") -> 0.0001008437324 | K33: =IFERROR(INDEX('Data Annex'!$K$1:$BS$4779,MATCH(Assets!K$1&"|"&Assets!$B33,'Data Annex'!$K$1:$K$4779,0),MATCH(Assets!K$2,'Data Annex'!$K$1:$BS$1,0)),"") -> 0.06779498645 | L33: =IFERROR(INDEX('Data Annex'!$K$1:$BS$4779,MATCH(Assets!L$1&"|"&Assets!$B33,'Data Annex'!$K$1:$K$4779,0),MATCH(Assets!L$2,'Data Annex'!$K$1:$BS$1,0)),"") -> 0.05734655689 | M33: =IFERROR(INDEX('Data Annex'!$K$1:$BS$4779,MATCH(Assets!M$1&"|"&Assets!$B33,'Data Annex'!$K$1:$K$4779,0),MATCH(Assets!M$2,'Data Annex'!$K$1:$BS$1,0)),"") -> 0.05373981499 | N33: =IFERROR(INDEX('Data Annex'!$K$1:$BS$4779,MATCH(Assets!N$1&"|"&Assets!$B33,'Data Annex'!$K$1:$K$4779,0),MATCH(Assets!N$2,'Data Annex'!$K$1:$BS$1,0)),"") -> 0.623278317 | O33: =IFERROR(INDEX('Data Annex'!$K$1:$BS$4779,MATCH(Assets!O$1&"|"&Assets!$B33,'Data Annex'!$K$1:$K$4779,0),MATCH(Assets!O$2,'Data Annex'!$K$1:$BS$1,0)),"") -> 0.7135898476 | P33: =IFERROR(INDEX('Data Annex'!$K$1:$BS$4779,MATCH(Assets!P$1&"|"&Assets!$B33,'Data Annex'!$K$1:$K$4779,0),MATCH(Assets!P$2,'Data Annex'!$K$1:$BS$1,0)),"") -> 0.6722761261 | Q33: =IFERROR(INDEX('Data Annex'!$K$1:$BS$4779,MATCH(Assets!Q$1&"|"&Assets!$B33,'Data Annex'!$K$1:$K$4779,0),MATCH(Assets!Q$2,'Data Annex'!$K$1:$BS$1,0)),"") -> 0.001784337529 | R33: =IFERROR(INDEX('Data Annex'!$K$1:$BS$4779,MATCH(Assets!R$1&"|"&Assets!$B33,'Data Annex'!$K$1:$K$4779,0),MATCH(Assets!R$2,'Data Annex'!$K$1:$BS$1,0)),"") -> 0.001579370331 | S33: =IFERROR(INDEX('Data Annex'!$K$1:$BS$4779,MATCH(Assets!S$1&"|"&Assets!$B33,'Data Annex'!$K$1:$K$4779,0),MATCH(Assets!S$2,'Data Annex'!$K$1:$BS$1,0)),"") -> 0.001048176927 | T33: =IFERROR(INDEX('Data Annex'!$K$1:$BS$4779,MATCH(Assets!T$1&"|"&Assets!$B33,'Data Annex'!$K$1:$K$4779,0),MATCH(Assets!T$2,'Data Annex'!$K$1:$BS$1,0)),"") -> 0.01000302163 | U33: =IFERROR(INDEX('Data Annex'!$K$1:$BS$4779,MATCH(Assets!U$1&"|"&Assets!$B33,'Data Annex'!$K$1:$K$4779,0),MATCH(Assets!U$2,'Data Annex'!$K$1:$BS$1,0)),"") -> 0.009979364654 | V33: =IFERROR(INDEX('Data Annex'!$K$1:$BS$4779,MATCH(Assets!V$1&"|"&Assets!$B33,'Data Annex'!$K$1:$K$4779,0),MATCH(Assets!V$2,'Data Annex'!$K$1:$BS$1,0)),"") -> 0.00962572814 | W33: =IFERROR(INDEX('Data Annex'!$K$1:$AH$4779,MATCH(Assets!AC$1&"|"&Assets!$B33,'Data Annex'!$K$1:$K$4779,0),MATCH(Assets!AC$2,'Data Annex'!$K$1:$AH$1,0)),"") -> 
B34: MT | D34: MT | E34: =IFERROR(INDEX('Data Annex'!$K$1:$BS$4779,MATCH(Assets!E$1&"|"&Assets!$B34,'Data Annex'!$K$1:$K$4779,0),MATCH(Assets!E$2,'Data Annex'!$K$1:$BS$1,0)),"") -> 0.2090957876 | F34: =IFERROR(INDEX('Data Annex'!$K$1:$BS$4779,MATCH(Assets!F$1&"|"&Assets!$B34,'Data Annex'!$K$1:$K$4779,0),MATCH(Assets!F$2,'Data Annex'!$K$1:$BS$1,0)),"") -> 0.184947238 | G34: =IFERROR(INDEX('Data Annex'!$K$1:$BS$4779,MATCH(Assets!G$1&"|"&Assets!$B34,'Data Annex'!$K$1:$K$4779,0),MATCH(Assets!G$2,'Data Annex'!$K$1:$BS$1,0)),"") -> 0.1836311483 | H34: =IFERROR(INDEX('Data Annex'!$K$1:$BS$4779,MATCH(Assets!H$1&"|"&Assets!$B34,'Data Annex'!$K$1:$K$4779,0),MATCH(Assets!H$2,'Data Annex'!$K$1:$BS$1,0)),"") -> 0.002336677679 | I34: =IFERROR(INDEX('Data Annex'!$K$1:$BS$4779,MATCH(Assets!I$1&"|"&Assets!$B34,'Data Annex'!$K$1:$K$4779,0),MATCH(Assets!I$2,'Data Annex'!$K$1:$BS$1,0)),"") -> 0.002189720347 | J34: =IFERROR(INDEX('Data Annex'!$K$1:$BS$4779,MATCH(Assets!J$1&"|"&Assets!$B34,'Data Annex'!$K$1:$K$4779,0),MATCH(Assets!J$2,'Data Annex'!$K$1:$BS$1,0)),"") -> 0.001932910189 | K34: =IFERROR(INDEX('Data Annex'!$K$1:$BS$4779,MATCH(Assets!K$1&"|"&Assets!$B34,'Data Annex'!$K$1:$K$4779,0),MATCH(Assets!K$2,'Data Annex'!$K$1:$BS$1,0)),"") -> 0.2839981912 | L34: =IFERROR(INDEX('Data Annex'!$K$1:$BS$4779,MATCH(Assets!L$1&"|"&Assets!$B34,'Data Annex'!$K$1:$K$4779,0),MATCH(Assets!L$2,'Data Annex'!$K$1:$BS$1,0)),"") -> 0.3023914111 | M34: =IFERROR(INDEX('Data Annex'!$K$1:$BS$4779,MATCH(Assets!M$1&"|"&Assets!$B34,'Data Annex'!$K$1:$K$4779,0),MATCH(Assets!M$2,'Data Annex'!$K$1:$BS$1,0)),"") -> 0.3161221516 | N34: =IFERROR(INDEX('Data Annex'!$K$1:$BS$4779,MATCH(Assets!N$1&"|"&Assets!$B34,'Data Annex'!$K$1:$K$4779,0),MATCH(Assets!N$2,'Data Annex'!$K$1:$BS$1,0)),"") -> 0.4723436 | O34: =IFERROR(INDEX('Data Annex'!$K$1:$BS$4779,MATCH(Assets!O$1&"|"&Assets!$B34,'Data Annex'!$K$1:$K$4779,0),MATCH(Assets!O$2,'Data Annex'!$K$1:$BS$1,0)),"") -> 0.4830929197 | P34: =IFERROR(INDEX('Data Annex'!$K$1:$BS$4779,MATCH(Assets!P$1&"|"&Assets!$B34,'Data Annex'!$K$1:$K$4779,0),MATCH(Assets!P$2,'Data Annex'!$K$1:$BS$1,0)),"") -> 0.4735727975 | Q34: =IFERROR(INDEX('Data Annex'!$K$1:$BS$4779,MATCH(Assets!Q$1&"|"&Assets!$B34,'Data Annex'!$K$1:$K$4779,0),MATCH(Assets!Q$2,'Data Annex'!$K$1:$BS$1,0)),"") -> 0.01615724775 | R34: =IFERROR(INDEX('Data Annex'!$K$1:$BS$4779,MATCH(Assets!R$1&"|"&Assets!$B34,'Data Annex'!$K$1:$K$4779,0),MATCH(Assets!R$2,'Data Annex'!$K$1:$BS$1,0)),"") -> 0.01504278238 | S34: =IFERROR(INDEX('Data Annex'!$K$1:$BS$4779,MATCH(Assets!S$1&"|"&Assets!$B34,'Data Annex'!$K$1:$K$4779,0),MATCH(Assets!S$2,'Data Annex'!$K$1:$BS$1,0)),"") -> 0.008665289719 | T34: =IFERROR(INDEX('Data Annex'!$K$1:$BS$4779,MATCH(Assets!T$1&"|"&Assets!$B34,'Data Annex'!$K$1:$K$4779,0),MATCH(Assets!T$2,'Data Annex'!$K$1:$BS$1,0)),"") -> 0.01606849444 | U34: =IFERROR(INDEX('Data Annex'!$K$1:$BS$4779,MATCH(Assets!U$1&"|"&Assets!$B34,'Data Annex'!$K$1:$K$4779,0),MATCH(Assets!U$2,'Data Annex'!$K$1:$BS$1,0)),"") -> 0.01233592852 | V34: =IFERROR(INDEX('Data Annex'!$K$1:$BS$4779,MATCH(Assets!V$1&"|"&Assets!$B34,'Data Annex'!$K$1:$K$4779,0),MATCH(Assets!V$2,'Data Annex'!$K$1:$BS$1,0)),"") -> 0.01607570268 | W34: =IFERROR(INDEX('Data Annex'!$K$1:$AH$4779,MATCH(Assets!AC$1&"|"&Assets!$B34,'Data Annex'!$K$1:$K$4779,0),MATCH(Assets!AC$2,'Data Annex'!$K$1:$AH$1,0)),"") -> 
B35: NL | D35: NL | E35: =IFERROR(INDEX('Data Annex'!$K$1:$BS$4779,MATCH(Assets!E$1&"|"&Assets!$B35,'Data Annex'!$K$1:$K$4779,0),MATCH(Assets!E$2,'Data Annex'!$K$1:$BS$1,0)),"") -> 0.1393030055 | F35: =IFERROR(INDEX('Data Annex'!$K$1:$BS$4779,MATCH(Assets!F$1&"|"&Assets!$B35,'Data Annex'!$K$1:$K$4779,0),MATCH(Assets!F$2,'Data Annex'!$K$1:$BS$1,0)),"") -> 0.154958548 | G35: =IFERROR(INDEX('Data Annex'!$K$1:$BS$4779,MATCH(Assets!G$1&"|"&Assets!$B35,'Data Annex'!$K$1:$K$4779,0),MATCH(Assets!G$2,'Data Annex'!$K$1:$BS$1,0)),"") -> 0.1145339283 | H35: =IFERROR(INDEX('Data Annex'!$K$1:$BS$4779,MATCH(Assets!H$1&"|"&Assets!$B35,'Data Annex'!$K$1:$K$4779,0),MATCH(Assets!H$2,'Data Annex'!$K$1:$BS$1,0)),"") -> 0.007601845105 | I35: =IFERROR(INDEX('Data Annex'!$K$1:$BS$4779,MATCH(Assets!I$1&"|"&Assets!$B35,'Data Annex'!$K$1:$K$4779,0),MATCH(Assets!I$2,'Data Annex'!$K$1:$BS$1,0)),"") -> 0.008535611508 | J35: =IFERROR(INDEX('Data Annex'!$K$1:$BS$4779,MATCH(Assets!J$1&"|"&Assets!$B35,'Data Annex'!$K$1:$K$4779,0),MATCH(Assets!J$2,'Data Annex'!$K$1:$BS$1,0)),"") -> 0.009470869603 | K35: =IFERROR(INDEX('Data Annex'!$K$1:$BS$4779,MATCH(Assets!K$1&"|"&Assets!$B35,'Data Annex'!$K$1:$K$4779,0),MATCH(Assets!K$2,'Data Annex'!$K$1:$BS$1,0)),"") -> 0.07369954387 | L35: =IFERROR(INDEX('Data Annex'!$K$1:$BS$4779,MATCH(Assets!L$1&"|"&Assets!$B35,'Data Annex'!$K$1:$K$4779,0),MATCH(Assets!L$2,'Data Annex'!$K$1:$BS$1,0)),"") -> 0.07627696073 | M35: =IFERROR(INDEX('Data Annex'!$K$1:$BS$4779,MATCH(Assets!M$1&"|"&Assets!$B35,'Data Annex'!$K$1:$K$4779,0),MATCH(Assets!M$2,'Data Annex'!$K$1:$BS$1,0)),"") -> 0.08423678808 | N35: =IFERROR(INDEX('Data Annex'!$K$1:$BS$4779,MATCH(Assets!N$1&"|"&Assets!$B35,'Data Annex'!$K$1:$K$4779,0),MATCH(Assets!N$2,'Data Annex'!$K$1:$BS$1,0)),"") -> 0.7380754688 | O35: =IFERROR(INDEX('Data Annex'!$K$1:$BS$4779,MATCH(Assets!O$1&"|"&Assets!$B35,'Data Annex'!$K$1:$K$4779,0),MATCH(Assets!O$2,'Data Annex'!$K$1:$BS$1,0)),"") -> 0.7231170348 | P35: =IFERROR(INDEX('Data Annex'!$K$1:$BS$4779,MATCH(Assets!P$1&"|"&Assets!$B35,'Data Annex'!$K$1:$K$4779,0),MATCH(Assets!P$2,'Data Annex'!$K$1:$BS$1,0)),"") -> 0.7507476784 | Q35: =IFERROR(INDEX('Data Annex'!$K$1:$BS$4779,MATCH(Assets!Q$1&"|"&Assets!$B35,'Data Annex'!$K$1:$K$4779,0),MATCH(Assets!Q$2,'Data Annex'!$K$1:$BS$1,0)),"") -> 0.03386047203 | R35: =IFERROR(INDEX('Data Annex'!$K$1:$BS$4779,MATCH(Assets!R$1&"|"&Assets!$B35,'Data Annex'!$K$1:$K$4779,0),MATCH(Assets!R$2,'Data Annex'!$K$1:$BS$1,0)),"") -> 0.03132137242 | S35: =IFERROR(INDEX('Data Annex'!$K$1:$BS$4779,MATCH(Assets!S$1&"|"&Assets!$B35,'Data Annex'!$K$1:$K$4779,0),MATCH(Assets!S$2,'Data Annex'!$K$1:$BS$1,0)),"") -> 0.02740527785 | T35: =IFERROR(INDEX('Data Annex'!$K$1:$BS$4779,MATCH(Assets!T$1&"|"&Assets!$B35,'Data Annex'!$K$1:$K$4779,0),MATCH(Assets!T$2,'Data Annex'!$K$1:$BS$1,0)),"") -> 0.007459664678 | U35: =IFERROR(INDEX('Data Annex'!$K$1:$BS$4779,MATCH(Assets!U$1&"|"&Assets!$B35,'Data Annex'!$K$1:$K$4779,0),MATCH(Assets!U$2,'Data Annex'!$K$1:$BS$1,0)),"") -> 0.00579047257 | V35: =IFERROR(INDEX('Data Annex'!$K$1:$BS$4779,MATCH(Assets!V$1&"|"&Assets!$B35,'Data Annex'!$K$1:$K$4779,0),MATCH(Assets!V$2,'Data Annex'!$K$1:$BS$1,0)),"") -> 0.01360545778 | W35: =IFERROR(INDEX('Data Annex'!$K$1:$AH$4779,MATCH(Assets!AC$1&"|"&Assets!$B35,'Data Annex'!$K$1:$K$4779,0),MATCH(Assets!AC$2,'Data Annex'!$K$1:$AH$1,0)),"") -> 
B36: NO | D36: NO | E36: =IFERROR(INDEX('Data Annex'!$K$1:$BS$4779,MATCH(Assets!E$1&"|"&Assets!$B36,'Data Annex'!$K$1:$K$4779,0),MATCH(Assets!E$2,'Data Annex'!$K$1:$BS$1,0)),"") -> 0.08944965782 | F36: =IFERROR(INDEX('Data Annex'!$K$1:$BS$4779,MATCH(Assets!F$1&"|"&Assets!$B36,'Data Annex'!$K$1:$K$4779,0),MATCH(Assets!F$2,'Data Annex'!$K$1:$BS$1,0)),"") -> 0.1621797824 | G36: =IFERROR(INDEX('Data Annex'!$K$1:$BS$4779,MATCH(Assets!G$1&"|"&Assets!$B36,'Data Annex'!$K$1:$K$4779,0),MATCH(Assets!G$2,'Data Annex'!$K$1:$BS$1,0)),"") -> 0.08451460894 | H36: =IFERROR(INDEX('Data Annex'!$K$1:$BS$4779,MATCH(Assets!H$1&"|"&Assets!$B36,'Data Annex'!$K$1:$K$4779,0),MATCH(Assets!H$2,'Data Annex'!$K$1:$BS$1,0)),"") -> 0.00309125633 | I36: =IFERROR(INDEX('Data Annex'!$K$1:$BS$4779,MATCH(Assets!I$1&"|"&Assets!$B36,'Data Annex'!$K$1:$K$4779,0),MATCH(Assets!I$2,'Data Annex'!$K$1:$BS$1,0)),"") -> 0.002605303534 | J36: =IFERROR(INDEX('Data Annex'!$K$1:$BS$4779,MATCH(Assets!J$1&"|"&Assets!$B36,'Data Annex'!$K$1:$K$4779,0),MATCH(Assets!J$2,'Data Annex'!$K$1:$BS$1,0)),"") -> 0.002561123231 | K36: =IFERROR(INDEX('Data Annex'!$K$1:$BS$4779,MATCH(Assets!K$1&"|"&Assets!$B36,'Data Annex'!$K$1:$K$4779,0),MATCH(Assets!K$2,'Data Annex'!$K$1:$BS$1,0)),"") -> 0.1211266905 | L36: =IFERROR(INDEX('Data Annex'!$K$1:$BS$4779,MATCH(Assets!L$1&"|"&Assets!$B36,'Data Annex'!$K$1:$K$4779,0),MATCH(Assets!L$2,'Data Annex'!$K$1:$BS$1,0)),"") -> 0.08935189259 | M36: =IFERROR(INDEX('Data Annex'!$K$1:$BS$4779,MATCH(Assets!M$1&"|"&Assets!$B36,'Data Annex'!$K$1:$K$4779,0),MATCH(Assets!M$2,'Data Annex'!$K$1:$BS$1,0)),"") -> 0.1323430222 | N36: =IFERROR(INDEX('Data Annex'!$K$1:$BS$4779,MATCH(Assets!N$1&"|"&Assets!$B36,'Data Annex'!$K$1:$K$4779,0),MATCH(Assets!N$2,'Data Annex'!$K$1:$BS$1,0)),"") -> 0.7028616656 | O36: =IFERROR(INDEX('Data Annex'!$K$1:$BS$4779,MATCH(Assets!O$1&"|"&Assets!$B36,'Data Annex'!$K$1:$K$4779,0),MATCH(Assets!O$2,'Data Annex'!$K$1:$BS$1,0)),"") -> 0.658898205 | P36: =IFERROR(INDEX('Data Annex'!$K$1:$BS$4779,MATCH(Assets!P$1&"|"&Assets!$B36,'Data Annex'!$K$1:$K$4779,0),MATCH(Assets!P$2,'Data Annex'!$K$1:$BS$1,0)),"") -> 0.7041465682 | Q36: =IFERROR(INDEX('Data Annex'!$K$1:$BS$4779,MATCH(Assets!Q$1&"|"&Assets!$B36,'Data Annex'!$K$1:$K$4779,0),MATCH(Assets!Q$2,'Data Annex'!$K$1:$BS$1,0)),"") -> 0.05965756748 | R36: =IFERROR(INDEX('Data Annex'!$K$1:$BS$4779,MATCH(Assets!R$1&"|"&Assets!$B36,'Data Annex'!$K$1:$K$4779,0),MATCH(Assets!R$2,'Data Annex'!$K$1:$BS$1,0)),"") -> 0.05715557508 | S36: =IFERROR(INDEX('Data Annex'!$K$1:$BS$4779,MATCH(Assets!S$1&"|"&Assets!$B36,'Data Annex'!$K$1:$K$4779,0),MATCH(Assets!S$2,'Data Annex'!$K$1:$BS$1,0)),"") -> 0.05348344187 | T36: =IFERROR(INDEX('Data Annex'!$K$1:$BS$4779,MATCH(Assets!T$1&"|"&Assets!$B36,'Data Annex'!$K$1:$K$4779,0),MATCH(Assets!T$2,'Data Annex'!$K$1:$BS$1,0)),"") -> 0.02381316234 | U36: =IFERROR(INDEX('Data Annex'!$K$1:$BS$4779,MATCH(Assets!U$1&"|"&Assets!$B36,'Data Annex'!$K$1:$K$4779,0),MATCH(Assets!U$2,'Data Annex'!$K$1:$BS$1,0)),"") -> 0.0298092414 | V36: =IFERROR(INDEX('Data Annex'!$K$1:$BS$4779,MATCH(Assets!V$1&"|"&Assets!$B36,'Data Annex'!$K$1:$K$4779,0),MATCH(Assets!V$2,'Data Annex'!$K$1:$BS$1,0)),"") -> 0.02295123564 | W36: =IFERROR(INDEX('Data Annex'!$K$1:$AH$4779,MATCH(Assets!AC$1&"|"&Assets!$B36,'Data Annex'!$K$1:$K$4779,0),MATCH(Assets!AC$2,'Data Annex'!$K$1:$AH$1,0)),"") -> 
B37: PL | D37: PL | E37: =IFERROR(INDEX('Data Annex'!$K$1:$BS$4779,MATCH(Assets!E$1&"|"&Assets!$B37,'Data Annex'!$K$1:$K$4779,0),MATCH(Assets!E$2,'Data Annex'!$K$1:$BS$1,0)),"") -> 0.04377952216 | F37: =IFERROR(INDEX('Data Annex'!$K$1:$BS$4779,MATCH(Assets!F$1&"|"&Assets!$B37,'Data Annex'!$K$1:$K$4779,0),MATCH(Assets!F$2,'Data Annex'!$K$1:$BS$1,0)),"") -> 0.04343556458 | G37: =IFERROR(INDEX('Data Annex'!$K$1:$BS$4779,MATCH(Assets!G$1&"|"&Assets!$B37,'Data Annex'!$K$1:$K$4779,0),MATCH(Assets!G$2,'Data Annex'!$K$1:$BS$1,0)),"") -> 0.03979310623 | H37: =IFERROR(INDEX('Data Annex'!$K$1:$BS$4779,MATCH(Assets!H$1&"|"&Assets!$B37,'Data Annex'!$K$1:$K$4779,0),MATCH(Assets!H$2,'Data Annex'!$K$1:$BS$1,0)),"") -> 0.001244712738 | I37: =IFERROR(INDEX('Data Annex'!$K$1:$BS$4779,MATCH(Assets!I$1&"|"&Assets!$B37,'Data Annex'!$K$1:$K$4779,0),MATCH(Assets!I$2,'Data Annex'!$K$1:$BS$1,0)),"") -> 0.001151972081 | J37: =IFERROR(INDEX('Data Annex'!$K$1:$BS$4779,MATCH(Assets!J$1&"|"&Assets!$B37,'Data Annex'!$K$1:$K$4779,0),MATCH(Assets!J$2,'Data Annex'!$K$1:$BS$1,0)),"") -> 0.001189163649 | K37: =IFERROR(INDEX('Data Annex'!$K$1:$BS$4779,MATCH(Assets!K$1&"|"&Assets!$B37,'Data Annex'!$K$1:$K$4779,0),MATCH(Assets!K$2,'Data Annex'!$K$1:$BS$1,0)),"") -> 0.2814243214 | L37: =IFERROR(INDEX('Data Annex'!$K$1:$BS$4779,MATCH(Assets!L$1&"|"&Assets!$B37,'Data Annex'!$K$1:$K$4779,0),MATCH(Assets!L$2,'Data Annex'!$K$1:$BS$1,0)),"") -> 0.3343861397 | M37: =IFERROR(INDEX('Data Annex'!$K$1:$BS$4779,MATCH(Assets!M$1&"|"&Assets!$B37,'Data Annex'!$K$1:$K$4779,0),MATCH(Assets!M$2,'Data Annex'!$K$1:$BS$1,0)),"") -> 0.3462448864 | N37: =IFERROR(INDEX('Data Annex'!$K$1:$BS$4779,MATCH(Assets!N$1&"|"&Assets!$B37,'Data Annex'!$K$1:$K$4779,0),MATCH(Assets!N$2,'Data Annex'!$K$1:$BS$1,0)),"") -> 0.6018132792 | O37: =IFERROR(INDEX('Data Annex'!$K$1:$BS$4779,MATCH(Assets!O$1&"|"&Assets!$B37,'Data Annex'!$K$1:$K$4779,0),MATCH(Assets!O$2,'Data Annex'!$K$1:$BS$1,0)),"") -> 0.5630477618 | P37: =IFERROR(INDEX('Data Annex'!$K$1:$BS$4779,MATCH(Assets!P$1&"|"&Assets!$B37,'Data Annex'!$K$1:$K$4779,0),MATCH(Assets!P$2,'Data Annex'!$K$1:$BS$1,0)),"") -> 0.5559899603 | Q37: =IFERROR(INDEX('Data Annex'!$K$1:$BS$4779,MATCH(Assets!Q$1&"|"&Assets!$B37,'Data Annex'!$K$1:$K$4779,0),MATCH(Assets!Q$2,'Data Annex'!$K$1:$BS$1,0)),"") -> 0.03792481513 | R37: =IFERROR(INDEX('Data Annex'!$K$1:$BS$4779,MATCH(Assets!R$1&"|"&Assets!$B37,'Data Annex'!$K$1:$K$4779,0),MATCH(Assets!R$2,'Data Annex'!$K$1:$BS$1,0)),"") -> 0.02765481433 | S37: =IFERROR(INDEX('Data Annex'!$K$1:$BS$4779,MATCH(Assets!S$1&"|"&Assets!$B37,'Data Annex'!$K$1:$K$4779,0),MATCH(Assets!S$2,'Data Annex'!$K$1:$BS$1,0)),"") -> 0.02651694597 | T37: =IFERROR(INDEX('Data Annex'!$K$1:$BS$4779,MATCH(Assets!T$1&"|"&Assets!$B37,'Data Annex'!$K$1:$K$4779,0),MATCH(Assets!T$2,'Data Annex'!$K$1:$BS$1,0)),"") -> 0.03381334931 | U37: =IFERROR(INDEX('Data Annex'!$K$1:$BS$4779,MATCH(Assets!U$1&"|"&Assets!$B37,'Data Annex'!$K$1:$K$4779,0),MATCH(Assets!U$2,'Data Annex'!$K$1:$BS$1,0)),"") -> 0.03032374747 | V37: =IFERROR(INDEX('Data Annex'!$K$1:$BS$4779,MATCH(Assets!V$1&"|"&Assets!$B37,'Data Annex'!$K$1:$K$4779,0),MATCH(Assets!V$2,'Data Annex'!$K$1:$BS$1,0)),"") -> 0.03026593741 | W37: =IFERROR(INDEX('Data Annex'!$K$1:$AH$4779,MATCH(Assets!AC$1&"|"&Assets!$B37,'Data Annex'!$K$1:$K$4779,0),MATCH(Assets!AC$2,'Data Annex'!$K$1:$AH$1,0)),"") -> 
B38: PT | D38: PT | E38: =IFERROR(INDEX('Data Annex'!$K$1:$BS$4779,MATCH(Assets!E$1&"|"&Assets!$B38,'Data Annex'!$K$1:$K$4779,0),MATCH(Assets!E$2,'Data Annex'!$K$1:$BS$1,0)),"") -> 0.1481971508 | F38: =IFERROR(INDEX('Data Annex'!$K$1:$BS$4779,MATCH(Assets!F$1&"|"&Assets!$B38,'Data Annex'!$K$1:$K$4779,0),MATCH(Assets!F$2,'Data Annex'!$K$1:$BS$1,0)),"") -> 0.1131945316 | G38: =IFERROR(INDEX('Data Annex'!$K$1:$BS$4779,MATCH(Assets!G$1&"|"&Assets!$B38,'Data Annex'!$K$1:$K$4779,0),MATCH(Assets!G$2,'Data Annex'!$K$1:$BS$1,0)),"") -> 0.1408296767 | H38: =IFERROR(INDEX('Data Annex'!$K$1:$BS$4779,MATCH(Assets!H$1&"|"&Assets!$B38,'Data Annex'!$K$1:$K$4779,0),MATCH(Assets!H$2,'Data Annex'!$K$1:$BS$1,0)),"") -> 0.008067637128 | I38: =IFERROR(INDEX('Data Annex'!$K$1:$BS$4779,MATCH(Assets!I$1&"|"&Assets!$B38,'Data Annex'!$K$1:$K$4779,0),MATCH(Assets!I$2,'Data Annex'!$K$1:$BS$1,0)),"") -> 0.008556277434 | J38: =IFERROR(INDEX('Data Annex'!$K$1:$BS$4779,MATCH(Assets!J$1&"|"&Assets!$B38,'Data Annex'!$K$1:$K$4779,0),MATCH(Assets!J$2,'Data Annex'!$K$1:$BS$1,0)),"") -> 0.008066189399 | K38: =IFERROR(INDEX('Data Annex'!$K$1:$BS$4779,MATCH(Assets!K$1&"|"&Assets!$B38,'Data Annex'!$K$1:$K$4779,0),MATCH(Assets!K$2,'Data Annex'!$K$1:$BS$1,0)),"") -> 0.2002688306 | L38: =IFERROR(INDEX('Data Annex'!$K$1:$BS$4779,MATCH(Assets!L$1&"|"&Assets!$B38,'Data Annex'!$K$1:$K$4779,0),MATCH(Assets!L$2,'Data Annex'!$K$1:$BS$1,0)),"") -> 0.2373826537 | M38: =IFERROR(INDEX('Data Annex'!$K$1:$BS$4779,MATCH(Assets!M$1&"|"&Assets!$B38,'Data Annex'!$K$1:$K$4779,0),MATCH(Assets!M$2,'Data Annex'!$K$1:$BS$1,0)),"") -> 0.2291715963 | N38: =IFERROR(INDEX('Data Annex'!$K$1:$BS$4779,MATCH(Assets!N$1&"|"&Assets!$B38,'Data Annex'!$K$1:$K$4779,0),MATCH(Assets!N$2,'Data Annex'!$K$1:$BS$1,0)),"") -> 0.5846676298 | O38: =IFERROR(INDEX('Data Annex'!$K$1:$BS$4779,MATCH(Assets!O$1&"|"&Assets!$B38,'Data Annex'!$K$1:$K$4779,0),MATCH(Assets!O$2,'Data Annex'!$K$1:$BS$1,0)),"") -> 0.5808044123 | P38: =IFERROR(INDEX('Data Annex'!$K$1:$BS$4779,MATCH(Assets!P$1&"|"&Assets!$B38,'Data Annex'!$K$1:$K$4779,0),MATCH(Assets!P$2,'Data Annex'!$K$1:$BS$1,0)),"") -> 0.566159716 | Q38: =IFERROR(INDEX('Data Annex'!$K$1:$BS$4779,MATCH(Assets!Q$1&"|"&Assets!$B38,'Data Annex'!$K$1:$K$4779,0),MATCH(Assets!Q$2,'Data Annex'!$K$1:$BS$1,0)),"") -> 0.008928453394 | R38: =IFERROR(INDEX('Data Annex'!$K$1:$BS$4779,MATCH(Assets!R$1&"|"&Assets!$B38,'Data Annex'!$K$1:$K$4779,0),MATCH(Assets!R$2,'Data Annex'!$K$1:$BS$1,0)),"") -> 0.01134169507 | S38: =IFERROR(INDEX('Data Annex'!$K$1:$BS$4779,MATCH(Assets!S$1&"|"&Assets!$B38,'Data Annex'!$K$1:$K$4779,0),MATCH(Assets!S$2,'Data Annex'!$K$1:$BS$1,0)),"") -> 0.01138656195 | T38: =IFERROR(INDEX('Data Annex'!$K$1:$BS$4779,MATCH(Assets!T$1&"|"&Assets!$B38,'Data Annex'!$K$1:$K$4779,0),MATCH(Assets!T$2,'Data Annex'!$K$1:$BS$1,0)),"") -> 0.0498702983 | U38: =IFERROR(INDEX('Data Annex'!$K$1:$BS$4779,MATCH(Assets!U$1&"|"&Assets!$B38,'Data Annex'!$K$1:$K$4779,0),MATCH(Assets!U$2,'Data Annex'!$K$1:$BS$1,0)),"") -> 0.04872042982 | V38: =IFERROR(INDEX('Data Annex'!$K$1:$BS$4779,MATCH(Assets!V$1&"|"&Assets!$B38,'Data Annex'!$K$1:$K$4779,0),MATCH(Assets!V$2,'Data Annex'!$K$1:$BS$1,0)),"") -> 0.04438625971 | W38: =IFERROR(INDEX('Data Annex'!$K$1:$AH$4779,MATCH(Assets!AC$1&"|"&Assets!$B38,'Data Annex'!$K$1:$K$4779,0),MATCH(Assets!AC$2,'Data Annex'!$K$1:$AH$1,0)),"") -> 
B39: RO | D39: RO | E39: =IFERROR(INDEX('Data Annex'!$K$1:$BS$4779,MATCH(Assets!E$1&"|"&Assets!$B39,'Data Annex'!$K$1:$K$4779,0),MATCH(Assets!E$2,'Data Annex'!$K$1:$BS$1,0)),"") -> 0.1254703611 | F39: =IFERROR(INDEX('Data Annex'!$K$1:$BS$4779,MATCH(Assets!F$1&"|"&Assets!$B39,'Data Annex'!$K$1:$K$4779,0),MATCH(Assets!F$2,'Data Annex'!$K$1:$BS$1,0)),"") -> 0.1346373613 | G39: =IFERROR(INDEX('Data Annex'!$K$1:$BS$4779,MATCH(Assets!G$1&"|"&Assets!$B39,'Data Annex'!$K$1:$K$4779,0),MATCH(Assets!G$2,'Data Annex'!$K$1:$BS$1,0)),"") -> 0.1509510186 | H39: =IFERROR(INDEX('Data Annex'!$K$1:$BS$4779,MATCH(Assets!H$1&"|"&Assets!$B39,'Data Annex'!$K$1:$K$4779,0),MATCH(Assets!H$2,'Data Annex'!$K$1:$BS$1,0)),"") -> 0.001543002899 | I39: =IFERROR(INDEX('Data Annex'!$K$1:$BS$4779,MATCH(Assets!I$1&"|"&Assets!$B39,'Data Annex'!$K$1:$K$4779,0),MATCH(Assets!I$2,'Data Annex'!$K$1:$BS$1,0)),"") -> 0.001512472542 | J39: =IFERROR(INDEX('Data Annex'!$K$1:$BS$4779,MATCH(Assets!J$1&"|"&Assets!$B39,'Data Annex'!$K$1:$K$4779,0),MATCH(Assets!J$2,'Data Annex'!$K$1:$BS$1,0)),"") -> 0.001531282685 | K39: =IFERROR(INDEX('Data Annex'!$K$1:$BS$4779,MATCH(Assets!K$1&"|"&Assets!$B39,'Data Annex'!$K$1:$K$4779,0),MATCH(Assets!K$2,'Data Annex'!$K$1:$BS$1,0)),"") -> 0.2843049865 | L39: =IFERROR(INDEX('Data Annex'!$K$1:$BS$4779,MATCH(Assets!L$1&"|"&Assets!$B39,'Data Annex'!$K$1:$K$4779,0),MATCH(Assets!L$2,'Data Annex'!$K$1:$BS$1,0)),"") -> 0.2900553624 | M39: =IFERROR(INDEX('Data Annex'!$K$1:$BS$4779,MATCH(Assets!M$1&"|"&Assets!$B39,'Data Annex'!$K$1:$K$4779,0),MATCH(Assets!M$2,'Data Annex'!$K$1:$BS$1,0)),"") -> 0.2771762477 | N39: =IFERROR(INDEX('Data Annex'!$K$1:$BS$4779,MATCH(Assets!N$1&"|"&Assets!$B39,'Data Annex'!$K$1:$K$4779,0),MATCH(Assets!N$2,'Data Annex'!$K$1:$BS$1,0)),"") -> 0.5598326576 | O39: =IFERROR(INDEX('Data Annex'!$K$1:$BS$4779,MATCH(Assets!O$1&"|"&Assets!$B39,'Data Annex'!$K$1:$K$4779,0),MATCH(Assets!O$2,'Data Annex'!$K$1:$BS$1,0)),"") -> 0.5469331658 | P39: =IFERROR(INDEX('Data Annex'!$K$1:$BS$4779,MATCH(Assets!P$1&"|"&Assets!$B39,'Data Annex'!$K$1:$K$4779,0),MATCH(Assets!P$2,'Data Annex'!$K$1:$BS$1,0)),"") -> 0.5471599781 | Q39: =IFERROR(INDEX('Data Annex'!$K$1:$BS$4779,MATCH(Assets!Q$1&"|"&Assets!$B39,'Data Annex'!$K$1:$K$4779,0),MATCH(Assets!Q$2,'Data Annex'!$K$1:$BS$1,0)),"") -> 0.001836941277 | R39: =IFERROR(INDEX('Data Annex'!$K$1:$BS$4779,MATCH(Assets!R$1&"|"&Assets!$B39,'Data Annex'!$K$1:$K$4779,0),MATCH(Assets!R$2,'Data Annex'!$K$1:$BS$1,0)),"") -> 0.001458217394 | S39: =IFERROR(INDEX('Data Annex'!$K$1:$BS$4779,MATCH(Assets!S$1&"|"&Assets!$B39,'Data Annex'!$K$1:$K$4779,0),MATCH(Assets!S$2,'Data Annex'!$K$1:$BS$1,0)),"") -> 0.0009604670223 | T39: =IFERROR(INDEX('Data Annex'!$K$1:$BS$4779,MATCH(Assets!T$1&"|"&Assets!$B39,'Data Annex'!$K$1:$K$4779,0),MATCH(Assets!T$2,'Data Annex'!$K$1:$BS$1,0)),"") -> 0.02701205067 | U39: =IFERROR(INDEX('Data Annex'!$K$1:$BS$4779,MATCH(Assets!U$1&"|"&Assets!$B39,'Data Annex'!$K$1:$K$4779,0),MATCH(Assets!U$2,'Data Annex'!$K$1:$BS$1,0)),"") -> 0.02540342045 | V39: =IFERROR(INDEX('Data Annex'!$K$1:$BS$4779,MATCH(Assets!V$1&"|"&Assets!$B39,'Data Annex'!$K$1:$K$4779,0),MATCH(Assets!V$2,'Data Annex'!$K$1:$BS$1,0)),"") -> 0.02222100587
B40: SE | D40: SE | E40: =IFERROR(INDEX('Data Annex'!$K$1:$BS$4779,MATCH(Assets!E$1&"|"&Assets!$B40,'Data Annex'!$K$1:$K$4779,0),MATCH(Assets!E$2,'Data Annex'!$K$1:$BS$1,0)),"") -> 0.1234345243 | F40: =IFERROR(INDEX('Data Annex'!$K$1:$BS$4779,MATCH(Assets!F$1&"|"&Assets!$B40,'Data Annex'!$K$1:$K$4779,0),MATCH(Assets!F$2,'Data Annex'!$K$1:$BS$1,0)),"") -> 0.1235718261 | G40: =IFERROR(INDEX('Data Annex'!$K$1:$BS$4779,MATCH(Assets!G$1&"|"&Assets!$B40,'Data Annex'!$K$1:$K$4779,0),MATCH(Assets!G$2,'Data Annex'!$K$1:$BS$1,0)),"") -> 0.1088487688 | H40: =IFERROR(INDEX('Data Annex'!$K$1:$BS$4779,MATCH(Assets!H$1&"|"&Assets!$B40,'Data Annex'!$K$1:$K$4779,0),MATCH(Assets!H$2,'Data Annex'!$K$1:$BS$1,0)),"") -> 0.005702254089 | I40: =IFERROR(INDEX('Data Annex'!$K$1:$BS$4779,MATCH(Assets!I$1&"|"&Assets!$B40,'Data Annex'!$K$1:$K$4779,0),MATCH(Assets!I$2,'Data Annex'!$K$1:$BS$1,0)),"") -> 0.01012544246 | J40: =IFERROR(INDEX('Data Annex'!$K$1:$BS$4779,MATCH(Assets!J$1&"|"&Assets!$B40,'Data Annex'!$K$1:$K$4779,0),MATCH(Assets!J$2,'Data Annex'!$K$1:$BS$1,0)),"") -> 0.008045124769 | K40: =IFERROR(INDEX('Data Annex'!$K$1:$BS$4779,MATCH(Assets!K$1&"|"&Assets!$B40,'Data Annex'!$K$1:$K$4779,0),MATCH(Assets!K$2,'Data Annex'!$K$1:$BS$1,0)),"") -> 0.07591296024 | L40: =IFERROR(INDEX('Data Annex'!$K$1:$BS$4779,MATCH(Assets!L$1&"|"&Assets!$B40,'Data Annex'!$K$1:$K$4779,0),MATCH(Assets!L$2,'Data Annex'!$K$1:$BS$1,0)),"") -> 0.1200196669 | M40: =IFERROR(INDEX('Data Annex'!$K$1:$BS$4779,MATCH(Assets!M$1&"|"&Assets!$B40,'Data Annex'!$K$1:$K$4779,0),MATCH(Assets!M$2,'Data Annex'!$K$1:$BS$1,0)),"") -> 0.08842728711 | N40: =IFERROR(INDEX('Data Annex'!$K$1:$BS$4779,MATCH(Assets!N$1&"|"&Assets!$B40,'Data Annex'!$K$1:$K$4779,0),MATCH(Assets!N$2,'Data Annex'!$K$1:$BS$1,0)),"") -> 0.7381521982 | O40: =IFERROR(INDEX('Data Annex'!$K$1:$BS$4779,MATCH(Assets!O$1&"|"&Assets!$B40,'Data Annex'!$K$1:$K$4779,0),MATCH(Assets!O$2,'Data Annex'!$K$1:$BS$1,0)),"") -> 0.6912132118 | P40: =IFERROR(INDEX('Data Annex'!$K$1:$BS$4779,MATCH(Assets!P$1&"|"&Assets!$B40,'Data Annex'!$K$1:$K$4779,0),MATCH(Assets!P$2,'Data Annex'!$K$1:$BS$1,0)),"") -> 0.7395966199 | Q40: =IFERROR(INDEX('Data Annex'!$K$1:$BS$4779,MATCH(Assets!Q$1&"|"&Assets!$B40,'Data Annex'!$K$1:$K$4779,0),MATCH(Assets!Q$2,'Data Annex'!$K$1:$BS$1,0)),"") -> 0.02892283122 | R40: =IFERROR(INDEX('Data Annex'!$K$1:$BS$4779,MATCH(Assets!R$1&"|"&Assets!$B40,'Data Annex'!$K$1:$K$4779,0),MATCH(Assets!R$2,'Data Annex'!$K$1:$BS$1,0)),"") -> 0.02729451534 | S40: =IFERROR(INDEX('Data Annex'!$K$1:$BS$4779,MATCH(Assets!S$1&"|"&Assets!$B40,'Data Annex'!$K$1:$K$4779,0),MATCH(Assets!S$2,'Data Annex'!$K$1:$BS$1,0)),"") -> 0.02576384669 | T40: =IFERROR(INDEX('Data Annex'!$K$1:$BS$4779,MATCH(Assets!T$1&"|"&Assets!$B40,'Data Annex'!$K$1:$K$4779,0),MATCH(Assets!T$2,'Data Annex'!$K$1:$BS$1,0)),"") -> 0.0278752319 | U40: =IFERROR(INDEX('Data Annex'!$K$1:$BS$4779,MATCH(Assets!U$1&"|"&Assets!$B40,'Data Annex'!$K$1:$K$4779,0),MATCH(Assets!U$2,'Data Annex'!$K$1:$BS$1,0)),"") -> 0.02777533743 | V40: =IFERROR(INDEX('Data Annex'!$K$1:$BS$4779,MATCH(Assets!V$1&"|"&Assets!$B40,'Data Annex'!$K$1:$K$4779,0),MATCH(Assets!V$2,'Data Annex'!$K$1:$BS$1,0)),"") -> 0.02931835274
B41: SI | D41: SI | E41: =IFERROR(INDEX('Data Annex'!$K$1:$BS$4779,MATCH(Assets!E$1&"|"&Assets!$B41,'Data Annex'!$K$1:$K$4779,0),MATCH(Assets!E$2,'Data Annex'!$K$1:$BS$1,0)),"") -> 0.2065596698 | F41: =IFERROR(INDEX('Data Annex'!$K$1:$BS$4779,MATCH(Assets!F$1&"|"&Assets!$B41,'Data Annex'!$K$1:$K$4779,0),MATCH(Assets!F$2,'Data Annex'!$K$1:$BS$1,0)),"") -> 0.2288480898 | G41: =IFERROR(INDEX('Data Annex'!$K$1:$BS$4779,MATCH(Assets!G$1&"|"&Assets!$B41,'Data Annex'!$K$1:$K$4779,0),MATCH(Assets!G$2,'Data Annex'!$K$1:$BS$1,0)),"") -> 0.2267130894 | H41: =IFERROR(INDEX('Data Annex'!$K$1:$BS$4779,MATCH(Assets!H$1&"|"&Assets!$B41,'Data Annex'!$K$1:$K$4779,0),MATCH(Assets!H$2,'Data Annex'!$K$1:$BS$1,0)),"") -> 0.005109610637 | I41: =IFERROR(INDEX('Data Annex'!$K$1:$BS$4779,MATCH(Assets!I$1&"|"&Assets!$B41,'Data Annex'!$K$1:$K$4779,0),MATCH(Assets!I$2,'Data Annex'!$K$1:$BS$1,0)),"") -> 0.00464342488 | J41: =IFERROR(INDEX('Data Annex'!$K$1:$BS$4779,MATCH(Assets!J$1&"|"&Assets!$B41,'Data Annex'!$K$1:$K$4779,0),MATCH(Assets!J$2,'Data Annex'!$K$1:$BS$1,0)),"") -> 0.004217664873 | K41: =IFERROR(INDEX('Data Annex'!$K$1:$BS$4779,MATCH(Assets!K$1&"|"&Assets!$B41,'Data Annex'!$K$1:$K$4779,0),MATCH(Assets!K$2,'Data Annex'!$K$1:$BS$1,0)),"") -> 0.1903205315 | L41: =IFERROR(INDEX('Data Annex'!$K$1:$BS$4779,MATCH(Assets!L$1&"|"&Assets!$B41,'Data Annex'!$K$1:$K$4779,0),MATCH(Assets!L$2,'Data Annex'!$K$1:$BS$1,0)),"") -> 0.1805678804 | M41: =IFERROR(INDEX('Data Annex'!$K$1:$BS$4779,MATCH(Assets!M$1&"|"&Assets!$B41,'Data Annex'!$K$1:$K$4779,0),MATCH(Assets!M$2,'Data Annex'!$K$1:$BS$1,0)),"") -> 0.1847963214 | N41: =IFERROR(INDEX('Data Annex'!$K$1:$BS$4779,MATCH(Assets!N$1&"|"&Assets!$B41,'Data Annex'!$K$1:$K$4779,0),MATCH(Assets!N$2,'Data Annex'!$K$1:$BS$1,0)),"") -> 0.5736142008 | O41: =IFERROR(INDEX('Data Annex'!$K$1:$BS$4779,MATCH(Assets!O$1&"|"&Assets!$B41,'Data Annex'!$K$1:$K$4779,0),MATCH(Assets!O$2,'Data Annex'!$K$1:$BS$1,0)),"") -> 0.5655671099 | P41: =IFERROR(INDEX('Data Annex'!$K$1:$BS$4779,MATCH(Assets!P$1&"|"&Assets!$B41,'Data Annex'!$K$1:$K$4779,0),MATCH(Assets!P$2,'Data Annex'!$K$1:$BS$1,0)),"") -> 0.5612692436 | Q41: =IFERROR(INDEX('Data Annex'!$K$1:$BS$4779,MATCH(Assets!Q$1&"|"&Assets!$B41,'Data Annex'!$K$1:$K$4779,0),MATCH(Assets!Q$2,'Data Annex'!$K$1:$BS$1,0)),"") -> 0.002385908356 | R41: =IFERROR(INDEX('Data Annex'!$K$1:$BS$4779,MATCH(Assets!R$1&"|"&Assets!$B41,'Data Annex'!$K$1:$K$4779,0),MATCH(Assets!R$2,'Data Annex'!$K$1:$BS$1,0)),"") -> 0.002327895934 | S41: =IFERROR(INDEX('Data Annex'!$K$1:$BS$4779,MATCH(Assets!S$1&"|"&Assets!$B41,'Data Annex'!$K$1:$K$4779,0),MATCH(Assets!S$2,'Data Annex'!$K$1:$BS$1,0)),"") -> 0.001934790602 | T41: =IFERROR(INDEX('Data Annex'!$K$1:$BS$4779,MATCH(Assets!T$1&"|"&Assets!$B41,'Data Annex'!$K$1:$K$4779,0),MATCH(Assets!T$2,'Data Annex'!$K$1:$BS$1,0)),"") -> 0.02201007883 | U41: =IFERROR(INDEX('Data Annex'!$K$1:$BS$4779,MATCH(Assets!U$1&"|"&Assets!$B41,'Data Annex'!$K$1:$K$4779,0),MATCH(Assets!U$2,'Data Annex'!$K$1:$BS$1,0)),"") -> 0.01804559921 | V41: =IFERROR(INDEX('Data Annex'!$K$1:$BS$4779,MATCH(Assets!V$1&"|"&Assets!$B41,'Data Annex'!$K$1:$K$4779,0),MATCH(Assets!V$2,'Data Annex'!$K$1:$BS$1,0)),"") -> 0.02106889005
B42: SK | D42: SK | E42: =IFERROR(INDEX('Data Annex'!$K$1:$BS$4779,MATCH(Assets!E$1&"|"&Assets!$B42,'Data Annex'!$K$1:$K$4779,0),MATCH(Assets!E$2,'Data Annex'!$K$1:$BS$1,0)),"") -> 0.1243693578 | F42: =IFERROR(INDEX('Data Annex'!$K$1:$BS$4779,MATCH(Assets!F$1&"|"&Assets!$B42,'Data Annex'!$K$1:$K$4779,0),MATCH(Assets!F$2,'Data Annex'!$K$1:$BS$1,0)),"") -> 0.1172277952 | G42: =IFERROR(INDEX('Data Annex'!$K$1:$BS$4779,MATCH(Assets!G$1&"|"&Assets!$B42,'Data Annex'!$K$1:$K$4779,0),MATCH(Assets!G$2,'Data Annex'!$K$1:$BS$1,0)),"") -> 0.1394565787 | H42: =IFERROR(INDEX('Data Annex'!$K$1:$BS$4779,MATCH(Assets!H$1&"|"&Assets!$B42,'Data Annex'!$K$1:$K$4779,0),MATCH(Assets!H$2,'Data Annex'!$K$1:$BS$1,0)),"") -> 0.0002775492105 | I42: =IFERROR(INDEX('Data Annex'!$K$1:$BS$4779,MATCH(Assets!I$1&"|"&Assets!$B42,'Data Annex'!$K$1:$K$4779,0),MATCH(Assets!I$2,'Data Annex'!$K$1:$BS$1,0)),"") -> 0.0003122414608 | J42: =IFERROR(INDEX('Data Annex'!$K$1:$BS$4779,MATCH(Assets!J$1&"|"&Assets!$B42,'Data Annex'!$K$1:$K$4779,0),MATCH(Assets!J$2,'Data Annex'!$K$1:$BS$1,0)),"") -> 0.0003410221774 | K42: =IFERROR(INDEX('Data Annex'!$K$1:$BS$4779,MATCH(Assets!K$1&"|"&Assets!$B42,'Data Annex'!$K$1:$K$4779,0),MATCH(Assets!K$2,'Data Annex'!$K$1:$BS$1,0)),"") -> 0.1287348562 | L42: =IFERROR(INDEX('Data Annex'!$K$1:$BS$4779,MATCH(Assets!L$1&"|"&Assets!$B42,'Data Annex'!$K$1:$K$4779,0),MATCH(Assets!L$2,'Data Annex'!$K$1:$BS$1,0)),"") -> 0.1377500577 | M42: =IFERROR(INDEX('Data Annex'!$K$1:$BS$4779,MATCH(Assets!M$1&"|"&Assets!$B42,'Data Annex'!$K$1:$K$4779,0),MATCH(Assets!M$2,'Data Annex'!$K$1:$BS$1,0)),"") -> 0.1280050887 | N42: =IFERROR(INDEX('Data Annex'!$K$1:$BS$4779,MATCH(Assets!N$1&"|"&Assets!$B42,'Data Annex'!$K$1:$K$4779,0),MATCH(Assets!N$2,'Data Annex'!$K$1:$BS$1,0)),"") -> 0.7257954833 | O42: =IFERROR(INDEX('Data Annex'!$K$1:$BS$4779,MATCH(Assets!O$1&"|"&Assets!$B42,'Data Annex'!$K$1:$K$4779,0),MATCH(Assets!O$2,'Data Annex'!$K$1:$BS$1,0)),"") -> 0.7248016338 | P42: =IFERROR(INDEX('Data Annex'!$K$1:$BS$4779,MATCH(Assets!P$1&"|"&Assets!$B42,'Data Annex'!$K$1:$K$4779,0),MATCH(Assets!P$2,'Data Annex'!$K$1:$BS$1,0)),"") -> 0.7139487513 | Q42: =IFERROR(INDEX('Data Annex'!$K$1:$BS$4779,MATCH(Assets!Q$1&"|"&Assets!$B42,'Data Annex'!$K$1:$K$4779,0),MATCH(Assets!Q$2,'Data Annex'!$K$1:$BS$1,0)),"") -> 0.008405040506 | R42: =IFERROR(INDEX('Data Annex'!$K$1:$BS$4779,MATCH(Assets!R$1&"|"&Assets!$B42,'Data Annex'!$K$1:$K$4779,0),MATCH(Assets!R$2,'Data Annex'!$K$1:$BS$1,0)),"") -> 0.007657752376 | S42: =IFERROR(INDEX('Data Annex'!$K$1:$BS$4779,MATCH(Assets!S$1&"|"&Assets!$B42,'Data Annex'!$K$1:$K$4779,0),MATCH(Assets!S$2,'Data Annex'!$K$1:$BS$1,0)),"") -> 0.005193474164 | T42: =IFERROR(INDEX('Data Annex'!$K$1:$BS$4779,MATCH(Assets!T$1&"|"&Assets!$B42,'Data Annex'!$K$1:$K$4779,0),MATCH(Assets!T$2,'Data Annex'!$K$1:$BS$1,0)),"") -> 0.01241771298 | U42: =IFERROR(INDEX('Data Annex'!$K$1:$BS$4779,MATCH(Assets!U$1&"|"&Assets!$B42,'Data Annex'!$K$1:$K$4779,0),MATCH(Assets!U$2,'Data Annex'!$K$1:$BS$1,0)),"") -> 0.0122505195 | V42: =IFERROR(INDEX('Data Annex'!$K$1:$BS$4779,MATCH(Assets!V$1&"|"&Assets!$B42,'Data Annex'!$K$1:$K$4779,0),MATCH(Assets!V$2,'Data Annex'!$K$1:$BS$1,0)),"") -> 0.01305508498
B43: EU | D43: EU/EEA | E43: =IFERROR(INDEX('Data Annex'!$K$1:$BS$4779,MATCH(Assets!E$1&"|"&Assets!$B43,'Data Annex'!$K$1:$K$4779,0),MATCH(Assets!E$2,'Data Annex'!$K$1:$BS$1,0)),"") -> 0.1373276969 | F43: =IFERROR(INDEX('Data Annex'!$K$1:$BS$4779,MATCH(Assets!F$1&"|"&Assets!$B43,'Data Annex'!$K$1:$K$4779,0),MATCH(Assets!F$2,'Data Annex'!$K$1:$BS$1,0)),"") -> 0.1308998364 | G43: =IFERROR(INDEX('Data Annex'!$K$1:$BS$4779,MATCH(Assets!G$1&"|"&Assets!$B43,'Data Annex'!$K$1:$K$4779,0),MATCH(Assets!G$2,'Data Annex'!$K$1:$BS$1,0)),"") -> 0.1250242145 | H43: =IFERROR(INDEX('Data Annex'!$K$1:$BS$4779,MATCH(Assets!H$1&"|"&Assets!$B43,'Data Annex'!$K$1:$K$4779,0),MATCH(Assets!H$2,'Data Annex'!$K$1:$BS$1,0)),"") -> 0.01292402638 | I43: =IFERROR(INDEX('Data Annex'!$K$1:$BS$4779,MATCH(Assets!I$1&"|"&Assets!$B43,'Data Annex'!$K$1:$K$4779,0),MATCH(Assets!I$2,'Data Annex'!$K$1:$BS$1,0)),"") -> 0.0146297622 | J43: =IFERROR(INDEX('Data Annex'!$K$1:$BS$4779,MATCH(Assets!J$1&"|"&Assets!$B43,'Data Annex'!$K$1:$K$4779,0),MATCH(Assets!J$2,'Data Annex'!$K$1:$BS$1,0)),"") -> 0.01504447266 | K43: =IFERROR(INDEX('Data Annex'!$K$1:$BS$4779,MATCH(Assets!K$1&"|"&Assets!$B43,'Data Annex'!$K$1:$K$4779,0),MATCH(Assets!K$2,'Data Annex'!$K$1:$BS$1,0)),"") -> 0.1160690289 | L43: =IFERROR(INDEX('Data Annex'!$K$1:$BS$4779,MATCH(Assets!L$1&"|"&Assets!$B43,'Data Annex'!$K$1:$K$4779,0),MATCH(Assets!L$2,'Data Annex'!$K$1:$BS$1,0)),"") -> 0.1252161362 | M43: =IFERROR(INDEX('Data Annex'!$K$1:$BS$4779,MATCH(Assets!M$1&"|"&Assets!$B43,'Data Annex'!$K$1:$K$4779,0),MATCH(Assets!M$2,'Data Annex'!$K$1:$BS$1,0)),"") -> 0.1283231584 | N43: =IFERROR(INDEX('Data Annex'!$K$1:$BS$4779,MATCH(Assets!N$1&"|"&Assets!$B43,'Data Annex'!$K$1:$K$4779,0),MATCH(Assets!N$2,'Data Annex'!$K$1:$BS$1,0)),"") -> 0.6181504866 | O43: =IFERROR(INDEX('Data Annex'!$K$1:$BS$4779,MATCH(Assets!O$1&"|"&Assets!$B43,'Data Annex'!$K$1:$K$4779,0),MATCH(Assets!O$2,'Data Annex'!$K$1:$BS$1,0)),"") -> 0.6204351743 | P43: =IFERROR(INDEX('Data Annex'!$K$1:$BS$4779,MATCH(Assets!P$1&"|"&Assets!$B43,'Data Annex'!$K$1:$K$4779,0),MATCH(Assets!P$2,'Data Annex'!$K$1:$BS$1,0)),"") -> 0.6283571838 | Q43: =IFERROR(INDEX('Data Annex'!$K$1:$BS$4779,MATCH(Assets!Q$1&"|"&Assets!$B43,'Data Annex'!$K$1:$K$4779,0),MATCH(Assets!Q$2,'Data Annex'!$K$1:$BS$1,0)),"") -> 0.06720699294 | R43: =IFERROR(INDEX('Data Annex'!$K$1:$BS$4779,MATCH(Assets!R$1&"|"&Assets!$B43,'Data Annex'!$K$1:$K$4779,0),MATCH(Assets!R$2,'Data Annex'!$K$1:$BS$1,0)),"") -> 0.06528453622 | S43: =IFERROR(INDEX('Data Annex'!$K$1:$BS$4779,MATCH(Assets!S$1&"|"&Assets!$B43,'Data Annex'!$K$1:$K$4779,0),MATCH(Assets!S$2,'Data Annex'!$K$1:$BS$1,0)),"") -> 0.05584949873 | T43: =IFERROR(INDEX('Data Annex'!$K$1:$BS$4779,MATCH(Assets!T$1&"|"&Assets!$B43,'Data Annex'!$K$1:$K$4779,0),MATCH(Assets!T$2,'Data Annex'!$K$1:$BS$1,0)),"") -> 0.0483217682 | U43: =IFERROR(INDEX('Data Annex'!$K$1:$BS$4779,MATCH(Assets!U$1&"|"&Assets!$B43,'Data Annex'!$K$1:$K$4779,0),MATCH(Assets!U$2,'Data Annex'!$K$1:$BS$1,0)),"") -> 0.04353455465 | V43: =IFERROR(INDEX('Data Annex'!$K$1:$BS$4779,MATCH(Assets!V$1&"|"&Assets!$B43,'Data Annex'!$K$1:$K$4779,0),MATCH(Assets!V$2,'Data Annex'!$K$1:$BS$1,0)),"") -> 0.04740147176
F46: T02_1 | G46: T02_1 | H46: T02_1 | I46: T02_2 | J46: T02_2 | K46: T02_2 | O46: T03_1 | P46: T03_1 | Q46: T03_1 | R46: T03_2 | S46: T03_2 | T46: T03_2 | U46: T03_3 | V46: T03_3 | W46: T03_3
F47: =TEXT(F52,"YYYYMM")+0 -> 202212 | G47: 202309 | H47: 202312 | I47: 202212 | J47: 202309 | K47: 202312 | O47: =TEXT(O52,"YYYYMM")+0 -> 202212 | P47: 202309 | Q47: 202312 | R47: 202212 | S47: 202309 | T47: 202312 | U47: 202212 | V47: 202309 | W47: 202312
D48: Assets | M48: Financial Assets
D50: Volumes bn EUR | M50: % of total financial assets
F51: Total Assets | I51: Total Financial Assets | O51: Share of financial assets valued at (amortised) cost | R51: Share of financial assets at fair value through OCI | U51: Share of financial assets at fair value through profit&loss
F52: =EOMONTH($A$3,-12) -> 2022-12-31 | G52: =EOMONTH($A$3,-3) -> 2023-09-30 | H52: =$A$3 -> 2023-12-01 | I52: =EOMONTH($A$3,-12) -> 2022-12-31 | J52: =EOMONTH($A$3,-3) -> 2023-09-30 | K52: =$A$3 -> 2023-12-01 | O52: =EOMONTH($A$3,-12) -> 2022-12-31 | P52: =EOMONTH($A$3,-3) -> 2023-09-30 | Q52: =$A$3 -> 2023-12-01 | R52: =EOMONTH($A$3,-12) -> 2022-12-31 | S52: =EOMONTH($A$3,-3) -> 2023-09-30 | T52: =$A$3 -> 2023-12-01 | U52: =EOMONTH($A$3,-12) -> 2022-12-31 | V52: =EOMONTH($A$3,-3) -> 2023-09-30 | W52: =$A$3 -> 2023-12-01
B53: AT | D53: =IF(OR(F53="n.a.",G53="n.a.",H53="n.a.",I53="n.a.",J53="n.a.",K53="n.a."),$B53&"*",$B53) -> AT | F53: =IFERROR(INDEX('Data Annex'!$K$1:$BS$4779,MATCH(Assets!F$46&"|"&Assets!$B53,'Data Annex'!$K$1:$K$4779,0),MATCH(Assets!F$47,'Data Annex'!$K$1:$BS$1,0)),"") -> 772.3256731 | G53: =IFERROR(INDEX('Data Annex'!$K$1:$BS$4779,MATCH(Assets!G$46&"|"&Assets!$B53,'Data Annex'!$K$1:$K$4779,0),MATCH(Assets!G$47,'Data Annex'!$K$1:$BS$1,0)),"") -> 789.1173776 | H53: =IFERROR(INDEX('Data Annex'!$K$1:$BS$4779,MATCH(Assets!H$46&"|"&Assets!$B53,'Data Annex'!$K$1:$K$4779,0),MATCH(Assets!H$47,'Data Annex'!$K$1:$BS$1,0)),"") -> 770.8541381 | I53: =IFERROR(INDEX('Data Annex'!$K$1:$BS$4779,MATCH(Assets!I$46&"|"&Assets!$B53,'Data Annex'!$K$1:$K$4779,0),MATCH(Assets!I$47,'Data Annex'!$K$1:$BS$1,0)),"") -> 753.8768033 | J53: =IFERROR(INDEX('Data Annex'!$K$1:$BS$4779,MATCH(Assets!J$46&"|"&Assets!$B53,'Data Annex'!$K$1:$K$4779,0),MATCH(Assets!J$47,'Data Annex'!$K$1:$BS$1,0)),"") -> 770.42477 | K53: =IFERROR(INDEX('Data Annex'!$K$1:$BS$4779,MATCH(Assets!K$46&"|"&Assets!$B53,'Data Annex'!$K$1:$K$4779,0),MATCH(Assets!K$47,'Data Annex'!$K$1:$BS$1,0)),"") -> 749.2571385 | L53: =K53/H53 -> 0.9719830269 | M53: =+D53 -> AT | O53: =IFERROR(INDEX('Data Annex'!$K$1:$BS$4779,MATCH(Assets!O$46&"|"&Assets!$B53,'Data Annex'!$K$1:$K$4779,0),MATCH(Assets!O$47,'Data Annex'!$K$1:$BS$1,0)),"") -> 0.9167359508 | P53: =IFERROR(INDEX('Data Annex'!$K$1:$BS$4779,MATCH(Assets!P$46&"|"&Assets!$B53,'Data Annex'!$K$1:$K$4779,0),MATCH(Assets!P$47,'Data Annex'!$K$1:$BS$1,0)),"") -> 0.9146619752 | Q53: =IFERROR(INDEX('Data Annex'!$K$1:$BS$4779,MATCH(Assets!Q$46&"|"&Assets!$B53,'Data Annex'!$K$1:$K$4779,0),MATCH(Assets!Q$47,'Data Annex'!$K$1:$BS$1,0)),"") -> 0.9154376591 | R53: =IFERROR(INDEX('Data Annex'!$K$1:$BS$4779,MATCH(Assets!R$46&"|"&Assets!$B53,'Data Annex'!$K$1:$K$4779,0),MATCH(Assets!R$47,'Data Annex'!$K$1:$BS$1,0)),"") -> 0.04072992222 | S53: =IFERROR(INDEX('Data Annex'!$K$1:$BS$4779,MATCH(Assets!S$46&"|"&Assets!$B53,'Data Annex'!$K$1:$K$4779,0),MATCH(Assets!S$47,'Data Annex'!$K$1:$BS$1,0)),"") -> 0.04465412487 | T53: =IFERROR(INDEX('Data Annex'!$K$1:$BS$4779,MATCH(Assets!T$46&"|"&Assets!$B53,'Data Annex'!$K$1:$K$4779,0),MATCH(Assets!T$47,'Data Annex'!$K$1:$BS$1,0)),"") -> 0.04492572463 | U53: =IFERROR(INDEX('Data Annex'!$K$1:$BS$4779,MATCH(Assets!U$46&"|"&Assets!$B53,'Data Annex'!$K$1:$K$4779,0),MATCH(Assets!U$47,'Data Annex'!$K$1:$BS$1,0)),"") -> 0.042534127 | V53: =IFERROR(INDEX('Data Annex'!$K$1:$BS$4779,MATCH(Assets!V$46&"|"&Assets!$B53,'Data Annex'!$K$1:$K$4779,0),MATCH(Assets!V$47,'Data Annex'!$K$1:$BS$1,0)),"") -> 0.04068389992 | W53: =IFERROR(INDEX('Data Annex'!$K$1:$BS$4779,MATCH(Assets!W$46&"|"&Assets!$B53,'Data Annex'!$K$1:$K$4779,0),MATCH(Assets!W$47,'Data Annex'!$K$1:$BS$1,0)),"") -> 0.03963661626
B54: BE | D54: =IF(OR(F54="n.a.",G54="n.a.",H54="n.a.",I54="n.a.",J54="n.a.",K54="n.a."),$B54&"*",$B54) -> BE | F54: =IFERROR(INDEX('Data Annex'!$K$1:$BS$4779,MATCH(Assets!F$46&"|"&Assets!$B54,'Data Annex'!$K$1:$K$4779,0),MATCH(Assets!F$47,'Data Annex'!$K$1:$BS$1,0)),"") -> 1199.121062 | G54: =IFERROR(INDEX('Data Annex'!$K$1:$BS$4779,MATCH(Assets!G$46&"|"&Assets!$B54,'Data Annex'!$K$1:$K$4779,0),MATCH(Assets!G$47,'Data Annex'!$K$1:$BS$1,0)),"") -> 1049.976185 | H54: =IFERROR(INDEX('Data Annex'!$K$1:$BS$4779,MATCH(Assets!H$46&"|"&Assets!$B54,'Data Annex'!$K$1:$K$4779,0),MATCH(Assets!H$47,'Data Annex'!$K$1:$BS$1,0)),"") -> 1035.330228 | I54: =IFERROR(INDEX('Data Annex'!$K$1:$BS$4779,MATCH(Assets!I$46&"|"&Assets!$B54,'Data Annex'!$K$1:$K$4779,0),MATCH(Assets!I$47,'Data Annex'!$K$1:$BS$1,0)),"") -> 1164.38599 | J54: =IFERROR(INDEX('Data Annex'!$K$1:$BS$4779,MATCH(Assets!J$46&"|"&Assets!$B54,'Data Annex'!$K$1:$K$4779,0),MATCH(Assets!J$47,'Data Annex'!$K$1:$BS$1,0)),"") -> 1025.360325 | K54: =IFERROR(INDEX('Data Annex'!$K$1:$BS$4779,MATCH(Assets!K$46&"|"&Assets!$B54,'Data Annex'!$K$1:$K$4779,0),MATCH(Assets!K$47,'Data Annex'!$K$1:$BS$1,0)),"") -> 997.8009894 | L54: 0.9637514313 | M54: BE | O54: =IFERROR(INDEX('Data Annex'!$K$1:$BS$4779,MATCH(Assets!O$46&"|"&Assets!$B54,'Data Annex'!$K$1:$K$4779,0),MATCH(Assets!O$47,'Data Annex'!$K$1:$BS$1,0)),"") -> 0.9200457706 | P54: =IFERROR(INDEX('Data Annex'!$K$1:$BS$4779,MATCH(Assets!P$46&"|"&Assets!$B54,'Data Annex'!$K$1:$K$4779,0),MATCH(Assets!P$47,'Data Annex'!$K$1:$BS$1,0)),"") -> 0.9262216974 | Q54: =IFERROR(INDEX('Data Annex'!$K$1:$BS$4779,MATCH(Assets!Q$46&"|"&Assets!$B54,'Data Annex'!$K$1:$K$4779,0),MATCH(Assets!Q$47,'Data Annex'!$K$1:$BS$1,0)),"") -> 0.9311827922 | R54: =IFERROR(INDEX('Data Annex'!$K$1:$BS$4779,MATCH(Assets!R$46&"|"&Assets!$B54,'Data Annex'!$K$1:$K$4779,0),MATCH(Assets!R$47,'Data Annex'!$K$1:$BS$1,0)),"") -> 0.02550235443 | S54: =IFERROR(INDEX('Data Annex'!$K$1:$BS$4779,MATCH(Assets!S$46&"|"&Assets!$B54,'Data Annex'!$K$1:$K$4779,0),MATCH(Assets!S$47,'Data Annex'!$K$1:$BS$1,0)),"") -> 0.02959103689 | T54: =IFERROR(INDEX('Data Annex'!$K$1:$BS$4779,MATCH(Assets!T$46&"|"&Assets!$B54,'Data Annex'!$K$1:$K$4779,0),MATCH(Assets!T$47,'Data Annex'!$K$1:$BS$1,0)),"") -> 0.0310466668 | U54: =IFERROR(INDEX('Data Annex'!$K$1:$BS$4779,MATCH(Assets!U$46&"|"&Assets!$B54,'Data Annex'!$K$1:$K$4779,0),MATCH(Assets!U$47,'Data Annex'!$K$1:$BS$1,0)),"") -> 0.05445187499 | V54: =IFERROR(INDEX('Data Annex'!$K$1:$BS$4779,MATCH(Assets!V$46&"|"&Assets!$B54,'Data Annex'!$K$1:$K$4779,0),MATCH(Assets!V$47,'Data Annex'!$K$1:$BS$1,0)),"") -> 0.04418726569 | W54: =IFERROR(INDEX('Data Annex'!$K$1:$BS$4779,MATCH(Assets!W$46&"|"&Assets!$B54,'Data Annex'!$K$1:$K$4779,0),MATCH(Assets!W$47,'Data Annex'!$K$1:$BS$1,0)),"") -> 0.03777054096
B55: BG | D55: BG | F55: =IFERROR(INDEX('Data Annex'!$K$1:$BS$4779,MATCH(Assets!F$46&"|"&Assets!$B55,'Data Annex'!$K$1:$K$4779,0),MATCH(Assets!F$47,'Data Annex'!$K$1:$BS$1,0)),"") -> 38.85573167 | G55: =IFERROR(INDEX('Data Annex'!$K$1:$BS$4779,MATCH(Assets!G$46&"|"&Assets!$B55,'Data Annex'!$K$1:$K$4779,0),MATCH(Assets!G$47,'Data Annex'!$K$1:$BS$1,0)),"") -> 48.57549698 | H55: =IFERROR(INDEX('Data Annex'!$K$1:$BS$4779,MATCH(Assets!H$46&"|"&Assets!$B55,'Data Annex'!$K$1:$K$4779,0),MATCH(Assets!H$47,'Data Annex'!$K$1:$BS$1,0)),"") -> 50.92144084 | I55: =IFERROR(INDEX('Data Annex'!$K$1:$BS$4779,MATCH(Assets!I$46&"|"&Assets!$B55,'Data Annex'!$K$1:$K$4779,0),MATCH(Assets!I$47,'Data Annex'!$K$1:$BS$1,0)),"") -> 37.98054096 | J55: =IFERROR(INDEX('Data Annex'!$K$1:$BS$4779,MATCH(Assets!J$46&"|"&Assets!$B55,'Data Annex'!$K$1:$K$4779,0),MATCH(Assets!J$47,'Data Annex'!$K$1:$BS$1,0)),"") -> 47.70993967 | K55: =IFERROR(INDEX('Data Annex'!$K$1:$BS$4779,MATCH(Assets!K$46&"|"&Assets!$B55,'Data Annex'!$K$1:$K$4779,0),MATCH(Assets!K$47,'Data Annex'!$K$1:$BS$1,0)),"") -> 50.04078229 | L55: 0.9827055453 | M55: BG | O55: =IFERROR(INDEX('Data Annex'!$K$1:$BS$4779,MATCH(Assets!O$46&"|"&Assets!$B55,'Data Annex'!$K$1:$K$4779,0),MATCH(Assets!O$47,'Data Annex'!$K$1:$BS$1,0)),"") -> 0.9359891345 | P55: =IFERROR(INDEX('Data Annex'!$K$1:$BS$4779,MATCH(Assets!P$46&"|"&Assets!$B55,'Data Annex'!$K$1:$K$4779,0),MATCH(Assets!P$47,'Data Annex'!$K$1:$BS$1,0)),"") -> 0.9575692067 | Q55: =IFERROR(INDEX('Data Annex'!$K$1:$BS$4779,MATCH(Assets!Q$46&"|"&Assets!$B55,'Data Annex'!$K$1:$K$4779,0),MATCH(Assets!Q$47,'Data Annex'!$K$1:$BS$1,0)),"") -> 0.9584481058 | R55: =IFERROR(INDEX('Data Annex'!$K$1:$BS$4779,MATCH(Assets!R$46&"|"&Assets!$B55,'Data Annex'!$K$1:$K$4779,0),MATCH(Assets!R$47,'Data Annex'!$K$1:$BS$1,0)),"") -> 0.05794482086 | S55: =IFERROR(INDEX('Data Annex'!$K$1:$BS$4779,MATCH(Assets!S$46&"|"&Assets!$B55,'Data Annex'!$K$1:$K$4779,0),MATCH(Assets!S$47,'Data Annex'!$K$1:$BS$1,0)),"") -> 0.03718325044 | T55: =IFERROR(INDEX('Data Annex'!$K$1:$BS$4779,MATCH(Assets!T$46&"|"&Assets!$B55,'Data Annex'!$K$1:$K$4779,0),MATCH(Assets!T$47,'Data Annex'!$K$1:$BS$1,0)),"") -> 0.03795720889 | U55: =IFERROR(INDEX('Data Annex'!$K$1:$BS$4779,MATCH(Assets!U$46&"|"&Assets!$B55,'Data Annex'!$K$1:$K$4779,0),MATCH(Assets!U$47,'Data Annex'!$K$1:$BS$1,0)),"") -> 0.006066044606 | V55: =IFERROR(INDEX('Data Annex'!$K$1:$BS$4779,MATCH(Assets!V$46&"|"&Assets!$B55,'Data Annex'!$K$1:$K$4779,0),MATCH(Assets!V$47,'Data Annex'!$K$1:$BS$1,0)),"") -> 0.005247542897 | W55: =IFERROR(INDEX('Data Annex'!$K$1:$BS$4779,MATCH(Assets!W$46&"|"&Assets!$B55,'Data Annex'!$K$1:$K$4779,0),MATCH(Assets!W$47,'Data Annex'!$K$1:$BS$1,0)),"") -> 0.003594685353
B56: CY | D56: CY | F56: =IFERROR(INDEX('Data Annex'!$K$1:$BS$4779,MATCH(Assets!F$46&"|"&Assets!$B56,'Data Annex'!$K$1:$K$4779,0),MATCH(Assets!F$47,'Data Annex'!$K$1:$BS$1,0)),"") -> 44.89768217 | G56: =IFERROR(INDEX('Data Annex'!$K$1:$BS$4779,MATCH(Assets!G$46&"|"&Assets!$B56,'Data Annex'!$K$1:$K$4779,0),MATCH(Assets!G$47,'Data Annex'!$K$1:$BS$1,0)),"") -> 45.98740087 | H56: =IFERROR(INDEX('Data Annex'!$K$1:$BS$4779,MATCH(Assets!H$46&"|"&Assets!$B56,'Data Annex'!$K$1:$K$4779,0),MATCH(Assets!H$47,'Data Annex'!$K$1:$BS$1,0)),"") -> 46.26803311 | I56: =IFERROR(INDEX('Data Annex'!$K$1:$BS$4779,MATCH(Assets!I$46&"|"&Assets!$B56,'Data Annex'!$K$1:$K$4779,0),MATCH(Assets!I$47,'Data Annex'!$K$1:$BS$1,0)),"") -> 42.03474609 | J56: =IFERROR(INDEX('Data Annex'!$K$1:$BS$4779,MATCH(Assets!J$46&"|"&Assets!$B56,'Data Annex'!$K$1:$K$4779,0),MATCH(Assets!J$47,'Data Annex'!$K$1:$BS$1,0)),"") -> 43.47639612 | K56: =IFERROR(INDEX('Data Annex'!$K$1:$BS$4779,MATCH(Assets!K$46&"|"&Assets!$B56,'Data Annex'!$K$1:$K$4779,0),MATCH(Assets!K$47,'Data Annex'!$K$1:$BS$1,0)),"") -> 43.90971014 | L56: 0.949029107 | M56: CY | O56: =IFERROR(INDEX('Data Annex'!$K$1:$BS$4779,MATCH(Assets!O$46&"|"&Assets!$B56,'Data Annex'!$K$1:$K$4779,0),MATCH(Assets!O$47,'Data Annex'!$K$1:$BS$1,0)),"") -> 0.9795706515 | P56: =IFERROR(INDEX('Data Annex'!$K$1:$BS$4779,MATCH(Assets!P$46&"|"&Assets!$B56,'Data Annex'!$K$1:$K$4779,0),MATCH(Assets!P$47,'Data Annex'!$K$1:$BS$1,0)),"") -> 0.9819121395 | Q56: =IFERROR(INDEX('Data Annex'!$K$1:$BS$4779,MATCH(Assets!Q$46&"|"&Assets!$B56,'Data Annex'!$K$1:$K$4779,0),MATCH(Assets!Q$47,'Data Annex'!$K$1:$BS$1,0)),"") -> 0.9833201182 | R56: =IFERROR(INDEX('Data Annex'!$K$1:$BS$4779,MATCH(Assets!R$46&"|"&Assets!$B56,'Data Annex'!$K$1:$K$4779,0),MATCH(Assets!R$47,'Data Annex'!$K$1:$BS$1,0)),"") -> 0.01327773142 | S56: =IFERROR(INDEX('Data Annex'!$K$1:$BS$4779,MATCH(Assets!S$46&"|"&Assets!$B56,'Data Annex'!$K$1:$K$4779,0),MATCH(Assets!S$47,'Data Annex'!$K$1:$BS$1,0)),"") -> 0.0113739837 | T56: =IFERROR(INDEX('Data Annex'!$K$1:$BS$4779,MATCH(Assets!T$46&"|"&Assets!$B56,'Data Annex'!$K$1:$K$4779,0),MATCH(Assets!T$47,'Data Annex'!$K$1:$BS$1,0)),"") -> 0.01167634458 | U56: =IFERROR(INDEX('Data Annex'!$K$1:$BS$4779,MATCH(Assets!U$46&"|"&Assets!$B56,'Data Annex'!$K$1:$K$4779,0),MATCH(Assets!U$47,'Data Annex'!$K$1:$BS$1,0)),"") -> 0.007151617078 | V56: =IFERROR(INDEX('Data Annex'!$K$1:$BS$4779,MATCH(Assets!V$46&"|"&Assets!$B56,'Data Annex'!$K$1:$K$4779,0),MATCH(Assets!V$47,'Data Annex'!$K$1:$BS$1,0)),"") -> 0.006713876817 | W56: =IFERROR(INDEX('Data Annex'!$K$1:$BS$4779,MATCH(Assets!W$46&"|"&Assets!$B56,'Data Annex'!$K$1:$K$4779,0),MATCH(Assets!W$47,'Data Annex'!$K$1:$BS$1,0)),"") -> 0.005003537219
B57: CZ | D57: CZ | F57: =IFERROR(INDEX('Data Annex'!$K$1:$BS$4779,MATCH(Assets!F$46&"|"&Assets!$B57,'Data Annex'!$K$1:$K$4779,0),MATCH(Assets!F$47,'Data Annex'!$K$1:$BS$1,0)),"") -> 196.9470137 | G57: =IFERROR(INDEX('Data Annex'!$K$1:$BS$4779,MATCH(Assets!G$46&"|"&Assets!$B57,'Data Annex'!$K$1:$K$4779,0),MATCH(Assets!G$47,'Data Annex'!$K$1:$BS$1,0)),"") -> 225.9410529 | H57: =IFERROR(INDEX('Data Annex'!$K$1:$BS$4779,MATCH(Assets!H$46&"|"&Assets!$B57,'Data Annex'!$K$1:$K$4779,0),MATCH(Assets!H$47,'Data Annex'!$K$1:$BS$1,0)),"") -> 209.63934 | I57: =IFERROR(INDEX('Data Annex'!$K$1:$BS$4779,MATCH(Assets!I$46&"|"&Assets!$B57,'Data Annex'!$K$1:$K$4779,0),MATCH(Assets!I$47,'Data Annex'!$K$1:$BS$1,0)),"") -> 194.4875906 | J57: =IFERROR(INDEX('Data Annex'!$K$1:$BS$4779,MATCH(Assets!J$46&"|"&Assets!$B57,'Data Annex'!$K$1:$K$4779,0),MATCH(Assets!J$47,'Data Annex'!$K$1:$BS$1,0)),"") -> 223.0995066 | K57: =IFERROR(INDEX('Data Annex'!$K$1:$BS$4779,MATCH(Assets!K$46&"|"&Assets!$B57,'Data Annex'!$K$1:$K$4779,0),MATCH(Assets!K$47,'Data Annex'!$K$1:$BS$1,0)),"") -> 206.5404478 | L57: 0.9852179833 | M57: CZ | O57: =IFERROR(INDEX('Data Annex'!$K$1:$BS$4779,MATCH(Assets!O$46&"|"&Assets!$B57,'Data Annex'!$K$1:$K$4779,0),MATCH(Assets!O$47,'Data Annex'!$K$1:$BS$1,0)),"") -> 0.9298772738 | P57: =IFERROR(INDEX('Data Annex'!$K$1:$BS$4779,MATCH(Assets!P$46&"|"&Assets!$B57,'Data Annex'!$K$1:$K$4779,0),MATCH(Assets!P$47,'Data Annex'!$K$1:$BS$1,0)),"") -> 0.9460239905 | Q57: =IFERROR(INDEX('Data Annex'!$K$1:$BS$4779,MATCH(Assets!Q$46&"|"&Assets!$B57,'Data Annex'!$K$1:$K$4779,0),MATCH(Assets!Q$47,'Data Annex'!$K$1:$BS$1,0)),"") -> 0.9541411277 | R57: =IFERROR(INDEX('Data Annex'!$K$1:$BS$4779,MATCH(Assets!R$46&"|"&Assets!$B57,'Data Annex'!$K$1:$K$4779,0),MATCH(Assets!R$47,'Data Annex'!$K$1:$BS$1,0)),"") -> 0.02009717757 | S57: =IFERROR(INDEX('Data Annex'!$K$1:$BS$4779,MATCH(Assets!S$46&"|"&Assets!$B57,'Data Annex'!$K$1:$K$4779,0),MATCH(Assets!S$47,'Data Annex'!$K$1:$BS$1,0)),"") -> 0.01612131336 | T57: =IFERROR(INDEX('Data Annex'!$K$1:$BS$4779,MATCH(Assets!T$46&"|"&Assets!$B57,'Data Annex'!$K$1:$K$4779,0),MATCH(Assets!T$47,'Data Annex'!$K$1:$BS$1,0)),"") -> 0.01673098748 | U57: =IFERROR(INDEX('Data Annex'!$K$1:$BS$4779,MATCH(Assets!U$46&"|"&Assets!$B57,'Data Annex'!$K$1:$K$4779,0),MATCH(Assets!U$47,'Data Annex'!$K$1:$BS$1,0)),"") -> 0.0500255486 | V57: =IFERROR(INDEX('Data Annex'!$K$1:$BS$4779,MATCH(Assets!V$46&"|"&Assets!$B57,'Data Annex'!$K$1:$K$4779,0),MATCH(Assets!V$47,'Data Annex'!$K$1:$BS$1,0)),"") -> 0.03785469614 | W57: =IFERROR(INDEX('Data Annex'!$K$1:$BS$4779,MATCH(Assets!W$46&"|"&Assets!$B57,'Data Annex'!$K$1:$K$4779,0),MATCH(Assets!W$47,'Data Annex'!$K$1:$BS$1,0)),"") -> 0.02912788482
B58: DE | D58: DE | F58: =IFERROR(INDEX('Data Annex'!$K$1:$BS$4779,MATCH(Assets!F$46&"|"&Assets!$B58,'Data Annex'!$K$1:$K$4779,0),MATCH(Assets!F$47,'Data Annex'!$K$1:$BS$1,0)),"") -> 3934.303253 | G58: =IFERROR(INDEX('Data Annex'!$K$1:$BS$4779,MATCH(Assets!G$46&"|"&Assets!$B58,'Data Annex'!$K$1:$K$4779,0),MATCH(Assets!G$47,'Data Annex'!$K$1:$BS$1,0)),"") -> 4087.890495 | H58: =IFERROR(INDEX('Data Annex'!$K$1:$BS$4779,MATCH(Assets!H$46&"|"&Assets!$B58,'Data Annex'!$K$1:$K$4779,0),MATCH(Assets!H$47,'Data Annex'!$K$1:$BS$1,0)),"") -> 3903.529366 | I58: =IFERROR(INDEX('Data Annex'!$K$1:$BS$4779,MATCH(Assets!I$46&"|"&Assets!$B58,'Data Annex'!$K$1:$K$4779,0),MATCH(Assets!I$47,'Data Annex'!$K$1:$BS$1,0)),"") -> 3854.466837 | J58: =IFERROR(INDEX('Data Annex'!$K$1:$BS$4779,MATCH(Assets!J$46&"|"&Assets!$B58,'Data Annex'!$K$1:$K$4779,0),MATCH(Assets!J$47,'Data Annex'!$K$1:$BS$1,0)),"") -> 4002.92284 | K58: =IFERROR(INDEX('Data Annex'!$K$1:$BS$4779,MATCH(Assets!K$46&"|"&Assets!$B58,'Data Annex'!$K$1:$K$4779,0),MATCH(Assets!K$47,'Data Annex'!$K$1:$BS$1,0)),"") -> 3807.270231 | L58: 0.9753404865 | M58: DE | O58: =IFERROR(INDEX('Data Annex'!$K$1:$BS$4779,MATCH(Assets!O$46&"|"&Assets!$B58,'Data Annex'!$K$1:$K$4779,0),MATCH(Assets!O$47,'Data Annex'!$K$1:$BS$1,0)),"") -> 0.7361417226 | P58: =IFERROR(INDEX('Data Annex'!$K$1:$BS$4779,MATCH(Assets!P$46&"|"&Assets!$B58,'Data Annex'!$K$1:$K$4779,0),MATCH(Assets!P$47,'Data Annex'!$K$1:$BS$1,0)),"") -> 0.7354243563 | Q58: =IFERROR(INDEX('Data Annex'!$K$1:$BS$4779,MATCH(Assets!Q$46&"|"&Assets!$B58,'Data Annex'!$K$1:$K$4779,0),MATCH(Assets!Q$47,'Data Annex'!$K$1:$BS$1,0)),"") -> 0.7408571744 | R58: =IFERROR(INDEX('Data Annex'!$K$1:$BS$4779,MATCH(Assets!R$46&"|"&Assets!$B58,'Data Annex'!$K$1:$K$4779,0),MATCH(Assets!R$47,'Data Annex'!$K$1:$BS$1,0)),"") -> 0.04955768537 | S58: =IFERROR(INDEX('Data Annex'!$K$1:$BS$4779,MATCH(Assets!S$46&"|"&Assets!$B58,'Data Annex'!$K$1:$K$4779,0),MATCH(Assets!S$47,'Data Annex'!$K$1:$BS$1,0)),"") -> 0.04924424693 | T58: =IFERROR(INDEX('Data Annex'!$K$1:$BS$4779,MATCH(Assets!T$46&"|"&Assets!$B58,'Data Annex'!$K$1:$K$4779,0),MATCH(Assets!T$47,'Data Annex'!$K$1:$BS$1,0)),"") -> 0.05380377688 | U58: =IFERROR(INDEX('Data Annex'!$K$1:$BS$4779,MATCH(Assets!U$46&"|"&Assets!$B58,'Data Annex'!$K$1:$K$4779,0),MATCH(Assets!U$47,'Data Annex'!$K$1:$BS$1,0)),"") -> 0.214300592 | V58: =IFERROR(INDEX('Data Annex'!$K$1:$BS$4779,MATCH(Assets!V$46&"|"&Assets!$B58,'Data Annex'!$K$1:$K$4779,0),MATCH(Assets!V$47,'Data Annex'!$K$1:$BS$1,0)),"") -> 0.2153313968 | W58: =IFERROR(INDEX('Data Annex'!$K$1:$BS$4779,MATCH(Assets!W$46&"|"&Assets!$B58,'Data Annex'!$K$1:$K$4779,0),MATCH(Assets!W$47,'Data Annex'!$K$1:$BS$1,0)),"") -> 0.2053390487
B59: DK | D59: DK | F59: =IFERROR(INDEX('Data Annex'!$K$1:$BS$4779,MATCH(Assets!F$46&"|"&Assets!$B59,'Data Annex'!$K$1:$K$4779,0),MATCH(Assets!F$47,'Data Annex'!$K$1:$BS$1,0)),"") -> 760.0865553 | G59: =IFERROR(INDEX('Data Annex'!$K$1:$BS$4779,MATCH(Assets!G$46&"|"&Assets!$B59,'Data Annex'!$K$1:$K$4779,0),MATCH(Assets!G$47,'Data Annex'!$K$1:$BS$1,0)),"") -> 766.5446388 | H59: =IFERROR(INDEX('Data Annex'!$K$1:$BS$4779,MATCH(Assets!H$46&"|"&Assets!$B59,'Data Annex'!$K$1:$K$4779,0),MATCH(Assets!H$47,'Data Annex'!$K$1:$BS$1,0)),"") -> 771.2341975 | I59: =IFERROR(INDEX('Data Annex'!$K$1:$BS$4779,MATCH(Assets!I$46&"|"&Assets!$B59,'Data Annex'!$K$1:$K$4779,0),MATCH(Assets!I$47,'Data Annex'!$K$1:$BS$1,0)),"") -> 741.8718046 | J59: =IFERROR(INDEX('Data Annex'!$K$1:$BS$4779,MATCH(Assets!J$46&"|"&Assets!$B59,'Data Annex'!$K$1:$K$4779,0),MATCH(Assets!J$47,'Data Annex'!$K$1:$BS$1,0)),"") -> 733.1319987 | K59: =IFERROR(INDEX('Data Annex'!$K$1:$BS$4779,MATCH(Assets!K$46&"|"&Assets!$B59,'Data Annex'!$K$1:$K$4779,0),MATCH(Assets!K$47,'Data Annex'!$K$1:$BS$1,0)),"") -> 737.992248 | L59: 0.9568977238 | M59: DK | O59: =IFERROR(INDEX('Data Annex'!$K$1:$BS$4779,MATCH(Assets!O$46&"|"&Assets!$B59,'Data Annex'!$K$1:$K$4779,0),MATCH(Assets!O$47,'Data Annex'!$K$1:$BS$1,0)),"") -> 0.3513789559 | P59: =IFERROR(INDEX('Data Annex'!$K$1:$BS$4779,MATCH(Assets!P$46&"|"&Assets!$B59,'Data Annex'!$K$1:$K$4779,0),MATCH(Assets!P$47,'Data Annex'!$K$1:$BS$1,0)),"") -> 0.34456139 | Q59: =IFERROR(INDEX('Data Annex'!$K$1:$BS$4779,MATCH(Assets!Q$46&"|"&Assets!$B59,'Data Annex'!$K$1:$K$4779,0),MATCH(Assets!Q$47,'Data Annex'!$K$1:$BS$1,0)),"") -> 0.3417635599 | R59: =IFERROR(INDEX('Data Annex'!$K$1:$BS$4779,MATCH(Assets!R$46&"|"&Assets!$B59,'Data Annex'!$K$1:$K$4779,0),MATCH(Assets!R$47,'Data Annex'!$K$1:$BS$1,0)),"") -> 0.02117620653 | S59: =IFERROR(INDEX('Data Annex'!$K$1:$BS$4779,MATCH(Assets!S$46&"|"&Assets!$B59,'Data Annex'!$K$1:$K$4779,0),MATCH(Assets!S$47,'Data Annex'!$K$1:$BS$1,0)),"") -> 0.01919706934 | T59: =IFERROR(INDEX('Data Annex'!$K$1:$BS$4779,MATCH(Assets!T$46&"|"&Assets!$B59,'Data Annex'!$K$1:$K$4779,0),MATCH(Assets!T$47,'Data Annex'!$K$1:$BS$1,0)),"") -> 0.01963952901 | U59: =IFERROR(INDEX('Data Annex'!$K$1:$BS$4779,MATCH(Assets!U$46&"|"&Assets!$B59,'Data Annex'!$K$1:$K$4779,0),MATCH(Assets!U$47,'Data Annex'!$K$1:$BS$1,0)),"") -> 0.6274448376 | V59: =IFERROR(INDEX('Data Annex'!$K$1:$BS$4779,MATCH(Assets!V$46&"|"&Assets!$B59,'Data Annex'!$K$1:$K$4779,0),MATCH(Assets!V$47,'Data Annex'!$K$1:$BS$1,0)),"") -> 0.6362415406 | W59: =IFERROR(INDEX('Data Annex'!$K$1:$BS$4779,MATCH(Assets!W$46&"|"&Assets!$B59,'Data Annex'!$K$1:$K$4779,0),MATCH(Assets!W$47,'Data Annex'!$K$1:$BS$1,0)),"") -> 0.6385969111
B60: EE | D60: EE | F60: =IFERROR(INDEX('Data Annex'!$K$1:$BS$4779,MATCH(Assets!F$46&"|"&Assets!$B60,'Data Annex'!$K$1:$K$4779,0),MATCH(Assets!F$47,'Data Annex'!$K$1:$BS$1,0)),"") -> 43.07146208 | G60: =IFERROR(INDEX('Data Annex'!$K$1:$BS$4779,MATCH(Assets!G$46&"|"&Assets!$B60,'Data Annex'!$K$1:$K$4779,0),MATCH(Assets!G$47,'Data Annex'!$K$1:$BS$1,0)),"") -> 44.26235499 | H60: =IFERROR(INDEX('Data Annex'!$K$1:$BS$4779,MATCH(Assets!H$46&"|"&Assets!$B60,'Data Annex'!$K$1:$K$4779,0),MATCH(Assets!H$47,'Data Annex'!$K$1:$BS$1,0)),"") -> 45.8017858 | I60: =IFERROR(INDEX('Data Annex'!$K$1:$BS$4779,MATCH(Assets!I$46&"|"&Assets!$B60,'Data Annex'!$K$1:$K$4779,0),MATCH(Assets!I$47,'Data Annex'!$K$1:$BS$1,0)),"") -> 42.610507 | J60: =IFERROR(INDEX('Data Annex'!$K$1:$BS$4779,MATCH(Assets!J$46&"|"&Assets!$B60,'Data Annex'!$K$1:$K$4779,0),MATCH(Assets!J$47,'Data Annex'!$K$1:$BS$1,0)),"") -> 43.77837053 | K60: =IFERROR(INDEX('Data Annex'!$K$1:$BS$4779,MATCH(Assets!K$46&"|"&Assets!$B60,'Data Annex'!$K$1:$K$4779,0),MATCH(Assets!K$47,'Data Annex'!$K$1:$BS$1,0)),"") -> 45.2851437 | L60: 0.9887200446 | M60: EE | O60: =IFERROR(INDEX('Data Annex'!$K$1:$BS$4779,MATCH(Assets!O$46&"|"&Assets!$B60,'Data Annex'!$K$1:$K$4779,0),MATCH(Assets!O$47,'Data Annex'!$K$1:$BS$1,0)),"") -> 0.9794331854 | P60: =IFERROR(INDEX('Data Annex'!$K$1:$BS$4779,MATCH(Assets!P$46&"|"&Assets!$B60,'Data Annex'!$K$1:$K$4779,0),MATCH(Assets!P$47,'Data Annex'!$K$1:$BS$1,0)),"") -> 0.9851502244 | Q60: =IFERROR(INDEX('Data Annex'!$K$1:$BS$4779,MATCH(Assets!Q$46&"|"&Assets!$B60,'Data Annex'!$K$1:$K$4779,0),MATCH(Assets!Q$47,'Data Annex'!$K$1:$BS$1,0)),"") -> 0.9855612114 | R60: =IFERROR(INDEX('Data Annex'!$K$1:$BS$4779,MATCH(Assets!R$46&"|"&Assets!$B60,'Data Annex'!$K$1:$K$4779,0),MATCH(Assets!R$47,'Data Annex'!$K$1:$BS$1,0)),"") -> 7.535694307e-05 | S60: =IFERROR(INDEX('Data Annex'!$K$1:$BS$4779,MATCH(Assets!S$46&"|"&Assets!$B60,'Data Annex'!$K$1:$K$4779,0),MATCH(Assets!S$47,'Data Annex'!$K$1:$BS$1,0)),"") -> 7.310193141e-05 | T60: =IFERROR(INDEX('Data Annex'!$K$1:$BS$4779,MATCH(Assets!T$46&"|"&Assets!$B60,'Data Annex'!$K$1:$K$4779,0),MATCH(Assets!T$47,'Data Annex'!$K$1:$BS$1,0)),"") -> 7.149008671e-05 | U60: =IFERROR(INDEX('Data Annex'!$K$1:$BS$4779,MATCH(Assets!U$46&"|"&Assets!$B60,'Data Annex'!$K$1:$K$4779,0),MATCH(Assets!U$47,'Data Annex'!$K$1:$BS$1,0)),"") -> 0.02049145769 | V60: =IFERROR(INDEX('Data Annex'!$K$1:$BS$4779,MATCH(Assets!V$46&"|"&Assets!$B60,'Data Annex'!$K$1:$K$4779,0),MATCH(Assets!V$47,'Data Annex'!$K$1:$BS$1,0)),"") -> 0.01477667366 | W60: =IFERROR(INDEX('Data Annex'!$K$1:$BS$4779,MATCH(Assets!W$46&"|"&Assets!$B60,'Data Annex'!$K$1:$K$4779,0),MATCH(Assets!W$47,'Data Annex'!$K$1:$BS$1,0)),"") -> 0.01436729849
B61: ES | D61: ES | F61: =IFERROR(INDEX('Data Annex'!$K$1:$BS$4779,MATCH(Assets!F$46&"|"&Assets!$B61,'Data Annex'!$K$1:$K$4779,0),MATCH(Assets!F$47,'Data Annex'!$K$1:$BS$1,0)),"") -> 3650.771167 | G61: =IFERROR(INDEX('Data Annex'!$K$1:$BS$4779,MATCH(Assets!G$46&"|"&Assets!$B61,'Data Annex'!$K$1:$K$4779,0),MATCH(Assets!G$47,'Data Annex'!$K$1:$BS$1,0)),"") -> 3761.354872 | H61: =IFERROR(INDEX('Data Annex'!$K$1:$BS$4779,MATCH(Assets!H$46&"|"&Assets!$B61,'Data Annex'!$K$1:$K$4779,0),MATCH(Assets!H$47,'Data Annex'!$K$1:$BS$1,0)),"") -> 3750.850017 | I61: =IFERROR(INDEX('Data Annex'!$K$1:$BS$4779,MATCH(Assets!I$46&"|"&Assets!$B61,'Data Annex'!$K$1:$K$4779,0),MATCH(Assets!I$47,'Data Annex'!$K$1:$BS$1,0)),"") -> 3436.730703 | J61: =IFERROR(INDEX('Data Annex'!$K$1:$BS$4779,MATCH(Assets!J$46&"|"&Assets!$B61,'Data Annex'!$K$1:$K$4779,0),MATCH(Assets!J$47,'Data Annex'!$K$1:$BS$1,0)),"") -> 3548.591822 | K61: =IFERROR(INDEX('Data Annex'!$K$1:$BS$4779,MATCH(Assets!K$46&"|"&Assets!$B61,'Data Annex'!$K$1:$K$4779,0),MATCH(Assets!K$47,'Data Annex'!$K$1:$BS$1,0)),"") -> 3534.980504 | L61: 0.9424478419 | M61: ES | O61: =IFERROR(INDEX('Data Annex'!$K$1:$BS$4779,MATCH(Assets!O$46&"|"&Assets!$B61,'Data Annex'!$K$1:$K$4779,0),MATCH(Assets!O$47,'Data Annex'!$K$1:$BS$1,0)),"") -> 0.8623066684 | P61: =IFERROR(INDEX('Data Annex'!$K$1:$BS$4779,MATCH(Assets!P$46&"|"&Assets!$B61,'Data Annex'!$K$1:$K$4779,0),MATCH(Assets!P$47,'Data Annex'!$K$1:$BS$1,0)),"") -> 0.8491521384 | Q61: =IFERROR(INDEX('Data Annex'!$K$1:$BS$4779,MATCH(Assets!Q$46&"|"&Assets!$B61,'Data Annex'!$K$1:$K$4779,0),MATCH(Assets!Q$47,'Data Annex'!$K$1:$BS$1,0)),"") -> 0.8573261117 | R61: =IFERROR(INDEX('Data Annex'!$K$1:$BS$4779,MATCH(Assets!R$46&"|"&Assets!$B61,'Data Annex'!$K$1:$K$4779,0),MATCH(Assets!R$47,'Data Annex'!$K$1:$BS$1,0)),"") -> 0.04311764279 | S61: =IFERROR(INDEX('Data Annex'!$K$1:$BS$4779,MATCH(Assets!S$46&"|"&Assets!$B61,'Data Annex'!$K$1:$K$4779,0),MATCH(Assets!S$47,'Data Annex'!$K$1:$BS$1,0)),"") -> 0.03980796893 | T61: =IFERROR(INDEX('Data Annex'!$K$1:$BS$4779,MATCH(Assets!T$46&"|"&Assets!$B61,'Data Annex'!$K$1:$K$4779,0),MATCH(Assets!T$47,'Data Annex'!$K$1:$BS$1,0)),"") -> 0.03777011319 | U61: =IFERROR(INDEX('Data Annex'!$K$1:$BS$4779,MATCH(Assets!U$46&"|"&Assets!$B61,'Data Annex'!$K$1:$K$4779,0),MATCH(Assets!U$47,'Data Annex'!$K$1:$BS$1,0)),"") -> 0.09457568881 | V61: =IFERROR(INDEX('Data Annex'!$K$1:$BS$4779,MATCH(Assets!V$46&"|"&Assets!$B61,'Data Annex'!$K$1:$K$4779,0),MATCH(Assets!V$47,'Data Annex'!$K$1:$BS$1,0)),"") -> 0.1110398927 | W61: =IFERROR(INDEX('Data Annex'!$K$1:$BS$4779,MATCH(Assets!W$46&"|"&Assets!$B61,'Data Annex'!$K$1:$K$4779,0),MATCH(Assets!W$47,'Data Annex'!$K$1:$BS$1,0)),"") -> 0.1049037751
B62: FI | D62: FI | F62: =IFERROR(INDEX('Data Annex'!$K$1:$BS$4779,MATCH(Assets!F$46&"|"&Assets!$B62,'Data Annex'!$K$1:$K$4779,0),MATCH(Assets!F$47,'Data Annex'!$K$1:$BS$1,0)),"") -> 733.029499 | G62: =IFERROR(INDEX('Data Annex'!$K$1:$BS$4779,MATCH(Assets!G$46&"|"&Assets!$B62,'Data Annex'!$K$1:$K$4779,0),MATCH(Assets!G$47,'Data Annex'!$K$1:$BS$1,0)),"") -> 724.9278518 | H62: =IFERROR(INDEX('Data Annex'!$K$1:$BS$4779,MATCH(Assets!H$46&"|"&Assets!$B62,'Data Annex'!$K$1:$K$4779,0),MATCH(Assets!H$47,'Data Annex'!$K$1:$BS$1,0)),"") -> 700.6011716 | I62: =IFERROR(INDEX('Data Annex'!$K$1:$BS$4779,MATCH(Assets!I$46&"|"&Assets!$B62,'Data Annex'!$K$1:$K$4779,0),MATCH(Assets!I$47,'Data Annex'!$K$1:$BS$1,0)),"") -> 721.1461167 | J62: =IFERROR(INDEX('Data Annex'!$K$1:$BS$4779,MATCH(Assets!J$46&"|"&Assets!$B62,'Data Annex'!$K$1:$K$4779,0),MATCH(Assets!J$47,'Data Annex'!$K$1:$BS$1,0)),"") -> 713.6883278 | K62: =IFERROR(INDEX('Data Annex'!$K$1:$BS$4779,MATCH(Assets!K$46&"|"&Assets!$B62,'Data Annex'!$K$1:$K$4779,0),MATCH(Assets!K$47,'Data Annex'!$K$1:$BS$1,0)),"") -> 689.1863145 | L62: 0.9837070539 | M62: FI | O62: =IFERROR(INDEX('Data Annex'!$K$1:$BS$4779,MATCH(Assets!O$46&"|"&Assets!$B62,'Data Annex'!$K$1:$K$4779,0),MATCH(Assets!O$47,'Data Annex'!$K$1:$BS$1,0)),"") -> 0.7193180477 | P62: =IFERROR(INDEX('Data Annex'!$K$1:$BS$4779,MATCH(Assets!P$46&"|"&Assets!$B62,'Data Annex'!$K$1:$K$4779,0),MATCH(Assets!P$47,'Data Annex'!$K$1:$BS$1,0)),"") -> 0.6886798959 | Q62: =IFERROR(INDEX('Data Annex'!$K$1:$BS$4779,MATCH(Assets!Q$46&"|"&Assets!$B62,'Data Annex'!$K$1:$K$4779,0),MATCH(Assets!Q$47,'Data Annex'!$K$1:$BS$1,0)),"") -> 0.7120569213 | R62: =IFERROR(INDEX('Data Annex'!$K$1:$BS$4779,MATCH(Assets!R$46&"|"&Assets!$B62,'Data Annex'!$K$1:$K$4779,0),MATCH(Assets!R$47,'Data Annex'!$K$1:$BS$1,0)),"") -> 0.06165284961 | S62: =IFERROR(INDEX('Data Annex'!$K$1:$BS$4779,MATCH(Assets!S$46&"|"&Assets!$B62,'Data Annex'!$K$1:$K$4779,0),MATCH(Assets!S$47,'Data Annex'!$K$1:$BS$1,0)),"") -> 0.0633680257 | T62: =IFERROR(INDEX('Data Annex'!$K$1:$BS$4779,MATCH(Assets!T$46&"|"&Assets!$B62,'Data Annex'!$K$1:$K$4779,0),MATCH(Assets!T$47,'Data Annex'!$K$1:$BS$1,0)),"") -> 0.06950180727 | U62: =IFERROR(INDEX('Data Annex'!$K$1:$BS$4779,MATCH(Assets!U$46&"|"&Assets!$B62,'Data Annex'!$K$1:$K$4779,0),MATCH(Assets!U$47,'Data Annex'!$K$1:$BS$1,0)),"") -> 0.2190291027 | V62: =IFERROR(INDEX('Data Annex'!$K$1:$BS$4779,MATCH(Assets!V$46&"|"&Assets!$B62,'Data Annex'!$K$1:$K$4779,0),MATCH(Assets!V$47,'Data Annex'!$K$1:$BS$1,0)),"") -> 0.2479520783 | W62: =IFERROR(INDEX('Data Annex'!$K$1:$BS$4779,MATCH(Assets!W$46&"|"&Assets!$B62,'Data Annex'!$K$1:$K$4779,0),MATCH(Assets!W$47,'Data Annex'!$K$1:$BS$1,0)),"") -> 0.2184412715
B63: FR | D63: FR | F63: =IFERROR(INDEX('Data Annex'!$K$1:$BS$4779,MATCH(Assets!F$46&"|"&Assets!$B63,'Data Annex'!$K$1:$K$4779,0),MATCH(Assets!F$47,'Data Annex'!$K$1:$BS$1,0)),"") -> 8874.944925 | G63: =IFERROR(INDEX('Data Annex'!$K$1:$BS$4779,MATCH(Assets!G$46&"|"&Assets!$B63,'Data Annex'!$K$1:$K$4779,0),MATCH(Assets!G$47,'Data Annex'!$K$1:$BS$1,0)),"") -> 9182.177682 | H63: =IFERROR(INDEX('Data Annex'!$K$1:$BS$4779,MATCH(Assets!H$46&"|"&Assets!$B63,'Data Annex'!$K$1:$K$4779,0),MATCH(Assets!H$47,'Data Annex'!$K$1:$BS$1,0)),"") -> 9004.973695 | I63: =IFERROR(INDEX('Data Annex'!$K$1:$BS$4779,MATCH(Assets!I$46&"|"&Assets!$B63,'Data Annex'!$K$1:$K$4779,0),MATCH(Assets!I$47,'Data Annex'!$K$1:$BS$1,0)),"") -> 8219.843267 | J63: =IFERROR(INDEX('Data Annex'!$K$1:$BS$4779,MATCH(Assets!J$46&"|"&Assets!$B63,'Data Annex'!$K$1:$K$4779,0),MATCH(Assets!J$47,'Data Annex'!$K$1:$BS$1,0)),"") -> 8626.986003 | K63: =IFERROR(INDEX('Data Annex'!$K$1:$BS$4779,MATCH(Assets!K$46&"|"&Assets!$B63,'Data Annex'!$K$1:$K$4779,0),MATCH(Assets!K$47,'Data Annex'!$K$1:$BS$1,0)),"") -> 8414.415184 | L63: 0.9344186301 | M63: FR | O63: =IFERROR(INDEX('Data Annex'!$K$1:$BS$4779,MATCH(Assets!O$46&"|"&Assets!$B63,'Data Annex'!$K$1:$K$4779,0),MATCH(Assets!O$47,'Data Annex'!$K$1:$BS$1,0)),"") -> 0.7585822353 | P63: =IFERROR(INDEX('Data Annex'!$K$1:$BS$4779,MATCH(Assets!P$46&"|"&Assets!$B63,'Data Annex'!$K$1:$K$4779,0),MATCH(Assets!P$47,'Data Annex'!$K$1:$BS$1,0)),"") -> 0.7276587013 | Q63: =IFERROR(INDEX('Data Annex'!$K$1:$BS$4779,MATCH(Assets!Q$46&"|"&Assets!$B63,'Data Annex'!$K$1:$K$4779,0),MATCH(Assets!Q$47,'Data Annex'!$K$1:$BS$1,0)),"") -> 0.7462226872 | R63: =IFERROR(INDEX('Data Annex'!$K$1:$BS$4779,MATCH(Assets!R$46&"|"&Assets!$B63,'Data Annex'!$K$1:$K$4779,0),MATCH(Assets!R$47,'Data Annex'!$K$1:$BS$1,0)),"") -> 0.02988009312 | S63: =IFERROR(INDEX('Data Annex'!$K$1:$BS$4779,MATCH(Assets!S$46&"|"&Assets!$B63,'Data Annex'!$K$1:$K$4779,0),MATCH(Assets!S$47,'Data Annex'!$K$1:$BS$1,0)),"") -> 0.02957701638 | T63: =IFERROR(INDEX('Data Annex'!$K$1:$BS$4779,MATCH(Assets!T$46&"|"&Assets!$B63,'Data Annex'!$K$1:$K$4779,0),MATCH(Assets!T$47,'Data Annex'!$K$1:$BS$1,0)),"") -> 0.03256009371 | U63: =IFERROR(INDEX('Data Annex'!$K$1:$BS$4779,MATCH(Assets!U$46&"|"&Assets!$B63,'Data Annex'!$K$1:$K$4779,0),MATCH(Assets!U$47,'Data Annex'!$K$1:$BS$1,0)),"") -> 0.2115376716 | V63: =IFERROR(INDEX('Data Annex'!$K$1:$BS$4779,MATCH(Assets!V$46&"|"&Assets!$B63,'Data Annex'!$K$1:$K$4779,0),MATCH(Assets!V$47,'Data Annex'!$K$1:$BS$1,0)),"") -> 0.2427642823 | W63: =IFERROR(INDEX('Data Annex'!$K$1:$BS$4779,MATCH(Assets!W$46&"|"&Assets!$B63,'Data Annex'!$K$1:$K$4779,0),MATCH(Assets!W$47,'Data Annex'!$K$1:$BS$1,0)),"") -> 0.2212172191
B64: GR | D64: GR | F64: =IFERROR(INDEX('Data Annex'!$K$1:$BS$4779,MATCH(Assets!F$46&"|"&Assets!$B64,'Data Annex'!$K$1:$K$4779,0),MATCH(Assets!F$47,'Data Annex'!$K$1:$BS$1,0)),"") -> 312.5411505 | G64: =IFERROR(INDEX('Data Annex'!$K$1:$BS$4779,MATCH(Assets!G$46&"|"&Assets!$B64,'Data Annex'!$K$1:$K$4779,0),MATCH(Assets!G$47,'Data Annex'!$K$1:$BS$1,0)),"") -> 307.1557219 | H64: =IFERROR(INDEX('Data Annex'!$K$1:$BS$4779,MATCH(Assets!H$46&"|"&Assets!$B64,'Data Annex'!$K$1:$K$4779,0),MATCH(Assets!H$47,'Data Annex'!$K$1:$BS$1,0)),"") -> 303.5049988 | I64: =IFERROR(INDEX('Data Annex'!$K$1:$BS$4779,MATCH(Assets!I$46&"|"&Assets!$B64,'Data Annex'!$K$1:$K$4779,0),MATCH(Assets!I$47,'Data Annex'!$K$1:$BS$1,0)),"") -> 270.9658903 | J64: =IFERROR(INDEX('Data Annex'!$K$1:$BS$4779,MATCH(Assets!J$46&"|"&Assets!$B64,'Data Annex'!$K$1:$K$4779,0),MATCH(Assets!J$47,'Data Annex'!$K$1:$BS$1,0)),"") -> 263.2712417 | K64: =IFERROR(INDEX('Data Annex'!$K$1:$BS$4779,MATCH(Assets!K$46&"|"&Assets!$B64,'Data Annex'!$K$1:$K$4779,0),MATCH(Assets!K$47,'Data Annex'!$K$1:$BS$1,0)),"") -> 259.2795702 | L64: 0.8542843486 | M64: GR | O64: =IFERROR(INDEX('Data Annex'!$K$1:$BS$4779,MATCH(Assets!O$46&"|"&Assets!$B64,'Data Annex'!$K$1:$K$4779,0),MATCH(Assets!O$47,'Data Annex'!$K$1:$BS$1,0)),"") -> 0.9311848076 | P64: =IFERROR(INDEX('Data Annex'!$K$1:$BS$4779,MATCH(Assets!P$46&"|"&Assets!$B64,'Data Annex'!$K$1:$K$4779,0),MATCH(Assets!P$47,'Data Annex'!$K$1:$BS$1,0)),"") -> 0.920264208 | Q64: =IFERROR(INDEX('Data Annex'!$K$1:$BS$4779,MATCH(Assets!Q$46&"|"&Assets!$B64,'Data Annex'!$K$1:$K$4779,0),MATCH(Assets!Q$47,'Data Annex'!$K$1:$BS$1,0)),"") -> 0.9303353117 | R64: =IFERROR(INDEX('Data Annex'!$K$1:$BS$4779,MATCH(Assets!R$46&"|"&Assets!$B64,'Data Annex'!$K$1:$K$4779,0),MATCH(Assets!R$47,'Data Annex'!$K$1:$BS$1,0)),"") -> 0.03277486737 | S64: =IFERROR(INDEX('Data Annex'!$K$1:$BS$4779,MATCH(Assets!S$46&"|"&Assets!$B64,'Data Annex'!$K$1:$K$4779,0),MATCH(Assets!S$47,'Data Annex'!$K$1:$BS$1,0)),"") -> 0.03544783578 | T64: =IFERROR(INDEX('Data Annex'!$K$1:$BS$4779,MATCH(Assets!T$46&"|"&Assets!$B64,'Data Annex'!$K$1:$K$4779,0),MATCH(Assets!T$47,'Data Annex'!$K$1:$BS$1,0)),"") -> 0.03615799798 | U64: =IFERROR(INDEX('Data Annex'!$K$1:$BS$4779,MATCH(Assets!U$46&"|"&Assets!$B64,'Data Annex'!$K$1:$K$4779,0),MATCH(Assets!U$47,'Data Annex'!$K$1:$BS$1,0)),"") -> 0.03604032502 | V64: =IFERROR(INDEX('Data Annex'!$K$1:$BS$4779,MATCH(Assets!V$46&"|"&Assets!$B64,'Data Annex'!$K$1:$K$4779,0),MATCH(Assets!V$47,'Data Annex'!$K$1:$BS$1,0)),"") -> 0.04428795622 | W64: =IFERROR(INDEX('Data Annex'!$K$1:$BS$4779,MATCH(Assets!W$46&"|"&Assets!$B64,'Data Annex'!$K$1:$K$4779,0),MATCH(Assets!W$47,'Data Annex'!$K$1:$BS$1,0)),"") -> 0.03350669034
B65: HR | D65: HR | F65: =IFERROR(INDEX('Data Annex'!$K$1:$BS$4779,MATCH(Assets!F$46&"|"&Assets!$B65,'Data Annex'!$K$1:$K$4779,0),MATCH(Assets!F$47,'Data Annex'!$K$1:$BS$1,0)),"") -> 59.51400986 | G65: =IFERROR(INDEX('Data Annex'!$K$1:$BS$4779,MATCH(Assets!G$46&"|"&Assets!$B65,'Data Annex'!$K$1:$K$4779,0),MATCH(Assets!G$47,'Data Annex'!$K$1:$BS$1,0)),"") -> 61.68592779 | H65: =IFERROR(INDEX('Data Annex'!$K$1:$BS$4779,MATCH(Assets!H$46&"|"&Assets!$B65,'Data Annex'!$K$1:$K$4779,0),MATCH(Assets!H$47,'Data Annex'!$K$1:$BS$1,0)),"") -> 61.03578508 | I65: =IFERROR(INDEX('Data Annex'!$K$1:$BS$4779,MATCH(Assets!I$46&"|"&Assets!$B65,'Data Annex'!$K$1:$K$4779,0),MATCH(Assets!I$47,'Data Annex'!$K$1:$BS$1,0)),"") -> 58.35231302 | J65: =IFERROR(INDEX('Data Annex'!$K$1:$BS$4779,MATCH(Assets!J$46&"|"&Assets!$B65,'Data Annex'!$K$1:$K$4779,0),MATCH(Assets!J$47,'Data Annex'!$K$1:$BS$1,0)),"") -> 60.53388375 | K65: =IFERROR(INDEX('Data Annex'!$K$1:$BS$4779,MATCH(Assets!K$46&"|"&Assets!$B65,'Data Annex'!$K$1:$K$4779,0),MATCH(Assets!K$47,'Data Annex'!$K$1:$BS$1,0)),"") -> 59.7960668 | L65: 0.979688665 | M65: HR | O65: =IFERROR(INDEX('Data Annex'!$K$1:$BS$4779,MATCH(Assets!O$46&"|"&Assets!$B65,'Data Annex'!$K$1:$K$4779,0),MATCH(Assets!O$47,'Data Annex'!$K$1:$BS$1,0)),"") -> 0.9304596143 | P65: =IFERROR(INDEX('Data Annex'!$K$1:$BS$4779,MATCH(Assets!P$46&"|"&Assets!$B65,'Data Annex'!$K$1:$K$4779,0),MATCH(Assets!P$47,'Data Annex'!$K$1:$BS$1,0)),"") -> 0.9292135683 | Q65: =IFERROR(INDEX('Data Annex'!$K$1:$BS$4779,MATCH(Assets!Q$46&"|"&Assets!$B65,'Data Annex'!$K$1:$K$4779,0),MATCH(Assets!Q$47,'Data Annex'!$K$1:$BS$1,0)),"") -> 0.9323739829 | R65: =IFERROR(INDEX('Data Annex'!$K$1:$BS$4779,MATCH(Assets!R$46&"|"&Assets!$B65,'Data Annex'!$K$1:$K$4779,0),MATCH(Assets!R$47,'Data Annex'!$K$1:$BS$1,0)),"") -> 0.06125776388 | S65: =IFERROR(INDEX('Data Annex'!$K$1:$BS$4779,MATCH(Assets!S$46&"|"&Assets!$B65,'Data Annex'!$K$1:$K$4779,0),MATCH(Assets!S$47,'Data Annex'!$K$1:$BS$1,0)),"") -> 0.06327369767 | T65: =IFERROR(INDEX('Data Annex'!$K$1:$BS$4779,MATCH(Assets!T$46&"|"&Assets!$B65,'Data Annex'!$K$1:$K$4779,0),MATCH(Assets!T$47,'Data Annex'!$K$1:$BS$1,0)),"") -> 0.0600704064 | U65: =IFERROR(INDEX('Data Annex'!$K$1:$BS$4779,MATCH(Assets!U$46&"|"&Assets!$B65,'Data Annex'!$K$1:$K$4779,0),MATCH(Assets!U$47,'Data Annex'!$K$1:$BS$1,0)),"") -> 0.008282621797 | V65: =IFERROR(INDEX('Data Annex'!$K$1:$BS$4779,MATCH(Assets!V$46&"|"&Assets!$B65,'Data Annex'!$K$1:$K$4779,0),MATCH(Assets!V$47,'Data Annex'!$K$1:$BS$1,0)),"") -> 0.007512734028 | W65: =IFERROR(INDEX('Data Annex'!$K$1:$BS$4779,MATCH(Assets!W$46&"|"&Assets!$B65,'Data Annex'!$K$1:$K$4779,0),MATCH(Assets!W$47,'Data Annex'!$K$1:$BS$1,0)),"") -> 0.007555610706
B66: HU | D66: HU | F66: =IFERROR(INDEX('Data Annex'!$K$1:$BS$4779,MATCH(Assets!F$46&"|"&Assets!$B66,'Data Annex'!$K$1:$K$4779,0),MATCH(Assets!F$47,'Data Annex'!$K$1:$BS$1,0)),"") -> 135.6627322 | G66: =IFERROR(INDEX('Data Annex'!$K$1:$BS$4779,MATCH(Assets!G$46&"|"&Assets!$B66,'Data Annex'!$K$1:$K$4779,0),MATCH(Assets!G$47,'Data Annex'!$K$1:$BS$1,0)),"") -> 143.7583914 | H66: =IFERROR(INDEX('Data Annex'!$K$1:$BS$4779,MATCH(Assets!H$46&"|"&Assets!$B66,'Data Annex'!$K$1:$K$4779,0),MATCH(Assets!H$47,'Data Annex'!$K$1:$BS$1,0)),"") -> 148.1830929 | I66: =IFERROR(INDEX('Data Annex'!$K$1:$BS$4779,MATCH(Assets!I$46&"|"&Assets!$B66,'Data Annex'!$K$1:$K$4779,0),MATCH(Assets!I$47,'Data Annex'!$K$1:$BS$1,0)),"") -> 131.9672347 | J66: =IFERROR(INDEX('Data Annex'!$K$1:$BS$4779,MATCH(Assets!J$46&"|"&Assets!$B66,'Data Annex'!$K$1:$K$4779,0),MATCH(Assets!J$47,'Data Annex'!$K$1:$BS$1,0)),"") -> 139.3478372 | K66: =IFERROR(INDEX('Data Annex'!$K$1:$BS$4779,MATCH(Assets!K$46&"|"&Assets!$B66,'Data Annex'!$K$1:$K$4779,0),MATCH(Assets!K$47,'Data Annex'!$K$1:$BS$1,0)),"") -> 143.4230709 | L66: 0.9678774285 | M66: HU | O66: =IFERROR(INDEX('Data Annex'!$K$1:$BS$4779,MATCH(Assets!O$46&"|"&Assets!$B66,'Data Annex'!$K$1:$K$4779,0),MATCH(Assets!O$47,'Data Annex'!$K$1:$BS$1,0)),"") -> 0.8752715743 | P66: =IFERROR(INDEX('Data Annex'!$K$1:$BS$4779,MATCH(Assets!P$46&"|"&Assets!$B66,'Data Annex'!$K$1:$K$4779,0),MATCH(Assets!P$47,'Data Annex'!$K$1:$BS$1,0)),"") -> 0.8901478697 | Q66: =IFERROR(INDEX('Data Annex'!$K$1:$BS$4779,MATCH(Assets!Q$46&"|"&Assets!$B66,'Data Annex'!$K$1:$K$4779,0),MATCH(Assets!Q$47,'Data Annex'!$K$1:$BS$1,0)),"") -> 0.8945745275 | R66: =IFERROR(INDEX('Data Annex'!$K$1:$BS$4779,MATCH(Assets!R$46&"|"&Assets!$B66,'Data Annex'!$K$1:$K$4779,0),MATCH(Assets!R$47,'Data Annex'!$K$1:$BS$1,0)),"") -> 0.04996406183 | S66: =IFERROR(INDEX('Data Annex'!$K$1:$BS$4779,MATCH(Assets!S$46&"|"&Assets!$B66,'Data Annex'!$K$1:$K$4779,0),MATCH(Assets!S$47,'Data Annex'!$K$1:$BS$1,0)),"") -> 0.04800569016 | T66: =IFERROR(INDEX('Data Annex'!$K$1:$BS$4779,MATCH(Assets!T$46&"|"&Assets!$B66,'Data Annex'!$K$1:$K$4779,0),MATCH(Assets!T$47,'Data Annex'!$K$1:$BS$1,0)),"") -> 0.0492915663 | U66: =IFERROR(INDEX('Data Annex'!$K$1:$BS$4779,MATCH(Assets!U$46&"|"&Assets!$B66,'Data Annex'!$K$1:$K$4779,0),MATCH(Assets!U$47,'Data Annex'!$K$1:$BS$1,0)),"") -> 0.07476436391 | V66: =IFERROR(INDEX('Data Annex'!$K$1:$BS$4779,MATCH(Assets!V$46&"|"&Assets!$B66,'Data Annex'!$K$1:$K$4779,0),MATCH(Assets!V$47,'Data Annex'!$K$1:$BS$1,0)),"") -> 0.06184644013 | W66: =IFERROR(INDEX('Data Annex'!$K$1:$BS$4779,MATCH(Assets!W$46&"|"&Assets!$B66,'Data Annex'!$K$1:$K$4779,0),MATCH(Assets!W$47,'Data Annex'!$K$1:$BS$1,0)),"") -> 0.05613390622
B67: IE | D67: IE | F67: =IFERROR(INDEX('Data Annex'!$K$1:$BS$4779,MATCH(Assets!F$46&"|"&Assets!$B67,'Data Annex'!$K$1:$K$4779,0),MATCH(Assets!F$47,'Data Annex'!$K$1:$BS$1,0)),"") -> 381.8632855 | G67: =IFERROR(INDEX('Data Annex'!$K$1:$BS$4779,MATCH(Assets!G$46&"|"&Assets!$B67,'Data Annex'!$K$1:$K$4779,0),MATCH(Assets!G$47,'Data Annex'!$K$1:$BS$1,0)),"") -> 398.6127883 | H67: =IFERROR(INDEX('Data Annex'!$K$1:$BS$4779,MATCH(Assets!H$46&"|"&Assets!$B67,'Data Annex'!$K$1:$K$4779,0),MATCH(Assets!H$47,'Data Annex'!$K$1:$BS$1,0)),"") -> 409.5178126 | I67: =IFERROR(INDEX('Data Annex'!$K$1:$BS$4779,MATCH(Assets!I$46&"|"&Assets!$B67,'Data Annex'!$K$1:$K$4779,0),MATCH(Assets!I$47,'Data Annex'!$K$1:$BS$1,0)),"") -> 362.0857069 | J67: =IFERROR(INDEX('Data Annex'!$K$1:$BS$4779,MATCH(Assets!J$46&"|"&Assets!$B67,'Data Annex'!$K$1:$K$4779,0),MATCH(Assets!J$47,'Data Annex'!$K$1:$BS$1,0)),"") -> 372.315758 | K67: =IFERROR(INDEX('Data Annex'!$K$1:$BS$4779,MATCH(Assets!K$46&"|"&Assets!$B67,'Data Annex'!$K$1:$K$4779,0),MATCH(Assets!K$47,'Data Annex'!$K$1:$BS$1,0)),"") -> 389.7489341 | L67: 0.9517264504 | M67: IE | O67: =IFERROR(INDEX('Data Annex'!$K$1:$BS$4779,MATCH(Assets!O$46&"|"&Assets!$B67,'Data Annex'!$K$1:$K$4779,0),MATCH(Assets!O$47,'Data Annex'!$K$1:$BS$1,0)),"") -> 0.7959153358 | P67: =IFERROR(INDEX('Data Annex'!$K$1:$BS$4779,MATCH(Assets!P$46&"|"&Assets!$B67,'Data Annex'!$K$1:$K$4779,0),MATCH(Assets!P$47,'Data Annex'!$K$1:$BS$1,0)),"") -> 0.8010128453 | Q67: =IFERROR(INDEX('Data Annex'!$K$1:$BS$4779,MATCH(Assets!Q$46&"|"&Assets!$B67,'Data Annex'!$K$1:$K$4779,0),MATCH(Assets!Q$47,'Data Annex'!$K$1:$BS$1,0)),"") -> 0.806556202 | R67: =IFERROR(INDEX('Data Annex'!$K$1:$BS$4779,MATCH(Assets!R$46&"|"&Assets!$B67,'Data Annex'!$K$1:$K$4779,0),MATCH(Assets!R$47,'Data Annex'!$K$1:$BS$1,0)),"") -> 0.06785908771 | S67: =IFERROR(INDEX('Data Annex'!$K$1:$BS$4779,MATCH(Assets!S$46&"|"&Assets!$B67,'Data Annex'!$K$1:$K$4779,0),MATCH(Assets!S$47,'Data Annex'!$K$1:$BS$1,0)),"") -> 0.06551792109 | T67: =IFERROR(INDEX('Data Annex'!$K$1:$BS$4779,MATCH(Assets!T$46&"|"&Assets!$B67,'Data Annex'!$K$1:$K$4779,0),MATCH(Assets!T$47,'Data Annex'!$K$1:$BS$1,0)),"") -> 0.08224775062 | U67: =IFERROR(INDEX('Data Annex'!$K$1:$BS$4779,MATCH(Assets!U$46&"|"&Assets!$B67,'Data Annex'!$K$1:$K$4779,0),MATCH(Assets!U$47,'Data Annex'!$K$1:$BS$1,0)),"") -> 0.1362255765 | V67: =IFERROR(INDEX('Data Annex'!$K$1:$BS$4779,MATCH(Assets!V$46&"|"&Assets!$B67,'Data Annex'!$K$1:$K$4779,0),MATCH(Assets!V$47,'Data Annex'!$K$1:$BS$1,0)),"") -> 0.1334692336 | W67: =IFERROR(INDEX('Data Annex'!$K$1:$BS$4779,MATCH(Assets!W$46&"|"&Assets!$B67,'Data Annex'!$K$1:$K$4779,0),MATCH(Assets!W$47,'Data Annex'!$K$1:$BS$1,0)),"") -> 0.1111960474
B68: IS | D68: IS | F68: =IFERROR(INDEX('Data Annex'!$K$1:$BS$4779,MATCH(Assets!F$46&"|"&Assets!$B68,'Data Annex'!$K$1:$K$4779,0),MATCH(Assets!F$47,'Data Annex'!$K$1:$BS$1,0)),"") -> 31.83375359 | G68: =IFERROR(INDEX('Data Annex'!$K$1:$BS$4779,MATCH(Assets!G$46&"|"&Assets!$B68,'Data Annex'!$K$1:$K$4779,0),MATCH(Assets!G$47,'Data Annex'!$K$1:$BS$1,0)),"") -> 35.65679542 | H68: =IFERROR(INDEX('Data Annex'!$K$1:$BS$4779,MATCH(Assets!H$46&"|"&Assets!$B68,'Data Annex'!$K$1:$K$4779,0),MATCH(Assets!H$47,'Data Annex'!$K$1:$BS$1,0)),"") -> 33.68200829 | I68: =IFERROR(INDEX('Data Annex'!$K$1:$BS$4779,MATCH(Assets!I$46&"|"&Assets!$B68,'Data Annex'!$K$1:$K$4779,0),MATCH(Assets!I$47,'Data Annex'!$K$1:$BS$1,0)),"") -> 31.3261193 | J68: =IFERROR(INDEX('Data Annex'!$K$1:$BS$4779,MATCH(Assets!J$46&"|"&Assets!$B68,'Data Annex'!$K$1:$K$4779,0),MATCH(Assets!J$47,'Data Annex'!$K$1:$BS$1,0)),"") -> 34.87670068 | K68: =IFERROR(INDEX('Data Annex'!$K$1:$BS$4779,MATCH(Assets!K$46&"|"&Assets!$B68,'Data Annex'!$K$1:$K$4779,0),MATCH(Assets!K$47,'Data Annex'!$K$1:$BS$1,0)),"") -> 33.15075635 | L68: 0.9842274266 | M68: IS | O68: =IFERROR(INDEX('Data Annex'!$K$1:$BS$4779,MATCH(Assets!O$46&"|"&Assets!$B68,'Data Annex'!$K$1:$K$4779,0),MATCH(Assets!O$47,'Data Annex'!$K$1:$BS$1,0)),"") -> 0.8914982412 | P68: =IFERROR(INDEX('Data Annex'!$K$1:$BS$4779,MATCH(Assets!P$46&"|"&Assets!$B68,'Data Annex'!$K$1:$K$4779,0),MATCH(Assets!P$47,'Data Annex'!$K$1:$BS$1,0)),"") -> 0.8845501349 | Q68: =IFERROR(INDEX('Data Annex'!$K$1:$BS$4779,MATCH(Assets!Q$46&"|"&Assets!$B68,'Data Annex'!$K$1:$K$4779,0),MATCH(Assets!Q$47,'Data Annex'!$K$1:$BS$1,0)),"") -> 0.8844856284 | R68: =IFERROR(INDEX('Data Annex'!$K$1:$BS$4779,MATCH(Assets!R$46&"|"&Assets!$B68,'Data Annex'!$K$1:$K$4779,0),MATCH(Assets!R$47,'Data Annex'!$K$1:$BS$1,0)),"") -> 0.02440131101 | S68: =IFERROR(INDEX('Data Annex'!$K$1:$BS$4779,MATCH(Assets!S$46&"|"&Assets!$B68,'Data Annex'!$K$1:$K$4779,0),MATCH(Assets!S$47,'Data Annex'!$K$1:$BS$1,0)),"") -> 0.02960995441 | T68: =IFERROR(INDEX('Data Annex'!$K$1:$BS$4779,MATCH(Assets!T$46&"|"&Assets!$B68,'Data Annex'!$K$1:$K$4779,0),MATCH(Assets!T$47,'Data Annex'!$K$1:$BS$1,0)),"") -> 0.02596893492 | U68: =IFERROR(INDEX('Data Annex'!$K$1:$BS$4779,MATCH(Assets!U$46&"|"&Assets!$B68,'Data Annex'!$K$1:$K$4779,0),MATCH(Assets!U$47,'Data Annex'!$K$1:$BS$1,0)),"") -> 0.08410044774 | V68: =IFERROR(INDEX('Data Annex'!$K$1:$BS$4779,MATCH(Assets!V$46&"|"&Assets!$B68,'Data Annex'!$K$1:$K$4779,0),MATCH(Assets!V$47,'Data Annex'!$K$1:$BS$1,0)),"") -> 0.08583991073 | W68: =IFERROR(INDEX('Data Annex'!$K$1:$BS$4779,MATCH(Assets!W$46&"|"&Assets!$B68,'Data Annex'!$K$1:$K$4779,0),MATCH(Assets!W$47,'Data Annex'!$K$1:$BS$1,0)),"") -> 0.08954543665
B69: IT | D69: IT | F69: =IFERROR(INDEX('Data Annex'!$K$1:$BS$4779,MATCH(Assets!F$46&"|"&Assets!$B69,'Data Annex'!$K$1:$K$4779,0),MATCH(Assets!F$47,'Data Annex'!$K$1:$BS$1,0)),"") -> 2668.250435 | G69: =IFERROR(INDEX('Data Annex'!$K$1:$BS$4779,MATCH(Assets!G$46&"|"&Assets!$B69,'Data Annex'!$K$1:$K$4779,0),MATCH(Assets!G$47,'Data Annex'!$K$1:$BS$1,0)),"") -> 2600.599636 | H69: =IFERROR(INDEX('Data Annex'!$K$1:$BS$4779,MATCH(Assets!H$46&"|"&Assets!$B69,'Data Annex'!$K$1:$K$4779,0),MATCH(Assets!H$47,'Data Annex'!$K$1:$BS$1,0)),"") -> 2574.206545 | I69: =IFERROR(INDEX('Data Annex'!$K$1:$BS$4779,MATCH(Assets!I$46&"|"&Assets!$B69,'Data Annex'!$K$1:$K$4779,0),MATCH(Assets!I$47,'Data Annex'!$K$1:$BS$1,0)),"") -> 2521.095342 | J69: =IFERROR(INDEX('Data Annex'!$K$1:$BS$4779,MATCH(Assets!J$46&"|"&Assets!$B69,'Data Annex'!$K$1:$K$4779,0),MATCH(Assets!J$47,'Data Annex'!$K$1:$BS$1,0)),"") -> 2445.883916 | K69: =IFERROR(INDEX('Data Annex'!$K$1:$BS$4779,MATCH(Assets!K$46&"|"&Assets!$B69,'Data Annex'!$K$1:$K$4779,0),MATCH(Assets!K$47,'Data Annex'!$K$1:$BS$1,0)),"") -> 2404.530453 | L69: 0.9340860616 | M69: IT | O69: =IFERROR(INDEX('Data Annex'!$K$1:$BS$4779,MATCH(Assets!O$46&"|"&Assets!$B69,'Data Annex'!$K$1:$K$4779,0),MATCH(Assets!O$47,'Data Annex'!$K$1:$BS$1,0)),"") -> 0.8676553987 | P69: =IFERROR(INDEX('Data Annex'!$K$1:$BS$4779,MATCH(Assets!P$46&"|"&Assets!$B69,'Data Annex'!$K$1:$K$4779,0),MATCH(Assets!P$47,'Data Annex'!$K$1:$BS$1,0)),"") -> 0.8588948886 | Q69: =IFERROR(INDEX('Data Annex'!$K$1:$BS$4779,MATCH(Assets!Q$46&"|"&Assets!$B69,'Data Annex'!$K$1:$K$4779,0),MATCH(Assets!Q$47,'Data Annex'!$K$1:$BS$1,0)),"") -> 0.8585344895 | R69: =IFERROR(INDEX('Data Annex'!$K$1:$BS$4779,MATCH(Assets!R$46&"|"&Assets!$B69,'Data Annex'!$K$1:$K$4779,0),MATCH(Assets!R$47,'Data Annex'!$K$1:$BS$1,0)),"") -> 0.06298145071 | S69: =IFERROR(INDEX('Data Annex'!$K$1:$BS$4779,MATCH(Assets!S$46&"|"&Assets!$B69,'Data Annex'!$K$1:$K$4779,0),MATCH(Assets!S$47,'Data Annex'!$K$1:$BS$1,0)),"") -> 0.07150757968 | T69: =IFERROR(INDEX('Data Annex'!$K$1:$BS$4779,MATCH(Assets!T$46&"|"&Assets!$B69,'Data Annex'!$K$1:$K$4779,0),MATCH(Assets!T$47,'Data Annex'!$K$1:$BS$1,0)),"") -> 0.07732244413 | U69: =IFERROR(INDEX('Data Annex'!$K$1:$BS$4779,MATCH(Assets!U$46&"|"&Assets!$B69,'Data Annex'!$K$1:$K$4779,0),MATCH(Assets!U$47,'Data Annex'!$K$1:$BS$1,0)),"") -> 0.06936315057 | V69: =IFERROR(INDEX('Data Annex'!$K$1:$BS$4779,MATCH(Assets!V$46&"|"&Assets!$B69,'Data Annex'!$K$1:$K$4779,0),MATCH(Assets!V$47,'Data Annex'!$K$1:$BS$1,0)),"") -> 0.06959753169 | W69: =IFERROR(INDEX('Data Annex'!$K$1:$BS$4779,MATCH(Assets!W$46&"|"&Assets!$B69,'Data Annex'!$K$1:$K$4779,0),MATCH(Assets!W$47,'Data Annex'!$K$1:$BS$1,0)),"") -> 0.06414306641
B70: LI | D70: LI | F70: =IFERROR(INDEX('Data Annex'!$K$1:$BS$4779,MATCH(Assets!F$46&"|"&Assets!$B70,'Data Annex'!$K$1:$K$4779,0),MATCH(Assets!F$47,'Data Annex'!$K$1:$BS$1,0)),"") -> 100.4865525 | G70: =IFERROR(INDEX('Data Annex'!$K$1:$BS$4779,MATCH(Assets!G$46&"|"&Assets!$B70,'Data Annex'!$K$1:$K$4779,0),MATCH(Assets!G$47,'Data Annex'!$K$1:$BS$1,0)),"") -> 101.2271026 | H70: =IFERROR(INDEX('Data Annex'!$K$1:$BS$4779,MATCH(Assets!H$46&"|"&Assets!$B70,'Data Annex'!$K$1:$K$4779,0),MATCH(Assets!H$47,'Data Annex'!$K$1:$BS$1,0)),"") -> 102.888394 | I70: =IFERROR(INDEX('Data Annex'!$K$1:$BS$4779,MATCH(Assets!I$46&"|"&Assets!$B70,'Data Annex'!$K$1:$K$4779,0),MATCH(Assets!I$47,'Data Annex'!$K$1:$BS$1,0)),"") -> 96.62211629 | J70: =IFERROR(INDEX('Data Annex'!$K$1:$BS$4779,MATCH(Assets!J$46&"|"&Assets!$B70,'Data Annex'!$K$1:$K$4779,0),MATCH(Assets!J$47,'Data Annex'!$K$1:$BS$1,0)),"") -> 97.24095685 | K70: =IFERROR(INDEX('Data Annex'!$K$1:$BS$4779,MATCH(Assets!K$46&"|"&Assets!$B70,'Data Annex'!$K$1:$K$4779,0),MATCH(Assets!K$47,'Data Annex'!$K$1:$BS$1,0)),"") -> 98.71897229 | M70: LI | O70: =IFERROR(INDEX('Data Annex'!$K$1:$BS$4779,MATCH(Assets!O$46&"|"&Assets!$B70,'Data Annex'!$K$1:$K$4779,0),MATCH(Assets!O$47,'Data Annex'!$K$1:$BS$1,0)),"") -> 0.8339356438 | P70: =IFERROR(INDEX('Data Annex'!$K$1:$BS$4779,MATCH(Assets!P$46&"|"&Assets!$B70,'Data Annex'!$K$1:$K$4779,0),MATCH(Assets!P$47,'Data Annex'!$K$1:$BS$1,0)),"") -> 0.8346276286 | Q70: =IFERROR(INDEX('Data Annex'!$K$1:$BS$4779,MATCH(Assets!Q$46&"|"&Assets!$B70,'Data Annex'!$K$1:$K$4779,0),MATCH(Assets!Q$47,'Data Annex'!$K$1:$BS$1,0)),"") -> 0.8473650245 | R70: =IFERROR(INDEX('Data Annex'!$K$1:$BS$4779,MATCH(Assets!R$46&"|"&Assets!$B70,'Data Annex'!$K$1:$K$4779,0),MATCH(Assets!R$47,'Data Annex'!$K$1:$BS$1,0)),"") -> 0.1268561533 | S70: =IFERROR(INDEX('Data Annex'!$K$1:$BS$4779,MATCH(Assets!S$46&"|"&Assets!$B70,'Data Annex'!$K$1:$K$4779,0),MATCH(Assets!S$47,'Data Annex'!$K$1:$BS$1,0)),"") -> 0.1173328505 | T70: =IFERROR(INDEX('Data Annex'!$K$1:$BS$4779,MATCH(Assets!T$46&"|"&Assets!$B70,'Data Annex'!$K$1:$K$4779,0),MATCH(Assets!T$47,'Data Annex'!$K$1:$BS$1,0)),"") -> 0.1114316603 | U70: =IFERROR(INDEX('Data Annex'!$K$1:$BS$4779,MATCH(Assets!U$46&"|"&Assets!$B70,'Data Annex'!$K$1:$K$4779,0),MATCH(Assets!U$47,'Data Annex'!$K$1:$BS$1,0)),"") -> 0.03920820296 | V70: =IFERROR(INDEX('Data Annex'!$K$1:$BS$4779,MATCH(Assets!V$46&"|"&Assets!$B70,'Data Annex'!$K$1:$K$4779,0),MATCH(Assets!V$47,'Data Annex'!$K$1:$BS$1,0)),"") -> 0.04803952086 | W70: =IFERROR(INDEX('Data Annex'!$K$1:$BS$4779,MATCH(Assets!W$46&"|"&Assets!$B70,'Data Annex'!$K$1:$K$4779,0),MATCH(Assets!W$47,'Data Annex'!$K$1:$BS$1,0)),"") -> 0.0412033152
B71: LT | D71: LT | F71: =IFERROR(INDEX('Data Annex'!$K$1:$BS$4779,MATCH(Assets!F$46&"|"&Assets!$B71,'Data Annex'!$K$1:$K$4779,0),MATCH(Assets!F$47,'Data Annex'!$K$1:$BS$1,0)),"") -> 30.78591 | G71: =IFERROR(INDEX('Data Annex'!$K$1:$BS$4779,MATCH(Assets!G$46&"|"&Assets!$B71,'Data Annex'!$K$1:$K$4779,0),MATCH(Assets!G$47,'Data Annex'!$K$1:$BS$1,0)),"") -> 32.137517 | H71: =IFERROR(INDEX('Data Annex'!$K$1:$BS$4779,MATCH(Assets!H$46&"|"&Assets!$B71,'Data Annex'!$K$1:$K$4779,0),MATCH(Assets!H$47,'Data Annex'!$K$1:$BS$1,0)),"") -> 35.244102 | I71: =IFERROR(INDEX('Data Annex'!$K$1:$BS$4779,MATCH(Assets!I$46&"|"&Assets!$B71,'Data Annex'!$K$1:$K$4779,0),MATCH(Assets!I$47,'Data Annex'!$K$1:$BS$1,0)),"") -> 30.162291 | J71: =IFERROR(INDEX('Data Annex'!$K$1:$BS$4779,MATCH(Assets!J$46&"|"&Assets!$B71,'Data Annex'!$K$1:$K$4779,0),MATCH(Assets!J$47,'Data Annex'!$K$1:$BS$1,0)),"") -> 31.350644 | K71: =IFERROR(INDEX('Data Annex'!$K$1:$BS$4779,MATCH(Assets!K$46&"|"&Assets!$B71,'Data Annex'!$K$1:$K$4779,0),MATCH(Assets!K$47,'Data Annex'!$K$1:$BS$1,0)),"") -> 34.433743 | L71: 0.9770072451 | M71: LT | O71: =IFERROR(INDEX('Data Annex'!$K$1:$BS$4779,MATCH(Assets!O$46&"|"&Assets!$B71,'Data Annex'!$K$1:$K$4779,0),MATCH(Assets!O$47,'Data Annex'!$K$1:$BS$1,0)),"") -> 0.9537740353 | P71: =IFERROR(INDEX('Data Annex'!$K$1:$BS$4779,MATCH(Assets!P$46&"|"&Assets!$B71,'Data Annex'!$K$1:$K$4779,0),MATCH(Assets!P$47,'Data Annex'!$K$1:$BS$1,0)),"") -> 0.9575652098 | Q71: =IFERROR(INDEX('Data Annex'!$K$1:$BS$4779,MATCH(Assets!Q$46&"|"&Assets!$B71,'Data Annex'!$K$1:$K$4779,0),MATCH(Assets!Q$47,'Data Annex'!$K$1:$BS$1,0)),"") -> 0.9621052524 | R71: =IFERROR(INDEX('Data Annex'!$K$1:$BS$4779,MATCH(Assets!R$46&"|"&Assets!$B71,'Data Annex'!$K$1:$K$4779,0),MATCH(Assets!R$47,'Data Annex'!$K$1:$BS$1,0)),"") -> 0.002827901899 | S71: =IFERROR(INDEX('Data Annex'!$K$1:$BS$4779,MATCH(Assets!S$46&"|"&Assets!$B71,'Data Annex'!$K$1:$K$4779,0),MATCH(Assets!S$47,'Data Annex'!$K$1:$BS$1,0)),"") -> 0.00224295233 | T71: =IFERROR(INDEX('Data Annex'!$K$1:$BS$4779,MATCH(Assets!T$46&"|"&Assets!$B71,'Data Annex'!$K$1:$K$4779,0),MATCH(Assets!T$47,'Data Annex'!$K$1:$BS$1,0)),"") -> 0.002087574389 | U71: =IFERROR(INDEX('Data Annex'!$K$1:$BS$4779,MATCH(Assets!U$46&"|"&Assets!$B71,'Data Annex'!$K$1:$K$4779,0),MATCH(Assets!U$47,'Data Annex'!$K$1:$BS$1,0)),"") -> 0.04339806283 | V71: =IFERROR(INDEX('Data Annex'!$K$1:$BS$4779,MATCH(Assets!V$46&"|"&Assets!$B71,'Data Annex'!$K$1:$K$4779,0),MATCH(Assets!V$47,'Data Annex'!$K$1:$BS$1,0)),"") -> 0.04019183785 | W71: =IFERROR(INDEX('Data Annex'!$K$1:$BS$4779,MATCH(Assets!W$46&"|"&Assets!$B71,'Data Annex'!$K$1:$K$4779,0),MATCH(Assets!W$47,'Data Annex'!$K$1:$BS$1,0)),"") -> 0.03580717321
B72: LU | D72: LU | F72: =IFERROR(INDEX('Data Annex'!$K$1:$BS$4779,MATCH(Assets!F$46&"|"&Assets!$B72,'Data Annex'!$K$1:$K$4779,0),MATCH(Assets!F$47,'Data Annex'!$K$1:$BS$1,0)),"") -> 193.8144534 | G72: =IFERROR(INDEX('Data Annex'!$K$1:$BS$4779,MATCH(Assets!G$46&"|"&Assets!$B72,'Data Annex'!$K$1:$K$4779,0),MATCH(Assets!G$47,'Data Annex'!$K$1:$BS$1,0)),"") -> 191.5164683 | H72: =IFERROR(INDEX('Data Annex'!$K$1:$BS$4779,MATCH(Assets!H$46&"|"&Assets!$B72,'Data Annex'!$K$1:$K$4779,0),MATCH(Assets!H$47,'Data Annex'!$K$1:$BS$1,0)),"") -> 190.153527 | I72: =IFERROR(INDEX('Data Annex'!$K$1:$BS$4779,MATCH(Assets!I$46&"|"&Assets!$B72,'Data Annex'!$K$1:$K$4779,0),MATCH(Assets!I$47,'Data Annex'!$K$1:$BS$1,0)),"") -> 189.1624318 | J72: =IFERROR(INDEX('Data Annex'!$K$1:$BS$4779,MATCH(Assets!J$46&"|"&Assets!$B72,'Data Annex'!$K$1:$K$4779,0),MATCH(Assets!J$47,'Data Annex'!$K$1:$BS$1,0)),"") -> 186.478042 | K72: =IFERROR(INDEX('Data Annex'!$K$1:$BS$4779,MATCH(Assets!K$46&"|"&Assets!$B72,'Data Annex'!$K$1:$K$4779,0),MATCH(Assets!K$47,'Data Annex'!$K$1:$BS$1,0)),"") -> 184.8903816 | L72: 0.9723215998 | M72: LU | O72: =IFERROR(INDEX('Data Annex'!$K$1:$BS$4779,MATCH(Assets!O$46&"|"&Assets!$B72,'Data Annex'!$K$1:$K$4779,0),MATCH(Assets!O$47,'Data Annex'!$K$1:$BS$1,0)),"") -> 0.9404184404 | P72: =IFERROR(INDEX('Data Annex'!$K$1:$BS$4779,MATCH(Assets!P$46&"|"&Assets!$B72,'Data Annex'!$K$1:$K$4779,0),MATCH(Assets!P$47,'Data Annex'!$K$1:$BS$1,0)),"") -> 0.943261416 | Q72: =IFERROR(INDEX('Data Annex'!$K$1:$BS$4779,MATCH(Assets!Q$46&"|"&Assets!$B72,'Data Annex'!$K$1:$K$4779,0),MATCH(Assets!Q$47,'Data Annex'!$K$1:$BS$1,0)),"") -> 0.9492413227 | R72: =IFERROR(INDEX('Data Annex'!$K$1:$BS$4779,MATCH(Assets!R$46&"|"&Assets!$B72,'Data Annex'!$K$1:$K$4779,0),MATCH(Assets!R$47,'Data Annex'!$K$1:$BS$1,0)),"") -> 0.03429328115 | S72: =IFERROR(INDEX('Data Annex'!$K$1:$BS$4779,MATCH(Assets!S$46&"|"&Assets!$B72,'Data Annex'!$K$1:$K$4779,0),MATCH(Assets!S$47,'Data Annex'!$K$1:$BS$1,0)),"") -> 0.03382129011 | T72: =IFERROR(INDEX('Data Annex'!$K$1:$BS$4779,MATCH(Assets!T$46&"|"&Assets!$B72,'Data Annex'!$K$1:$K$4779,0),MATCH(Assets!T$47,'Data Annex'!$K$1:$BS$1,0)),"") -> 0.03257116794 | U72: =IFERROR(INDEX('Data Annex'!$K$1:$BS$4779,MATCH(Assets!U$46&"|"&Assets!$B72,'Data Annex'!$K$1:$K$4779,0),MATCH(Assets!U$47,'Data Annex'!$K$1:$BS$1,0)),"") -> 0.02528827848 | V72: =IFERROR(INDEX('Data Annex'!$K$1:$BS$4779,MATCH(Assets!V$46&"|"&Assets!$B72,'Data Annex'!$K$1:$K$4779,0),MATCH(Assets!V$47,'Data Annex'!$K$1:$BS$1,0)),"") -> 0.02291729388 | W72: =IFERROR(INDEX('Data Annex'!$K$1:$BS$4779,MATCH(Assets!W$46&"|"&Assets!$B72,'Data Annex'!$K$1:$K$4779,0),MATCH(Assets!W$47,'Data Annex'!$K$1:$BS$1,0)),"") -> 0.01818750935
B73: LV | D73: LV | F73: =IFERROR(INDEX('Data Annex'!$K$1:$BS$4779,MATCH(Assets!F$46&"|"&Assets!$B73,'Data Annex'!$K$1:$K$4779,0),MATCH(Assets!F$47,'Data Annex'!$K$1:$BS$1,0)),"") -> 51.38371449 | G73: =IFERROR(INDEX('Data Annex'!$K$1:$BS$4779,MATCH(Assets!G$46&"|"&Assets!$B73,'Data Annex'!$K$1:$K$4779,0),MATCH(Assets!G$47,'Data Annex'!$K$1:$BS$1,0)),"") -> 50.04868827 | H73: =IFERROR(INDEX('Data Annex'!$K$1:$BS$4779,MATCH(Assets!H$46&"|"&Assets!$B73,'Data Annex'!$K$1:$K$4779,0),MATCH(Assets!H$47,'Data Annex'!$K$1:$BS$1,0)),"") -> 52.96713296 | I73: =IFERROR(INDEX('Data Annex'!$K$1:$BS$4779,MATCH(Assets!I$46&"|"&Assets!$B73,'Data Annex'!$K$1:$K$4779,0),MATCH(Assets!I$47,'Data Annex'!$K$1:$BS$1,0)),"") -> 50.86972209 | J73: =IFERROR(INDEX('Data Annex'!$K$1:$BS$4779,MATCH(Assets!J$46&"|"&Assets!$B73,'Data Annex'!$K$1:$K$4779,0),MATCH(Assets!J$47,'Data Annex'!$K$1:$BS$1,0)),"") -> 49.54923416 | K73: =IFERROR(INDEX('Data Annex'!$K$1:$BS$4779,MATCH(Assets!K$46&"|"&Assets!$B73,'Data Annex'!$K$1:$K$4779,0),MATCH(Assets!K$47,'Data Annex'!$K$1:$BS$1,0)),"") -> 52.45728574 | L73: 0.9903742719 | M73: LV | O73: =IFERROR(INDEX('Data Annex'!$K$1:$BS$4779,MATCH(Assets!O$46&"|"&Assets!$B73,'Data Annex'!$K$1:$K$4779,0),MATCH(Assets!O$47,'Data Annex'!$K$1:$BS$1,0)),"") -> 0.9565591169 | P73: =IFERROR(INDEX('Data Annex'!$K$1:$BS$4779,MATCH(Assets!P$46&"|"&Assets!$B73,'Data Annex'!$K$1:$K$4779,0),MATCH(Assets!P$47,'Data Annex'!$K$1:$BS$1,0)),"") -> 0.9609933671 | Q73: =IFERROR(INDEX('Data Annex'!$K$1:$BS$4779,MATCH(Assets!Q$46&"|"&Assets!$B73,'Data Annex'!$K$1:$K$4779,0),MATCH(Assets!Q$47,'Data Annex'!$K$1:$BS$1,0)),"") -> 0.9633628445 | R73: =IFERROR(INDEX('Data Annex'!$K$1:$BS$4779,MATCH(Assets!R$46&"|"&Assets!$B73,'Data Annex'!$K$1:$K$4779,0),MATCH(Assets!R$47,'Data Annex'!$K$1:$BS$1,0)),"") -> 0.003544761905 | S73: =IFERROR(INDEX('Data Annex'!$K$1:$BS$4779,MATCH(Assets!S$46&"|"&Assets!$B73,'Data Annex'!$K$1:$K$4779,0),MATCH(Assets!S$47,'Data Annex'!$K$1:$BS$1,0)),"") -> 0.003231098131 | T73: =IFERROR(INDEX('Data Annex'!$K$1:$BS$4779,MATCH(Assets!T$46&"|"&Assets!$B73,'Data Annex'!$K$1:$K$4779,0),MATCH(Assets!T$47,'Data Annex'!$K$1:$BS$1,0)),"") -> 0.002612128383 | U73: =IFERROR(INDEX('Data Annex'!$K$1:$BS$4779,MATCH(Assets!U$46&"|"&Assets!$B73,'Data Annex'!$K$1:$K$4779,0),MATCH(Assets!U$47,'Data Annex'!$K$1:$BS$1,0)),"") -> 0.03989612123 | V73: =IFERROR(INDEX('Data Annex'!$K$1:$BS$4779,MATCH(Assets!V$46&"|"&Assets!$B73,'Data Annex'!$K$1:$K$4779,0),MATCH(Assets!V$47,'Data Annex'!$K$1:$BS$1,0)),"") -> 0.03577553481 | W73: =IFERROR(INDEX('Data Annex'!$K$1:$BS$4779,MATCH(Assets!W$46&"|"&Assets!$B73,'Data Annex'!$K$1:$K$4779,0),MATCH(Assets!W$47,'Data Annex'!$K$1:$BS$1,0)),"") -> 0.03402502708
B74: MT | D74: MT | F74: =IFERROR(INDEX('Data Annex'!$K$1:$BS$4779,MATCH(Assets!F$46&"|"&Assets!$B74,'Data Annex'!$K$1:$K$4779,0),MATCH(Assets!F$47,'Data Annex'!$K$1:$BS$1,0)),"") -> 25.870214 | G74: =IFERROR(INDEX('Data Annex'!$K$1:$BS$4779,MATCH(Assets!G$46&"|"&Assets!$B74,'Data Annex'!$K$1:$K$4779,0),MATCH(Assets!G$47,'Data Annex'!$K$1:$BS$1,0)),"") -> 25.9701419 | H74: =IFERROR(INDEX('Data Annex'!$K$1:$BS$4779,MATCH(Assets!H$46&"|"&Assets!$B74,'Data Annex'!$K$1:$K$4779,0),MATCH(Assets!H$47,'Data Annex'!$K$1:$BS$1,0)),"") -> 26.479007 | I74: =IFERROR(INDEX('Data Annex'!$K$1:$BS$4779,MATCH(Assets!I$46&"|"&Assets!$B74,'Data Annex'!$K$1:$K$4779,0),MATCH(Assets!I$47,'Data Annex'!$K$1:$BS$1,0)),"") -> 25.45451861 | J74: =IFERROR(INDEX('Data Annex'!$K$1:$BS$4779,MATCH(Assets!J$46&"|"&Assets!$B74,'Data Annex'!$K$1:$K$4779,0),MATCH(Assets!J$47,'Data Annex'!$K$1:$BS$1,0)),"") -> 25.64977609 | K74: =IFERROR(INDEX('Data Annex'!$K$1:$BS$4779,MATCH(Assets!K$46&"|"&Assets!$B74,'Data Annex'!$K$1:$K$4779,0),MATCH(Assets!K$47,'Data Annex'!$K$1:$BS$1,0)),"") -> 26.05333836 | L74: 0.9839242973 | M74: MT | O74: =IFERROR(INDEX('Data Annex'!$K$1:$BS$4779,MATCH(Assets!O$46&"|"&Assets!$B74,'Data Annex'!$K$1:$K$4779,0),MATCH(Assets!O$47,'Data Annex'!$K$1:$BS$1,0)),"") -> 0.9310174684 | P74: =IFERROR(INDEX('Data Annex'!$K$1:$BS$4779,MATCH(Assets!P$46&"|"&Assets!$B74,'Data Annex'!$K$1:$K$4779,0),MATCH(Assets!P$47,'Data Annex'!$K$1:$BS$1,0)),"") -> 0.946746865 | Q74: =IFERROR(INDEX('Data Annex'!$K$1:$BS$4779,MATCH(Assets!Q$46&"|"&Assets!$B74,'Data Annex'!$K$1:$K$4779,0),MATCH(Assets!Q$47,'Data Annex'!$K$1:$BS$1,0)),"") -> 0.9514204407 | R74: =IFERROR(INDEX('Data Annex'!$K$1:$BS$4779,MATCH(Assets!R$46&"|"&Assets!$B74,'Data Annex'!$K$1:$K$4779,0),MATCH(Assets!R$47,'Data Annex'!$K$1:$BS$1,0)),"") -> 0.04789621768 | S74: =IFERROR(INDEX('Data Annex'!$K$1:$BS$4779,MATCH(Assets!S$46&"|"&Assets!$B74,'Data Annex'!$K$1:$K$4779,0),MATCH(Assets!S$47,'Data Annex'!$K$1:$BS$1,0)),"") -> 0.03387176774 | T74: =IFERROR(INDEX('Data Annex'!$K$1:$BS$4779,MATCH(Assets!T$46&"|"&Assets!$B74,'Data Annex'!$K$1:$K$4779,0),MATCH(Assets!T$47,'Data Annex'!$K$1:$BS$1,0)),"") -> 0.03570089584 | U74: =IFERROR(INDEX('Data Annex'!$K$1:$BS$4779,MATCH(Assets!U$46&"|"&Assets!$B74,'Data Annex'!$K$1:$K$4779,0),MATCH(Assets!U$47,'Data Annex'!$K$1:$BS$1,0)),"") -> 0.02108631387 | V74: =IFERROR(INDEX('Data Annex'!$K$1:$BS$4779,MATCH(Assets!V$46&"|"&Assets!$B74,'Data Annex'!$K$1:$K$4779,0),MATCH(Assets!V$47,'Data Annex'!$K$1:$BS$1,0)),"") -> 0.01938136724 | W74: =IFERROR(INDEX('Data Annex'!$K$1:$BS$4779,MATCH(Assets!W$46&"|"&Assets!$B74,'Data Annex'!$K$1:$K$4779,0),MATCH(Assets!W$47,'Data Annex'!$K$1:$BS$1,0)),"") -> 0.01287866346
B75: NL | D75: NL | F75: =IFERROR(INDEX('Data Annex'!$K$1:$BS$4779,MATCH(Assets!F$46&"|"&Assets!$B75,'Data Annex'!$K$1:$K$4779,0),MATCH(Assets!F$47,'Data Annex'!$K$1:$BS$1,0)),"") -> 2197.097264 | G75: =IFERROR(INDEX('Data Annex'!$K$1:$BS$4779,MATCH(Assets!G$46&"|"&Assets!$B75,'Data Annex'!$K$1:$K$4779,0),MATCH(Assets!G$47,'Data Annex'!$K$1:$BS$1,0)),"") -> 2319.520454 | H75: =IFERROR(INDEX('Data Annex'!$K$1:$BS$4779,MATCH(Assets!H$46&"|"&Assets!$B75,'Data Annex'!$K$1:$K$4779,0),MATCH(Assets!H$47,'Data Annex'!$K$1:$BS$1,0)),"") -> 2188.286844 | I75: =IFERROR(INDEX('Data Annex'!$K$1:$BS$4779,MATCH(Assets!I$46&"|"&Assets!$B75,'Data Annex'!$K$1:$K$4779,0),MATCH(Assets!I$47,'Data Annex'!$K$1:$BS$1,0)),"") -> 2180.707655 | J75: =IFERROR(INDEX('Data Annex'!$K$1:$BS$4779,MATCH(Assets!J$46&"|"&Assets!$B75,'Data Annex'!$K$1:$K$4779,0),MATCH(Assets!J$47,'Data Annex'!$K$1:$BS$1,0)),"") -> 2306.089334 | K75: =IFERROR(INDEX('Data Annex'!$K$1:$BS$4779,MATCH(Assets!K$46&"|"&Assets!$B75,'Data Annex'!$K$1:$K$4779,0),MATCH(Assets!K$47,'Data Annex'!$K$1:$BS$1,0)),"") -> 2158.5142 | L75: 0.9863945422 | M75: NL | O75: =IFERROR(INDEX('Data Annex'!$K$1:$BS$4779,MATCH(Assets!O$46&"|"&Assets!$B75,'Data Annex'!$K$1:$K$4779,0),MATCH(Assets!O$47,'Data Annex'!$K$1:$BS$1,0)),"") -> 0.8840826926 | P75: =IFERROR(INDEX('Data Annex'!$K$1:$BS$4779,MATCH(Assets!P$46&"|"&Assets!$B75,'Data Annex'!$K$1:$K$4779,0),MATCH(Assets!P$47,'Data Annex'!$K$1:$BS$1,0)),"") -> 0.869993226 | Q75: =IFERROR(INDEX('Data Annex'!$K$1:$BS$4779,MATCH(Assets!Q$46&"|"&Assets!$B75,'Data Annex'!$K$1:$K$4779,0),MATCH(Assets!Q$47,'Data Annex'!$K$1:$BS$1,0)),"") -> 0.8726771742 | R75: =IFERROR(INDEX('Data Annex'!$K$1:$BS$4779,MATCH(Assets!R$46&"|"&Assets!$B75,'Data Annex'!$K$1:$K$4779,0),MATCH(Assets!R$47,'Data Annex'!$K$1:$BS$1,0)),"") -> 0.04204970849 | S75: =IFERROR(INDEX('Data Annex'!$K$1:$BS$4779,MATCH(Assets!S$46&"|"&Assets!$B75,'Data Annex'!$K$1:$K$4779,0),MATCH(Assets!S$47,'Data Annex'!$K$1:$BS$1,0)),"") -> 0.04361082517 | T75: =IFERROR(INDEX('Data Annex'!$K$1:$BS$4779,MATCH(Assets!T$46&"|"&Assets!$B75,'Data Annex'!$K$1:$K$4779,0),MATCH(Assets!T$47,'Data Annex'!$K$1:$BS$1,0)),"") -> 0.05068139365 | U75: =IFERROR(INDEX('Data Annex'!$K$1:$BS$4779,MATCH(Assets!U$46&"|"&Assets!$B75,'Data Annex'!$K$1:$K$4779,0),MATCH(Assets!U$47,'Data Annex'!$K$1:$BS$1,0)),"") -> 0.07386759892 | V75: =IFERROR(INDEX('Data Annex'!$K$1:$BS$4779,MATCH(Assets!V$46&"|"&Assets!$B75,'Data Annex'!$K$1:$K$4779,0),MATCH(Assets!V$47,'Data Annex'!$K$1:$BS$1,0)),"") -> 0.08639594883 | W75: =IFERROR(INDEX('Data Annex'!$K$1:$BS$4779,MATCH(Assets!W$46&"|"&Assets!$B75,'Data Annex'!$K$1:$K$4779,0),MATCH(Assets!W$47,'Data Annex'!$K$1:$BS$1,0)),"") -> 0.07664143215
B76: NO | D76: NO | F76: =IFERROR(INDEX('Data Annex'!$K$1:$BS$4779,MATCH(Assets!F$46&"|"&Assets!$B76,'Data Annex'!$K$1:$K$4779,0),MATCH(Assets!F$47,'Data Annex'!$K$1:$BS$1,0)),"") -> 340.3082606 | G76: =IFERROR(INDEX('Data Annex'!$K$1:$BS$4779,MATCH(Assets!G$46&"|"&Assets!$B76,'Data Annex'!$K$1:$K$4779,0),MATCH(Assets!G$47,'Data Annex'!$K$1:$BS$1,0)),"") -> 359.6331686 | H76: =IFERROR(INDEX('Data Annex'!$K$1:$BS$4779,MATCH(Assets!H$46&"|"&Assets!$B76,'Data Annex'!$K$1:$K$4779,0),MATCH(Assets!H$47,'Data Annex'!$K$1:$BS$1,0)),"") -> 339.5431355 | I76: =IFERROR(INDEX('Data Annex'!$K$1:$BS$4779,MATCH(Assets!I$46&"|"&Assets!$B76,'Data Annex'!$K$1:$K$4779,0),MATCH(Assets!I$47,'Data Annex'!$K$1:$BS$1,0)),"") -> 332.2044447 | J76: =IFERROR(INDEX('Data Annex'!$K$1:$BS$4779,MATCH(Assets!J$46&"|"&Assets!$B76,'Data Annex'!$K$1:$K$4779,0),MATCH(Assets!J$47,'Data Annex'!$K$1:$BS$1,0)),"") -> 348.9127767 | K76: =IFERROR(INDEX('Data Annex'!$K$1:$BS$4779,MATCH(Assets!K$46&"|"&Assets!$B76,'Data Annex'!$K$1:$K$4779,0),MATCH(Assets!K$47,'Data Annex'!$K$1:$BS$1,0)),"") -> 331.750201 | L76: 0.9770487644 | M76: NO | O76: =IFERROR(INDEX('Data Annex'!$K$1:$BS$4779,MATCH(Assets!O$46&"|"&Assets!$B76,'Data Annex'!$K$1:$K$4779,0),MATCH(Assets!O$47,'Data Annex'!$K$1:$BS$1,0)),"") -> 0.7700755984 | P76: =IFERROR(INDEX('Data Annex'!$K$1:$BS$4779,MATCH(Assets!P$46&"|"&Assets!$B76,'Data Annex'!$K$1:$K$4779,0),MATCH(Assets!P$47,'Data Annex'!$K$1:$BS$1,0)),"") -> 0.8075194202 | Q76: =IFERROR(INDEX('Data Annex'!$K$1:$BS$4779,MATCH(Assets!Q$46&"|"&Assets!$B76,'Data Annex'!$K$1:$K$4779,0),MATCH(Assets!Q$47,'Data Annex'!$K$1:$BS$1,0)),"") -> 0.7668852258 | R76: =IFERROR(INDEX('Data Annex'!$K$1:$BS$4779,MATCH(Assets!R$46&"|"&Assets!$B76,'Data Annex'!$K$1:$K$4779,0),MATCH(Assets!R$47,'Data Annex'!$K$1:$BS$1,0)),"") -> 0.06990307922 | S76: =IFERROR(INDEX('Data Annex'!$K$1:$BS$4779,MATCH(Assets!S$46&"|"&Assets!$B76,'Data Annex'!$K$1:$K$4779,0),MATCH(Assets!S$47,'Data Annex'!$K$1:$BS$1,0)),"") -> 0.07514599982 | T76: =IFERROR(INDEX('Data Annex'!$K$1:$BS$4779,MATCH(Assets!T$46&"|"&Assets!$B76,'Data Annex'!$K$1:$K$4779,0),MATCH(Assets!T$47,'Data Annex'!$K$1:$BS$1,0)),"") -> 0.08177290799 | U76: =IFERROR(INDEX('Data Annex'!$K$1:$BS$4779,MATCH(Assets!U$46&"|"&Assets!$B76,'Data Annex'!$K$1:$K$4779,0),MATCH(Assets!U$47,'Data Annex'!$K$1:$BS$1,0)),"") -> 0.1600213224 | V76: =IFERROR(INDEX('Data Annex'!$K$1:$BS$4779,MATCH(Assets!V$46&"|"&Assets!$B76,'Data Annex'!$K$1:$K$4779,0),MATCH(Assets!V$47,'Data Annex'!$K$1:$BS$1,0)),"") -> 0.11733458 | W76: =IFERROR(INDEX('Data Annex'!$K$1:$BS$4779,MATCH(Assets!W$46&"|"&Assets!$B76,'Data Annex'!$K$1:$K$4779,0),MATCH(Assets!W$47,'Data Annex'!$K$1:$BS$1,0)),"") -> 0.1513418662
B77: PL | D77: =IF(OR(F77="n.a.",G77="n.a.",H77="n.a.",I77="n.a.",J77="n.a.",K77="n.a."),$B77&"*",$B77) -> PL | F77: =IFERROR(INDEX('Data Annex'!$K$1:$BS$4779,MATCH(Assets!F$46&"|"&Assets!$B77,'Data Annex'!$K$1:$K$4779,0),MATCH(Assets!F$47,'Data Annex'!$K$1:$BS$1,0)),"") -> 207.0313561 | G77: =IFERROR(INDEX('Data Annex'!$K$1:$BS$4779,MATCH(Assets!G$46&"|"&Assets!$B77,'Data Annex'!$K$1:$K$4779,0),MATCH(Assets!G$47,'Data Annex'!$K$1:$BS$1,0)),"") -> 228.5928845 | H77: =IFERROR(INDEX('Data Annex'!$K$1:$BS$4779,MATCH(Assets!H$46&"|"&Assets!$B77,'Data Annex'!$K$1:$K$4779,0),MATCH(Assets!H$47,'Data Annex'!$K$1:$BS$1,0)),"") -> 249.0590155 | I77: =IFERROR(INDEX('Data Annex'!$K$1:$BS$4779,MATCH(Assets!I$46&"|"&Assets!$B77,'Data Annex'!$K$1:$K$4779,0),MATCH(Assets!I$47,'Data Annex'!$K$1:$BS$1,0)),"") -> 200.0309326 | J77: =IFERROR(INDEX('Data Annex'!$K$1:$BS$4779,MATCH(Assets!J$46&"|"&Assets!$B77,'Data Annex'!$K$1:$K$4779,0),MATCH(Assets!J$47,'Data Annex'!$K$1:$BS$1,0)),"") -> 221.6610916 | K77: =IFERROR(INDEX('Data Annex'!$K$1:$BS$4779,MATCH(Assets!K$46&"|"&Assets!$B77,'Data Annex'!$K$1:$K$4779,0),MATCH(Assets!K$47,'Data Annex'!$K$1:$BS$1,0)),"") -> 241.5210109 | L77: 0.9697340626 | M77: PL | O77: =IFERROR(INDEX('Data Annex'!$K$1:$BS$4779,MATCH(Assets!O$46&"|"&Assets!$B77,'Data Annex'!$K$1:$K$4779,0),MATCH(Assets!O$47,'Data Annex'!$K$1:$BS$1,0)),"") -> 0.8189914215 | P77: =IFERROR(INDEX('Data Annex'!$K$1:$BS$4779,MATCH(Assets!P$46&"|"&Assets!$B77,'Data Annex'!$K$1:$K$4779,0),MATCH(Assets!P$47,'Data Annex'!$K$1:$BS$1,0)),"") -> 0.8100780109 | Q77: =IFERROR(INDEX('Data Annex'!$K$1:$BS$4779,MATCH(Assets!Q$46&"|"&Assets!$B77,'Data Annex'!$K$1:$K$4779,0),MATCH(Assets!Q$47,'Data Annex'!$K$1:$BS$1,0)),"") -> 0.7994321195 | R77: =IFERROR(INDEX('Data Annex'!$K$1:$BS$4779,MATCH(Assets!R$46&"|"&Assets!$B77,'Data Annex'!$K$1:$K$4779,0),MATCH(Assets!R$47,'Data Annex'!$K$1:$BS$1,0)),"") -> 0.1349057369 | S77: =IFERROR(INDEX('Data Annex'!$K$1:$BS$4779,MATCH(Assets!S$46&"|"&Assets!$B77,'Data Annex'!$K$1:$K$4779,0),MATCH(Assets!S$47,'Data Annex'!$K$1:$BS$1,0)),"") -> 0.1546311365 | T77: =IFERROR(INDEX('Data Annex'!$K$1:$BS$4779,MATCH(Assets!T$46&"|"&Assets!$B77,'Data Annex'!$K$1:$K$4779,0),MATCH(Assets!T$47,'Data Annex'!$K$1:$BS$1,0)),"") -> 0.1657640255 | U77: =IFERROR(INDEX('Data Annex'!$K$1:$BS$4779,MATCH(Assets!U$46&"|"&Assets!$B77,'Data Annex'!$K$1:$K$4779,0),MATCH(Assets!U$47,'Data Annex'!$K$1:$BS$1,0)),"") -> 0.04610284156 | V77: =IFERROR(INDEX('Data Annex'!$K$1:$BS$4779,MATCH(Assets!V$46&"|"&Assets!$B77,'Data Annex'!$K$1:$K$4779,0),MATCH(Assets!V$47,'Data Annex'!$K$1:$BS$1,0)),"") -> 0.03529085262 | W77: =IFERROR(INDEX('Data Annex'!$K$1:$BS$4779,MATCH(Assets!W$46&"|"&Assets!$B77,'Data Annex'!$K$1:$K$4779,0),MATCH(Assets!W$47,'Data Annex'!$K$1:$BS$1,0)),"") -> 0.03480385495
B78: PT | D78: PT | F78: =IFERROR(INDEX('Data Annex'!$K$1:$BS$4779,MATCH(Assets!F$46&"|"&Assets!$B78,'Data Annex'!$K$1:$K$4779,0),MATCH(Assets!F$47,'Data Annex'!$K$1:$BS$1,0)),"") -> 294.3619669 | G78: =IFERROR(INDEX('Data Annex'!$K$1:$BS$4779,MATCH(Assets!G$46&"|"&Assets!$B78,'Data Annex'!$K$1:$K$4779,0),MATCH(Assets!G$47,'Data Annex'!$K$1:$BS$1,0)),"") -> 286.5006967 | H78: =IFERROR(INDEX('Data Annex'!$K$1:$BS$4779,MATCH(Assets!H$46&"|"&Assets!$B78,'Data Annex'!$K$1:$K$4779,0),MATCH(Assets!H$47,'Data Annex'!$K$1:$BS$1,0)),"") -> 291.881866 | I78: =IFERROR(INDEX('Data Annex'!$K$1:$BS$4779,MATCH(Assets!I$46&"|"&Assets!$B78,'Data Annex'!$K$1:$K$4779,0),MATCH(Assets!I$47,'Data Annex'!$K$1:$BS$1,0)),"") -> 279.6820478 | J78: =IFERROR(INDEX('Data Annex'!$K$1:$BS$4779,MATCH(Assets!J$46&"|"&Assets!$B78,'Data Annex'!$K$1:$K$4779,0),MATCH(Assets!J$47,'Data Annex'!$K$1:$BS$1,0)),"") -> 272.5422596 | K78: =IFERROR(INDEX('Data Annex'!$K$1:$BS$4779,MATCH(Assets!K$46&"|"&Assets!$B78,'Data Annex'!$K$1:$K$4779,0),MATCH(Assets!K$47,'Data Annex'!$K$1:$BS$1,0)),"") -> 278.9263217 | L78: 0.9556137403 | M78: PT | O78: =IFERROR(INDEX('Data Annex'!$K$1:$BS$4779,MATCH(Assets!O$46&"|"&Assets!$B78,'Data Annex'!$K$1:$K$4779,0),MATCH(Assets!O$47,'Data Annex'!$K$1:$BS$1,0)),"") -> 0.9170626242 | P78: =IFERROR(INDEX('Data Annex'!$K$1:$BS$4779,MATCH(Assets!P$46&"|"&Assets!$B78,'Data Annex'!$K$1:$K$4779,0),MATCH(Assets!P$47,'Data Annex'!$K$1:$BS$1,0)),"") -> 0.9120304754 | Q78: =IFERROR(INDEX('Data Annex'!$K$1:$BS$4779,MATCH(Assets!Q$46&"|"&Assets!$B78,'Data Annex'!$K$1:$K$4779,0),MATCH(Assets!Q$47,'Data Annex'!$K$1:$BS$1,0)),"") -> 0.9141009372 | R78: =IFERROR(INDEX('Data Annex'!$K$1:$BS$4779,MATCH(Assets!R$46&"|"&Assets!$B78,'Data Annex'!$K$1:$K$4779,0),MATCH(Assets!R$47,'Data Annex'!$K$1:$BS$1,0)),"") -> 0.05959445189 | S78: =IFERROR(INDEX('Data Annex'!$K$1:$BS$4779,MATCH(Assets!S$46&"|"&Assets!$B78,'Data Annex'!$K$1:$K$4779,0),MATCH(Assets!S$47,'Data Annex'!$K$1:$BS$1,0)),"") -> 0.06140287251 | T78: =IFERROR(INDEX('Data Annex'!$K$1:$BS$4779,MATCH(Assets!T$46&"|"&Assets!$B78,'Data Annex'!$K$1:$K$4779,0),MATCH(Assets!T$47,'Data Annex'!$K$1:$BS$1,0)),"") -> 0.06219525243 | U78: =IFERROR(INDEX('Data Annex'!$K$1:$BS$4779,MATCH(Assets!U$46&"|"&Assets!$B78,'Data Annex'!$K$1:$K$4779,0),MATCH(Assets!U$47,'Data Annex'!$K$1:$BS$1,0)),"") -> 0.02334292389 | V78: =IFERROR(INDEX('Data Annex'!$K$1:$BS$4779,MATCH(Assets!V$46&"|"&Assets!$B78,'Data Annex'!$K$1:$K$4779,0),MATCH(Assets!V$47,'Data Annex'!$K$1:$BS$1,0)),"") -> 0.02656665211 | W78: =IFERROR(INDEX('Data Annex'!$K$1:$BS$4779,MATCH(Assets!W$46&"|"&Assets!$B78,'Data Annex'!$K$1:$K$4779,0),MATCH(Assets!W$47,'Data Annex'!$K$1:$BS$1,0)),"") -> 0.02370381039
B79: RO | D79: RO | F79: =IFERROR(INDEX('Data Annex'!$K$1:$BS$4779,MATCH(Assets!F$46&"|"&Assets!$B79,'Data Annex'!$K$1:$K$4779,0),MATCH(Assets!F$47,'Data Annex'!$K$1:$BS$1,0)),"") -> 63.32584578 | G79: =IFERROR(INDEX('Data Annex'!$K$1:$BS$4779,MATCH(Assets!G$46&"|"&Assets!$B79,'Data Annex'!$K$1:$K$4779,0),MATCH(Assets!G$47,'Data Annex'!$K$1:$BS$1,0)),"") -> 68.84882609 | H79: =IFERROR(INDEX('Data Annex'!$K$1:$BS$4779,MATCH(Assets!H$46&"|"&Assets!$B79,'Data Annex'!$K$1:$K$4779,0),MATCH(Assets!H$47,'Data Annex'!$K$1:$BS$1,0)),"") -> 72.77378385 | I79: =IFERROR(INDEX('Data Annex'!$K$1:$BS$4779,MATCH(Assets!I$46&"|"&Assets!$B79,'Data Annex'!$K$1:$K$4779,0),MATCH(Assets!I$47,'Data Annex'!$K$1:$BS$1,0)),"") -> 61.61528482 | J79: =IFERROR(INDEX('Data Annex'!$K$1:$BS$4779,MATCH(Assets!J$46&"|"&Assets!$B79,'Data Annex'!$K$1:$K$4779,0),MATCH(Assets!J$47,'Data Annex'!$K$1:$BS$1,0)),"") -> 67.09983041 | K79: =IFERROR(INDEX('Data Annex'!$K$1:$BS$4779,MATCH(Assets!K$46&"|"&Assets!$B79,'Data Annex'!$K$1:$K$4779,0),MATCH(Assets!K$47,'Data Annex'!$K$1:$BS$1,0)),"") -> 71.15667717 | L79: 0.9777789941 | M79: RO | O79: =IFERROR(INDEX('Data Annex'!$K$1:$BS$4779,MATCH(Assets!O$46&"|"&Assets!$B79,'Data Annex'!$K$1:$K$4779,0),MATCH(Assets!O$47,'Data Annex'!$K$1:$BS$1,0)),"") -> 0.7674049178 | P79: =IFERROR(INDEX('Data Annex'!$K$1:$BS$4779,MATCH(Assets!P$46&"|"&Assets!$B79,'Data Annex'!$K$1:$K$4779,0),MATCH(Assets!P$47,'Data Annex'!$K$1:$BS$1,0)),"") -> 0.7808590264 | Q79: =IFERROR(INDEX('Data Annex'!$K$1:$BS$4779,MATCH(Assets!Q$46&"|"&Assets!$B79,'Data Annex'!$K$1:$K$4779,0),MATCH(Assets!Q$47,'Data Annex'!$K$1:$BS$1,0)),"") -> 0.8053248739 | R79: =IFERROR(INDEX('Data Annex'!$K$1:$BS$4779,MATCH(Assets!R$46&"|"&Assets!$B79,'Data Annex'!$K$1:$K$4779,0),MATCH(Assets!R$47,'Data Annex'!$K$1:$BS$1,0)),"") -> 0.2183518009 | S79: =IFERROR(INDEX('Data Annex'!$K$1:$BS$4779,MATCH(Assets!S$46&"|"&Assets!$B79,'Data Annex'!$K$1:$K$4779,0),MATCH(Assets!S$47,'Data Annex'!$K$1:$BS$1,0)),"") -> 0.2070078868 | T79: =IFERROR(INDEX('Data Annex'!$K$1:$BS$4779,MATCH(Assets!T$46&"|"&Assets!$B79,'Data Annex'!$K$1:$K$4779,0),MATCH(Assets!T$47,'Data Annex'!$K$1:$BS$1,0)),"") -> 0.1812337257 | U79: =IFERROR(INDEX('Data Annex'!$K$1:$BS$4779,MATCH(Assets!U$46&"|"&Assets!$B79,'Data Annex'!$K$1:$K$4779,0),MATCH(Assets!U$47,'Data Annex'!$K$1:$BS$1,0)),"") -> 0.01424328123 | V79: =IFERROR(INDEX('Data Annex'!$K$1:$BS$4779,MATCH(Assets!V$46&"|"&Assets!$B79,'Data Annex'!$K$1:$K$4779,0),MATCH(Assets!V$47,'Data Annex'!$K$1:$BS$1,0)),"") -> 0.01213308685 | W79: =IFERROR(INDEX('Data Annex'!$K$1:$BS$4779,MATCH(Assets!W$46&"|"&Assets!$B79,'Data Annex'!$K$1:$K$4779,0),MATCH(Assets!W$47,'Data Annex'!$K$1:$BS$1,0)),"") -> 0.01344140048
B80: SE | D80: SE | F80: =IFERROR(INDEX('Data Annex'!$K$1:$BS$4779,MATCH(Assets!F$46&"|"&Assets!$B80,'Data Annex'!$K$1:$K$4779,0),MATCH(Assets!F$47,'Data Annex'!$K$1:$BS$1,0)),"") -> 951.8729539 | G80: =IFERROR(INDEX('Data Annex'!$K$1:$BS$4779,MATCH(Assets!G$46&"|"&Assets!$B80,'Data Annex'!$K$1:$K$4779,0),MATCH(Assets!G$47,'Data Annex'!$K$1:$BS$1,0)),"") -> 1003.394893 | H80: =IFERROR(INDEX('Data Annex'!$K$1:$BS$4779,MATCH(Assets!H$46&"|"&Assets!$B80,'Data Annex'!$K$1:$K$4779,0),MATCH(Assets!H$47,'Data Annex'!$K$1:$BS$1,0)),"") -> 962.2644193 | I80: =IFERROR(INDEX('Data Annex'!$K$1:$BS$4779,MATCH(Assets!I$46&"|"&Assets!$B80,'Data Annex'!$K$1:$K$4779,0),MATCH(Assets!I$47,'Data Annex'!$K$1:$BS$1,0)),"") -> 925.3392745 | J80: =IFERROR(INDEX('Data Annex'!$K$1:$BS$4779,MATCH(Assets!J$46&"|"&Assets!$B80,'Data Annex'!$K$1:$K$4779,0),MATCH(Assets!J$47,'Data Annex'!$K$1:$BS$1,0)),"") -> 975.5252615 | K80: =IFERROR(INDEX('Data Annex'!$K$1:$BS$4779,MATCH(Assets!K$46&"|"&Assets!$B80,'Data Annex'!$K$1:$K$4779,0),MATCH(Assets!K$47,'Data Annex'!$K$1:$BS$1,0)),"") -> 934.0524116 | L80: 0.9706816473 | M80: SE | O80: =IFERROR(INDEX('Data Annex'!$K$1:$BS$4779,MATCH(Assets!O$46&"|"&Assets!$B80,'Data Annex'!$K$1:$K$4779,0),MATCH(Assets!O$47,'Data Annex'!$K$1:$BS$1,0)),"") -> 0.8763501349 | P80: =IFERROR(INDEX('Data Annex'!$K$1:$BS$4779,MATCH(Assets!P$46&"|"&Assets!$B80,'Data Annex'!$K$1:$K$4779,0),MATCH(Assets!P$47,'Data Annex'!$K$1:$BS$1,0)),"") -> 0.8356983868 | Q80: =IFERROR(INDEX('Data Annex'!$K$1:$BS$4779,MATCH(Assets!Q$46&"|"&Assets!$B80,'Data Annex'!$K$1:$K$4779,0),MATCH(Assets!Q$47,'Data Annex'!$K$1:$BS$1,0)),"") -> 0.8550605079 | R80: =IFERROR(INDEX('Data Annex'!$K$1:$BS$4779,MATCH(Assets!R$46&"|"&Assets!$B80,'Data Annex'!$K$1:$K$4779,0),MATCH(Assets!R$47,'Data Annex'!$K$1:$BS$1,0)),"") -> 0.01295786739 | S80: =IFERROR(INDEX('Data Annex'!$K$1:$BS$4779,MATCH(Assets!S$46&"|"&Assets!$B80,'Data Annex'!$K$1:$K$4779,0),MATCH(Assets!S$47,'Data Annex'!$K$1:$BS$1,0)),"") -> 0.01405477858 | T80: =IFERROR(INDEX('Data Annex'!$K$1:$BS$4779,MATCH(Assets!T$46&"|"&Assets!$B80,'Data Annex'!$K$1:$K$4779,0),MATCH(Assets!T$47,'Data Annex'!$K$1:$BS$1,0)),"") -> 0.01609809227 | U80: =IFERROR(INDEX('Data Annex'!$K$1:$BS$4779,MATCH(Assets!U$46&"|"&Assets!$B80,'Data Annex'!$K$1:$K$4779,0),MATCH(Assets!U$47,'Data Annex'!$K$1:$BS$1,0)),"") -> 0.1106919977 | V80: =IFERROR(INDEX('Data Annex'!$K$1:$BS$4779,MATCH(Assets!V$46&"|"&Assets!$B80,'Data Annex'!$K$1:$K$4779,0),MATCH(Assets!V$47,'Data Annex'!$K$1:$BS$1,0)),"") -> 0.1502468346 | W80: =IFERROR(INDEX('Data Annex'!$K$1:$BS$4779,MATCH(Assets!W$46&"|"&Assets!$B80,'Data Annex'!$K$1:$K$4779,0),MATCH(Assets!W$47,'Data Annex'!$K$1:$BS$1,0)),"") -> 0.1288413998
B81: SI | D81: SI | F81: =IFERROR(INDEX('Data Annex'!$K$1:$BS$4779,MATCH(Assets!F$46&"|"&Assets!$B81,'Data Annex'!$K$1:$K$4779,0),MATCH(Assets!F$47,'Data Annex'!$K$1:$BS$1,0)),"") -> 44.79119845 | G81: =IFERROR(INDEX('Data Annex'!$K$1:$BS$4779,MATCH(Assets!G$46&"|"&Assets!$B81,'Data Annex'!$K$1:$K$4779,0),MATCH(Assets!G$47,'Data Annex'!$K$1:$BS$1,0)),"") -> 46.60901742 | H81: =IFERROR(INDEX('Data Annex'!$K$1:$BS$4779,MATCH(Assets!H$46&"|"&Assets!$B81,'Data Annex'!$K$1:$K$4779,0),MATCH(Assets!H$47,'Data Annex'!$K$1:$BS$1,0)),"") -> 50.17069955 | I81: =IFERROR(INDEX('Data Annex'!$K$1:$BS$4779,MATCH(Assets!I$46&"|"&Assets!$B81,'Data Annex'!$K$1:$K$4779,0),MATCH(Assets!I$47,'Data Annex'!$K$1:$BS$1,0)),"") -> 43.80534065 | J81: =IFERROR(INDEX('Data Annex'!$K$1:$BS$4779,MATCH(Assets!J$46&"|"&Assets!$B81,'Data Annex'!$K$1:$K$4779,0),MATCH(Assets!J$47,'Data Annex'!$K$1:$BS$1,0)),"") -> 45.76792977 | K81: =IFERROR(INDEX('Data Annex'!$K$1:$BS$4779,MATCH(Assets!K$46&"|"&Assets!$B81,'Data Annex'!$K$1:$K$4779,0),MATCH(Assets!K$47,'Data Annex'!$K$1:$BS$1,0)),"") -> 49.1136596 | L81: 0.9789311299 | M81: SI | O81: =IFERROR(INDEX('Data Annex'!$K$1:$BS$4779,MATCH(Assets!O$46&"|"&Assets!$B81,'Data Annex'!$K$1:$K$4779,0),MATCH(Assets!O$47,'Data Annex'!$K$1:$BS$1,0)),"") -> 0.8928954615 | P81: =IFERROR(INDEX('Data Annex'!$K$1:$BS$4779,MATCH(Assets!P$46&"|"&Assets!$B81,'Data Annex'!$K$1:$K$4779,0),MATCH(Assets!P$47,'Data Annex'!$K$1:$BS$1,0)),"") -> 0.9179609805 | Q81: =IFERROR(INDEX('Data Annex'!$K$1:$BS$4779,MATCH(Assets!Q$46&"|"&Assets!$B81,'Data Annex'!$K$1:$K$4779,0),MATCH(Assets!Q$47,'Data Annex'!$K$1:$BS$1,0)),"") -> 0.9232216362 | R81: =IFERROR(INDEX('Data Annex'!$K$1:$BS$4779,MATCH(Assets!R$46&"|"&Assets!$B81,'Data Annex'!$K$1:$K$4779,0),MATCH(Assets!R$47,'Data Annex'!$K$1:$BS$1,0)),"") -> 0.1025750497 | S81: =IFERROR(INDEX('Data Annex'!$K$1:$BS$4779,MATCH(Assets!S$46&"|"&Assets!$B81,'Data Annex'!$K$1:$K$4779,0),MATCH(Assets!S$47,'Data Annex'!$K$1:$BS$1,0)),"") -> 0.07777960493 | T81: =IFERROR(INDEX('Data Annex'!$K$1:$BS$4779,MATCH(Assets!T$46&"|"&Assets!$B81,'Data Annex'!$K$1:$K$4779,0),MATCH(Assets!T$47,'Data Annex'!$K$1:$BS$1,0)),"") -> 0.07345586896 | U81: =IFERROR(INDEX('Data Annex'!$K$1:$BS$4779,MATCH(Assets!U$46&"|"&Assets!$B81,'Data Annex'!$K$1:$K$4779,0),MATCH(Assets!U$47,'Data Annex'!$K$1:$BS$1,0)),"") -> 0.004529488879 | V81: =IFERROR(INDEX('Data Annex'!$K$1:$BS$4779,MATCH(Assets!V$46&"|"&Assets!$B81,'Data Annex'!$K$1:$K$4779,0),MATCH(Assets!V$47,'Data Annex'!$K$1:$BS$1,0)),"") -> 0.00425941453 | W81: =IFERROR(INDEX('Data Annex'!$K$1:$BS$4779,MATCH(Assets!W$46&"|"&Assets!$B81,'Data Annex'!$K$1:$K$4779,0),MATCH(Assets!W$47,'Data Annex'!$K$1:$BS$1,0)),"") -> 0.003322494886
B82: SK | D82: SK | F82: =IFERROR(INDEX('Data Annex'!$K$1:$BS$4779,MATCH(Assets!F$46&"|"&Assets!$B82,'Data Annex'!$K$1:$K$4779,0),MATCH(Assets!F$47,'Data Annex'!$K$1:$BS$1,0)),"") -> 68.34103028 | G82: =IFERROR(INDEX('Data Annex'!$K$1:$BS$4779,MATCH(Assets!G$46&"|"&Assets!$B82,'Data Annex'!$K$1:$K$4779,0),MATCH(Assets!G$47,'Data Annex'!$K$1:$BS$1,0)),"") -> 71.06022353 | H82: =IFERROR(INDEX('Data Annex'!$K$1:$BS$4779,MATCH(Assets!H$46&"|"&Assets!$B82,'Data Annex'!$K$1:$K$4779,0),MATCH(Assets!H$47,'Data Annex'!$K$1:$BS$1,0)),"") -> 73.06721864 | I82: =IFERROR(INDEX('Data Annex'!$K$1:$BS$4779,MATCH(Assets!I$46&"|"&Assets!$B82,'Data Annex'!$K$1:$K$4779,0),MATCH(Assets!I$47,'Data Annex'!$K$1:$BS$1,0)),"") -> 67.49239098 | J82: =IFERROR(INDEX('Data Annex'!$K$1:$BS$4779,MATCH(Assets!J$46&"|"&Assets!$B82,'Data Annex'!$K$1:$K$4779,0),MATCH(Assets!J$47,'Data Annex'!$K$1:$BS$1,0)),"") -> 70.18969887 | K82: =IFERROR(INDEX('Data Annex'!$K$1:$BS$4779,MATCH(Assets!K$46&"|"&Assets!$B82,'Data Annex'!$K$1:$K$4779,0),MATCH(Assets!K$47,'Data Annex'!$K$1:$BS$1,0)),"") -> 72.11331989 | L82: 0.986944915 | M82: SK | O82: =IFERROR(INDEX('Data Annex'!$K$1:$BS$4779,MATCH(Assets!O$46&"|"&Assets!$B82,'Data Annex'!$K$1:$K$4779,0),MATCH(Assets!O$47,'Data Annex'!$K$1:$BS$1,0)),"") -> 0.9666200882 | P82: =IFERROR(INDEX('Data Annex'!$K$1:$BS$4779,MATCH(Assets!P$46&"|"&Assets!$B82,'Data Annex'!$K$1:$K$4779,0),MATCH(Assets!P$47,'Data Annex'!$K$1:$BS$1,0)),"") -> 0.965744809 | Q82: =IFERROR(INDEX('Data Annex'!$K$1:$BS$4779,MATCH(Assets!Q$46&"|"&Assets!$B82,'Data Annex'!$K$1:$K$4779,0),MATCH(Assets!Q$47,'Data Annex'!$K$1:$BS$1,0)),"") -> 0.9746067951 | R82: =IFERROR(INDEX('Data Annex'!$K$1:$BS$4779,MATCH(Assets!R$46&"|"&Assets!$B82,'Data Annex'!$K$1:$K$4779,0),MATCH(Assets!R$47,'Data Annex'!$K$1:$BS$1,0)),"") -> 0.02390825405 | S82: =IFERROR(INDEX('Data Annex'!$K$1:$BS$4779,MATCH(Assets!S$46&"|"&Assets!$B82,'Data Annex'!$K$1:$K$4779,0),MATCH(Assets!S$47,'Data Annex'!$K$1:$BS$1,0)),"") -> 0.02495286005 | T82: =IFERROR(INDEX('Data Annex'!$K$1:$BS$4779,MATCH(Assets!T$46&"|"&Assets!$B82,'Data Annex'!$K$1:$K$4779,0),MATCH(Assets!T$47,'Data Annex'!$K$1:$BS$1,0)),"") -> 0.01890185157 | U82: =IFERROR(INDEX('Data Annex'!$K$1:$BS$4779,MATCH(Assets!U$46&"|"&Assets!$B82,'Data Annex'!$K$1:$K$4779,0),MATCH(Assets!U$47,'Data Annex'!$K$1:$BS$1,0)),"") -> 0.009471657767 | V82: =IFERROR(INDEX('Data Annex'!$K$1:$BS$4779,MATCH(Assets!V$46&"|"&Assets!$B82,'Data Annex'!$K$1:$K$4779,0),MATCH(Assets!V$47,'Data Annex'!$K$1:$BS$1,0)),"") -> 0.009302330982 | W82: =IFERROR(INDEX('Data Annex'!$K$1:$BS$4779,MATCH(Assets!W$46&"|"&Assets!$B82,'Data Annex'!$K$1:$K$4779,0),MATCH(Assets!W$47,'Data Annex'!$K$1:$BS$1,0)),"") -> 0.006491353361
B83: EU | D83: =+D43 -> EU/EEA | F83: =IFERROR(INDEX('Data Annex'!$K$1:$BS$4779,MATCH(Assets!F$46&"|"&Assets!$B83,'Data Annex'!$K$1:$K$4779,0),MATCH(Assets!F$47,'Data Annex'!$K$1:$BS$1,0)),"") -> 27001.69926 | G83: =IFERROR(INDEX('Data Annex'!$K$1:$BS$4779,MATCH(Assets!G$46&"|"&Assets!$B83,'Data Annex'!$K$1:$K$4779,0),MATCH(Assets!G$47,'Data Annex'!$K$1:$BS$1,0)),"") -> 27727.15852 | H83: =IFERROR(INDEX('Data Annex'!$K$1:$BS$4779,MATCH(Assets!H$46&"|"&Assets!$B83,'Data Annex'!$K$1:$K$4779,0),MATCH(Assets!H$47,'Data Annex'!$K$1:$BS$1,0)),"") -> 27144.67275 | I83: =IFERROR(INDEX('Data Annex'!$K$1:$BS$4779,MATCH(Assets!I$46&"|"&Assets!$B83,'Data Annex'!$K$1:$K$4779,0),MATCH(Assets!I$47,'Data Annex'!$K$1:$BS$1,0)),"") -> 25696.92941 | J83: =IFERROR(INDEX('Data Annex'!$K$1:$BS$4779,MATCH(Assets!J$46&"|"&Assets!$B83,'Data Annex'!$K$1:$K$4779,0),MATCH(Assets!J$47,'Data Annex'!$K$1:$BS$1,0)),"") -> 26520.06902 | K83: =IFERROR(INDEX('Data Annex'!$K$1:$BS$4779,MATCH(Assets!K$46&"|"&Assets!$B83,'Data Annex'!$K$1:$K$4779,0),MATCH(Assets!K$47,'Data Annex'!$K$1:$BS$1,0)),"") -> 25857.97531 | L83: 0.9525985282 | M83: =D83 -> EU/EEA | O83: =IFERROR(INDEX('Data Annex'!$K$1:$BS$4779,MATCH(Assets!O$46&"|"&Assets!$B83,'Data Annex'!$K$1:$K$4779,0),MATCH(Assets!O$47,'Data Annex'!$K$1:$BS$1,0)),"") -> 0.7973718203 | P83: =IFERROR(INDEX('Data Annex'!$K$1:$BS$4779,MATCH(Assets!P$46&"|"&Assets!$B83,'Data Annex'!$K$1:$K$4779,0),MATCH(Assets!P$47,'Data Annex'!$K$1:$BS$1,0)),"") -> 0.7811960292 | Q83: =IFERROR(INDEX('Data Annex'!$K$1:$BS$4779,MATCH(Assets!Q$46&"|"&Assets!$B83,'Data Annex'!$K$1:$K$4779,0),MATCH(Assets!Q$47,'Data Annex'!$K$1:$BS$1,0)),"") -> 0.7904756699 | R83: =IFERROR(INDEX('Data Annex'!$K$1:$BS$4779,MATCH(Assets!R$46&"|"&Assets!$B83,'Data Annex'!$K$1:$K$4779,0),MATCH(Assets!R$47,'Data Annex'!$K$1:$BS$1,0)),"") -> 0.04145748012 | S83: =IFERROR(INDEX('Data Annex'!$K$1:$BS$4779,MATCH(Assets!S$46&"|"&Assets!$B83,'Data Annex'!$K$1:$K$4779,0),MATCH(Assets!S$47,'Data Annex'!$K$1:$BS$1,0)),"") -> 0.04189679351 | T83: =IFERROR(INDEX('Data Annex'!$K$1:$BS$4779,MATCH(Assets!T$46&"|"&Assets!$B83,'Data Annex'!$K$1:$K$4779,0),MATCH(Assets!T$47,'Data Annex'!$K$1:$BS$1,0)),"") -> 0.04508217687 | U83: =IFERROR(INDEX('Data Annex'!$K$1:$BS$4779,MATCH(Assets!U$46&"|"&Assets!$B83,'Data Annex'!$K$1:$K$4779,0),MATCH(Assets!U$47,'Data Annex'!$K$1:$BS$1,0)),"") -> 0.1611706995 | V83: =IFERROR(INDEX('Data Annex'!$K$1:$BS$4779,MATCH(Assets!V$46&"|"&Assets!$B83,'Data Annex'!$K$1:$K$4779,0),MATCH(Assets!V$47,'Data Annex'!$K$1:$BS$1,0)),"") -> 0.1769071773 | W83: =IFERROR(INDEX('Data Annex'!$K$1:$BS$4779,MATCH(Assets!W$46&"|"&Assets!$B83,'Data Annex'!$K$1:$K$4779,0),MATCH(Assets!W$47,'Data Annex'!$K$1:$BS$1,0)),"") -> 0.1644421532
N85: =G43+J43+M43+P43+S43 -> 0.9525985282
D86: Individual country data includes subsidiaries, which are excluded from EU aggregate. For example, at country level the subsidiary in country X of a bank domiciled in country Y is included both in data for countries X and Y (for the latter as part of the consolidated entity). In the EU aggregate, only the consolidated entity domiciled in country Y is considered. The sample of banks is unbalanced and reviewed annually. As of Q1 2020 onwards UK banks are removed from the EU/EEA aggregate and subsidiaries of UK banks in EU member states are used instead.
D87: * Norwegian banks have not implemented yet the reporting framework based on CRR2/CRD5. Therefore, Norwegian figures are included in the EBA Risk dashboard only until March 2021.

Sheet Loans Composition (hidden)
E1: T20_1 | F1: T20_1 | G1: T20_1 | H1: T20_2 | I1: T20_2 | J1: T20_2 | K1: T20_3 | L1: T20_3 | M1: T20_3 | N1: T20_4 | O1: T20_4 | P1: T20_4 | Q1: T20_5 | R1: T20_5 | S1: T20_5 | T1: T20_6 | U1: T20_6 | V1: T20_6
A2: ='Reference Dates'!$C$8 -> 202312 | E2: =TEXT(E50,"YYYYMM")+0 -> 202212 | F2: 202309 | G2: 202312 | H2: 202212 | I2: 202309 | J2: 202312 | K2: =TEXT(K50,"YYYYMM")+0 -> 202212 | L2: 202309 | M2: 202312 | N2: 202212 | O2: 202309 | P2: 202312 | Q2: 202212 | R2: 202309 | S2: 202312 | T2: 202212 | U2: 202309 | V2: 202312
A3: =DATE(LEFT(A2,4),RIGHT(A2,2),1) -> 2023-12-01 | D3: Statistical Annex
D4: Loans: composition and asset quality
H7: of which: loans and advances at amortised cost - by segment (volumes) (2)
D9: Volumes bn EUR
E10: Loans and advances (1) | H10: HHs | K10: …of which mortgages | N10: NFCs | Q10: …of which SMEs | T10: …of which CRE
E11: =EOMONTH($A$3,-12) -> 2022-12-31 | F11: =EOMONTH($A$3,-3) -> 2023-09-30 | G11: =EOMONTH($A$3,0) -> 2023-12-31 | H11: =EOMONTH($A$3,-12) -> 2022-12-31 | I11: =EOMONTH($A$3,-3) -> 2023-09-30 | J11: =EOMONTH($A$3,0) -> 2023-12-31 | K11: =EOMONTH($A$3,-12) -> 2022-12-31 | L11: =EOMONTH($A$3,-3) -> 2023-09-30 | M11: =EOMONTH($A$3,0) -> 2023-12-31 | N11: =EOMONTH($A$3,-12) -> 2022-12-31 | O11: =EOMONTH($A$3,-3) -> 2023-09-30 | P11: =EOMONTH($A$3,0) -> 2023-12-31 | Q11: =EOMONTH($A$3,-12) -> 2022-12-31 | R11: =EOMONTH($A$3,-3) -> 2023-09-30 | S11: =EOMONTH($A$3,0) -> 2023-12-31 | T11: =EOMONTH($A$3,-12) -> 2022-12-31 | U11: =EOMONTH($A$3,-3) -> 2023-09-30 | V11: =EOMONTH($A$3,0) -> 2023-12-31
A12: 1 | B12: AT | D12: AT | E12: =IFERROR(INDEX('Data Annex'!$K$1:$BS$4779,MATCH(E$1&"|"&$B12,'Data Annex'!$K$1:$K$4779,0),MATCH(E$2,'Data Annex'!$K$1:$BS$1,0)),"") -> 625.3469655 | F12: =IFERROR(INDEX('Data Annex'!$K$1:$BS$4779,MATCH(F$1&"|"&$B12,'Data Annex'!$K$1:$K$4779,0),MATCH(F$2,'Data Annex'!$K$1:$BS$1,0)),"") -> 629.8468117 | G12: =IFERROR(INDEX('Data Annex'!$K$1:$BS$4779,MATCH(G$1&"|"&$B12,'Data Annex'!$K$1:$K$4779,0),MATCH(G$2,'Data Annex'!$K$1:$BS$1,0)),"") -> 611.2474495 | H12: =IFERROR(INDEX('Data Annex'!$K$1:$BS$4779,MATCH(H$1&"|"&$B12,'Data Annex'!$K$1:$K$4779,0),MATCH(H$2,'Data Annex'!$K$1:$BS$1,0)),"") -> 192.2216106 | I12: =IFERROR(INDEX('Data Annex'!$K$1:$BS$4779,MATCH(I$1&"|"&$B12,'Data Annex'!$K$1:$K$4779,0),MATCH(I$2,'Data Annex'!$K$1:$BS$1,0)),"") -> 191.3617307 | J12: =IFERROR(INDEX('Data Annex'!$K$1:$BS$4779,MATCH(J$1&"|"&$B12,'Data Annex'!$K$1:$K$4779,0),MATCH(J$2,'Data Annex'!$K$1:$BS$1,0)),"") -> 190.97519 | K12: =IFERROR(INDEX('Data Annex'!$K$1:$BS$4779,MATCH(K$1&"|"&$B12,'Data Annex'!$K$1:$K$4779,0),MATCH(K$2,'Data Annex'!$K$1:$BS$1,0)),"") -> 138.7384265 | L12: =IFERROR(INDEX('Data Annex'!$K$1:$BS$4779,MATCH(L$1&"|"&$B12,'Data Annex'!$K$1:$K$4779,0),MATCH(L$2,'Data Annex'!$K$1:$BS$1,0)),"") -> 139.3231968 | M12: =IFERROR(INDEX('Data Annex'!$K$1:$BS$4779,MATCH(M$1&"|"&$B12,'Data Annex'!$K$1:$K$4779,0),MATCH(M$2,'Data Annex'!$K$1:$BS$1,0)),"") -> 138.9818022 | N12: =IFERROR(INDEX('Data Annex'!$K$1:$BS$4779,MATCH(N$1&"|"&$B12,'Data Annex'!$K$1:$K$4779,0),MATCH(N$2,'Data Annex'!$K$1:$BS$1,0)),"") -> 222.5167763 | O12: =IFERROR(INDEX('Data Annex'!$K$1:$BS$4779,MATCH(O$1&"|"&$B12,'Data Annex'!$K$1:$K$4779,0),MATCH(O$2,'Data Annex'!$K$1:$BS$1,0)),"") -> 225.1191838 | P12: =IFERROR(INDEX('Data Annex'!$K$1:$BS$4779,MATCH(P$1&"|"&$B12,'Data Annex'!$K$1:$K$4779,0),MATCH(P$2,'Data Annex'!$K$1:$BS$1,0)),"") -> 224.7623464 | Q12: =IFERROR(INDEX('Data Annex'!$K$1:$BS$4779,MATCH(Q$1&"|"&$B12,'Data Annex'!$K$1:$K$4779,0),MATCH(Q$2,'Data Annex'!$K$1:$BS$1,0)),"") -> 77.85281058 | R12: =IFERROR(INDEX('Data Annex'!$K$1:$BS$4779,MATCH(R$1&"|"&$B12,'Data Annex'!$K$1:$K$4779,0),MATCH(R$2,'Data Annex'!$K$1:$BS$1,0)),"") -> 84.84836971 | S12: =IFERROR(INDEX('Data Annex'!$K$1:$BS$4779,MATCH(S$1&"|"&$B12,'Data Annex'!$K$1:$K$4779,0),MATCH(S$2,'Data Annex'!$K$1:$BS$1,0)),"") -> 84.15273589 | T12: =IFERROR(INDEX('Data Annex'!$K$1:$BS$4779,MATCH(T$1&"|"&$B12,'Data Annex'!$K$1:$K$4779,0),MATCH(T$2,'Data Annex'!$K$1:$BS$1,0)),"") -> 65.43867475 | U12: =IFERROR(INDEX('Data Annex'!$K$1:$BS$4779,MATCH(U$1&"|"&$B12,'Data Annex'!$K$1:$K$4779,0),MATCH(U$2,'Data Annex'!$K$1:$BS$1,0)),"") -> 67.78223277 | V12: =IFERROR(INDEX('Data Annex'!$K$1:$BS$4779,MATCH(V$1&"|"&$B12,'Data Annex'!$K$1:$K$4779,0),MATCH(V$2,'Data Annex'!$K$1:$BS$1,0)),"") -> 68.90099671
A13: 2 | B13: BE | D13: BE | E13: =IFERROR(INDEX('Data Annex'!$K$1:$BS$4779,MATCH(E$1&"|"&$B13,'Data Annex'!$K$1:$K$4779,0),MATCH(E$2,'Data Annex'!$K$1:$BS$1,0)),"") -> 965.2903901 | F13: =IFERROR(INDEX('Data Annex'!$K$1:$BS$4779,MATCH(F$1&"|"&$B13,'Data Annex'!$K$1:$K$4779,0),MATCH(F$2,'Data Annex'!$K$1:$BS$1,0)),"") -> 851.9206172 | G13: =IFERROR(INDEX('Data Annex'!$K$1:$BS$4779,MATCH(G$1&"|"&$B13,'Data Annex'!$K$1:$K$4779,0),MATCH(G$2,'Data Annex'!$K$1:$BS$1,0)),"") -> 828.7889928 | H13: =IFERROR(INDEX('Data Annex'!$K$1:$BS$4779,MATCH(H$1&"|"&$B13,'Data Annex'!$K$1:$K$4779,0),MATCH(H$2,'Data Annex'!$K$1:$BS$1,0)),"") -> 347.6503175 | I13: =IFERROR(INDEX('Data Annex'!$K$1:$BS$4779,MATCH(I$1&"|"&$B13,'Data Annex'!$K$1:$K$4779,0),MATCH(I$2,'Data Annex'!$K$1:$BS$1,0)),"") -> 308.296054 | J13: =IFERROR(INDEX('Data Annex'!$K$1:$BS$4779,MATCH(J$1&"|"&$B13,'Data Annex'!$K$1:$K$4779,0),MATCH(J$2,'Data Annex'!$K$1:$BS$1,0)),"") -> 310.53385 | K13: =IFERROR(INDEX('Data Annex'!$K$1:$BS$4779,MATCH(K$1&"|"&$B13,'Data Annex'!$K$1:$K$4779,0),MATCH(K$2,'Data Annex'!$K$1:$BS$1,0)),"") -> 302.3624427 | L13: =IFERROR(INDEX('Data Annex'!$K$1:$BS$4779,MATCH(L$1&"|"&$B13,'Data Annex'!$K$1:$K$4779,0),MATCH(L$2,'Data Annex'!$K$1:$BS$1,0)),"") -> 266.1829681 | M13: =IFERROR(INDEX('Data Annex'!$K$1:$BS$4779,MATCH(M$1&"|"&$B13,'Data Annex'!$K$1:$K$4779,0),MATCH(M$2,'Data Annex'!$K$1:$BS$1,0)),"") -> 268.1084421 | N13: =IFERROR(INDEX('Data Annex'!$K$1:$BS$4779,MATCH(N$1&"|"&$B13,'Data Annex'!$K$1:$K$4779,0),MATCH(N$2,'Data Annex'!$K$1:$BS$1,0)),"") -> 301.889747 | O13: =IFERROR(INDEX('Data Annex'!$K$1:$BS$4779,MATCH(O$1&"|"&$B13,'Data Annex'!$K$1:$K$4779,0),MATCH(O$2,'Data Annex'!$K$1:$BS$1,0)),"") -> 257.1933784 | P13: =IFERROR(INDEX('Data Annex'!$K$1:$BS$4779,MATCH(P$1&"|"&$B13,'Data Annex'!$K$1:$K$4779,0),MATCH(P$2,'Data Annex'!$K$1:$BS$1,0)),"") -> 256.6441971 | Q13: =IFERROR(INDEX('Data Annex'!$K$1:$BS$4779,MATCH(Q$1&"|"&$B13,'Data Annex'!$K$1:$K$4779,0),MATCH(Q$2,'Data Annex'!$K$1:$BS$1,0)),"") -> 144.3506894 | R13: =IFERROR(INDEX('Data Annex'!$K$1:$BS$4779,MATCH(R$1&"|"&$B13,'Data Annex'!$K$1:$K$4779,0),MATCH(R$2,'Data Annex'!$K$1:$BS$1,0)),"") -> 129.1840012 | S13: =IFERROR(INDEX('Data Annex'!$K$1:$BS$4779,MATCH(S$1&"|"&$B13,'Data Annex'!$K$1:$K$4779,0),MATCH(S$2,'Data Annex'!$K$1:$BS$1,0)),"") -> 128.9275159 | T13: =IFERROR(INDEX('Data Annex'!$K$1:$BS$4779,MATCH(T$1&"|"&$B13,'Data Annex'!$K$1:$K$4779,0),MATCH(T$2,'Data Annex'!$K$1:$BS$1,0)),"") -> 83.32293394 | U13: =IFERROR(INDEX('Data Annex'!$K$1:$BS$4779,MATCH(U$1&"|"&$B13,'Data Annex'!$K$1:$K$4779,0),MATCH(U$2,'Data Annex'!$K$1:$BS$1,0)),"") -> 71.523965 | V13: =IFERROR(INDEX('Data Annex'!$K$1:$BS$4779,MATCH(V$1&"|"&$B13,'Data Annex'!$K$1:$K$4779,0),MATCH(V$2,'Data Annex'!$K$1:$BS$1,0)),"") -> 74.74012418
A14: 3 | B14: BG | D14: BG | E14: =IFERROR(INDEX('Data Annex'!$K$1:$BS$4779,MATCH(E$1&"|"&$B14,'Data Annex'!$K$1:$K$4779,0),MATCH(E$2,'Data Annex'!$K$1:$BS$1,0)),"") -> 32.08684477 | F14: =IFERROR(INDEX('Data Annex'!$K$1:$BS$4779,MATCH(F$1&"|"&$B14,'Data Annex'!$K$1:$K$4779,0),MATCH(F$2,'Data Annex'!$K$1:$BS$1,0)),"") -> 41.12190255 | G14: =IFERROR(INDEX('Data Annex'!$K$1:$BS$4779,MATCH(G$1&"|"&$B14,'Data Annex'!$K$1:$K$4779,0),MATCH(G$2,'Data Annex'!$K$1:$BS$1,0)),"") -> 42.49970805 | H14: =IFERROR(INDEX('Data Annex'!$K$1:$BS$4779,MATCH(H$1&"|"&$B14,'Data Annex'!$K$1:$K$4779,0),MATCH(H$2,'Data Annex'!$K$1:$BS$1,0)),"") -> 10.15335822 | I14: =IFERROR(INDEX('Data Annex'!$K$1:$BS$4779,MATCH(I$1&"|"&$B14,'Data Annex'!$K$1:$K$4779,0),MATCH(I$2,'Data Annex'!$K$1:$BS$1,0)),"") -> 13.40794918 | J14: =IFERROR(INDEX('Data Annex'!$K$1:$BS$4779,MATCH(J$1&"|"&$B14,'Data Annex'!$K$1:$K$4779,0),MATCH(J$2,'Data Annex'!$K$1:$BS$1,0)),"") -> 13.99739851 | K14: =IFERROR(INDEX('Data Annex'!$K$1:$BS$4779,MATCH(K$1&"|"&$B14,'Data Annex'!$K$1:$K$4779,0),MATCH(K$2,'Data Annex'!$K$1:$BS$1,0)),"") -> 4.930069537 | L14: =IFERROR(INDEX('Data Annex'!$K$1:$BS$4779,MATCH(L$1&"|"&$B14,'Data Annex'!$K$1:$K$4779,0),MATCH(L$2,'Data Annex'!$K$1:$BS$1,0)),"") -> 6.812026792 | M14: =IFERROR(INDEX('Data Annex'!$K$1:$BS$4779,MATCH(M$1&"|"&$B14,'Data Annex'!$K$1:$K$4779,0),MATCH(M$2,'Data Annex'!$K$1:$BS$1,0)),"") -> 7.270846201 | N14: =IFERROR(INDEX('Data Annex'!$K$1:$BS$4779,MATCH(N$1&"|"&$B14,'Data Annex'!$K$1:$K$4779,0),MATCH(N$2,'Data Annex'!$K$1:$BS$1,0)),"") -> 11.23154413 | O14: =IFERROR(INDEX('Data Annex'!$K$1:$BS$4779,MATCH(O$1&"|"&$B14,'Data Annex'!$K$1:$K$4779,0),MATCH(O$2,'Data Annex'!$K$1:$BS$1,0)),"") -> 14.39574036 | P14: =IFERROR(INDEX('Data Annex'!$K$1:$BS$4779,MATCH(P$1&"|"&$B14,'Data Annex'!$K$1:$K$4779,0),MATCH(P$2,'Data Annex'!$K$1:$BS$1,0)),"") -> 14.59650936 | Q14: =IFERROR(INDEX('Data Annex'!$K$1:$BS$4779,MATCH(Q$1&"|"&$B14,'Data Annex'!$K$1:$K$4779,0),MATCH(Q$2,'Data Annex'!$K$1:$BS$1,0)),"") -> 6.166300746 | R14: =IFERROR(INDEX('Data Annex'!$K$1:$BS$4779,MATCH(R$1&"|"&$B14,'Data Annex'!$K$1:$K$4779,0),MATCH(R$2,'Data Annex'!$K$1:$BS$1,0)),"") -> 7.649105737 | S14: =IFERROR(INDEX('Data Annex'!$K$1:$BS$4779,MATCH(S$1&"|"&$B14,'Data Annex'!$K$1:$K$4779,0),MATCH(S$2,'Data Annex'!$K$1:$BS$1,0)),"") -> 7.749526025 | T14: =IFERROR(INDEX('Data Annex'!$K$1:$BS$4779,MATCH(T$1&"|"&$B14,'Data Annex'!$K$1:$K$4779,0),MATCH(T$2,'Data Annex'!$K$1:$BS$1,0)),"") -> 4.98004346 | U14: =IFERROR(INDEX('Data Annex'!$K$1:$BS$4779,MATCH(U$1&"|"&$B14,'Data Annex'!$K$1:$K$4779,0),MATCH(U$2,'Data Annex'!$K$1:$BS$1,0)),"") -> 6.395328254 | V14: =IFERROR(INDEX('Data Annex'!$K$1:$BS$4779,MATCH(V$1&"|"&$B14,'Data Annex'!$K$1:$K$4779,0),MATCH(V$2,'Data Annex'!$K$1:$BS$1,0)),"") -> 6.486673484
A15: 4 | B15: CY | D15: CY | E15: =IFERROR(INDEX('Data Annex'!$K$1:$BS$4779,MATCH(E$1&"|"&$B15,'Data Annex'!$K$1:$K$4779,0),MATCH(E$2,'Data Annex'!$K$1:$BS$1,0)),"") -> 35.14071853 | F15: =IFERROR(INDEX('Data Annex'!$K$1:$BS$4779,MATCH(F$1&"|"&$B15,'Data Annex'!$K$1:$K$4779,0),MATCH(F$2,'Data Annex'!$K$1:$BS$1,0)),"") -> 35.03183007 | G15: =IFERROR(INDEX('Data Annex'!$K$1:$BS$4779,MATCH(G$1&"|"&$B15,'Data Annex'!$K$1:$K$4779,0),MATCH(G$2,'Data Annex'!$K$1:$BS$1,0)),"") -> 35.3788116 | H15: =IFERROR(INDEX('Data Annex'!$K$1:$BS$4779,MATCH(H$1&"|"&$B15,'Data Annex'!$K$1:$K$4779,0),MATCH(H$2,'Data Annex'!$K$1:$BS$1,0)),"") -> 8.349337654 | I15: =IFERROR(INDEX('Data Annex'!$K$1:$BS$4779,MATCH(I$1&"|"&$B15,'Data Annex'!$K$1:$K$4779,0),MATCH(I$2,'Data Annex'!$K$1:$BS$1,0)),"") -> 8.327217019 | J15: =IFERROR(INDEX('Data Annex'!$K$1:$BS$4779,MATCH(J$1&"|"&$B15,'Data Annex'!$K$1:$K$4779,0),MATCH(J$2,'Data Annex'!$K$1:$BS$1,0)),"") -> 8.312551659 | K15: =IFERROR(INDEX('Data Annex'!$K$1:$BS$4779,MATCH(K$1&"|"&$B15,'Data Annex'!$K$1:$K$4779,0),MATCH(K$2,'Data Annex'!$K$1:$BS$1,0)),"") -> 6.499689226 | L15: =IFERROR(INDEX('Data Annex'!$K$1:$BS$4779,MATCH(L$1&"|"&$B15,'Data Annex'!$K$1:$K$4779,0),MATCH(L$2,'Data Annex'!$K$1:$BS$1,0)),"") -> 6.492300409 | M15: =IFERROR(INDEX('Data Annex'!$K$1:$BS$4779,MATCH(M$1&"|"&$B15,'Data Annex'!$K$1:$K$4779,0),MATCH(M$2,'Data Annex'!$K$1:$BS$1,0)),"") -> 6.477198704 | N15: =IFERROR(INDEX('Data Annex'!$K$1:$BS$4779,MATCH(N$1&"|"&$B15,'Data Annex'!$K$1:$K$4779,0),MATCH(N$2,'Data Annex'!$K$1:$BS$1,0)),"") -> 7.690351234 | O15: =IFERROR(INDEX('Data Annex'!$K$1:$BS$4779,MATCH(O$1&"|"&$B15,'Data Annex'!$K$1:$K$4779,0),MATCH(O$2,'Data Annex'!$K$1:$BS$1,0)),"") -> 7.631486187 | P15: =IFERROR(INDEX('Data Annex'!$K$1:$BS$4779,MATCH(P$1&"|"&$B15,'Data Annex'!$K$1:$K$4779,0),MATCH(P$2,'Data Annex'!$K$1:$BS$1,0)),"") -> 7.489805791 | Q15: =IFERROR(INDEX('Data Annex'!$K$1:$BS$4779,MATCH(Q$1&"|"&$B15,'Data Annex'!$K$1:$K$4779,0),MATCH(Q$2,'Data Annex'!$K$1:$BS$1,0)),"") -> 5.528680569 | R15: =IFERROR(INDEX('Data Annex'!$K$1:$BS$4779,MATCH(R$1&"|"&$B15,'Data Annex'!$K$1:$K$4779,0),MATCH(R$2,'Data Annex'!$K$1:$BS$1,0)),"") -> 5.195820486 | S15: =IFERROR(INDEX('Data Annex'!$K$1:$BS$4779,MATCH(S$1&"|"&$B15,'Data Annex'!$K$1:$K$4779,0),MATCH(S$2,'Data Annex'!$K$1:$BS$1,0)),"") -> 5.016077551 | T15: =IFERROR(INDEX('Data Annex'!$K$1:$BS$4779,MATCH(T$1&"|"&$B15,'Data Annex'!$K$1:$K$4779,0),MATCH(T$2,'Data Annex'!$K$1:$BS$1,0)),"") -> 5.561440669 | U15: =IFERROR(INDEX('Data Annex'!$K$1:$BS$4779,MATCH(U$1&"|"&$B15,'Data Annex'!$K$1:$K$4779,0),MATCH(U$2,'Data Annex'!$K$1:$BS$1,0)),"") -> 5.217612268 | V15: =IFERROR(INDEX('Data Annex'!$K$1:$BS$4779,MATCH(V$1&"|"&$B15,'Data Annex'!$K$1:$K$4779,0),MATCH(V$2,'Data Annex'!$K$1:$BS$1,0)),"") -> 5.133197372
A16: 5 | B16: CZ | D16: CZ | E16: =IFERROR(INDEX('Data Annex'!$K$1:$BS$4779,MATCH(E$1&"|"&$B16,'Data Annex'!$K$1:$K$4779,0),MATCH(E$2,'Data Annex'!$K$1:$BS$1,0)),"") -> 150.9006807 | F16: =IFERROR(INDEX('Data Annex'!$K$1:$BS$4779,MATCH(F$1&"|"&$B16,'Data Annex'!$K$1:$K$4779,0),MATCH(F$2,'Data Annex'!$K$1:$BS$1,0)),"") -> 178.2573142 | G16: =IFERROR(INDEX('Data Annex'!$K$1:$BS$4779,MATCH(G$1&"|"&$B16,'Data Annex'!$K$1:$K$4779,0),MATCH(G$2,'Data Annex'!$K$1:$BS$1,0)),"") -> 165.1107498 | H16: =IFERROR(INDEX('Data Annex'!$K$1:$BS$4779,MATCH(H$1&"|"&$B16,'Data Annex'!$K$1:$K$4779,0),MATCH(H$2,'Data Annex'!$K$1:$BS$1,0)),"") -> 64.04357025 | I16: =IFERROR(INDEX('Data Annex'!$K$1:$BS$4779,MATCH(I$1&"|"&$B16,'Data Annex'!$K$1:$K$4779,0),MATCH(I$2,'Data Annex'!$K$1:$BS$1,0)),"") -> 66.17560847 | J16: =IFERROR(INDEX('Data Annex'!$K$1:$BS$4779,MATCH(J$1&"|"&$B16,'Data Annex'!$K$1:$K$4779,0),MATCH(J$2,'Data Annex'!$K$1:$BS$1,0)),"") -> 66.14924868 | K16: =IFERROR(INDEX('Data Annex'!$K$1:$BS$4779,MATCH(K$1&"|"&$B16,'Data Annex'!$K$1:$K$4779,0),MATCH(K$2,'Data Annex'!$K$1:$BS$1,0)),"") -> 50.99747356 | L16: =IFERROR(INDEX('Data Annex'!$K$1:$BS$4779,MATCH(L$1&"|"&$B16,'Data Annex'!$K$1:$K$4779,0),MATCH(L$2,'Data Annex'!$K$1:$BS$1,0)),"") -> 52.55389414 | M16: =IFERROR(INDEX('Data Annex'!$K$1:$BS$4779,MATCH(M$1&"|"&$B16,'Data Annex'!$K$1:$K$4779,0),MATCH(M$2,'Data Annex'!$K$1:$BS$1,0)),"") -> 52.34732877 | N16: =IFERROR(INDEX('Data Annex'!$K$1:$BS$4779,MATCH(N$1&"|"&$B16,'Data Annex'!$K$1:$K$4779,0),MATCH(N$2,'Data Annex'!$K$1:$BS$1,0)),"") -> 36.79948416 | O16: =IFERROR(INDEX('Data Annex'!$K$1:$BS$4779,MATCH(O$1&"|"&$B16,'Data Annex'!$K$1:$K$4779,0),MATCH(O$2,'Data Annex'!$K$1:$BS$1,0)),"") -> 38.65531018 | P16: =IFERROR(INDEX('Data Annex'!$K$1:$BS$4779,MATCH(P$1&"|"&$B16,'Data Annex'!$K$1:$K$4779,0),MATCH(P$2,'Data Annex'!$K$1:$BS$1,0)),"") -> 38.79758199 | Q16: =IFERROR(INDEX('Data Annex'!$K$1:$BS$4779,MATCH(Q$1&"|"&$B16,'Data Annex'!$K$1:$K$4779,0),MATCH(Q$2,'Data Annex'!$K$1:$BS$1,0)),"") -> 15.93561806 | R16: =IFERROR(INDEX('Data Annex'!$K$1:$BS$4779,MATCH(R$1&"|"&$B16,'Data Annex'!$K$1:$K$4779,0),MATCH(R$2,'Data Annex'!$K$1:$BS$1,0)),"") -> 20.29211931 | S16: =IFERROR(INDEX('Data Annex'!$K$1:$BS$4779,MATCH(S$1&"|"&$B16,'Data Annex'!$K$1:$K$4779,0),MATCH(S$2,'Data Annex'!$K$1:$BS$1,0)),"") -> 20.24870457 | T16: =IFERROR(INDEX('Data Annex'!$K$1:$BS$4779,MATCH(T$1&"|"&$B16,'Data Annex'!$K$1:$K$4779,0),MATCH(T$2,'Data Annex'!$K$1:$BS$1,0)),"") -> 15.1996751 | U16: =IFERROR(INDEX('Data Annex'!$K$1:$BS$4779,MATCH(U$1&"|"&$B16,'Data Annex'!$K$1:$K$4779,0),MATCH(U$2,'Data Annex'!$K$1:$BS$1,0)),"") -> 16.58957296 | V16: =IFERROR(INDEX('Data Annex'!$K$1:$BS$4779,MATCH(V$1&"|"&$B16,'Data Annex'!$K$1:$K$4779,0),MATCH(V$2,'Data Annex'!$K$1:$BS$1,0)),"") -> 16.58206662
A17: 6 | B17: DE | D17: DE | E17: =IFERROR(INDEX('Data Annex'!$K$1:$BS$4779,MATCH(E$1&"|"&$B17,'Data Annex'!$K$1:$K$4779,0),MATCH(E$2,'Data Annex'!$K$1:$BS$1,0)),"") -> 2870.702173 | F17: =IFERROR(INDEX('Data Annex'!$K$1:$BS$4779,MATCH(F$1&"|"&$B17,'Data Annex'!$K$1:$K$4779,0),MATCH(F$2,'Data Annex'!$K$1:$BS$1,0)),"") -> 2988.170314 | G17: =IFERROR(INDEX('Data Annex'!$K$1:$BS$4779,MATCH(G$1&"|"&$B17,'Data Annex'!$K$1:$K$4779,0),MATCH(G$2,'Data Annex'!$K$1:$BS$1,0)),"") -> 2876.575684 | H17: =IFERROR(INDEX('Data Annex'!$K$1:$BS$4779,MATCH(H$1&"|"&$B17,'Data Annex'!$K$1:$K$4779,0),MATCH(H$2,'Data Annex'!$K$1:$BS$1,0)),"") -> 554.0708462 | I17: =IFERROR(INDEX('Data Annex'!$K$1:$BS$4779,MATCH(I$1&"|"&$B17,'Data Annex'!$K$1:$K$4779,0),MATCH(I$2,'Data Annex'!$K$1:$BS$1,0)),"") -> 551.610077 | J17: =IFERROR(INDEX('Data Annex'!$K$1:$BS$4779,MATCH(J$1&"|"&$B17,'Data Annex'!$K$1:$K$4779,0),MATCH(J$2,'Data Annex'!$K$1:$BS$1,0)),"") -> 548.4185295 | K17: =IFERROR(INDEX('Data Annex'!$K$1:$BS$4779,MATCH(K$1&"|"&$B17,'Data Annex'!$K$1:$K$4779,0),MATCH(K$2,'Data Annex'!$K$1:$BS$1,0)),"") -> 397.5883212 | L17: =IFERROR(INDEX('Data Annex'!$K$1:$BS$4779,MATCH(L$1&"|"&$B17,'Data Annex'!$K$1:$K$4779,0),MATCH(L$2,'Data Annex'!$K$1:$BS$1,0)),"") -> 400.8922512 | M17: =IFERROR(INDEX('Data Annex'!$K$1:$BS$4779,MATCH(M$1&"|"&$B17,'Data Annex'!$K$1:$K$4779,0),MATCH(M$2,'Data Annex'!$K$1:$BS$1,0)),"") -> 401.6370156 | N17: =IFERROR(INDEX('Data Annex'!$K$1:$BS$4779,MATCH(N$1&"|"&$B17,'Data Annex'!$K$1:$K$4779,0),MATCH(N$2,'Data Annex'!$K$1:$BS$1,0)),"") -> 861.6395467 | O17: =IFERROR(INDEX('Data Annex'!$K$1:$BS$4779,MATCH(O$1&"|"&$B17,'Data Annex'!$K$1:$K$4779,0),MATCH(O$2,'Data Annex'!$K$1:$BS$1,0)),"") -> 869.4236646 | P17: =IFERROR(INDEX('Data Annex'!$K$1:$BS$4779,MATCH(P$1&"|"&$B17,'Data Annex'!$K$1:$K$4779,0),MATCH(P$2,'Data Annex'!$K$1:$BS$1,0)),"") -> 862.4620299 | Q17: =IFERROR(INDEX('Data Annex'!$K$1:$BS$4779,MATCH(Q$1&"|"&$B17,'Data Annex'!$K$1:$K$4779,0),MATCH(Q$2,'Data Annex'!$K$1:$BS$1,0)),"") -> 216.9811432 | R17: =IFERROR(INDEX('Data Annex'!$K$1:$BS$4779,MATCH(R$1&"|"&$B17,'Data Annex'!$K$1:$K$4779,0),MATCH(R$2,'Data Annex'!$K$1:$BS$1,0)),"") -> 228.0101501 | S17: =IFERROR(INDEX('Data Annex'!$K$1:$BS$4779,MATCH(S$1&"|"&$B17,'Data Annex'!$K$1:$K$4779,0),MATCH(S$2,'Data Annex'!$K$1:$BS$1,0)),"") -> 230.3888905 | T17: =IFERROR(INDEX('Data Annex'!$K$1:$BS$4779,MATCH(T$1&"|"&$B17,'Data Annex'!$K$1:$K$4779,0),MATCH(T$2,'Data Annex'!$K$1:$BS$1,0)),"") -> 275.3993963 | U17: =IFERROR(INDEX('Data Annex'!$K$1:$BS$4779,MATCH(U$1&"|"&$B17,'Data Annex'!$K$1:$K$4779,0),MATCH(U$2,'Data Annex'!$K$1:$BS$1,0)),"") -> 285.0285597 | V17: =IFERROR(INDEX('Data Annex'!$K$1:$BS$4779,MATCH(V$1&"|"&$B17,'Data Annex'!$K$1:$K$4779,0),MATCH(V$2,'Data Annex'!$K$1:$BS$1,0)),"") -> 283.1766721
A18: 7 | B18: DK | D18: DK | E18: =IFERROR(INDEX('Data Annex'!$K$1:$BS$4779,MATCH(E$1&"|"&$B18,'Data Annex'!$K$1:$K$4779,0),MATCH(E$2,'Data Annex'!$K$1:$BS$1,0)),"") -> 587.0516506 | F18: =IFERROR(INDEX('Data Annex'!$K$1:$BS$4779,MATCH(F$1&"|"&$B18,'Data Annex'!$K$1:$K$4779,0),MATCH(F$2,'Data Annex'!$K$1:$BS$1,0)),"") -> 584.3248403 | G18: =IFERROR(INDEX('Data Annex'!$K$1:$BS$4779,MATCH(G$1&"|"&$B18,'Data Annex'!$K$1:$K$4779,0),MATCH(G$2,'Data Annex'!$K$1:$BS$1,0)),"") -> 595.1723299 | H18: =IFERROR(INDEX('Data Annex'!$K$1:$BS$4779,MATCH(H$1&"|"&$B18,'Data Annex'!$K$1:$K$4779,0),MATCH(H$2,'Data Annex'!$K$1:$BS$1,0)),"") -> 72.53541551 | I18: =IFERROR(INDEX('Data Annex'!$K$1:$BS$4779,MATCH(I$1&"|"&$B18,'Data Annex'!$K$1:$K$4779,0),MATCH(I$2,'Data Annex'!$K$1:$BS$1,0)),"") -> 51.46836322 | J18: =IFERROR(INDEX('Data Annex'!$K$1:$BS$4779,MATCH(J$1&"|"&$B18,'Data Annex'!$K$1:$K$4779,0),MATCH(J$2,'Data Annex'!$K$1:$BS$1,0)),"") -> 52.96494527 | K18: =IFERROR(INDEX('Data Annex'!$K$1:$BS$4779,MATCH(K$1&"|"&$B18,'Data Annex'!$K$1:$K$4779,0),MATCH(K$2,'Data Annex'!$K$1:$BS$1,0)),"") -> 54.92398369 | L18: =IFERROR(INDEX('Data Annex'!$K$1:$BS$4779,MATCH(L$1&"|"&$B18,'Data Annex'!$K$1:$K$4779,0),MATCH(L$2,'Data Annex'!$K$1:$BS$1,0)),"") -> 36.03189321 | M18: =IFERROR(INDEX('Data Annex'!$K$1:$BS$4779,MATCH(M$1&"|"&$B18,'Data Annex'!$K$1:$K$4779,0),MATCH(M$2,'Data Annex'!$K$1:$BS$1,0)),"") -> 40.84389231 | N18: =IFERROR(INDEX('Data Annex'!$K$1:$BS$4779,MATCH(N$1&"|"&$B18,'Data Annex'!$K$1:$K$4779,0),MATCH(N$2,'Data Annex'!$K$1:$BS$1,0)),"") -> 89.76188749 | O18: =IFERROR(INDEX('Data Annex'!$K$1:$BS$4779,MATCH(O$1&"|"&$B18,'Data Annex'!$K$1:$K$4779,0),MATCH(O$2,'Data Annex'!$K$1:$BS$1,0)),"") -> 89.01689468 | P18: =IFERROR(INDEX('Data Annex'!$K$1:$BS$4779,MATCH(P$1&"|"&$B18,'Data Annex'!$K$1:$K$4779,0),MATCH(P$2,'Data Annex'!$K$1:$BS$1,0)),"") -> 87.97230411 | Q18: =IFERROR(INDEX('Data Annex'!$K$1:$BS$4779,MATCH(Q$1&"|"&$B18,'Data Annex'!$K$1:$K$4779,0),MATCH(Q$2,'Data Annex'!$K$1:$BS$1,0)),"") -> 37.28619258 | R18: =IFERROR(INDEX('Data Annex'!$K$1:$BS$4779,MATCH(R$1&"|"&$B18,'Data Annex'!$K$1:$K$4779,0),MATCH(R$2,'Data Annex'!$K$1:$BS$1,0)),"") -> 36.52975491 | S18: =IFERROR(INDEX('Data Annex'!$K$1:$BS$4779,MATCH(S$1&"|"&$B18,'Data Annex'!$K$1:$K$4779,0),MATCH(S$2,'Data Annex'!$K$1:$BS$1,0)),"") -> 37.13276006 | T18: =IFERROR(INDEX('Data Annex'!$K$1:$BS$4779,MATCH(T$1&"|"&$B18,'Data Annex'!$K$1:$K$4779,0),MATCH(T$2,'Data Annex'!$K$1:$BS$1,0)),"") -> 22.49735241 | U18: =IFERROR(INDEX('Data Annex'!$K$1:$BS$4779,MATCH(U$1&"|"&$B18,'Data Annex'!$K$1:$K$4779,0),MATCH(U$2,'Data Annex'!$K$1:$BS$1,0)),"") -> 22.67453079 | V18: =IFERROR(INDEX('Data Annex'!$K$1:$BS$4779,MATCH(V$1&"|"&$B18,'Data Annex'!$K$1:$K$4779,0),MATCH(V$2,'Data Annex'!$K$1:$BS$1,0)),"") -> 19.00528006
A19: 8 | B19: EE | D19: EE | E19: =IFERROR(INDEX('Data Annex'!$K$1:$BS$4779,MATCH(E$1&"|"&$B19,'Data Annex'!$K$1:$K$4779,0),MATCH(E$2,'Data Annex'!$K$1:$BS$1,0)),"") -> 40.25282473 | F19: =IFERROR(INDEX('Data Annex'!$K$1:$BS$4779,MATCH(F$1&"|"&$B19,'Data Annex'!$K$1:$K$4779,0),MATCH(F$2,'Data Annex'!$K$1:$BS$1,0)),"") -> 41.57530135 | G19: =IFERROR(INDEX('Data Annex'!$K$1:$BS$4779,MATCH(G$1&"|"&$B19,'Data Annex'!$K$1:$K$4779,0),MATCH(G$2,'Data Annex'!$K$1:$BS$1,0)),"") -> 42.9914662 | H19: =IFERROR(INDEX('Data Annex'!$K$1:$BS$4779,MATCH(H$1&"|"&$B19,'Data Annex'!$K$1:$K$4779,0),MATCH(H$2,'Data Annex'!$K$1:$BS$1,0)),"") -> 15.95735029 | I19: =IFERROR(INDEX('Data Annex'!$K$1:$BS$4779,MATCH(I$1&"|"&$B19,'Data Annex'!$K$1:$K$4779,0),MATCH(I$2,'Data Annex'!$K$1:$BS$1,0)),"") -> 16.37725435 | J19: =IFERROR(INDEX('Data Annex'!$K$1:$BS$4779,MATCH(J$1&"|"&$B19,'Data Annex'!$K$1:$K$4779,0),MATCH(J$2,'Data Annex'!$K$1:$BS$1,0)),"") -> 16.50229693 | K19: =IFERROR(INDEX('Data Annex'!$K$1:$BS$4779,MATCH(K$1&"|"&$B19,'Data Annex'!$K$1:$K$4779,0),MATCH(K$2,'Data Annex'!$K$1:$BS$1,0)),"") -> 13.42583292 | L19: =IFERROR(INDEX('Data Annex'!$K$1:$BS$4779,MATCH(L$1&"|"&$B19,'Data Annex'!$K$1:$K$4779,0),MATCH(L$2,'Data Annex'!$K$1:$BS$1,0)),"") -> 13.80082966 | M19: =IFERROR(INDEX('Data Annex'!$K$1:$BS$4779,MATCH(M$1&"|"&$B19,'Data Annex'!$K$1:$K$4779,0),MATCH(M$2,'Data Annex'!$K$1:$BS$1,0)),"") -> 13.93249018 | N19: =IFERROR(INDEX('Data Annex'!$K$1:$BS$4779,MATCH(N$1&"|"&$B19,'Data Annex'!$K$1:$K$4779,0),MATCH(N$2,'Data Annex'!$K$1:$BS$1,0)),"") -> 12.96430164 | O19: =IFERROR(INDEX('Data Annex'!$K$1:$BS$4779,MATCH(O$1&"|"&$B19,'Data Annex'!$K$1:$K$4779,0),MATCH(O$2,'Data Annex'!$K$1:$BS$1,0)),"") -> 13.22196026 | P19: =IFERROR(INDEX('Data Annex'!$K$1:$BS$4779,MATCH(P$1&"|"&$B19,'Data Annex'!$K$1:$K$4779,0),MATCH(P$2,'Data Annex'!$K$1:$BS$1,0)),"") -> 13.13175461 | Q19: =IFERROR(INDEX('Data Annex'!$K$1:$BS$4779,MATCH(Q$1&"|"&$B19,'Data Annex'!$K$1:$K$4779,0),MATCH(Q$2,'Data Annex'!$K$1:$BS$1,0)),"") -> 9.011303356 | R19: =IFERROR(INDEX('Data Annex'!$K$1:$BS$4779,MATCH(R$1&"|"&$B19,'Data Annex'!$K$1:$K$4779,0),MATCH(R$2,'Data Annex'!$K$1:$BS$1,0)),"") -> 9.052007561 | S19: =IFERROR(INDEX('Data Annex'!$K$1:$BS$4779,MATCH(S$1&"|"&$B19,'Data Annex'!$K$1:$K$4779,0),MATCH(S$2,'Data Annex'!$K$1:$BS$1,0)),"") -> 8.908288612 | T19: =IFERROR(INDEX('Data Annex'!$K$1:$BS$4779,MATCH(T$1&"|"&$B19,'Data Annex'!$K$1:$K$4779,0),MATCH(T$2,'Data Annex'!$K$1:$BS$1,0)),"") -> 7.700695698 | U19: =IFERROR(INDEX('Data Annex'!$K$1:$BS$4779,MATCH(U$1&"|"&$B19,'Data Annex'!$K$1:$K$4779,0),MATCH(U$2,'Data Annex'!$K$1:$BS$1,0)),"") -> 7.870349998 | V19: =IFERROR(INDEX('Data Annex'!$K$1:$BS$4779,MATCH(V$1&"|"&$B19,'Data Annex'!$K$1:$K$4779,0),MATCH(V$2,'Data Annex'!$K$1:$BS$1,0)),"") -> 7.923912685
A20: 9 | B20: ES | D20: ES | E20: =IFERROR(INDEX('Data Annex'!$K$1:$BS$4779,MATCH(E$1&"|"&$B20,'Data Annex'!$K$1:$K$4779,0),MATCH(E$2,'Data Annex'!$K$1:$BS$1,0)),"") -> 2724.930476 | F20: =IFERROR(INDEX('Data Annex'!$K$1:$BS$4779,MATCH(F$1&"|"&$B20,'Data Annex'!$K$1:$K$4779,0),MATCH(F$2,'Data Annex'!$K$1:$BS$1,0)),"") -> 2739.682334 | G20: =IFERROR(INDEX('Data Annex'!$K$1:$BS$4779,MATCH(G$1&"|"&$B20,'Data Annex'!$K$1:$K$4779,0),MATCH(G$2,'Data Annex'!$K$1:$BS$1,0)),"") -> 2751.102884 | H20: =IFERROR(INDEX('Data Annex'!$K$1:$BS$4779,MATCH(H$1&"|"&$B20,'Data Annex'!$K$1:$K$4779,0),MATCH(H$2,'Data Annex'!$K$1:$BS$1,0)),"") -> 1216.147593 | I20: =IFERROR(INDEX('Data Annex'!$K$1:$BS$4779,MATCH(I$1&"|"&$B20,'Data Annex'!$K$1:$K$4779,0),MATCH(I$2,'Data Annex'!$K$1:$BS$1,0)),"") -> 1220.39245 | J20: =IFERROR(INDEX('Data Annex'!$K$1:$BS$4779,MATCH(J$1&"|"&$B20,'Data Annex'!$K$1:$K$4779,0),MATCH(J$2,'Data Annex'!$K$1:$BS$1,0)),"") -> 1217.072355 | K20: =IFERROR(INDEX('Data Annex'!$K$1:$BS$4779,MATCH(K$1&"|"&$B20,'Data Annex'!$K$1:$K$4779,0),MATCH(K$2,'Data Annex'!$K$1:$BS$1,0)),"") -> 841.7742758 | L20: =IFERROR(INDEX('Data Annex'!$K$1:$BS$4779,MATCH(L$1&"|"&$B20,'Data Annex'!$K$1:$K$4779,0),MATCH(L$2,'Data Annex'!$K$1:$BS$1,0)),"") -> 826.3061597 | M20: =IFERROR(INDEX('Data Annex'!$K$1:$BS$4779,MATCH(M$1&"|"&$B20,'Data Annex'!$K$1:$K$4779,0),MATCH(M$2,'Data Annex'!$K$1:$BS$1,0)),"") -> 823.1244212 | N20: =IFERROR(INDEX('Data Annex'!$K$1:$BS$4779,MATCH(N$1&"|"&$B20,'Data Annex'!$K$1:$K$4779,0),MATCH(N$2,'Data Annex'!$K$1:$BS$1,0)),"") -> 798.2400942 | O20: =IFERROR(INDEX('Data Annex'!$K$1:$BS$4779,MATCH(O$1&"|"&$B20,'Data Annex'!$K$1:$K$4779,0),MATCH(O$2,'Data Annex'!$K$1:$BS$1,0)),"") -> 794.8083215 | P20: =IFERROR(INDEX('Data Annex'!$K$1:$BS$4779,MATCH(P$1&"|"&$B20,'Data Annex'!$K$1:$K$4779,0),MATCH(P$2,'Data Annex'!$K$1:$BS$1,0)),"") -> 796.4139755 | Q20: =IFERROR(INDEX('Data Annex'!$K$1:$BS$4779,MATCH(Q$1&"|"&$B20,'Data Annex'!$K$1:$K$4779,0),MATCH(Q$2,'Data Annex'!$K$1:$BS$1,0)),"") -> 318.0234138 | R20: =IFERROR(INDEX('Data Annex'!$K$1:$BS$4779,MATCH(R$1&"|"&$B20,'Data Annex'!$K$1:$K$4779,0),MATCH(R$2,'Data Annex'!$K$1:$BS$1,0)),"") -> 305.4222042 | S20: =IFERROR(INDEX('Data Annex'!$K$1:$BS$4779,MATCH(S$1&"|"&$B20,'Data Annex'!$K$1:$K$4779,0),MATCH(S$2,'Data Annex'!$K$1:$BS$1,0)),"") -> 301.7523777 | T20: =IFERROR(INDEX('Data Annex'!$K$1:$BS$4779,MATCH(T$1&"|"&$B20,'Data Annex'!$K$1:$K$4779,0),MATCH(T$2,'Data Annex'!$K$1:$BS$1,0)),"") -> 117.4326854 | U20: =IFERROR(INDEX('Data Annex'!$K$1:$BS$4779,MATCH(U$1&"|"&$B20,'Data Annex'!$K$1:$K$4779,0),MATCH(U$2,'Data Annex'!$K$1:$BS$1,0)),"") -> 119.4906281 | V20: =IFERROR(INDEX('Data Annex'!$K$1:$BS$4779,MATCH(V$1&"|"&$B20,'Data Annex'!$K$1:$K$4779,0),MATCH(V$2,'Data Annex'!$K$1:$BS$1,0)),"") -> 118.1954818
A21: 10 | B21: FI | D21: FI | E21: =IFERROR(INDEX('Data Annex'!$K$1:$BS$4779,MATCH(E$1&"|"&$B21,'Data Annex'!$K$1:$K$4779,0),MATCH(E$2,'Data Annex'!$K$1:$BS$1,0)),"") -> 571.3632431 | F21: =IFERROR(INDEX('Data Annex'!$K$1:$BS$4779,MATCH(F$1&"|"&$B21,'Data Annex'!$K$1:$K$4779,0),MATCH(F$2,'Data Annex'!$K$1:$BS$1,0)),"") -> 542.9759102 | G21: =IFERROR(INDEX('Data Annex'!$K$1:$BS$4779,MATCH(G$1&"|"&$B21,'Data Annex'!$K$1:$K$4779,0),MATCH(G$2,'Data Annex'!$K$1:$BS$1,0)),"") -> 543.368752 | H21: =IFERROR(INDEX('Data Annex'!$K$1:$BS$4779,MATCH(H$1&"|"&$B21,'Data Annex'!$K$1:$K$4779,0),MATCH(H$2,'Data Annex'!$K$1:$BS$1,0)),"") -> 202.2472274 | I21: =IFERROR(INDEX('Data Annex'!$K$1:$BS$4779,MATCH(I$1&"|"&$B21,'Data Annex'!$K$1:$K$4779,0),MATCH(I$2,'Data Annex'!$K$1:$BS$1,0)),"") -> 199.0307799 | J21: =IFERROR(INDEX('Data Annex'!$K$1:$BS$4779,MATCH(J$1&"|"&$B21,'Data Annex'!$K$1:$K$4779,0),MATCH(J$2,'Data Annex'!$K$1:$BS$1,0)),"") -> 202.3352978 | K21: =IFERROR(INDEX('Data Annex'!$K$1:$BS$4779,MATCH(K$1&"|"&$B21,'Data Annex'!$K$1:$K$4779,0),MATCH(K$2,'Data Annex'!$K$1:$BS$1,0)),"") -> 171.2092764 | L21: =IFERROR(INDEX('Data Annex'!$K$1:$BS$4779,MATCH(L$1&"|"&$B21,'Data Annex'!$K$1:$K$4779,0),MATCH(L$2,'Data Annex'!$K$1:$BS$1,0)),"") -> 164.5437227 | M21: =IFERROR(INDEX('Data Annex'!$K$1:$BS$4779,MATCH(M$1&"|"&$B21,'Data Annex'!$K$1:$K$4779,0),MATCH(M$2,'Data Annex'!$K$1:$BS$1,0)),"") -> 169.0667583 | N21: =IFERROR(INDEX('Data Annex'!$K$1:$BS$4779,MATCH(N$1&"|"&$B21,'Data Annex'!$K$1:$K$4779,0),MATCH(N$2,'Data Annex'!$K$1:$BS$1,0)),"") -> 171.0080822 | O21: =IFERROR(INDEX('Data Annex'!$K$1:$BS$4779,MATCH(O$1&"|"&$B21,'Data Annex'!$K$1:$K$4779,0),MATCH(O$2,'Data Annex'!$K$1:$BS$1,0)),"") -> 174.5104117 | P21: =IFERROR(INDEX('Data Annex'!$K$1:$BS$4779,MATCH(P$1&"|"&$B21,'Data Annex'!$K$1:$K$4779,0),MATCH(P$2,'Data Annex'!$K$1:$BS$1,0)),"") -> 169.8355785 | Q21: =IFERROR(INDEX('Data Annex'!$K$1:$BS$4779,MATCH(Q$1&"|"&$B21,'Data Annex'!$K$1:$K$4779,0),MATCH(Q$2,'Data Annex'!$K$1:$BS$1,0)),"") -> 64.47012456 | R21: =IFERROR(INDEX('Data Annex'!$K$1:$BS$4779,MATCH(R$1&"|"&$B21,'Data Annex'!$K$1:$K$4779,0),MATCH(R$2,'Data Annex'!$K$1:$BS$1,0)),"") -> 62.1382596 | S21: =IFERROR(INDEX('Data Annex'!$K$1:$BS$4779,MATCH(S$1&"|"&$B21,'Data Annex'!$K$1:$K$4779,0),MATCH(S$2,'Data Annex'!$K$1:$BS$1,0)),"") -> 63.19784929 | T21: =IFERROR(INDEX('Data Annex'!$K$1:$BS$4779,MATCH(T$1&"|"&$B21,'Data Annex'!$K$1:$K$4779,0),MATCH(T$2,'Data Annex'!$K$1:$BS$1,0)),"") -> 33.44455303 | U21: =IFERROR(INDEX('Data Annex'!$K$1:$BS$4779,MATCH(U$1&"|"&$B21,'Data Annex'!$K$1:$K$4779,0),MATCH(U$2,'Data Annex'!$K$1:$BS$1,0)),"") -> 34.58965559 | V21: =IFERROR(INDEX('Data Annex'!$K$1:$BS$4779,MATCH(V$1&"|"&$B21,'Data Annex'!$K$1:$K$4779,0),MATCH(V$2,'Data Annex'!$K$1:$BS$1,0)),"") -> 34.87546401
A22: 11 | B22: FR | D22: FR | E22: =IFERROR(INDEX('Data Annex'!$K$1:$BS$4779,MATCH(E$1&"|"&$B22,'Data Annex'!$K$1:$K$4779,0),MATCH(E$2,'Data Annex'!$K$1:$BS$1,0)),"") -> 6008.448736 | F22: =IFERROR(INDEX('Data Annex'!$K$1:$BS$4779,MATCH(F$1&"|"&$B22,'Data Annex'!$K$1:$K$4779,0),MATCH(F$2,'Data Annex'!$K$1:$BS$1,0)),"") -> 6042.642627 | G22: =IFERROR(INDEX('Data Annex'!$K$1:$BS$4779,MATCH(G$1&"|"&$B22,'Data Annex'!$K$1:$K$4779,0),MATCH(G$2,'Data Annex'!$K$1:$BS$1,0)),"") -> 6035.83117 | H22: =IFERROR(INDEX('Data Annex'!$K$1:$BS$4779,MATCH(H$1&"|"&$B22,'Data Annex'!$K$1:$K$4779,0),MATCH(H$2,'Data Annex'!$K$1:$BS$1,0)),"") -> 2021.41064 | I22: =IFERROR(INDEX('Data Annex'!$K$1:$BS$4779,MATCH(I$1&"|"&$B22,'Data Annex'!$K$1:$K$4779,0),MATCH(I$2,'Data Annex'!$K$1:$BS$1,0)),"") -> 2081.639911 | J22: =IFERROR(INDEX('Data Annex'!$K$1:$BS$4779,MATCH(J$1&"|"&$B22,'Data Annex'!$K$1:$K$4779,0),MATCH(J$2,'Data Annex'!$K$1:$BS$1,0)),"") -> 2072.822016 | K22: =IFERROR(INDEX('Data Annex'!$K$1:$BS$4779,MATCH(K$1&"|"&$B22,'Data Annex'!$K$1:$K$4779,0),MATCH(K$2,'Data Annex'!$K$1:$BS$1,0)),"") -> 636.8553997 | L22: =IFERROR(INDEX('Data Annex'!$K$1:$BS$4779,MATCH(L$1&"|"&$B22,'Data Annex'!$K$1:$K$4779,0),MATCH(L$2,'Data Annex'!$K$1:$BS$1,0)),"") -> 637.2836786 | M22: =IFERROR(INDEX('Data Annex'!$K$1:$BS$4779,MATCH(M$1&"|"&$B22,'Data Annex'!$K$1:$K$4779,0),MATCH(M$2,'Data Annex'!$K$1:$BS$1,0)),"") -> 635.6660397 | N22: =IFERROR(INDEX('Data Annex'!$K$1:$BS$4779,MATCH(N$1&"|"&$B22,'Data Annex'!$K$1:$K$4779,0),MATCH(N$2,'Data Annex'!$K$1:$BS$1,0)),"") -> 1914.817788 | O22: =IFERROR(INDEX('Data Annex'!$K$1:$BS$4779,MATCH(O$1&"|"&$B22,'Data Annex'!$K$1:$K$4779,0),MATCH(O$2,'Data Annex'!$K$1:$BS$1,0)),"") -> 1908.633372 | P22: =IFERROR(INDEX('Data Annex'!$K$1:$BS$4779,MATCH(P$1&"|"&$B22,'Data Annex'!$K$1:$K$4779,0),MATCH(P$2,'Data Annex'!$K$1:$BS$1,0)),"") -> 1924.410555 | Q22: =IFERROR(INDEX('Data Annex'!$K$1:$BS$4779,MATCH(Q$1&"|"&$B22,'Data Annex'!$K$1:$K$4779,0),MATCH(Q$2,'Data Annex'!$K$1:$BS$1,0)),"") -> 867.6529107 | R22: =IFERROR(INDEX('Data Annex'!$K$1:$BS$4779,MATCH(R$1&"|"&$B22,'Data Annex'!$K$1:$K$4779,0),MATCH(R$2,'Data Annex'!$K$1:$BS$1,0)),"") -> 895.2164875 | S22: =IFERROR(INDEX('Data Annex'!$K$1:$BS$4779,MATCH(S$1&"|"&$B22,'Data Annex'!$K$1:$K$4779,0),MATCH(S$2,'Data Annex'!$K$1:$BS$1,0)),"") -> 903.0511252 | T22: =IFERROR(INDEX('Data Annex'!$K$1:$BS$4779,MATCH(T$1&"|"&$B22,'Data Annex'!$K$1:$K$4779,0),MATCH(T$2,'Data Annex'!$K$1:$BS$1,0)),"") -> 275.529426 | U22: =IFERROR(INDEX('Data Annex'!$K$1:$BS$4779,MATCH(U$1&"|"&$B22,'Data Annex'!$K$1:$K$4779,0),MATCH(U$2,'Data Annex'!$K$1:$BS$1,0)),"") -> 285.5261338 | V22: =IFERROR(INDEX('Data Annex'!$K$1:$BS$4779,MATCH(V$1&"|"&$B22,'Data Annex'!$K$1:$K$4779,0),MATCH(V$2,'Data Annex'!$K$1:$BS$1,0)),"") -> 287.2077211
A23: 13 | B23: GR | D23: GR | E23: =IFERROR(INDEX('Data Annex'!$K$1:$BS$4779,MATCH(E$1&"|"&$B23,'Data Annex'!$K$1:$K$4779,0),MATCH(E$2,'Data Annex'!$K$1:$BS$1,0)),"") -> 215.0843085 | F23: =IFERROR(INDEX('Data Annex'!$K$1:$BS$4779,MATCH(F$1&"|"&$B23,'Data Annex'!$K$1:$K$4779,0),MATCH(F$2,'Data Annex'!$K$1:$BS$1,0)),"") -> 199.5624878 | G23: =IFERROR(INDEX('Data Annex'!$K$1:$BS$4779,MATCH(G$1&"|"&$B23,'Data Annex'!$K$1:$K$4779,0),MATCH(G$2,'Data Annex'!$K$1:$BS$1,0)),"") -> 193.6932818 | H23: =IFERROR(INDEX('Data Annex'!$K$1:$BS$4779,MATCH(H$1&"|"&$B23,'Data Annex'!$K$1:$K$4779,0),MATCH(H$2,'Data Annex'!$K$1:$BS$1,0)),"") -> 45.66721784 | I23: =IFERROR(INDEX('Data Annex'!$K$1:$BS$4779,MATCH(I$1&"|"&$B23,'Data Annex'!$K$1:$K$4779,0),MATCH(I$2,'Data Annex'!$K$1:$BS$1,0)),"") -> 44.08795524 | J23: =IFERROR(INDEX('Data Annex'!$K$1:$BS$4779,MATCH(J$1&"|"&$B23,'Data Annex'!$K$1:$K$4779,0),MATCH(J$2,'Data Annex'!$K$1:$BS$1,0)),"") -> 41.70016183 | K23: =IFERROR(INDEX('Data Annex'!$K$1:$BS$4779,MATCH(K$1&"|"&$B23,'Data Annex'!$K$1:$K$4779,0),MATCH(K$2,'Data Annex'!$K$1:$BS$1,0)),"") -> 32.76788064 | L23: =IFERROR(INDEX('Data Annex'!$K$1:$BS$4779,MATCH(L$1&"|"&$B23,'Data Annex'!$K$1:$K$4779,0),MATCH(L$2,'Data Annex'!$K$1:$BS$1,0)),"") -> 31.4974017 | M23: =IFERROR(INDEX('Data Annex'!$K$1:$BS$4779,MATCH(M$1&"|"&$B23,'Data Annex'!$K$1:$K$4779,0),MATCH(M$2,'Data Annex'!$K$1:$BS$1,0)),"") -> 29.61955392 | N23: =IFERROR(INDEX('Data Annex'!$K$1:$BS$4779,MATCH(N$1&"|"&$B23,'Data Annex'!$K$1:$K$4779,0),MATCH(N$2,'Data Annex'!$K$1:$BS$1,0)),"") -> 83.52127047 | O23: =IFERROR(INDEX('Data Annex'!$K$1:$BS$4779,MATCH(O$1&"|"&$B23,'Data Annex'!$K$1:$K$4779,0),MATCH(O$2,'Data Annex'!$K$1:$BS$1,0)),"") -> 83.70163432 | P23: =IFERROR(INDEX('Data Annex'!$K$1:$BS$4779,MATCH(P$1&"|"&$B23,'Data Annex'!$K$1:$K$4779,0),MATCH(P$2,'Data Annex'!$K$1:$BS$1,0)),"") -> 84.50905303 | Q23: =IFERROR(INDEX('Data Annex'!$K$1:$BS$4779,MATCH(Q$1&"|"&$B23,'Data Annex'!$K$1:$K$4779,0),MATCH(Q$2,'Data Annex'!$K$1:$BS$1,0)),"") -> 34.94245864 | R23: =IFERROR(INDEX('Data Annex'!$K$1:$BS$4779,MATCH(R$1&"|"&$B23,'Data Annex'!$K$1:$K$4779,0),MATCH(R$2,'Data Annex'!$K$1:$BS$1,0)),"") -> 34.07579411 | S23: =IFERROR(INDEX('Data Annex'!$K$1:$BS$4779,MATCH(S$1&"|"&$B23,'Data Annex'!$K$1:$K$4779,0),MATCH(S$2,'Data Annex'!$K$1:$BS$1,0)),"") -> 34.34335026 | T23: =IFERROR(INDEX('Data Annex'!$K$1:$BS$4779,MATCH(T$1&"|"&$B23,'Data Annex'!$K$1:$K$4779,0),MATCH(T$2,'Data Annex'!$K$1:$BS$1,0)),"") -> 23.68219743 | U23: =IFERROR(INDEX('Data Annex'!$K$1:$BS$4779,MATCH(U$1&"|"&$B23,'Data Annex'!$K$1:$K$4779,0),MATCH(U$2,'Data Annex'!$K$1:$BS$1,0)),"") -> 23.26611064 | V23: =IFERROR(INDEX('Data Annex'!$K$1:$BS$4779,MATCH(V$1&"|"&$B23,'Data Annex'!$K$1:$K$4779,0),MATCH(V$2,'Data Annex'!$K$1:$BS$1,0)),"") -> 22.84924087
A24: 14 | B24: HR | D24: HR | E24: =IFERROR(INDEX('Data Annex'!$K$1:$BS$4779,MATCH(E$1&"|"&$B24,'Data Annex'!$K$1:$K$4779,0),MATCH(E$2,'Data Annex'!$K$1:$BS$1,0)),"") -> 50.70053289 | F24: =IFERROR(INDEX('Data Annex'!$K$1:$BS$4779,MATCH(F$1&"|"&$B24,'Data Annex'!$K$1:$K$4779,0),MATCH(F$2,'Data Annex'!$K$1:$BS$1,0)),"") -> 51.89454358 | G24: =IFERROR(INDEX('Data Annex'!$K$1:$BS$4779,MATCH(G$1&"|"&$B24,'Data Annex'!$K$1:$K$4779,0),MATCH(G$2,'Data Annex'!$K$1:$BS$1,0)),"") -> 51.32608752 | H24: =IFERROR(INDEX('Data Annex'!$K$1:$BS$4779,MATCH(H$1&"|"&$B24,'Data Annex'!$K$1:$K$4779,0),MATCH(H$2,'Data Annex'!$K$1:$BS$1,0)),"") -> 14.71376326 | I24: =IFERROR(INDEX('Data Annex'!$K$1:$BS$4779,MATCH(I$1&"|"&$B24,'Data Annex'!$K$1:$K$4779,0),MATCH(I$2,'Data Annex'!$K$1:$BS$1,0)),"") -> 15.95620352 | J24: =IFERROR(INDEX('Data Annex'!$K$1:$BS$4779,MATCH(J$1&"|"&$B24,'Data Annex'!$K$1:$K$4779,0),MATCH(J$2,'Data Annex'!$K$1:$BS$1,0)),"") -> 16.38326386 | K24: =IFERROR(INDEX('Data Annex'!$K$1:$BS$4779,MATCH(K$1&"|"&$B24,'Data Annex'!$K$1:$K$4779,0),MATCH(K$2,'Data Annex'!$K$1:$BS$1,0)),"") -> 6.526139849 | L24: =IFERROR(INDEX('Data Annex'!$K$1:$BS$4779,MATCH(L$1&"|"&$B24,'Data Annex'!$K$1:$K$4779,0),MATCH(L$2,'Data Annex'!$K$1:$BS$1,0)),"") -> 7.093182785 | M24: =IFERROR(INDEX('Data Annex'!$K$1:$BS$4779,MATCH(M$1&"|"&$B24,'Data Annex'!$K$1:$K$4779,0),MATCH(M$2,'Data Annex'!$K$1:$BS$1,0)),"") -> 7.257880791 | N24: =IFERROR(INDEX('Data Annex'!$K$1:$BS$4779,MATCH(N$1&"|"&$B24,'Data Annex'!$K$1:$K$4779,0),MATCH(N$2,'Data Annex'!$K$1:$BS$1,0)),"") -> 12.16786669 | O24: =IFERROR(INDEX('Data Annex'!$K$1:$BS$4779,MATCH(O$1&"|"&$B24,'Data Annex'!$K$1:$K$4779,0),MATCH(O$2,'Data Annex'!$K$1:$BS$1,0)),"") -> 12.90884648 | P24: =IFERROR(INDEX('Data Annex'!$K$1:$BS$4779,MATCH(P$1&"|"&$B24,'Data Annex'!$K$1:$K$4779,0),MATCH(P$2,'Data Annex'!$K$1:$BS$1,0)),"") -> 13.02380244 | Q24: =IFERROR(INDEX('Data Annex'!$K$1:$BS$4779,MATCH(Q$1&"|"&$B24,'Data Annex'!$K$1:$K$4779,0),MATCH(Q$2,'Data Annex'!$K$1:$BS$1,0)),"") -> 5.875728485 | R24: =IFERROR(INDEX('Data Annex'!$K$1:$BS$4779,MATCH(R$1&"|"&$B24,'Data Annex'!$K$1:$K$4779,0),MATCH(R$2,'Data Annex'!$K$1:$BS$1,0)),"") -> 5.953746715 | S24: =IFERROR(INDEX('Data Annex'!$K$1:$BS$4779,MATCH(S$1&"|"&$B24,'Data Annex'!$K$1:$K$4779,0),MATCH(S$2,'Data Annex'!$K$1:$BS$1,0)),"") -> 6.158885225 | T24: =IFERROR(INDEX('Data Annex'!$K$1:$BS$4779,MATCH(T$1&"|"&$B24,'Data Annex'!$K$1:$K$4779,0),MATCH(T$2,'Data Annex'!$K$1:$BS$1,0)),"") -> 4.783556922 | U24: =IFERROR(INDEX('Data Annex'!$K$1:$BS$4779,MATCH(U$1&"|"&$B24,'Data Annex'!$K$1:$K$4779,0),MATCH(U$2,'Data Annex'!$K$1:$BS$1,0)),"") -> 4.452956051 | V24: =IFERROR(INDEX('Data Annex'!$K$1:$BS$4779,MATCH(V$1&"|"&$B24,'Data Annex'!$K$1:$K$4779,0),MATCH(V$2,'Data Annex'!$K$1:$BS$1,0)),"") -> 4.502303893
A25: 15 | B25: HU | D25: HU | E25: =IFERROR(INDEX('Data Annex'!$K$1:$BS$4779,MATCH(E$1&"|"&$B25,'Data Annex'!$K$1:$K$4779,0),MATCH(E$2,'Data Annex'!$K$1:$BS$1,0)),"") -> 98.58079954 | F25: =IFERROR(INDEX('Data Annex'!$K$1:$BS$4779,MATCH(F$1&"|"&$B25,'Data Annex'!$K$1:$K$4779,0),MATCH(F$2,'Data Annex'!$K$1:$BS$1,0)),"") -> 105.7586328 | G25: =IFERROR(INDEX('Data Annex'!$K$1:$BS$4779,MATCH(G$1&"|"&$B25,'Data Annex'!$K$1:$K$4779,0),MATCH(G$2,'Data Annex'!$K$1:$BS$1,0)),"") -> 110.679909 | H25: =IFERROR(INDEX('Data Annex'!$K$1:$BS$4779,MATCH(H$1&"|"&$B25,'Data Annex'!$K$1:$K$4779,0),MATCH(H$2,'Data Annex'!$K$1:$BS$1,0)),"") -> 28.93266241 | I25: =IFERROR(INDEX('Data Annex'!$K$1:$BS$4779,MATCH(I$1&"|"&$B25,'Data Annex'!$K$1:$K$4779,0),MATCH(I$2,'Data Annex'!$K$1:$BS$1,0)),"") -> 32.38966218 | J25: =IFERROR(INDEX('Data Annex'!$K$1:$BS$4779,MATCH(J$1&"|"&$B25,'Data Annex'!$K$1:$K$4779,0),MATCH(J$2,'Data Annex'!$K$1:$BS$1,0)),"") -> 33.22989742 | K25: =IFERROR(INDEX('Data Annex'!$K$1:$BS$4779,MATCH(K$1&"|"&$B25,'Data Annex'!$K$1:$K$4779,0),MATCH(K$2,'Data Annex'!$K$1:$BS$1,0)),"") -> 14.12025581 | L25: =IFERROR(INDEX('Data Annex'!$K$1:$BS$4779,MATCH(L$1&"|"&$B25,'Data Annex'!$K$1:$K$4779,0),MATCH(L$2,'Data Annex'!$K$1:$BS$1,0)),"") -> 16.19286718 | M25: =IFERROR(INDEX('Data Annex'!$K$1:$BS$4779,MATCH(M$1&"|"&$B25,'Data Annex'!$K$1:$K$4779,0),MATCH(M$2,'Data Annex'!$K$1:$BS$1,0)),"") -> 16.58021278 | N25: =IFERROR(INDEX('Data Annex'!$K$1:$BS$4779,MATCH(N$1&"|"&$B25,'Data Annex'!$K$1:$K$4779,0),MATCH(N$2,'Data Annex'!$K$1:$BS$1,0)),"") -> 34.90617418 | O25: =IFERROR(INDEX('Data Annex'!$K$1:$BS$4779,MATCH(O$1&"|"&$B25,'Data Annex'!$K$1:$K$4779,0),MATCH(O$2,'Data Annex'!$K$1:$BS$1,0)),"") -> 35.52296009 | P25: =IFERROR(INDEX('Data Annex'!$K$1:$BS$4779,MATCH(P$1&"|"&$B25,'Data Annex'!$K$1:$K$4779,0),MATCH(P$2,'Data Annex'!$K$1:$BS$1,0)),"") -> 35.88970506 | Q25: =IFERROR(INDEX('Data Annex'!$K$1:$BS$4779,MATCH(Q$1&"|"&$B25,'Data Annex'!$K$1:$K$4779,0),MATCH(Q$2,'Data Annex'!$K$1:$BS$1,0)),"") -> 17.04126802 | R25: =IFERROR(INDEX('Data Annex'!$K$1:$BS$4779,MATCH(R$1&"|"&$B25,'Data Annex'!$K$1:$K$4779,0),MATCH(R$2,'Data Annex'!$K$1:$BS$1,0)),"") -> 18.1363031 | S25: =IFERROR(INDEX('Data Annex'!$K$1:$BS$4779,MATCH(S$1&"|"&$B25,'Data Annex'!$K$1:$K$4779,0),MATCH(S$2,'Data Annex'!$K$1:$BS$1,0)),"") -> 18.92664081 | T25: =IFERROR(INDEX('Data Annex'!$K$1:$BS$4779,MATCH(T$1&"|"&$B25,'Data Annex'!$K$1:$K$4779,0),MATCH(T$2,'Data Annex'!$K$1:$BS$1,0)),"") -> 11.6744765 | U25: =IFERROR(INDEX('Data Annex'!$K$1:$BS$4779,MATCH(U$1&"|"&$B25,'Data Annex'!$K$1:$K$4779,0),MATCH(U$2,'Data Annex'!$K$1:$BS$1,0)),"") -> 13.01405474 | V25: =IFERROR(INDEX('Data Annex'!$K$1:$BS$4779,MATCH(V$1&"|"&$B25,'Data Annex'!$K$1:$K$4779,0),MATCH(V$2,'Data Annex'!$K$1:$BS$1,0)),"") -> 12.6255977
A26: 16 | B26: IE | D26: IE | E26: =IFERROR(INDEX('Data Annex'!$K$1:$BS$4779,MATCH(E$1&"|"&$B26,'Data Annex'!$K$1:$K$4779,0),MATCH(E$2,'Data Annex'!$K$1:$BS$1,0)),"") -> 292.4490626 | F26: =IFERROR(INDEX('Data Annex'!$K$1:$BS$4779,MATCH(F$1&"|"&$B26,'Data Annex'!$K$1:$K$4779,0),MATCH(F$2,'Data Annex'!$K$1:$BS$1,0)),"") -> 294.4005196 | G26: =IFERROR(INDEX('Data Annex'!$K$1:$BS$4779,MATCH(G$1&"|"&$B26,'Data Annex'!$K$1:$K$4779,0),MATCH(G$2,'Data Annex'!$K$1:$BS$1,0)),"") -> 308.1109809 | H26: =IFERROR(INDEX('Data Annex'!$K$1:$BS$4779,MATCH(H$1&"|"&$B26,'Data Annex'!$K$1:$K$4779,0),MATCH(H$2,'Data Annex'!$K$1:$BS$1,0)),"") -> 79.83828786 | I26: =IFERROR(INDEX('Data Annex'!$K$1:$BS$4779,MATCH(I$1&"|"&$B26,'Data Annex'!$K$1:$K$4779,0),MATCH(I$2,'Data Annex'!$K$1:$BS$1,0)),"") -> 94.02318023 | J26: =IFERROR(INDEX('Data Annex'!$K$1:$BS$4779,MATCH(J$1&"|"&$B26,'Data Annex'!$K$1:$K$4779,0),MATCH(J$2,'Data Annex'!$K$1:$BS$1,0)),"") -> 96.21070289 | K26: =IFERROR(INDEX('Data Annex'!$K$1:$BS$4779,MATCH(K$1&"|"&$B26,'Data Annex'!$K$1:$K$4779,0),MATCH(K$2,'Data Annex'!$K$1:$BS$1,0)),"") -> 68.2052736 | L26: =IFERROR(INDEX('Data Annex'!$K$1:$BS$4779,MATCH(L$1&"|"&$B26,'Data Annex'!$K$1:$K$4779,0),MATCH(L$2,'Data Annex'!$K$1:$BS$1,0)),"") -> 81.00523599 | M26: =IFERROR(INDEX('Data Annex'!$K$1:$BS$4779,MATCH(M$1&"|"&$B26,'Data Annex'!$K$1:$K$4779,0),MATCH(M$2,'Data Annex'!$K$1:$BS$1,0)),"") -> 82.10732787 | N26: =IFERROR(INDEX('Data Annex'!$K$1:$BS$4779,MATCH(N$1&"|"&$B26,'Data Annex'!$K$1:$K$4779,0),MATCH(N$2,'Data Annex'!$K$1:$BS$1,0)),"") -> 69.58224517 | O26: =IFERROR(INDEX('Data Annex'!$K$1:$BS$4779,MATCH(O$1&"|"&$B26,'Data Annex'!$K$1:$K$4779,0),MATCH(O$2,'Data Annex'!$K$1:$BS$1,0)),"") -> 69.65257397 | P26: =IFERROR(INDEX('Data Annex'!$K$1:$BS$4779,MATCH(P$1&"|"&$B26,'Data Annex'!$K$1:$K$4779,0),MATCH(P$2,'Data Annex'!$K$1:$BS$1,0)),"") -> 72.07822657 | Q26: =IFERROR(INDEX('Data Annex'!$K$1:$BS$4779,MATCH(Q$1&"|"&$B26,'Data Annex'!$K$1:$K$4779,0),MATCH(Q$2,'Data Annex'!$K$1:$BS$1,0)),"") -> 26.45555972 | R26: =IFERROR(INDEX('Data Annex'!$K$1:$BS$4779,MATCH(R$1&"|"&$B26,'Data Annex'!$K$1:$K$4779,0),MATCH(R$2,'Data Annex'!$K$1:$BS$1,0)),"") -> 26.77603238 | S26: =IFERROR(INDEX('Data Annex'!$K$1:$BS$4779,MATCH(S$1&"|"&$B26,'Data Annex'!$K$1:$K$4779,0),MATCH(S$2,'Data Annex'!$K$1:$BS$1,0)),"") -> 25.80142296 | T26: =IFERROR(INDEX('Data Annex'!$K$1:$BS$4779,MATCH(T$1&"|"&$B26,'Data Annex'!$K$1:$K$4779,0),MATCH(T$2,'Data Annex'!$K$1:$BS$1,0)),"") -> 18.49709409 | U26: =IFERROR(INDEX('Data Annex'!$K$1:$BS$4779,MATCH(U$1&"|"&$B26,'Data Annex'!$K$1:$K$4779,0),MATCH(U$2,'Data Annex'!$K$1:$BS$1,0)),"") -> 18.19533072 | V26: =IFERROR(INDEX('Data Annex'!$K$1:$BS$4779,MATCH(V$1&"|"&$B26,'Data Annex'!$K$1:$K$4779,0),MATCH(V$2,'Data Annex'!$K$1:$BS$1,0)),"") -> 17.97542886
A27: 17 | B27: IS | D27: IS | E27: =IFERROR(INDEX('Data Annex'!$K$1:$BS$4779,MATCH(E$1&"|"&$B27,'Data Annex'!$K$1:$K$4779,0),MATCH(E$2,'Data Annex'!$K$1:$BS$1,0)),"") -> 28.16351044 | F27: =IFERROR(INDEX('Data Annex'!$K$1:$BS$4779,MATCH(F$1&"|"&$B27,'Data Annex'!$K$1:$K$4779,0),MATCH(F$2,'Data Annex'!$K$1:$BS$1,0)),"") -> 31.06520516 | G27: =IFERROR(INDEX('Data Annex'!$K$1:$BS$4779,MATCH(G$1&"|"&$B27,'Data Annex'!$K$1:$K$4779,0),MATCH(G$2,'Data Annex'!$K$1:$BS$1,0)),"") -> 29.55031588 | H27: =IFERROR(INDEX('Data Annex'!$K$1:$BS$4779,MATCH(H$1&"|"&$B27,'Data Annex'!$K$1:$K$4779,0),MATCH(H$2,'Data Annex'!$K$1:$BS$1,0)),"") -> 12.87341264 | I27: =IFERROR(INDEX('Data Annex'!$K$1:$BS$4779,MATCH(I$1&"|"&$B27,'Data Annex'!$K$1:$K$4779,0),MATCH(I$2,'Data Annex'!$K$1:$BS$1,0)),"") -> 13.86835425 | J27: =IFERROR(INDEX('Data Annex'!$K$1:$BS$4779,MATCH(J$1&"|"&$B27,'Data Annex'!$K$1:$K$4779,0),MATCH(J$2,'Data Annex'!$K$1:$BS$1,0)),"") -> 13.50850631 | K27: =IFERROR(INDEX('Data Annex'!$K$1:$BS$4779,MATCH(K$1&"|"&$B27,'Data Annex'!$K$1:$K$4779,0),MATCH(K$2,'Data Annex'!$K$1:$BS$1,0)),"") -> 11.46585674 | L27: =IFERROR(INDEX('Data Annex'!$K$1:$BS$4779,MATCH(L$1&"|"&$B27,'Data Annex'!$K$1:$K$4779,0),MATCH(L$2,'Data Annex'!$K$1:$BS$1,0)),"") -> 12.42200332 | M27: =IFERROR(INDEX('Data Annex'!$K$1:$BS$4779,MATCH(M$1&"|"&$B27,'Data Annex'!$K$1:$K$4779,0),MATCH(M$2,'Data Annex'!$K$1:$BS$1,0)),"") -> 12.11048973 | N27: =IFERROR(INDEX('Data Annex'!$K$1:$BS$4779,MATCH(N$1&"|"&$B27,'Data Annex'!$K$1:$K$4779,0),MATCH(N$2,'Data Annex'!$K$1:$BS$1,0)),"") -> 11.57536791 | O27: =IFERROR(INDEX('Data Annex'!$K$1:$BS$4779,MATCH(O$1&"|"&$B27,'Data Annex'!$K$1:$K$4779,0),MATCH(O$2,'Data Annex'!$K$1:$BS$1,0)),"") -> 12.6068784 | P27: =IFERROR(INDEX('Data Annex'!$K$1:$BS$4779,MATCH(P$1&"|"&$B27,'Data Annex'!$K$1:$K$4779,0),MATCH(P$2,'Data Annex'!$K$1:$BS$1,0)),"") -> 12.33460468 | Q27: =IFERROR(INDEX('Data Annex'!$K$1:$BS$4779,MATCH(Q$1&"|"&$B27,'Data Annex'!$K$1:$K$4779,0),MATCH(Q$2,'Data Annex'!$K$1:$BS$1,0)),"") -> 4.98438546 | R27: =IFERROR(INDEX('Data Annex'!$K$1:$BS$4779,MATCH(R$1&"|"&$B27,'Data Annex'!$K$1:$K$4779,0),MATCH(R$2,'Data Annex'!$K$1:$BS$1,0)),"") -> 5.867228546 | S27: =IFERROR(INDEX('Data Annex'!$K$1:$BS$4779,MATCH(S$1&"|"&$B27,'Data Annex'!$K$1:$K$4779,0),MATCH(S$2,'Data Annex'!$K$1:$BS$1,0)),"") -> 5.737761901 | T27: =IFERROR(INDEX('Data Annex'!$K$1:$BS$4779,MATCH(T$1&"|"&$B27,'Data Annex'!$K$1:$K$4779,0),MATCH(T$2,'Data Annex'!$K$1:$BS$1,0)),"") -> 4.849437145 | U27: =IFERROR(INDEX('Data Annex'!$K$1:$BS$4779,MATCH(U$1&"|"&$B27,'Data Annex'!$K$1:$K$4779,0),MATCH(U$2,'Data Annex'!$K$1:$BS$1,0)),"") -> 5.628752479 | V27: =IFERROR(INDEX('Data Annex'!$K$1:$BS$4779,MATCH(V$1&"|"&$B27,'Data Annex'!$K$1:$K$4779,0),MATCH(V$2,'Data Annex'!$K$1:$BS$1,0)),"") -> 5.490015269
A28: 18 | B28: IT | D28: IT | E28: =IFERROR(INDEX('Data Annex'!$K$1:$BS$4779,MATCH(E$1&"|"&$B28,'Data Annex'!$K$1:$K$4779,0),MATCH(E$2,'Data Annex'!$K$1:$BS$1,0)),"") -> 1872.54324 | F28: =IFERROR(INDEX('Data Annex'!$K$1:$BS$4779,MATCH(F$1&"|"&$B28,'Data Annex'!$K$1:$K$4779,0),MATCH(F$2,'Data Annex'!$K$1:$BS$1,0)),"") -> 1782.975499 | G28: =IFERROR(INDEX('Data Annex'!$K$1:$BS$4779,MATCH(G$1&"|"&$B28,'Data Annex'!$K$1:$K$4779,0),MATCH(G$2,'Data Annex'!$K$1:$BS$1,0)),"") -> 1743.285274 | H28: =IFERROR(INDEX('Data Annex'!$K$1:$BS$4779,MATCH(H$1&"|"&$B28,'Data Annex'!$K$1:$K$4779,0),MATCH(H$2,'Data Annex'!$K$1:$BS$1,0)),"") -> 581.2151777 | I28: =IFERROR(INDEX('Data Annex'!$K$1:$BS$4779,MATCH(I$1&"|"&$B28,'Data Annex'!$K$1:$K$4779,0),MATCH(I$2,'Data Annex'!$K$1:$BS$1,0)),"") -> 573.10001 | J28: =IFERROR(INDEX('Data Annex'!$K$1:$BS$4779,MATCH(J$1&"|"&$B28,'Data Annex'!$K$1:$K$4779,0),MATCH(J$2,'Data Annex'!$K$1:$BS$1,0)),"") -> 572.9567583 | K28: =IFERROR(INDEX('Data Annex'!$K$1:$BS$4779,MATCH(K$1&"|"&$B28,'Data Annex'!$K$1:$K$4779,0),MATCH(K$2,'Data Annex'!$K$1:$BS$1,0)),"") -> 414.843142 | L28: =IFERROR(INDEX('Data Annex'!$K$1:$BS$4779,MATCH(L$1&"|"&$B28,'Data Annex'!$K$1:$K$4779,0),MATCH(L$2,'Data Annex'!$K$1:$BS$1,0)),"") -> 413.3400894 | M28: =IFERROR(INDEX('Data Annex'!$K$1:$BS$4779,MATCH(M$1&"|"&$B28,'Data Annex'!$K$1:$K$4779,0),MATCH(M$2,'Data Annex'!$K$1:$BS$1,0)),"") -> 413.2476877 | N28: =IFERROR(INDEX('Data Annex'!$K$1:$BS$4779,MATCH(N$1&"|"&$B28,'Data Annex'!$K$1:$K$4779,0),MATCH(N$2,'Data Annex'!$K$1:$BS$1,0)),"") -> 713.4876329 | O28: =IFERROR(INDEX('Data Annex'!$K$1:$BS$4779,MATCH(O$1&"|"&$B28,'Data Annex'!$K$1:$K$4779,0),MATCH(O$2,'Data Annex'!$K$1:$BS$1,0)),"") -> 673.9461219 | P28: =IFERROR(INDEX('Data Annex'!$K$1:$BS$4779,MATCH(P$1&"|"&$B28,'Data Annex'!$K$1:$K$4779,0),MATCH(P$2,'Data Annex'!$K$1:$BS$1,0)),"") -> 665.1238162 | Q28: =IFERROR(INDEX('Data Annex'!$K$1:$BS$4779,MATCH(Q$1&"|"&$B28,'Data Annex'!$K$1:$K$4779,0),MATCH(Q$2,'Data Annex'!$K$1:$BS$1,0)),"") -> 322.5959074 | R28: =IFERROR(INDEX('Data Annex'!$K$1:$BS$4779,MATCH(R$1&"|"&$B28,'Data Annex'!$K$1:$K$4779,0),MATCH(R$2,'Data Annex'!$K$1:$BS$1,0)),"") -> 289.9752728 | S28: =IFERROR(INDEX('Data Annex'!$K$1:$BS$4779,MATCH(S$1&"|"&$B28,'Data Annex'!$K$1:$K$4779,0),MATCH(S$2,'Data Annex'!$K$1:$BS$1,0)),"") -> 287.9274646 | T28: =IFERROR(INDEX('Data Annex'!$K$1:$BS$4779,MATCH(T$1&"|"&$B28,'Data Annex'!$K$1:$K$4779,0),MATCH(T$2,'Data Annex'!$K$1:$BS$1,0)),"") -> 138.9399776 | U28: =IFERROR(INDEX('Data Annex'!$K$1:$BS$4779,MATCH(U$1&"|"&$B28,'Data Annex'!$K$1:$K$4779,0),MATCH(U$2,'Data Annex'!$K$1:$BS$1,0)),"") -> 133.7552227 | V28: =IFERROR(INDEX('Data Annex'!$K$1:$BS$4779,MATCH(V$1&"|"&$B28,'Data Annex'!$K$1:$K$4779,0),MATCH(V$2,'Data Annex'!$K$1:$BS$1,0)),"") -> 130.2478491
B29: LI | D29: LI | E29: =IFERROR(INDEX('Data Annex'!$K$1:$BS$4779,MATCH(E$1&"|"&$B29,'Data Annex'!$K$1:$K$4779,0),MATCH(E$2,'Data Annex'!$K$1:$BS$1,0)),"") -> 70.14054564 | F29: =IFERROR(INDEX('Data Annex'!$K$1:$BS$4779,MATCH(F$1&"|"&$B29,'Data Annex'!$K$1:$K$4779,0),MATCH(F$2,'Data Annex'!$K$1:$BS$1,0)),"") -> 71.47046177 | G29: =IFERROR(INDEX('Data Annex'!$K$1:$BS$4779,MATCH(G$1&"|"&$B29,'Data Annex'!$K$1:$K$4779,0),MATCH(G$2,'Data Annex'!$K$1:$BS$1,0)),"") -> 72.96267291 | H29: =IFERROR(INDEX('Data Annex'!$K$1:$BS$4779,MATCH(H$1&"|"&$B29,'Data Annex'!$K$1:$K$4779,0),MATCH(H$2,'Data Annex'!$K$1:$BS$1,0)),"") -> 21.50018896 | I29: =IFERROR(INDEX('Data Annex'!$K$1:$BS$4779,MATCH(I$1&"|"&$B29,'Data Annex'!$K$1:$K$4779,0),MATCH(I$2,'Data Annex'!$K$1:$BS$1,0)),"") -> 20.89696473 | J29: =IFERROR(INDEX('Data Annex'!$K$1:$BS$4779,MATCH(J$1&"|"&$B29,'Data Annex'!$K$1:$K$4779,0),MATCH(J$2,'Data Annex'!$K$1:$BS$1,0)),"") -> 21.24892457 | K29: =IFERROR(INDEX('Data Annex'!$K$1:$BS$4779,MATCH(K$1&"|"&$B29,'Data Annex'!$K$1:$K$4779,0),MATCH(K$2,'Data Annex'!$K$1:$BS$1,0)),"") -> 12.39298778 | L29: =IFERROR(INDEX('Data Annex'!$K$1:$BS$4779,MATCH(L$1&"|"&$B29,'Data Annex'!$K$1:$K$4779,0),MATCH(L$2,'Data Annex'!$K$1:$BS$1,0)),"") -> 12.68863248 | M29: =IFERROR(INDEX('Data Annex'!$K$1:$BS$4779,MATCH(M$1&"|"&$B29,'Data Annex'!$K$1:$K$4779,0),MATCH(M$2,'Data Annex'!$K$1:$BS$1,0)),"") -> 13.19609768 | N29: =IFERROR(INDEX('Data Annex'!$K$1:$BS$4779,MATCH(N$1&"|"&$B29,'Data Annex'!$K$1:$K$4779,0),MATCH(N$2,'Data Annex'!$K$1:$BS$1,0)),"") -> 8.059045283 | O29: =IFERROR(INDEX('Data Annex'!$K$1:$BS$4779,MATCH(O$1&"|"&$B29,'Data Annex'!$K$1:$K$4779,0),MATCH(O$2,'Data Annex'!$K$1:$BS$1,0)),"") -> 8.875725561 | P29: =IFERROR(INDEX('Data Annex'!$K$1:$BS$4779,MATCH(P$1&"|"&$B29,'Data Annex'!$K$1:$K$4779,0),MATCH(P$2,'Data Annex'!$K$1:$BS$1,0)),"") -> 9.745933788 | Q29: =IFERROR(INDEX('Data Annex'!$K$1:$BS$4779,MATCH(Q$1&"|"&$B29,'Data Annex'!$K$1:$K$4779,0),MATCH(Q$2,'Data Annex'!$K$1:$BS$1,0)),"") -> 4.910358485 | R29: =IFERROR(INDEX('Data Annex'!$K$1:$BS$4779,MATCH(R$1&"|"&$B29,'Data Annex'!$K$1:$K$4779,0),MATCH(R$2,'Data Annex'!$K$1:$BS$1,0)),"") -> 5.442930918 | S29: =IFERROR(INDEX('Data Annex'!$K$1:$BS$4779,MATCH(S$1&"|"&$B29,'Data Annex'!$K$1:$K$4779,0),MATCH(S$2,'Data Annex'!$K$1:$BS$1,0)),"") -> 5.8605788 | T29: =IFERROR(INDEX('Data Annex'!$K$1:$BS$4779,MATCH(T$1&"|"&$B29,'Data Annex'!$K$1:$K$4779,0),MATCH(T$2,'Data Annex'!$K$1:$BS$1,0)),"") -> 2.573496706 | U29: =IFERROR(INDEX('Data Annex'!$K$1:$BS$4779,MATCH(U$1&"|"&$B29,'Data Annex'!$K$1:$K$4779,0),MATCH(U$2,'Data Annex'!$K$1:$BS$1,0)),"") -> 2.805214766 | V29: =IFERROR(INDEX('Data Annex'!$K$1:$BS$4779,MATCH(V$1&"|"&$B29,'Data Annex'!$K$1:$K$4779,0),MATCH(V$2,'Data Annex'!$K$1:$BS$1,0)),"") -> 2.99970089
A30: 19 | B30: LT | D30: LT | E30: =IFERROR(INDEX('Data Annex'!$K$1:$BS$4779,MATCH(E$1&"|"&$B30,'Data Annex'!$K$1:$K$4779,0),MATCH(E$2,'Data Annex'!$K$1:$BS$1,0)),"") -> 26.586275 | F30: =IFERROR(INDEX('Data Annex'!$K$1:$BS$4779,MATCH(F$1&"|"&$B30,'Data Annex'!$K$1:$K$4779,0),MATCH(F$2,'Data Annex'!$K$1:$BS$1,0)),"") -> 27.278065 | G30: =IFERROR(INDEX('Data Annex'!$K$1:$BS$4779,MATCH(G$1&"|"&$B30,'Data Annex'!$K$1:$K$4779,0),MATCH(G$2,'Data Annex'!$K$1:$BS$1,0)),"") -> 29.918576 | H30: =IFERROR(INDEX('Data Annex'!$K$1:$BS$4779,MATCH(H$1&"|"&$B30,'Data Annex'!$K$1:$K$4779,0),MATCH(H$2,'Data Annex'!$K$1:$BS$1,0)),"") -> 6.42375 | I30: =IFERROR(INDEX('Data Annex'!$K$1:$BS$4779,MATCH(I$1&"|"&$B30,'Data Annex'!$K$1:$K$4779,0),MATCH(I$2,'Data Annex'!$K$1:$BS$1,0)),"") -> 7.134121 | J30: =IFERROR(INDEX('Data Annex'!$K$1:$BS$4779,MATCH(J$1&"|"&$B30,'Data Annex'!$K$1:$K$4779,0),MATCH(J$2,'Data Annex'!$K$1:$BS$1,0)),"") -> 7.320685 | K30: =IFERROR(INDEX('Data Annex'!$K$1:$BS$4779,MATCH(K$1&"|"&$B30,'Data Annex'!$K$1:$K$4779,0),MATCH(K$2,'Data Annex'!$K$1:$BS$1,0)),"") -> 4.995779 | L30: =IFERROR(INDEX('Data Annex'!$K$1:$BS$4779,MATCH(L$1&"|"&$B30,'Data Annex'!$K$1:$K$4779,0),MATCH(L$2,'Data Annex'!$K$1:$BS$1,0)),"") -> 5.254642 | M30: =IFERROR(INDEX('Data Annex'!$K$1:$BS$4779,MATCH(M$1&"|"&$B30,'Data Annex'!$K$1:$K$4779,0),MATCH(M$2,'Data Annex'!$K$1:$BS$1,0)),"") -> 5.317109 | N30: =IFERROR(INDEX('Data Annex'!$K$1:$BS$4779,MATCH(N$1&"|"&$B30,'Data Annex'!$K$1:$K$4779,0),MATCH(N$2,'Data Annex'!$K$1:$BS$1,0)),"") -> 4.168224 | O30: =IFERROR(INDEX('Data Annex'!$K$1:$BS$4779,MATCH(O$1&"|"&$B30,'Data Annex'!$K$1:$K$4779,0),MATCH(O$2,'Data Annex'!$K$1:$BS$1,0)),"") -> 4.474378 | P30: =IFERROR(INDEX('Data Annex'!$K$1:$BS$4779,MATCH(P$1&"|"&$B30,'Data Annex'!$K$1:$K$4779,0),MATCH(P$2,'Data Annex'!$K$1:$BS$1,0)),"") -> 4.672567 | Q30: =IFERROR(INDEX('Data Annex'!$K$1:$BS$4779,MATCH(Q$1&"|"&$B30,'Data Annex'!$K$1:$K$4779,0),MATCH(Q$2,'Data Annex'!$K$1:$BS$1,0)),"") -> 2.943923 | R30: =IFERROR(INDEX('Data Annex'!$K$1:$BS$4779,MATCH(R$1&"|"&$B30,'Data Annex'!$K$1:$K$4779,0),MATCH(R$2,'Data Annex'!$K$1:$BS$1,0)),"") -> 3.255868 | S30: =IFERROR(INDEX('Data Annex'!$K$1:$BS$4779,MATCH(S$1&"|"&$B30,'Data Annex'!$K$1:$K$4779,0),MATCH(S$2,'Data Annex'!$K$1:$BS$1,0)),"") -> 3.416576 | T30: =IFERROR(INDEX('Data Annex'!$K$1:$BS$4779,MATCH(T$1&"|"&$B30,'Data Annex'!$K$1:$K$4779,0),MATCH(T$2,'Data Annex'!$K$1:$BS$1,0)),"") -> 2.542504 | U30: =IFERROR(INDEX('Data Annex'!$K$1:$BS$4779,MATCH(U$1&"|"&$B30,'Data Annex'!$K$1:$K$4779,0),MATCH(U$2,'Data Annex'!$K$1:$BS$1,0)),"") -> 2.655123 | V30: =IFERROR(INDEX('Data Annex'!$K$1:$BS$4779,MATCH(V$1&"|"&$B30,'Data Annex'!$K$1:$K$4779,0),MATCH(V$2,'Data Annex'!$K$1:$BS$1,0)),"") -> 3.033308
